Workbook

Sheet DADOS
A1: 27476 | B1: PO - Planilha Orçamentária / PLQ - Planilha de Levantamento de Quantidades / CFF - Cronograma Físico Financeiro
A2: v008
A4: INSTRUÇÕES DE USO E PREENCHIMENTO
A6: 1. Este documento somente pode ser utilizado nas versões do Excel 2003 ou superior. Não deve ser utilizado versões do BROffice. O Documento deve ser salvo SOMENTE em extensão habilitada para macros (.xls ou .xlsm). Se o documento for salvo na extensão .xlsx, o arquivo será INUTILIZADO.
A8: 2. Para funcionamento pleno desse arquivo, a Segurança de Macros do Excel deve ser habilitada.
A10: 2.1 Na Versão Excel 2003, selecione na Faixa de Opções: Ferramentas --> Macro --> Segurança --> Na aba Nível de Segurança selecione a Opção "Baixo" --> Clique em OK --> Feche e abra o Excel novamente para utilizar a Planilha.
A12: 2.2 Na Versão Excel 2007 ou superior, selecione na Faixa de Opções: Arquivo --> Opções --> Central de Confiabilidade --> Configurações da Central de Confiabilidade --> Configurações de Macro --> Habilitar todas as Macros --> Clique em OK --> Feche e abra o excel novamente para utilizar a Planilha.
A14: 3. O Preenchimento deve ser feito somente nas células em amarelo. As outras células são de preenchimento Automático.
A16: 4. Preferências de Elaboração do Orçamento
A18: 4.1. Preenchimento de Quantidades
A22: 5. Ordem de Preenchimento
A24: 5.1. na Aba DADOS
A26: 5.1.1. Preencha no Quadro abaixo os Dados do TC/CR:
A28: Nº OPERAÇÃO | C28: GESTOR | F28: PROGRAMA | J28: AÇÃO / MODALIDADE | P28: OBJETO
A29: - | C29: - | F29: - | J29: EMPREITADA GLOBAL | P29: REFORMA DA CÂMARA DE VEREADORES DE SÃO JOSÉ DO OURO
A31: PROPONENTE / TOMADOR | G31: MUNICÍPIO / UF | K31: LOCALIDADE / ENDEREÇO | Q31: APELIDO DO EMPREENDIMENTO
A32: CÂMARA DE VEREADORES DE SÃO JOSÉ DO OURO | G32: SÃO JOSÉ DO OURO / RS | K32: REFORMA DA CÂMARA DE VEREADORES DE SÃO JOSÉ DO OURO | Q32: REFORMA DA CÂMARA DE VEREADORES DE SÃO JOSÉ DO OURO
A35: 5.1.2. Preencha no quadro abaixo as informações sobre o orçamento:
A37: DATA BASE | C37: DESON. | D37: LOCALIDADE DO SINAPI | G37: DESCRIÇÃO DO LOTE | T37: BDI 1 | U37: BDI 2 | V37: BDI 3 | W37: BDI 4 | X37: BDI 5
A38: 2025-09-01 | C38: Sim | D38: Porto Alegre / RS | G38: REFORMA DA CÂMARA DE VEREADORES DE SÃO JOSÉ DO OURO | T38: =IF(ISERROR(INDIRECT("'BDI ("&RIGHT(T37,1)&")'!N27")),"",INDIRECT("'BDI ("&RIGHT(T37,1)&")'!N27")) -> 0.3021 | U38: =IF(ISERROR(INDIRECT("'BDI ("&RIGHT(U37,1)&")'!N27")),"",INDIRECT("'BDI ("&RIGHT(U37,1)&")'!N27")) -> 0 | V38: =IF(ISERROR(INDIRECT("'BDI ("&RIGHT(V37,1)&")'!N27")),"",INDIRECT("'BDI ("&RIGHT(V37,1)&")'!N27")) -> 0 | W38: =IF(ISERROR(INDIRECT("'BDI ("&RIGHT(W37,1)&")'!N27")),"",INDIRECT("'BDI ("&RIGHT(W37,1)&")'!N27")) -> 0 | X38: =IF(ISERROR(INDIRECT("'BDI ("&RIGHT(X37,1)&")'!N27")),"",INDIRECT("'BDI ("&RIGHT(X37,1)&")'!N27")) -> 
A40: 4.1.2. Preencha no quadro abaixo as informações sobre o orçamento licitado:
A42: CTEF n.º | C42: NOME DA EMPRESA | H42: DATA BASE | J42: DESON. | K42: REGIME DE EXECUÇÃO | N42: ACOMP. | O42: OBJETO CTEF | U42: DATA ASSINATURA | W42: VIGÊNCIA
A45: 5.1.3. Preencha a data de Início da Obra:
A47: DATA INÍCIO
A48: 2025-11-30
A50: 5.1.4. Preencha no(s) Quadro(s) abaixo os Dados do(s) Responsável(is) Técnico(s) pela elaboração do Orçamento:
G52: Exibir o 2° Quadro de Assinatura? | K52: NÃO
A54: Nome: | B54: LEONARDO CONSORTE | G54: Nome: | H54: MONICA RAFAELA STANGUERLIN
A55: =IF(OR(TipoOrçamento="BASE",TipoOrçamento="REPROGRAMADONPL"),"Título:","Cargo:") -> Título: | B55: ENG. CIVIL | G55: =A55 -> Título: | H55: ENG. CIVIL
A56: =IF(OR(TipoOrçamento="BASE",TipoOrçamento="REPROGRAMADONPL"),"CREA/CAU:","Empresa:") -> CREA/CAU: | B56: 1331921 | G56: =A56 -> CREA/CAU: | H56: 173754-5
A57: =IF(OR(TipoOrçamento="BASE",TipoOrçamento="REPROGRAMADONPL"),"ART/RRT:","CNPJ:") -> ART/RRT: | B57: 13901876 | G57: =A57 -> ART/RRT: | H57: ***
A60: 5.2. Legenda das Abas
A62: 5.2.1. LARANJA: Aba DADOS. Preenchimento Obrigatório. Impressão Dispensada.
A63: 5.2.2. AMARELO: Abas BDI, PO, PLQ e CFF. Preenchimento e Impressão Obrigatórias. O preenchimento da Aba BDI é dispensada para os casos de Aquisição Direta de Materiais e Equipamentos. A Impressão da Aba PLQ pode ser dispensada para casos de Frente de Obra Única.
A65: 5.3. na Aba BDI (Bonificações e Despesas Indiretas):
A67: 5.3.1. Escolha o tipo de empreendimento.
A68: 5.3.2. Escolha se o BDI será do tipo desonerado ou não (aba DADOS)
A69: 5.3.3. Informe a base de cálculo do ISS (0 a 100%).
A70: 5.3.4. Informe a alíquota do ISS (Normalmente de 2 a 5%).
A71: 5.3.5. Defina na tabela os percentuais a serem adotados para cada item que compõe o BDI nos campos em amarelo.
A72: 5.3.6. Preencha o campo observações se necessário (recomendado para os orçamentos que utilizam mais de um BDI).
A74: 5.4. na Aba PO (Planilha Orçamentária):
A76: 5.4.1. Primeiramente, selecione os níveis de cada item do orçamento na coluna NÍVEL.
A77: 5.4.1.1: O nível de "Serviço" serve tanto para serviços ou insumos (mão-de-obra / material / equipamento / veículo / máquina / ferramenta / etc). Um "nível 2/3/4" é um título (é preenchida apenas a coluna descrição) utilizado para organizar melhor a planilha orçamentária e engloba (agrupa) serviços e agrupadores de nível inferior.
A78: 5.4.2. Após a seleção dos níveis, preencha, para cada serviço, as informações sobre a Fonte de Referência, (SINAPI, SICRO, SIURB, etc) e o respectivo Código de Referência.
A79: 5.4.3. Esta planilha é compatível com o arquivo REFERÊNCIA distribuído pela CAIXA. Caso o arquivo REFERÊNCIA esteja aberto, será possível buscar um código através do botão "Buscar Código". Desta forma a descrição dos serviços será preenchida automaticamente (podendo ser substituída). Caso contrário, seu preenchimento deve ser manual.
A80: 5.4.3.1. As descrições e unidades preenchidas automaticamente ficarão vinculadas ao arquivo REFERÊNCIA até que se use o botão "Fixar Descrições", que quebra a fórmula e transforma as descrições em texto.
A81: 5.4.4. Preencher o custo unitário do serviço/insumo na Coluna CUSTO UNITÁRIO. ATENÇÃO: o custo unitário adotado deve ser menor ou igual ao contido na tabela de referência ou mediana das cotações de mercado.
A82: 5.4.5. Indicar o BDI adotado para cada serviço/insumo na Coluna BDI. Preferencialmente selecione uma das opções da lista suspensa que aparecerá na célula, esta lista contém os 05 BDIs que podem ser preenchidos na Aba BDI (conforme item 5.2 das instruções). Caso seja necessária a adoção de mais de 05 valores diferentes de BDI, digite o percentual diretamente na célula.
A83: 5.4.6. Conforme selecionado no item 4.1. desta Aba, a Coluna Quantidade pode ser preenchida diretamente na PO, ou representar a soma das quantidades de cada Frente de Obra, informadas na aba PLQ (Planilha de Levantamento de Quantitativos).
A84: 5.4.7. OBSERVAÇÃO: As demais colunas (Item / Quantidade / Preço Unitário / Preço Total) são de preenchimento automático. Não tente preenche-las ou alterá-las na Aba PO.
A85: 5.4.8. Se for necessário acrescentar ou excluir linhas da Planilha Orçamentária, utilize o Botão EDITAR PLANILHA e selecione as opções no quadro. ATENÇÃO: quanto maior o número de linhas mais lento será o processamento dos dados, então acrescente apenas o número necessário ou um pouco a mais.
A86: 5.4.8.1. Evite deixar linhas em branco no corpo da Planilha Orçamentária.
A87: 5.4.9. Caso deseje importar os dados de outro arquivo utilize apenas a opção COLAR ESPECIAL ==> VALORES.
A88: 5.4.10. Clique no Botão LICITAR / REPROGRAMAR para preencher o Orçamento Licitado ou Reprogramado.
A90: 5.5. na Aba PLQ (Planilha de Levantamento de Quantitativos):
A92: 5.5.1. Preencha primeiramente as Frentes de Obra.
A93: 5.5.1.1. Exemplos de Frentes de Obra (Rua A trecho 01 / Rua A trecho 02 / Rua B ; UH 01 / UH 02 / UH 03).
A94: 5.5.2. Preencha as quantidades dos serviços por frente de obra. A soma das quantidades de todas as frentes de um determinado serviço será a quantidade exibida na Planilha Orçamentária.
A95: 5.5.3. Caso deseje incluir ou excluir frentes, utilize os botões ADICIONAR e EXCLUIR.
A97: 5.6. na Aba CFF (Cronograma Físico-Financeiro):
A99: 5.6.1. Preencha a data de início da obra na aba Dados.
A100: 5.6.2. Preencha as porcentagens previstas por parcela para cada meta ou macrosserviço.
A101: 5.6.3. Para atualizar o Cronograma conforme o Orçamento e incluir ou excluir parcelas, utilize o botão EDITAR / ATUALIZAR CRONOGRAMA.
L107: (Selecione uma Localidade)
L108: Aracaju / SE | S108: =T38 -> 0.3021
L109: Belém / PA | S109: =U38 -> 0
L110: Belo Horizonte / MG | S110: =V38 -> 0
L111: Boa Vista / RR | S111: =W38 -> 0
L112: Brasília / DF | S112: =X38 -> 
L113: Campo Grande / MS
L114: Cuiabá / MT
L115: Curitiba / PR | P115: Empreitada Preço Global
L116: Florianópolis / SC | P116: Empreitada Preço Unitário
L117: Fortaleza / CE | P117: Empreitada Integral
L118: Goiânia / GO | P118: Tarefa
L119: João Pessoa / PB | P119: Contratação Integrada
L120: Macapá / AP | P120: Não se aplica
L121: Maceió / AL
L122: Manaus / AM | P122: BM
L123: Natal / RN | P123: PLE
L124: Palmas / TO
L125: Porto Alegre / RS
L126: Porto Velho / RO
L127: Recife / PE
L128: Rio Branco / AC
L129: Rio de Janeiro / RJ
L130: Salvador / BA
L131: São Luís / MA
L132: São Paulo / SP
L133: Teresina / PI
L134: Vitória / ES
A220: =A28 -> Nº OPERAÇÃO | C220: =C28 -> GESTOR | F220: =F28 -> PROGRAMA | J220: =J28 -> AÇÃO / MODALIDADE | P220: =P28 -> OBJETO
A221: =IF(A29="","",A29) -> - | C221: =IF(C29="","",C29) -> - | F221: =IF(F29="","",F29) -> - | J221: =IF(J29="","",J29) -> EMPREITADA GLOBAL | L221: =IF(#REF!="","",#REF!) ->  | N221: =IF(#REF!="","",#REF!) ->  | P221: =IF(P29="","",P29) -> REFORMA DA CÂMARA DE VEREADORES DE SÃO JOSÉ DO OURO
A223: =A31 -> PROPONENTE / TOMADOR | G223: =G31 -> MUNICÍPIO / UF | K223: =K31 -> LOCALIDADE / ENDEREÇO | Q223: =Q31 -> APELIDO DO EMPREENDIMENTO
A224: =IF(A32="","",A32) -> CÂMARA DE VEREADORES DE SÃO JOSÉ DO OURO | G224: =IF(G32="","",G32) -> SÃO JOSÉ DO OURO / RS | H224: =IF(I32="","",I32) ->  | J224: =IF(#REF!="","",#REF!) ->  | K224: =IF(K32="","",K32) -> REFORMA DA CÂMARA DE VEREADORES DE SÃO JOSÉ DO OURO | Q224: =IF(Q32="","",Q32) -> REFORMA DA CÂMARA DE VEREADORES DE SÃO JOSÉ DO OURO
A226: =A37 -> DATA BASE | C226: =C37 -> DESON. | D226: =D37 -> LOCALIDADE DO SINAPI | G226: =G37 -> DESCRIÇÃO DO LOTE | T226: =T37 -> BDI 1 | U226: =U37 -> BDI 2 | V226: =V37 -> BDI 3 | W226: =W37 -> BDI 4 | X226: =X37 -> BDI 5
A227: =IF(A38="","",A38) -> 2025-09-01 | C227: =IF(C38="","",C38) -> Sim | D227: Porto Alegre / RS | G227: REFORMA DA CÂMARA DE VEREADORES DE SÃO JOSÉ DO OURO | T227: 0.3021 | U227: 0 | V227: 0 | W227: 0
A229: CTEF n.º | C229: NOME DA EMPRESA / CNPJ: | H229: DATA BASE | J229: DESON. | K229: REGIME DE EXECUÇÃO | N229: ACOMP. | O229: OBJETO CTEF | U229: DATA ASSINATURA | W229: VIGÊNCIA
A230: =IF(A43="","",A43) ->  | C230: =IF(C43="","",C43) ->  | E230: =IF(E43="","",E43) ->  | G230: =IF(G43="","",G43) ->  | H230: =IF(H43="","",H43) ->  | I230: =IF(I43="","",I43) ->  | J230: =IF(J43="","",J43) ->  | K230: =IF(K43="","",K43) ->  | M230: =IF(M43="","",M43) ->  | N230: =IF(N43="","",N43) ->  | O230: =IF(O43="","",O43) ->  | Q230: =IF(Q43="","",Q43) ->  | S230: =IF(S43="","",S43) ->  | U230: =IF(U43="","",U43) ->  | W230: =IF(W43="","",W43) -> 

Sheet BDI (1)
E1: MIN | F1: MED | G1: MAX | N1: ="Quadro de Composição do BDI "&MID(CELL("nome.arquivo",N1),5+FIND("BDI (",CELL("nome.arquivo",N1)),1) -> Quadro de Composição do BDI 1
A2: Construção e Reforma de Edifícios | B2: AC | C2: =CONCATENATE(A2,"-",B2) -> Construção e Reforma de Edifícios-AC | E2: 0.03 | F2: 0.04 | G2: 0.055
A3: =A2 -> Construção e Reforma de Edifícios | B3: SG | C3: Construção e Reforma de Edifícios-SG | E3: 0.008 | F3: 0.008 | G3: 0.01
A4: =A3 -> Construção e Reforma de Edifícios | B4: R | C4: Construção e Reforma de Edifícios-R | E4: 0.0097 | F4: 0.0127 | G4: 0.0127 | I4: Nº TC/CR | K4: PROPONENTE / TOMADOR
A5: =A4 -> Construção e Reforma de Edifícios | B5: DF | C5: Construção e Reforma de Edifícios-DF | E5: 0.0059 | F5: 0.0123 | G5: 0.0139 | I5: =DADOS!A29 -> - | K5: =DADOS!A32 -> CÂMARA DE VEREADORES DE SÃO JOSÉ DO OURO
A6: =A5 -> Construção e Reforma de Edifícios | B6: L | C6: Construção e Reforma de Edifícios-L | E6: 0.0616 | F6: 0.074 | G6: 0.0896
A7: =A6 -> Construção e Reforma de Edifícios | B7: BDI PAD | C7: Construção e Reforma de Edifícios-BDI PAD | E7: 0.2034 | F7: 0.2212 | G7: 0.25 | I7: OBJETO
A8: Construção de Praças Urbanas, Rodovias, Ferrovias e recapeamento e pavimentação de vias urbanas | B8: AC | C8: Construção de Praças Urbanas, Rodovias, Ferrovias e recapeamento e pavimentação de vias urbanas-AC | E8: 0.038 | F8: 0.0401 | G8: 0.0467 | I8: =DADOS!P29 -> REFORMA DA CÂMARA DE VEREADORES DE SÃO JOSÉ DO OURO
A9: Construção de Praças Urbanas, Rodovias, Ferrovias e recapeamento e pavimentação de vias urbanas | B9: SG | C9: Construção de Praças Urbanas, Rodovias, Ferrovias e recapeamento e pavimentação de vias urbanas-SG | E9: 0.0032 | F9: 0.004 | G9: 0.0074
A10: Construção de Praças Urbanas, Rodovias, Ferrovias e recapeamento e pavimentação de vias urbanas | B10: R | C10: Construção de Praças Urbanas, Rodovias, Ferrovias e recapeamento e pavimentação de vias urbanas-R | E10: 0.005 | F10: 0.0056 | G10: 0.0097 | I10: TIPO DE OBRA DO EMPREENDIMENTO | Q10: DESONERAÇÃO
A11: Construção de Praças Urbanas, Rodovias, Ferrovias e recapeamento e pavimentação de vias urbanas | B11: DF | C11: Construção de Praças Urbanas, Rodovias, Ferrovias e recapeamento e pavimentação de vias urbanas-DF | E11: 0.0102 | F11: 0.0111 | G11: 0.0121 | I11: Construção e Reforma de Edifícios | Q11: =DADOS!$C$38 -> Sim
A12: Construção de Praças Urbanas, Rodovias, Ferrovias e recapeamento e pavimentação de vias urbanas | B12: L | C12: Construção de Praças Urbanas, Rodovias, Ferrovias e recapeamento e pavimentação de vias urbanas-L | E12: 0.0664 | F12: 0.073 | G12: 0.0869
A13: Construção de Praças Urbanas, Rodovias, Ferrovias e recapeamento e pavimentação de vias urbanas | B13: BDI PAD | C13: Construção de Praças Urbanas, Rodovias, Ferrovias e recapeamento e pavimentação de vias urbanas-BDI PAD | E13: 0.196 | F13: 0.2097 | G13: 0.2423 | I13: Conforme legislação tributária municipal, definir estimativa de percentual da base de cálculo para o ISS: | Q13: 1
A14: Construção de Redes de Abastecimento de Água, Coleta de Esgoto | B14: AC | C14: Construção de Redes de Abastecimento de Água, Coleta de Esgoto-AC | E14: 0.0343 | F14: 0.0493 | G14: 0.0671 | I14: Sobre a base de cálculo, definir a respectiva alíquota do ISS (entre 2% e 5%): | Q14: 0.02
A15: =A14 -> Construção de Redes de Abastecimento de Água, Coleta de Esgoto | B15: SG | C15: Construção de Redes de Abastecimento de Água, Coleta de Esgoto-SG | E15: 0.0028 | F15: 0.0049 | G15: 0.0075
I16: Itens | M16: Siglas | N16: % Adotado | O16: Situação | P16: 1º Quartil | Q16: Médio | R16: 3º Quartil | T16: =IF(V27,"Para BDI fora do intervalo estatístico, deve ser apresentado Relatório Técnico Circunstanciado justificando a adoção do percentual de cada parcela do BDI.","") -> 
A17: =A15 -> Construção de Redes de Abastecimento de Água, Coleta de Esgoto | B17: R | C17: Construção de Redes de Abastecimento de Água, Coleta de Esgoto-R | E17: 0.01 | F17: 0.0139 | G17: 0.0174
A18: =A17 -> Construção de Redes de Abastecimento de Água, Coleta de Esgoto | B18: DF | C18: Construção de Redes de Abastecimento de Água, Coleta de Esgoto-DF | E18: 0.0094 | F18: 0.0099 | G18: 0.0117 | I18: =IF($I$11=$A$59,"Encargos Sociais incidentes sobre a mão de obra","Administração Central") -> Administração Central | M18: =IF($I$11=$A$59,"K1","AC") -> AC | N18: 0.04 | O18: - | P18: =VLOOKUP(CONCATENATE(I$11,"-",M18),$C$2:$G$49,3,FALSE) -> 0.03 | Q18: =VLOOKUP(CONCATENATE(I$11,"-",M18),$C$2:$G$49,4,FALSE) -> 0.04 | R18: =VLOOKUP(CONCATENATE(I$11,"-",M18),$C$2:$G$49,5,FALSE) -> 0.055
A19: =A18 -> Construção de Redes de Abastecimento de Água, Coleta de Esgoto | B19: L | C19: Construção de Redes de Abastecimento de Água, Coleta de Esgoto-L | E19: 0.0674 | F19: 0.0804 | G19: 0.094 | I19: =IF($I$11=$A$59,"Administração Central da empresa ou consultoria - overhead","Seguro e Garantia") -> Seguro e Garantia | M19: =IF($I$11=$A$59,"K2","SG") -> SG | N19: 0.008 | O19: - | P19: =VLOOKUP(CONCATENATE(I$11,"-",M19),$C$2:$G$49,3,FALSE) -> 0.008 | Q19: =VLOOKUP(CONCATENATE(I$11,"-",M19),$C$2:$G$49,4,FALSE) -> 0.008 | R19: =VLOOKUP(CONCATENATE(I$11,"-",M19),$C$2:$G$49,5,FALSE) -> 0.01
A20: =A19 -> Construção de Redes de Abastecimento de Água, Coleta de Esgoto | B20: BDI PAD | C20: Construção de Redes de Abastecimento de Água, Coleta de Esgoto-BDI PAD | E20: 0.2076 | F20: 0.2418 | G20: 0.2644 | I20: =IF($I$11=$A$59,"","Risco") -> Risco | M20: =IF($I$11=$A$59,"","R") -> R | N20: 0.0127 | O20: - | P20: =VLOOKUP(CONCATENATE(I$11,"-",M20),$C$2:$G$49,3,FALSE) -> 0.0097 | Q20: =VLOOKUP(CONCATENATE(I$11,"-",M20),$C$2:$G$49,4,FALSE) -> 0.0127 | R20: =VLOOKUP(CONCATENATE(I$11,"-",M20),$C$2:$G$49,5,FALSE) -> 0.0127
A21: Construção e Manutenção de Estações e Redes de Distribuição de Energia Elétrica | B21: AC | C21: Construção e Manutenção de Estações e Redes de Distribuição de Energia Elétrica-AC | E21: 0.0529 | F21: 0.0592 | G21: 0.0793 | I21: =IF($I$11=$A$59,"","Despesas Financeiras") -> Despesas Financeiras | M21: =IF($I$11=$A$59,"","DF") -> DF | N21: 0.0123 | O21: - | P21: =VLOOKUP(CONCATENATE(I$11,"-",M21),$C$2:$G$49,3,FALSE) -> 0.0059 | Q21: =VLOOKUP(CONCATENATE(I$11,"-",M21),$C$2:$G$49,4,FALSE) -> 0.0123 | R21: =VLOOKUP(CONCATENATE(I$11,"-",M21),$C$2:$G$49,5,FALSE) -> 0.0139
A22: =A21 -> Construção e Manutenção de Estações e Redes de Distribuição de Energia Elétrica | B22: SG | C22: Construção e Manutenção de Estações e Redes de Distribuição de Energia Elétrica-SG | E22: 0.0025 | F22: 0.0051 | G22: 0.0056 | I22: =IF($I$11=$A$59,"Margem bruta da empresa de consultoria","Lucro") -> Lucro | M22: =IF($I$11=$A$59,"K3","L") -> L | N22: 0.0896 | O22: - | P22: =VLOOKUP(CONCATENATE(I$11,"-",M22),$C$2:$G$49,3,FALSE) -> 0.0616 | Q22: =VLOOKUP(CONCATENATE(I$11,"-",M22),$C$2:$G$49,4,FALSE) -> 0.074 | R22: =VLOOKUP(CONCATENATE(I$11,"-",M22),$C$2:$G$49,5,FALSE) -> 0.0896
A23: =A22 -> Construção e Manutenção de Estações e Redes de Distribuição de Energia Elétrica | B23: R | C23: Construção e Manutenção de Estações e Redes de Distribuição de Energia Elétrica-R | E23: 0.01 | F23: 0.0148 | G23: 0.0197 | I23: Tributos (impostos COFINS 3%, e PIS 0,65%) | M23: CP | N23: 0.0365 | O23: - | P23: 0.0365 | Q23: 0.0365 | R23: 0.0365
A24: =A23 -> Construção e Manutenção de Estações e Redes de Distribuição de Energia Elétrica | B24: DF | C24: Construção e Manutenção de Estações e Redes de Distribuição de Energia Elétrica-DF | E24: 0.0101 | F24: 0.0107 | G24: 0.0111 | I24: Tributos (ISS, variável de acordo com o município) | M24: ISS | N24: =IF($I$11<>$A$58,Q14*Q13,0) -> 0.02 | O24: - | P24: 0 | Q24: 0.025 | R24: 0.05
A25: =A24 -> Construção e Manutenção de Estações e Redes de Distribuição de Energia Elétrica | B25: L | C25: Construção e Manutenção de Estações e Redes de Distribuição de Energia Elétrica-L | E25: 0.08 | F25: 0.0831 | G25: 0.0951 | I25: Tributos (Contribuição Previdenciária sobre a Receita Bruta - 0% ou 4,5% - Desoneração) | M25: CPRB | N25: =IF(AND($I$11<>$A$58,Q11="Sim"),4.5%,0%) -> 0.045 | O25: =IF(AND(N25>=P25, N25<=R25), "OK", "Não OK") -> OK | P25: 0 | Q25: 0.045 | R25: 0.045
A26: =A25 -> Construção e Manutenção de Estações e Redes de Distribuição de Energia Elétrica | B26: BDI PAD | C26: Construção e Manutenção de Estações e Redes de Distribuição de Energia Elétrica-BDI PAD | E26: 0.24 | F26: 0.2584 | G26: 0.2786 | I26: BDI SEM desoneração (Fórmula Acórdão TCU) | M26: BDI PAD | N26: =IF($I$11=$A$58,0,ROUND((((1+N18+N19+N20)*(1+N21)*(1+N22)/(1-(N23+N24)))-1),4)) -> 0.24 | O26: =IF(OR($I$11=$A$59,$I$11=$A$58,AND(N26>=P26, N26<=R26)), "OK", "FORA DO INTERVALO") -> OK | P26: =IF($I$11=$A$58,0,VLOOKUP(CONCATENATE($I$11,"-",$M26),$C$2:$G$49,3,FALSE)) -> 0.2034 | Q26: =IF($I$11=$A$58,0,VLOOKUP(CONCATENATE($I$11,"-",$M26),$C$2:$G$49,4,FALSE)) -> 0.2212 | R26: =IF($I$11=$A$58,0,VLOOKUP(CONCATENATE($I$11,"-",$M26),$C$2:$G$49,5,FALSE)) -> 0.25
A27: Obras Portuárias, Marítimas e Fluviais | B27: AC | C27: Obras Portuárias, Marítimas e Fluviais-AC | E27: 0.04 | F27: 0.0552 | G27: 0.0785 | I27: BDI COM desoneração | M27: BDI DES | N27: =IF($I$11=$A$58,0,ROUND((((1+N18+N19+N20)*(1+N21)*(1+N22)/(1-(N23+N24+N25)))-1),4)) -> 0.3021 | O27: =IF(Q11<>"Sim","",O26) -> OK | V27: =AND(COUNTA(N18:N23)=6,O26<>"ok",NOT(V29)) -> FALSE | W27: pedir anexo
A28: =A27 -> Obras Portuárias, Marítimas e Fluviais | B28: SG | C28: Obras Portuárias, Marítimas e Fluviais-SG | E28: 0.0081 | F28: 0.0122 | G28: 0.0199
A29: =A28 -> Obras Portuárias, Marítimas e Fluviais | B29: R | C29: Obras Portuárias, Marítimas e Fluviais-R | E29: 0.0146 | F29: 0.0232 | G29: 0.0316 | I29: =IF(V29,"X","") ->  | J29: Anexo: Relatório Técnico Circunstanciado justificando a adoção do percentual de cada parcela do BDI. | V29: FALSE | W29: anexo apresentado
I31: Os valores de BDI foram calculados com o emprego da fórmula:
A32: =A29 -> Obras Portuárias, Marítimas e Fluviais | B32: DF | C32: Obras Portuárias, Marítimas e Fluviais-DF | E32: 0.0094 | F32: 0.0102 | G32: 0.0133 | L32: =IF(Q11="Sim","BDI.DES =","BDI.PAD =") -> BDI.DES = | M32: =IF($I$11=$A$59,"(1+K1+K2)*(1+K3)","(1+AC + S + R + G)*(1 + DF)*(1+L)") -> (1+AC + S + R + G)*(1 + DF)*(1+L) | P32: - 1
A33: =A32 -> Obras Portuárias, Marítimas e Fluviais | B33: L | C33: Obras Portuárias, Marítimas e Fluviais-L | E33: 0.0714 | F33: 0.084 | G33: 0.1043 | M33: =IF(Q11="Sim","(1-CP-ISS-CRPB)","(1-CP-ISS)") -> (1-CP-ISS-CRPB)
A34: =A33 -> Obras Portuárias, Marítimas e Fluviais | B34: BDI PAD | C34: Obras Portuárias, Marítimas e Fluviais-BDI PAD | E34: 0.228 | F34: 0.2748 | G34: 0.3095
I35: =CONCATENATE("Declaro para os devidos fins que, conforme legislação tributária municipal, a base de cálculo para ",I11,", é de ",Q13*100,"%, com a respectiva alíquota de ",Q14*100,"%.") -> Declaro para os devidos fins que, conforme legislação tributária municipal, a base de cálculo para Construção e Reforma de Edifícios, é de 100%, com a respectiva alíquota de 2%.
I37: =CONCATENATE("Declaro para os devidos fins que o regime de Contribuição Previdenciária sobre a Receita Bruta adotado para elaboração do orçamento foi ",IF(Q11="Sim","COM","SEM")," Desoneração, e que esta é a alternativa mais adequada para a Administração Pública.") -> Declaro para os devidos fins que o regime de Contribuição Previdenciária sobre a Receita Bruta adotado para elaboração do orçamento foi COM Desoneração, e que esta é a alternativa mais adequada para a Administração Pública.
A38: Fornecimento de Materiais e Equipamentos (aquisição indireta - em conjunto com licitação de obras) | B38: AC | C38: Fornecimento de Materiais e Equipamentos (aquisição indireta - em conjunto com licitação de obras)-AC | E38: 0.015 | F38: 0.0345 | G38: 0.0449
A39: =A38 -> Fornecimento de Materiais e Equipamentos (aquisição indireta - em conjunto com licitação de obras) | B39: SG | C39: Fornecimento de Materiais e Equipamentos (aquisição indireta - em conjunto com licitação de obras)-SG | E39: 0.003 | F39: 0.0048 | G39: 0.0082 | I39: Observações:
A40: =A39 -> Fornecimento de Materiais e Equipamentos (aquisição indireta - em conjunto com licitação de obras) | B40: R | C40: Fornecimento de Materiais e Equipamentos (aquisição indireta - em conjunto com licitação de obras)-R | E40: 0.0056 | F40: 0.0085 | G40: 0.0089
A41: =A40 -> Fornecimento de Materiais e Equipamentos (aquisição indireta - em conjunto com licitação de obras) | B41: DF | C41: Fornecimento de Materiais e Equipamentos (aquisição indireta - em conjunto com licitação de obras)-DF | E41: 0.0085 | F41: 0.0085 | G41: 0.0111
A42: =A41 -> Fornecimento de Materiais e Equipamentos (aquisição indireta - em conjunto com licitação de obras) | B42: L | C42: Fornecimento de Materiais e Equipamentos (aquisição indireta - em conjunto com licitação de obras)-L | E42: 0.035 | F42: 0.0511 | G42: 0.0622 | I42: =PO!K156 -> SÃO JOSÉ DO OURO / RS | O42: =PO!K159 -> 2025-11-02
A43: =A42 -> Fornecimento de Materiais e Equipamentos (aquisição indireta - em conjunto com licitação de obras) | B43: BDI PAD | C43: Fornecimento de Materiais e Equipamentos (aquisição indireta - em conjunto com licitação de obras)-BDI PAD | E43: 0.111 | F43: 0.1402 | G43: 0.168 | I43: Local | O43: Data
A44: Estudos e Projetos, Planos e Gerenciamento e outros correlatos | B44: K1 | C44: Estudos e Projetos, Planos e Gerenciamento e outros correlatos-K1 | E44: - | F44: - | G44: -
A45: =A44 -> Estudos e Projetos, Planos e Gerenciamento e outros correlatos | B45: K2 | C45: Estudos e Projetos, Planos e Gerenciamento e outros correlatos-K2 | E45: - | F45: 0.2 | G45: -
A46: =A45 -> Estudos e Projetos, Planos e Gerenciamento e outros correlatos | C46: Estudos e Projetos, Planos e Gerenciamento e outros correlatos- | E46: - | F46: - | G46: - | I46: Responsável Técnico | O46: Responsável Tomador
A47: =A46 -> Estudos e Projetos, Planos e Gerenciamento e outros correlatos | C47: Estudos e Projetos, Planos e Gerenciamento e outros correlatos- | E47: - | F47: - | G47: - | I47: Nome: | J47: =DADOS!B54 -> LEONARDO CONSORTE | O47: Nome: | P47: Antônio José Bianchin
A48: =A47 -> Estudos e Projetos, Planos e Gerenciamento e outros correlatos | B48: K3 | C48: Estudos e Projetos, Planos e Gerenciamento e outros correlatos-K3 | E48: - | F48: 0.12 | G48: - | I48: Título: | J48: =DADOS!B55 -> ENG. CIVIL | O48: Cargo: | P48: Prefeito Munipal
A49: =A48 -> Estudos e Projetos, Planos e Gerenciamento e outros correlatos | B49: BDI PAD | C49: Estudos e Projetos, Planos e Gerenciamento e outros correlatos-BDI PAD | E49: - | F49: - | G49: - | I49: =DADOS!A56 -> CREA/CAU: | J49: =DADOS!B56 -> 1331921
I50: =DADOS!A57 -> ART/RRT: | J50: =DADOS!B57 -> 13901876
A52: Construção e Reforma de Edifícios
A53: Construção de Praças Urbanas, Rodovias, Ferrovias e recapeamento e pavimentação de vias urbanas
A54: Construção de Redes de Abastecimento de Água, Coleta de Esgoto
A55: Construção e Manutenção de Estações e Redes de Distribuição de Energia Elétrica
A56: Obras Portuárias, Marítimas e Fluviais
A57: Fornecimento de Materiais e Equipamentos (aquisição indireta - em conjunto com licitação de obras)
A58: Fornecimento de Materiais e Equipamentos (aquisição direta)
A59: Estudos e Projetos, Planos e Gerenciamento e outros correlatos

Sheet BDI (2)
E1: MIN | F1: MED | G1: MAX | N1: ="Quadro de Composição do BDI "&MID(CELL("nome.arquivo",N1),5+FIND("BDI (",CELL("nome.arquivo",N1)),1) -> Quadro de Composição do BDI 2
A2: Construção e Reforma de Edifícios | B2: AC | C2: =CONCATENATE(A2,"-",B2) -> Construção e Reforma de Edifícios-AC | E2: 0.03 | F2: 0.04 | G2: 0.055
A3: =A2 -> Construção e Reforma de Edifícios | B3: SG | C3: Construção e Reforma de Edifícios-SG | E3: 0.008 | F3: 0.008 | G3: 0.01
A4: =A3 -> Construção e Reforma de Edifícios | B4: R | C4: Construção e Reforma de Edifícios-R | E4: 0.0097 | F4: 0.0127 | G4: 0.0127 | I4: Nº TC/CR | K4: PROPONENTE / TOMADOR
A5: =A4 -> Construção e Reforma de Edifícios | B5: DF | C5: Construção e Reforma de Edifícios-DF | E5: 0.0059 | F5: 0.0123 | G5: 0.0139 | I5: =DADOS!A29 -> - | K5: =DADOS!A32 -> CÂMARA DE VEREADORES DE SÃO JOSÉ DO OURO
A6: =A5 -> Construção e Reforma de Edifícios | B6: L | C6: Construção e Reforma de Edifícios-L | E6: 0.0616 | F6: 0.074 | G6: 0.0896
A7: =A6 -> Construção e Reforma de Edifícios | B7: BDI PAD | C7: Construção e Reforma de Edifícios-BDI PAD | E7: 0.2034 | F7: 0.2212 | G7: 0.25 | I7: OBJETO
A8: Construção de Praças Urbanas, Rodovias, Ferrovias e recapeamento e pavimentação de vias urbanas | B8: AC | C8: Construção de Praças Urbanas, Rodovias, Ferrovias e recapeamento e pavimentação de vias urbanas-AC | E8: 0.038 | F8: 0.0401 | G8: 0.0467 | I8: =DADOS!P29 -> REFORMA DA CÂMARA DE VEREADORES DE SÃO JOSÉ DO OURO
A9: Construção de Praças Urbanas, Rodovias, Ferrovias e recapeamento e pavimentação de vias urbanas | B9: SG | C9: Construção de Praças Urbanas, Rodovias, Ferrovias e recapeamento e pavimentação de vias urbanas-SG | E9: 0.0032 | F9: 0.004 | G9: 0.0074
A10: Construção de Praças Urbanas, Rodovias, Ferrovias e recapeamento e pavimentação de vias urbanas | B10: R | C10: Construção de Praças Urbanas, Rodovias, Ferrovias e recapeamento e pavimentação de vias urbanas-R | E10: 0.005 | F10: 0.0056 | G10: 0.0097 | I10: TIPO DE OBRA DO EMPREENDIMENTO | Q10: DESONERAÇÃO
A11: Construção de Praças Urbanas, Rodovias, Ferrovias e recapeamento e pavimentação de vias urbanas | B11: DF | C11: Construção de Praças Urbanas, Rodovias, Ferrovias e recapeamento e pavimentação de vias urbanas-DF | E11: 0.0102 | F11: 0.0111 | G11: 0.0121 | I11: Fornecimento de Materiais e Equipamentos (aquisição direta) | Q11: =DADOS!$C$38 -> Sim
A12: Construção de Praças Urbanas, Rodovias, Ferrovias e recapeamento e pavimentação de vias urbanas | B12: L | C12: Construção de Praças Urbanas, Rodovias, Ferrovias e recapeamento e pavimentação de vias urbanas-L | E12: 0.0664 | F12: 0.073 | G12: 0.0869
A13: Construção de Praças Urbanas, Rodovias, Ferrovias e recapeamento e pavimentação de vias urbanas | B13: BDI PAD | C13: Construção de Praças Urbanas, Rodovias, Ferrovias e recapeamento e pavimentação de vias urbanas-BDI PAD | E13: 0.196 | F13: 0.2097 | G13: 0.2423 | I13: Conforme legislação tributária municipal, definir estimativa de percentual da base de cálculo para o ISS: | Q13: 1
A14: Construção de Redes de Abastecimento de Água, Coleta de Esgoto | B14: AC | C14: Construção de Redes de Abastecimento de Água, Coleta de Esgoto-AC | E14: 0.0343 | F14: 0.0493 | G14: 0.0671 | I14: Sobre a base de cálculo, definir a respectiva alíquota do ISS (entre 2% e 5%): | Q14: 0.02
A15: =A14 -> Construção de Redes de Abastecimento de Água, Coleta de Esgoto | B15: SG | C15: Construção de Redes de Abastecimento de Água, Coleta de Esgoto-SG | E15: 0.0028 | F15: 0.0049 | G15: 0.0075
I16: Itens | M16: Siglas | N16: % Adotado | O16: Situação | P16: 1º Quartil | Q16: Médio | R16: 3º Quartil | T16: =IF(V27,"Para BDI fora do intervalo estatístico, deve ser apresentado Relatório Técnico Circunstanciado justificando a adoção do percentual de cada parcela do BDI.","") -> 
A17: =A15 -> Construção de Redes de Abastecimento de Água, Coleta de Esgoto | B17: R | C17: Construção de Redes de Abastecimento de Água, Coleta de Esgoto-R | E17: 0.01 | F17: 0.0139 | G17: 0.0174
A18: =A17 -> Construção de Redes de Abastecimento de Água, Coleta de Esgoto | B18: DF | C18: Construção de Redes de Abastecimento de Água, Coleta de Esgoto-DF | E18: 0.0094 | F18: 0.0099 | G18: 0.0117 | I18: =IF($I$11=$A$59,"Encargos Sociais incidentes sobre a mão de obra","Administração Central") -> Administração Central | M18: =IF($I$11=$A$59,"K1","AC") -> AC | O18: - | P18: =VLOOKUP(CONCATENATE(I$11,"-",M18),$C$2:$G$49,3,FALSE) ->  | Q18: =VLOOKUP(CONCATENATE(I$11,"-",M18),$C$2:$G$49,4,FALSE) ->  | R18: =VLOOKUP(CONCATENATE(I$11,"-",M18),$C$2:$G$49,5,FALSE) -> 
A19: =A18 -> Construção de Redes de Abastecimento de Água, Coleta de Esgoto | B19: L | C19: Construção de Redes de Abastecimento de Água, Coleta de Esgoto-L | E19: 0.0674 | F19: 0.0804 | G19: 0.094 | I19: =IF($I$11=$A$59,"Administração Central da empresa ou consultoria - overhead","Seguro e Garantia") -> Seguro e Garantia | M19: =IF($I$11=$A$59,"K2","SG") -> SG | O19: - | P19: =VLOOKUP(CONCATENATE(I$11,"-",M19),$C$2:$G$49,3,FALSE) ->  | Q19: =VLOOKUP(CONCATENATE(I$11,"-",M19),$C$2:$G$49,4,FALSE) ->  | R19: =VLOOKUP(CONCATENATE(I$11,"-",M19),$C$2:$G$49,5,FALSE) -> 
A20: =A19 -> Construção de Redes de Abastecimento de Água, Coleta de Esgoto | B20: BDI PAD | C20: Construção de Redes de Abastecimento de Água, Coleta de Esgoto-BDI PAD | E20: 0.2076 | F20: 0.2418 | G20: 0.2644 | I20: =IF($I$11=$A$59,"","Risco") -> Risco | M20: =IF($I$11=$A$59,"","R") -> R | O20: - | P20: =VLOOKUP(CONCATENATE(I$11,"-",M20),$C$2:$G$49,3,FALSE) ->  | Q20: =VLOOKUP(CONCATENATE(I$11,"-",M20),$C$2:$G$49,4,FALSE) ->  | R20: =VLOOKUP(CONCATENATE(I$11,"-",M20),$C$2:$G$49,5,FALSE) -> 
A21: Construção e Manutenção de Estações e Redes de Distribuição de Energia Elétrica | B21: AC | C21: Construção e Manutenção de Estações e Redes de Distribuição de Energia Elétrica-AC | E21: 0.0529 | F21: 0.0592 | G21: 0.0793 | I21: =IF($I$11=$A$59,"","Despesas Financeiras") -> Despesas Financeiras | M21: =IF($I$11=$A$59,"","DF") -> DF | O21: - | P21: =VLOOKUP(CONCATENATE(I$11,"-",M21),$C$2:$G$49,3,FALSE) ->  | Q21: =VLOOKUP(CONCATENATE(I$11,"-",M21),$C$2:$G$49,4,FALSE) ->  | R21: =VLOOKUP(CONCATENATE(I$11,"-",M21),$C$2:$G$49,5,FALSE) -> 
A22: =A21 -> Construção e Manutenção de Estações e Redes de Distribuição de Energia Elétrica | B22: SG | C22: Construção e Manutenção de Estações e Redes de Distribuição de Energia Elétrica-SG | E22: 0.0025 | F22: 0.0051 | G22: 0.0056 | I22: =IF($I$11=$A$59,"Margem bruta da empresa de consultoria","Lucro") -> Lucro | M22: =IF($I$11=$A$59,"K3","L") -> L | O22: - | P22: =VLOOKUP(CONCATENATE(I$11,"-",M22),$C$2:$G$49,3,FALSE) ->  | Q22: =VLOOKUP(CONCATENATE(I$11,"-",M22),$C$2:$G$49,4,FALSE) ->  | R22: =VLOOKUP(CONCATENATE(I$11,"-",M22),$C$2:$G$49,5,FALSE) -> 
A23: =A22 -> Construção e Manutenção de Estações e Redes de Distribuição de Energia Elétrica | B23: R | C23: Construção e Manutenção de Estações e Redes de Distribuição de Energia Elétrica-R | E23: 0.01 | F23: 0.0148 | G23: 0.0197 | I23: Tributos (impostos COFINS 3%, e PIS 0,65%) | M23: CP | O23: - | P23: 0.0365 | Q23: 0.0365 | R23: 0.0365
A24: =A23 -> Construção e Manutenção de Estações e Redes de Distribuição de Energia Elétrica | B24: DF | C24: Construção e Manutenção de Estações e Redes de Distribuição de Energia Elétrica-DF | E24: 0.0101 | F24: 0.0107 | G24: 0.0111 | I24: Tributos (ISS, variável de acordo com o município) | M24: ISS | N24: =IF($I$11<>$A$58,Q14*Q13,0) -> 0 | O24: - | P24: 0 | Q24: 0.025 | R24: 0.05
A25: =A24 -> Construção e Manutenção de Estações e Redes de Distribuição de Energia Elétrica | B25: L | C25: Construção e Manutenção de Estações e Redes de Distribuição de Energia Elétrica-L | E25: 0.08 | F25: 0.0831 | G25: 0.0951 | I25: Tributos (Contribuição Previdenciária sobre a Receita Bruta - 0% ou 4,5% - Desoneração) | M25: CPRB | N25: =IF(AND($I$11<>$A$58,Q11="Sim"),4.5%,0%) -> 0 | O25: =IF(AND(N25>=P25, N25<=R25), "OK", "Não OK") -> OK | P25: 0 | Q25: 0.045 | R25: 0.045
A26: =A25 -> Construção e Manutenção de Estações e Redes de Distribuição de Energia Elétrica | B26: BDI PAD | C26: Construção e Manutenção de Estações e Redes de Distribuição de Energia Elétrica-BDI PAD | E26: 0.24 | F26: 0.2584 | G26: 0.2786 | I26: BDI SEM desoneração (Fórmula Acórdão TCU) | M26: BDI PAD | N26: =IF($I$11=$A$58,0,ROUND((((1+N18+N19+N20)*(1+N21)*(1+N22)/(1-(N23+N24)))-1),4)) -> 0 | O26: =IF(OR($I$11=$A$59,$I$11=$A$58,AND(N26>=P26, N26<=R26)), "OK", "FORA DO INTERVALO") -> OK | P26: =IF($I$11=$A$58,0,VLOOKUP(CONCATENATE($I$11,"-",$M26),$C$2:$G$49,3,FALSE)) -> 0 | Q26: =IF($I$11=$A$58,0,VLOOKUP(CONCATENATE($I$11,"-",$M26),$C$2:$G$49,4,FALSE)) -> 0 | R26: =IF($I$11=$A$58,0,VLOOKUP(CONCATENATE($I$11,"-",$M26),$C$2:$G$49,5,FALSE)) -> 0
A27: Obras Portuárias, Marítimas e Fluviais | B27: AC | C27: Obras Portuárias, Marítimas e Fluviais-AC | E27: 0.04 | F27: 0.0552 | G27: 0.0785 | I27: BDI COM desoneração | M27: BDI DES | N27: =IF($I$11=$A$58,0,ROUND((((1+N18+N19+N20)*(1+N21)*(1+N22)/(1-(N23+N24+N25)))-1),4)) -> 0 | O27: =IF(Q11<>"Sim","",O26) -> OK | V27: =AND(COUNTA(N18:N23)=6,O26<>"ok",NOT(V29)) -> FALSE | W27: pedir anexo
A28: =A27 -> Obras Portuárias, Marítimas e Fluviais | B28: SG | C28: Obras Portuárias, Marítimas e Fluviais-SG | E28: 0.0081 | F28: 0.0122 | G28: 0.0199
A29: =A28 -> Obras Portuárias, Marítimas e Fluviais | B29: R | C29: Obras Portuárias, Marítimas e Fluviais-R | E29: 0.0146 | F29: 0.0232 | G29: 0.0316 | I29: =IF(V29,"X","") ->  | J29: Anexo: Relatório Técnico Circunstanciado justificando a adoção do percentual de cada parcela do BDI. | V29: FALSE | W29: anexo apresentado
I31: Os valores de BDI foram calculados com o emprego da fórmula:
A32: =A29 -> Obras Portuárias, Marítimas e Fluviais | B32: DF | C32: Obras Portuárias, Marítimas e Fluviais-DF | E32: 0.0094 | F32: 0.0102 | G32: 0.0133 | L32: =IF(Q11="Sim","BDI.DES =","BDI.PAD =") -> BDI.DES = | M32: =IF($I$11=$A$59,"(1+K1+K2)*(1+K3)","(1+AC + S + R + G)*(1 + DF)*(1+L)") -> (1+AC + S + R + G)*(1 + DF)*(1+L) | P32: - 1
A33: =A32 -> Obras Portuárias, Marítimas e Fluviais | B33: L | C33: Obras Portuárias, Marítimas e Fluviais-L | E33: 0.0714 | F33: 0.084 | G33: 0.1043 | M33: =IF(Q11="Sim","(1-CP-ISS-CRPB)","(1-CP-ISS)") -> (1-CP-ISS-CRPB)
A34: =A33 -> Obras Portuárias, Marítimas e Fluviais | B34: BDI PAD | C34: Obras Portuárias, Marítimas e Fluviais-BDI PAD | E34: 0.228 | F34: 0.2748 | G34: 0.3095
I35: =CONCATENATE("Declaro para os devidos fins que, conforme legislação tributária municipal, a base de cálculo para ",I11,", é de ",Q13*100,"%, com a respectiva alíquota de ",Q14*100,"%.") -> Declaro para os devidos fins que, conforme legislação tributária municipal, a base de cálculo para Fornecimento de Materiais e Equipamentos (aquisição direta), é de 100%, com a respectiva alíquota de 2%.
I37: =CONCATENATE("Declaro para os devidos fins que o regime de Contribuição Previdenciária sobre a Receita Bruta adotado para elaboração do orçamento foi ",IF(Q11="Sim","COM","SEM")," Desoneração, e que esta é a alternativa mais adequada para a Administração Pública.") -> Declaro para os devidos fins que o regime de Contribuição Previdenciária sobre a Receita Bruta adotado para elaboração do orçamento foi COM Desoneração, e que esta é a alternativa mais adequada para a Administração Pública.
A38: Fornecimento de Materiais e Equipamentos (aquisição indireta - em conjunto com licitação de obras) | B38: AC | C38: Fornecimento de Materiais e Equipamentos (aquisição indireta - em conjunto com licitação de obras)-AC | E38: 0.015 | F38: 0.0345 | G38: 0.0449
A39: =A38 -> Fornecimento de Materiais e Equipamentos (aquisição indireta - em conjunto com licitação de obras) | B39: SG | C39: Fornecimento de Materiais e Equipamentos (aquisição indireta - em conjunto com licitação de obras)-SG | E39: 0.003 | F39: 0.0048 | G39: 0.0082 | I39: Observações:
A40: =A39 -> Fornecimento de Materiais e Equipamentos (aquisição indireta - em conjunto com licitação de obras) | B40: R | C40: Fornecimento de Materiais e Equipamentos (aquisição indireta - em conjunto com licitação de obras)-R | E40: 0.0056 | F40: 0.0085 | G40: 0.0089
A41: =A40 -> Fornecimento de Materiais e Equipamentos (aquisição indireta - em conjunto com licitação de obras) | B41: DF | C41: Fornecimento de Materiais e Equipamentos (aquisição indireta - em conjunto com licitação de obras)-DF | E41: 0.0085 | F41: 0.0085 | G41: 0.0111
A42: =A41 -> Fornecimento de Materiais e Equipamentos (aquisição indireta - em conjunto com licitação de obras) | B42: L | C42: Fornecimento de Materiais e Equipamentos (aquisição indireta - em conjunto com licitação de obras)-L | E42: 0.035 | F42: 0.0511 | G42: 0.0622 | I42: =PO!K156 -> SÃO JOSÉ DO OURO / RS | O42: =PO!K159 -> 2025-11-02
A43: =A42 -> Fornecimento de Materiais e Equipamentos (aquisição indireta - em conjunto com licitação de obras) | B43: BDI PAD | C43: Fornecimento de Materiais e Equipamentos (aquisição indireta - em conjunto com licitação de obras)-BDI PAD | E43: 0.111 | F43: 0.1402 | G43: 0.168 | I43: Local | O43: Data
A44: Estudos e Projetos, Planos e Gerenciamento e outros correlatos | B44: K1 | C44: Estudos e Projetos, Planos e Gerenciamento e outros correlatos-K1 | E44: - | F44: - | G44: -
A45: =A44 -> Estudos e Projetos, Planos e Gerenciamento e outros correlatos | B45: K2 | C45: Estudos e Projetos, Planos e Gerenciamento e outros correlatos-K2 | E45: - | F45: 0.2 | G45: -
A46: =A45 -> Estudos e Projetos, Planos e Gerenciamento e outros correlatos | C46: Estudos e Projetos, Planos e Gerenciamento e outros correlatos- | E46: - | F46: - | G46: - | I46: Responsável Técnico | O46: Responsável Tomador
A47: =A46 -> Estudos e Projetos, Planos e Gerenciamento e outros correlatos | C47: Estudos e Projetos, Planos e Gerenciamento e outros correlatos- | E47: - | F47: - | G47: - | I47: Nome: | J47: =DADOS!B54 -> LEONARDO CONSORTE | O47: Nome: | P47: Antônio José Bianchin
A48: =A47 -> Estudos e Projetos, Planos e Gerenciamento e outros correlatos | B48: K3 | C48: Estudos e Projetos, Planos e Gerenciamento e outros correlatos-K3 | E48: - | F48: 0.12 | G48: - | I48: Título: | J48: =DADOS!B55 -> ENG. CIVIL | O48: Cargo: | P48: Prefeito Munipal
A49: =A48 -> Estudos e Projetos, Planos e Gerenciamento e outros correlatos | B49: BDI PAD | C49: Estudos e Projetos, Planos e Gerenciamento e outros correlatos-BDI PAD | E49: - | F49: - | G49: - | I49: =DADOS!A56 -> CREA/CAU: | J49: =DADOS!B56 -> 1331921
I50: =DADOS!A57 -> ART/RRT: | J50: =DADOS!B57 -> 13901876
A52: Construção e Reforma de Edifícios
A53: Construção de Praças Urbanas, Rodovias, Ferrovias e recapeamento e pavimentação de vias urbanas
A54: Construção de Redes de Abastecimento de Água, Coleta de Esgoto
A55: Construção e Manutenção de Estações e Redes de Distribuição de Energia Elétrica
A56: Obras Portuárias, Marítimas e Fluviais
A57: Fornecimento de Materiais e Equipamentos (aquisição indireta - em conjunto com licitação de obras)
A58: Fornecimento de Materiais e Equipamentos (aquisição direta)
A59: Estudos e Projetos, Planos e Gerenciamento e outros correlatos

Sheet BDI (3)
E1: MIN | F1: MED | G1: MAX | N1: ="Quadro de Composição do BDI "&MID(CELL("nome.arquivo",N1),5+FIND("BDI (",CELL("nome.arquivo",N1)),1) -> Quadro de Composição do BDI 3
A2: Construção e Reforma de Edifícios | B2: AC | C2: =CONCATENATE(A2,"-",B2) -> Construção e Reforma de Edifícios-AC | E2: 0.03 | F2: 0.04 | G2: 0.055
A3: =A2 -> Construção e Reforma de Edifícios | B3: SG | C3: Construção e Reforma de Edifícios-SG | E3: 0.008 | F3: 0.008 | G3: 0.01
A4: =A3 -> Construção e Reforma de Edifícios | B4: R | C4: Construção e Reforma de Edifícios-R | E4: 0.0097 | F4: 0.0127 | G4: 0.0127 | I4: Nº TC/CR | K4: PROPONENTE / TOMADOR
A5: =A4 -> Construção e Reforma de Edifícios | B5: DF | C5: Construção e Reforma de Edifícios-DF | E5: 0.0059 | F5: 0.0123 | G5: 0.0139 | I5: =DADOS!A29 -> - | K5: =DADOS!A32 -> CÂMARA DE VEREADORES DE SÃO JOSÉ DO OURO
A6: =A5 -> Construção e Reforma de Edifícios | B6: L | C6: Construção e Reforma de Edifícios-L | E6: 0.0616 | F6: 0.074 | G6: 0.0896
A7: =A6 -> Construção e Reforma de Edifícios | B7: BDI PAD | C7: Construção e Reforma de Edifícios-BDI PAD | E7: 0.2034 | F7: 0.2212 | G7: 0.25 | I7: OBJETO
A8: Construção de Praças Urbanas, Rodovias, Ferrovias e recapeamento e pavimentação de vias urbanas | B8: AC | C8: Construção de Praças Urbanas, Rodovias, Ferrovias e recapeamento e pavimentação de vias urbanas-AC | E8: 0.038 | F8: 0.0401 | G8: 0.0467 | I8: =DADOS!P29 -> REFORMA DA CÂMARA DE VEREADORES DE SÃO JOSÉ DO OURO
A9: Construção de Praças Urbanas, Rodovias, Ferrovias e recapeamento e pavimentação de vias urbanas | B9: SG | C9: Construção de Praças Urbanas, Rodovias, Ferrovias e recapeamento e pavimentação de vias urbanas-SG | E9: 0.0032 | F9: 0.004 | G9: 0.0074
A10: Construção de Praças Urbanas, Rodovias, Ferrovias e recapeamento e pavimentação de vias urbanas | B10: R | C10: Construção de Praças Urbanas, Rodovias, Ferrovias e recapeamento e pavimentação de vias urbanas-R | E10: 0.005 | F10: 0.0056 | G10: 0.0097 | I10: TIPO DE OBRA DO EMPREENDIMENTO | Q10: DESONERAÇÃO
A11: Construção de Praças Urbanas, Rodovias, Ferrovias e recapeamento e pavimentação de vias urbanas | B11: DF | C11: Construção de Praças Urbanas, Rodovias, Ferrovias e recapeamento e pavimentação de vias urbanas-DF | E11: 0.0102 | F11: 0.0111 | G11: 0.0121 | I11: Fornecimento de Materiais e Equipamentos (aquisição direta) | Q11: =DADOS!$C$38 -> Sim
A12: Construção de Praças Urbanas, Rodovias, Ferrovias e recapeamento e pavimentação de vias urbanas | B12: L | C12: Construção de Praças Urbanas, Rodovias, Ferrovias e recapeamento e pavimentação de vias urbanas-L | E12: 0.0664 | F12: 0.073 | G12: 0.0869
A13: Construção de Praças Urbanas, Rodovias, Ferrovias e recapeamento e pavimentação de vias urbanas | B13: BDI PAD | C13: Construção de Praças Urbanas, Rodovias, Ferrovias e recapeamento e pavimentação de vias urbanas-BDI PAD | E13: 0.196 | F13: 0.2097 | G13: 0.2423 | I13: Conforme legislação tributária municipal, definir estimativa de percentual da base de cálculo para o ISS: | Q13: 1
A14: Construção de Redes de Abastecimento de Água, Coleta de Esgoto | B14: AC | C14: Construção de Redes de Abastecimento de Água, Coleta de Esgoto-AC | E14: 0.0343 | F14: 0.0493 | G14: 0.0671 | I14: Sobre a base de cálculo, definir a respectiva alíquota do ISS (entre 2% e 5%): | Q14: 0.02
A15: =A14 -> Construção de Redes de Abastecimento de Água, Coleta de Esgoto | B15: SG | C15: Construção de Redes de Abastecimento de Água, Coleta de Esgoto-SG | E15: 0.0028 | F15: 0.0049 | G15: 0.0075
I16: Itens | M16: Siglas | N16: % Adotado | O16: Situação | P16: 1º Quartil | Q16: Médio | R16: 3º Quartil | T16: =IF(V27,"Para BDI fora do intervalo estatístico, deve ser apresentado Relatório Técnico Circunstanciado justificando a adoção do percentual de cada parcela do BDI.","") -> 
A17: =A15 -> Construção de Redes de Abastecimento de Água, Coleta de Esgoto | B17: R | C17: Construção de Redes de Abastecimento de Água, Coleta de Esgoto-R | E17: 0.01 | F17: 0.0139 | G17: 0.0174
A18: =A17 -> Construção de Redes de Abastecimento de Água, Coleta de Esgoto | B18: DF | C18: Construção de Redes de Abastecimento de Água, Coleta de Esgoto-DF | E18: 0.0094 | F18: 0.0099 | G18: 0.0117 | I18: =IF($I$11=$A$59,"Encargos Sociais incidentes sobre a mão de obra","Administração Central") -> Administração Central | M18: =IF($I$11=$A$59,"K1","AC") -> AC | N18: 0 | O18: - | P18: =VLOOKUP(CONCATENATE(I$11,"-",M18),$C$2:$G$49,3,FALSE) ->  | Q18: =VLOOKUP(CONCATENATE(I$11,"-",M18),$C$2:$G$49,4,FALSE) ->  | R18: =VLOOKUP(CONCATENATE(I$11,"-",M18),$C$2:$G$49,5,FALSE) -> 
A19: =A18 -> Construção de Redes de Abastecimento de Água, Coleta de Esgoto | B19: L | C19: Construção de Redes de Abastecimento de Água, Coleta de Esgoto-L | E19: 0.0674 | F19: 0.0804 | G19: 0.094 | I19: =IF($I$11=$A$59,"Administração Central da empresa ou consultoria - overhead","Seguro e Garantia") -> Seguro e Garantia | M19: =IF($I$11=$A$59,"K2","SG") -> SG | N19: 0 | O19: - | P19: =VLOOKUP(CONCATENATE(I$11,"-",M19),$C$2:$G$49,3,FALSE) ->  | Q19: =VLOOKUP(CONCATENATE(I$11,"-",M19),$C$2:$G$49,4,FALSE) ->  | R19: =VLOOKUP(CONCATENATE(I$11,"-",M19),$C$2:$G$49,5,FALSE) -> 
A20: =A19 -> Construção de Redes de Abastecimento de Água, Coleta de Esgoto | B20: BDI PAD | C20: Construção de Redes de Abastecimento de Água, Coleta de Esgoto-BDI PAD | E20: 0.2076 | F20: 0.2418 | G20: 0.2644 | I20: =IF($I$11=$A$59,"","Risco") -> Risco | M20: =IF($I$11=$A$59,"","R") -> R | N20: 0 | O20: - | P20: =VLOOKUP(CONCATENATE(I$11,"-",M20),$C$2:$G$49,3,FALSE) ->  | Q20: =VLOOKUP(CONCATENATE(I$11,"-",M20),$C$2:$G$49,4,FALSE) ->  | R20: =VLOOKUP(CONCATENATE(I$11,"-",M20),$C$2:$G$49,5,FALSE) -> 
A21: Construção e Manutenção de Estações e Redes de Distribuição de Energia Elétrica | B21: AC | C21: Construção e Manutenção de Estações e Redes de Distribuição de Energia Elétrica-AC | E21: 0.0529 | F21: 0.0592 | G21: 0.0793 | I21: =IF($I$11=$A$59,"","Despesas Financeiras") -> Despesas Financeiras | M21: =IF($I$11=$A$59,"","DF") -> DF | N21: 0 | O21: - | P21: =VLOOKUP(CONCATENATE(I$11,"-",M21),$C$2:$G$49,3,FALSE) ->  | Q21: =VLOOKUP(CONCATENATE(I$11,"-",M21),$C$2:$G$49,4,FALSE) ->  | R21: =VLOOKUP(CONCATENATE(I$11,"-",M21),$C$2:$G$49,5,FALSE) -> 
A22: =A21 -> Construção e Manutenção de Estações e Redes de Distribuição de Energia Elétrica | B22: SG | C22: Construção e Manutenção de Estações e Redes de Distribuição de Energia Elétrica-SG | E22: 0.0025 | F22: 0.0051 | G22: 0.0056 | I22: =IF($I$11=$A$59,"Margem bruta da empresa de consultoria","Lucro") -> Lucro | M22: =IF($I$11=$A$59,"K3","L") -> L | N22: 0 | O22: - | P22: =VLOOKUP(CONCATENATE(I$11,"-",M22),$C$2:$G$49,3,FALSE) ->  | Q22: =VLOOKUP(CONCATENATE(I$11,"-",M22),$C$2:$G$49,4,FALSE) ->  | R22: =VLOOKUP(CONCATENATE(I$11,"-",M22),$C$2:$G$49,5,FALSE) -> 
A23: =A22 -> Construção e Manutenção de Estações e Redes de Distribuição de Energia Elétrica | B23: R | C23: Construção e Manutenção de Estações e Redes de Distribuição de Energia Elétrica-R | E23: 0.01 | F23: 0.0148 | G23: 0.0197 | I23: Tributos (impostos COFINS 3%, e PIS 0,65%) | M23: CP | N23: 0 | O23: - | P23: 0.0365 | Q23: 0.0365 | R23: 0.0365
A24: =A23 -> Construção e Manutenção de Estações e Redes de Distribuição de Energia Elétrica | B24: DF | C24: Construção e Manutenção de Estações e Redes de Distribuição de Energia Elétrica-DF | E24: 0.0101 | F24: 0.0107 | G24: 0.0111 | I24: Tributos (ISS, variável de acordo com o município) | M24: ISS | N24: =IF($I$11<>$A$58,Q14*Q13,0) -> 0 | O24: - | P24: 0 | Q24: 0.025 | R24: 0.05
A25: =A24 -> Construção e Manutenção de Estações e Redes de Distribuição de Energia Elétrica | B25: L | C25: Construção e Manutenção de Estações e Redes de Distribuição de Energia Elétrica-L | E25: 0.08 | F25: 0.0831 | G25: 0.0951 | I25: Tributos (Contribuição Previdenciária sobre a Receita Bruta - 0% ou 4,5% - Desoneração) | M25: CPRB | N25: =IF(AND($I$11<>$A$58,Q11="Sim"),4.5%,0%) -> 0 | O25: =IF(AND(N25>=P25, N25<=R25), "OK", "Não OK") -> OK | P25: 0 | Q25: 0.045 | R25: 0.045
A26: =A25 -> Construção e Manutenção de Estações e Redes de Distribuição de Energia Elétrica | B26: BDI PAD | C26: Construção e Manutenção de Estações e Redes de Distribuição de Energia Elétrica-BDI PAD | E26: 0.24 | F26: 0.2584 | G26: 0.2786 | I26: BDI SEM desoneração (Fórmula Acórdão TCU) | M26: BDI PAD | N26: =IF($I$11=$A$58,0,ROUND((((1+N18+N19+N20)*(1+N21)*(1+N22)/(1-(N23+N24)))-1),4)) -> 0 | O26: =IF(OR($I$11=$A$59,$I$11=$A$58,AND(N26>=P26, N26<=R26)), "OK", "FORA DO INTERVALO") -> OK | P26: =IF($I$11=$A$58,0,VLOOKUP(CONCATENATE($I$11,"-",$M26),$C$2:$G$49,3,FALSE)) -> 0 | Q26: =IF($I$11=$A$58,0,VLOOKUP(CONCATENATE($I$11,"-",$M26),$C$2:$G$49,4,FALSE)) -> 0 | R26: =IF($I$11=$A$58,0,VLOOKUP(CONCATENATE($I$11,"-",$M26),$C$2:$G$49,5,FALSE)) -> 0
A27: Obras Portuárias, Marítimas e Fluviais | B27: AC | C27: Obras Portuárias, Marítimas e Fluviais-AC | E27: 0.04 | F27: 0.0552 | G27: 0.0785 | I27: BDI COM desoneração | M27: BDI DES | N27: =IF($I$11=$A$58,0,ROUND((((1+N18+N19+N20)*(1+N21)*(1+N22)/(1-(N23+N24+N25)))-1),4)) -> 0 | O27: =IF(Q11<>"Sim","",O26) -> OK | V27: =AND(COUNTA(N18:N23)=6,O26<>"ok",NOT(V29)) -> FALSE | W27: pedir anexo
A28: =A27 -> Obras Portuárias, Marítimas e Fluviais | B28: SG | C28: Obras Portuárias, Marítimas e Fluviais-SG | E28: 0.0081 | F28: 0.0122 | G28: 0.0199
A29: =A28 -> Obras Portuárias, Marítimas e Fluviais | B29: R | C29: Obras Portuárias, Marítimas e Fluviais-R | E29: 0.0146 | F29: 0.0232 | G29: 0.0316 | I29: =IF(V29,"X","") ->  | J29: Anexo: Relatório Técnico Circunstanciado justificando a adoção do percentual de cada parcela do BDI. | V29: FALSE | W29: anexo apresentado
I31: Os valores de BDI foram calculados com o emprego da fórmula:
A32: =A29 -> Obras Portuárias, Marítimas e Fluviais | B32: DF | C32: Obras Portuárias, Marítimas e Fluviais-DF | E32: 0.0094 | F32: 0.0102 | G32: 0.0133 | L32: =IF(Q11="Sim","BDI.DES =","BDI.PAD =") -> BDI.DES = | M32: =IF($I$11=$A$59,"(1+K1+K2)*(1+K3)","(1+AC + S + R + G)*(1 + DF)*(1+L)") -> (1+AC + S + R + G)*(1 + DF)*(1+L) | P32: - 1
A33: =A32 -> Obras Portuárias, Marítimas e Fluviais | B33: L | C33: Obras Portuárias, Marítimas e Fluviais-L | E33: 0.0714 | F33: 0.084 | G33: 0.1043 | M33: =IF(Q11="Sim","(1-CP-ISS-CRPB)","(1-CP-ISS)") -> (1-CP-ISS-CRPB)
A34: =A33 -> Obras Portuárias, Marítimas e Fluviais | B34: BDI PAD | C34: Obras Portuárias, Marítimas e Fluviais-BDI PAD | E34: 0.228 | F34: 0.2748 | G34: 0.3095
I35: =CONCATENATE("Declaro para os devidos fins que, conforme legislação tributária municipal, a base de cálculo para ",I11,", é de ",Q13*100,"%, com a respectiva alíquota de ",Q14*100,"%.") -> Declaro para os devidos fins que, conforme legislação tributária municipal, a base de cálculo para Fornecimento de Materiais e Equipamentos (aquisição direta), é de 100%, com a respectiva alíquota de 2%.
I37: =CONCATENATE("Declaro para os devidos fins que o regime de Contribuição Previdenciária sobre a Receita Bruta adotado para elaboração do orçamento foi ",IF(Q11="Sim","COM","SEM")," Desoneração, e que esta é a alternativa mais adequada para a Administração Pública.") -> Declaro para os devidos fins que o regime de Contribuição Previdenciária sobre a Receita Bruta adotado para elaboração do orçamento foi COM Desoneração, e que esta é a alternativa mais adequada para a Administração Pública.
A38: Fornecimento de Materiais e Equipamentos (aquisição indireta - em conjunto com licitação de obras) | B38: AC | C38: Fornecimento de Materiais e Equipamentos (aquisição indireta - em conjunto com licitação de obras)-AC | E38: 0.015 | F38: 0.0345 | G38: 0.0449
A39: =A38 -> Fornecimento de Materiais e Equipamentos (aquisição indireta - em conjunto com licitação de obras) | B39: SG | C39: Fornecimento de Materiais e Equipamentos (aquisição indireta - em conjunto com licitação de obras)-SG | E39: 0.003 | F39: 0.0048 | G39: 0.0082 | I39: Observações:
A40: =A39 -> Fornecimento de Materiais e Equipamentos (aquisição indireta - em conjunto com licitação de obras) | B40: R | C40: Fornecimento de Materiais e Equipamentos (aquisição indireta - em conjunto com licitação de obras)-R | E40: 0.0056 | F40: 0.0085 | G40: 0.0089
A41: =A40 -> Fornecimento de Materiais e Equipamentos (aquisição indireta - em conjunto com licitação de obras) | B41: DF | C41: Fornecimento de Materiais e Equipamentos (aquisição indireta - em conjunto com licitação de obras)-DF | E41: 0.0085 | F41: 0.0085 | G41: 0.0111
A42: =A41 -> Fornecimento de Materiais e Equipamentos (aquisição indireta - em conjunto com licitação de obras) | B42: L | C42: Fornecimento de Materiais e Equipamentos (aquisição indireta - em conjunto com licitação de obras)-L | E42: 0.035 | F42: 0.0511 | G42: 0.0622 | I42: =PO!K156 -> SÃO JOSÉ DO OURO / RS | O42: =PO!K159 -> 2025-11-02
A43: =A42 -> Fornecimento de Materiais e Equipamentos (aquisição indireta - em conjunto com licitação de obras) | B43: BDI PAD | C43: Fornecimento de Materiais e Equipamentos (aquisição indireta - em conjunto com licitação de obras)-BDI PAD | E43: 0.111 | F43: 0.1402 | G43: 0.168 | I43: Local | O43: Data
A44: Estudos e Projetos, Planos e Gerenciamento e outros correlatos | B44: K1 | C44: Estudos e Projetos, Planos e Gerenciamento e outros correlatos-K1 | E44: - | F44: - | G44: -
A45: =A44 -> Estudos e Projetos, Planos e Gerenciamento e outros correlatos | B45: K2 | C45: Estudos e Projetos, Planos e Gerenciamento e outros correlatos-K2 | E45: - | F45: 0.2 | G45: -
A46: =A45 -> Estudos e Projetos, Planos e Gerenciamento e outros correlatos | C46: Estudos e Projetos, Planos e Gerenciamento e outros correlatos- | E46: - | F46: - | G46: - | I46: Responsável Técnico | O46: Responsável Tomador
A47: =A46 -> Estudos e Projetos, Planos e Gerenciamento e outros correlatos | C47: Estudos e Projetos, Planos e Gerenciamento e outros correlatos- | E47: - | F47: - | G47: - | I47: Nome: | J47: =DADOS!B54 -> LEONARDO CONSORTE | O47: Nome: | P47: Antônio José Bianchin
A48: =A47 -> Estudos e Projetos, Planos e Gerenciamento e outros correlatos | B48: K3 | C48: Estudos e Projetos, Planos e Gerenciamento e outros correlatos-K3 | E48: - | F48: 0.12 | G48: - | I48: Título: | J48: =DADOS!B55 -> ENG. CIVIL | O48: Cargo: | P48: Prefeito Munipal
A49: =A48 -> Estudos e Projetos, Planos e Gerenciamento e outros correlatos | B49: BDI PAD | C49: Estudos e Projetos, Planos e Gerenciamento e outros correlatos-BDI PAD | E49: - | F49: - | G49: - | I49: =DADOS!A56 -> CREA/CAU: | J49: =DADOS!B56 -> 1331921
I50: =DADOS!A57 -> ART/RRT: | J50: =DADOS!B57 -> 13901876
A52: Construção e Reforma de Edifícios
A53: Construção de Praças Urbanas, Rodovias, Ferrovias e recapeamento e pavimentação de vias urbanas
A54: Construção de Redes de Abastecimento de Água, Coleta de Esgoto
A55: Construção e Manutenção de Estações e Redes de Distribuição de Energia Elétrica
A56: Obras Portuárias, Marítimas e Fluviais
A57: Fornecimento de Materiais e Equipamentos (aquisição indireta - em conjunto com licitação de obras)
A58: Fornecimento de Materiais e Equipamentos (aquisição direta)
A59: Estudos e Projetos, Planos e Gerenciamento e outros correlatos

Sheet BDI (4)
E1: MIN | F1: MED | G1: MAX | N1: ="Quadro de Composição do BDI "&MID(CELL("nome.arquivo",N1),5+FIND("BDI (",CELL("nome.arquivo",N1)),1) -> Quadro de Composição do BDI 4
A2: Construção e Reforma de Edifícios | B2: AC | C2: =CONCATENATE(A2,"-",B2) -> Construção e Reforma de Edifícios-AC | E2: 0.03 | F2: 0.04 | G2: 0.055
A3: =A2 -> Construção e Reforma de Edifícios | B3: SG | C3: Construção e Reforma de Edifícios-SG | E3: 0.008 | F3: 0.008 | G3: 0.01
A4: =A3 -> Construção e Reforma de Edifícios | B4: R | C4: Construção e Reforma de Edifícios-R | E4: 0.0097 | F4: 0.0127 | G4: 0.0127 | I4: Nº TC/CR | K4: PROPONENTE / TOMADOR
A5: =A4 -> Construção e Reforma de Edifícios | B5: DF | C5: Construção e Reforma de Edifícios-DF | E5: 0.0059 | F5: 0.0123 | G5: 0.0139 | I5: =DADOS!A29 -> - | K5: =DADOS!A32 -> CÂMARA DE VEREADORES DE SÃO JOSÉ DO OURO
A6: =A5 -> Construção e Reforma de Edifícios | B6: L | C6: Construção e Reforma de Edifícios-L | E6: 0.0616 | F6: 0.074 | G6: 0.0896
A7: =A6 -> Construção e Reforma de Edifícios | B7: BDI PAD | C7: Construção e Reforma de Edifícios-BDI PAD | E7: 0.2034 | F7: 0.2212 | G7: 0.25 | I7: OBJETO
A8: Construção de Praças Urbanas, Rodovias, Ferrovias e recapeamento e pavimentação de vias urbanas | B8: AC | C8: Construção de Praças Urbanas, Rodovias, Ferrovias e recapeamento e pavimentação de vias urbanas-AC | E8: 0.038 | F8: 0.0401 | G8: 0.0467 | I8: =DADOS!P29 -> REFORMA DA CÂMARA DE VEREADORES DE SÃO JOSÉ DO OURO
A9: Construção de Praças Urbanas, Rodovias, Ferrovias e recapeamento e pavimentação de vias urbanas | B9: SG | C9: Construção de Praças Urbanas, Rodovias, Ferrovias e recapeamento e pavimentação de vias urbanas-SG | E9: 0.0032 | F9: 0.004 | G9: 0.0074
A10: Construção de Praças Urbanas, Rodovias, Ferrovias e recapeamento e pavimentação de vias urbanas | B10: R | C10: Construção de Praças Urbanas, Rodovias, Ferrovias e recapeamento e pavimentação de vias urbanas-R | E10: 0.005 | F10: 0.0056 | G10: 0.0097 | I10: TIPO DE OBRA DO EMPREENDIMENTO | Q10: DESONERAÇÃO
A11: Construção de Praças Urbanas, Rodovias, Ferrovias e recapeamento e pavimentação de vias urbanas | B11: DF | C11: Construção de Praças Urbanas, Rodovias, Ferrovias e recapeamento e pavimentação de vias urbanas-DF | E11: 0.0102 | F11: 0.0111 | G11: 0.0121 | I11: Fornecimento de Materiais e Equipamentos (aquisição direta) | Q11: =DADOS!$C$38 -> Sim
A12: Construção de Praças Urbanas, Rodovias, Ferrovias e recapeamento e pavimentação de vias urbanas | B12: L | C12: Construção de Praças Urbanas, Rodovias, Ferrovias e recapeamento e pavimentação de vias urbanas-L | E12: 0.0664 | F12: 0.073 | G12: 0.0869
A13: Construção de Praças Urbanas, Rodovias, Ferrovias e recapeamento e pavimentação de vias urbanas | B13: BDI PAD | C13: Construção de Praças Urbanas, Rodovias, Ferrovias e recapeamento e pavimentação de vias urbanas-BDI PAD | E13: 0.196 | F13: 0.2097 | G13: 0.2423 | I13: Conforme legislação tributária municipal, definir estimativa de percentual da base de cálculo para o ISS: | Q13: 1
A14: Construção de Redes de Abastecimento de Água, Coleta de Esgoto | B14: AC | C14: Construção de Redes de Abastecimento de Água, Coleta de Esgoto-AC | E14: 0.0343 | F14: 0.0493 | G14: 0.0671 | I14: Sobre a base de cálculo, definir a respectiva alíquota do ISS (entre 2% e 5%): | Q14: 0.02
A15: =A14 -> Construção de Redes de Abastecimento de Água, Coleta de Esgoto | B15: SG | C15: Construção de Redes de Abastecimento de Água, Coleta de Esgoto-SG | E15: 0.0028 | F15: 0.0049 | G15: 0.0075
I16: Itens | M16: Siglas | N16: % Adotado | O16: Situação | P16: 1º Quartil | Q16: Médio | R16: 3º Quartil | T16: =IF(V27,"Para BDI fora do intervalo estatístico, deve ser apresentado Relatório Técnico Circunstanciado justificando a adoção do percentual de cada parcela do BDI.","") -> 
A17: =A15 -> Construção de Redes de Abastecimento de Água, Coleta de Esgoto | B17: R | C17: Construção de Redes de Abastecimento de Água, Coleta de Esgoto-R | E17: 0.01 | F17: 0.0139 | G17: 0.0174
A18: =A17 -> Construção de Redes de Abastecimento de Água, Coleta de Esgoto | B18: DF | C18: Construção de Redes de Abastecimento de Água, Coleta de Esgoto-DF | E18: 0.0094 | F18: 0.0099 | G18: 0.0117 | I18: =IF($I$11=$A$59,"Encargos Sociais incidentes sobre a mão de obra","Administração Central") -> Administração Central | M18: =IF($I$11=$A$59,"K1","AC") -> AC | O18: - | P18: =VLOOKUP(CONCATENATE(I$11,"-",M18),$C$2:$G$49,3,FALSE) ->  | Q18: =VLOOKUP(CONCATENATE(I$11,"-",M18),$C$2:$G$49,4,FALSE) ->  | R18: =VLOOKUP(CONCATENATE(I$11,"-",M18),$C$2:$G$49,5,FALSE) -> 
A19: =A18 -> Construção de Redes de Abastecimento de Água, Coleta de Esgoto | B19: L | C19: Construção de Redes de Abastecimento de Água, Coleta de Esgoto-L | E19: 0.0674 | F19: 0.0804 | G19: 0.094 | I19: =IF($I$11=$A$59,"Administração Central da empresa ou consultoria - overhead","Seguro e Garantia") -> Seguro e Garantia | M19: =IF($I$11=$A$59,"K2","SG") -> SG | O19: - | P19: =VLOOKUP(CONCATENATE(I$11,"-",M19),$C$2:$G$49,3,FALSE) ->  | Q19: =VLOOKUP(CONCATENATE(I$11,"-",M19),$C$2:$G$49,4,FALSE) ->  | R19: =VLOOKUP(CONCATENATE(I$11,"-",M19),$C$2:$G$49,5,FALSE) -> 
A20: =A19 -> Construção de Redes de Abastecimento de Água, Coleta de Esgoto | B20: BDI PAD | C20: Construção de Redes de Abastecimento de Água, Coleta de Esgoto-BDI PAD | E20: 0.2076 | F20: 0.2418 | G20: 0.2644 | I20: =IF($I$11=$A$59,"","Risco") -> Risco | M20: =IF($I$11=$A$59,"","R") -> R | O20: - | P20: =VLOOKUP(CONCATENATE(I$11,"-",M20),$C$2:$G$49,3,FALSE) ->  | Q20: =VLOOKUP(CONCATENATE(I$11,"-",M20),$C$2:$G$49,4,FALSE) ->  | R20: =VLOOKUP(CONCATENATE(I$11,"-",M20),$C$2:$G$49,5,FALSE) -> 
A21: Construção e Manutenção de Estações e Redes de Distribuição de Energia Elétrica | B21: AC | C21: Construção e Manutenção de Estações e Redes de Distribuição de Energia Elétrica-AC | E21: 0.0529 | F21: 0.0592 | G21: 0.0793 | I21: =IF($I$11=$A$59,"","Despesas Financeiras") -> Despesas Financeiras | M21: =IF($I$11=$A$59,"","DF") -> DF | O21: - | P21: =VLOOKUP(CONCATENATE(I$11,"-",M21),$C$2:$G$49,3,FALSE) ->  | Q21: =VLOOKUP(CONCATENATE(I$11,"-",M21),$C$2:$G$49,4,FALSE) ->  | R21: =VLOOKUP(CONCATENATE(I$11,"-",M21),$C$2:$G$49,5,FALSE) -> 
A22: =A21 -> Construção e Manutenção de Estações e Redes de Distribuição de Energia Elétrica | B22: SG | C22: Construção e Manutenção de Estações e Redes de Distribuição de Energia Elétrica-SG | E22: 0.0025 | F22: 0.0051 | G22: 0.0056 | I22: =IF($I$11=$A$59,"Margem bruta da empresa de consultoria","Lucro") -> Lucro | M22: =IF($I$11=$A$59,"K3","L") -> L | O22: - | P22: =VLOOKUP(CONCATENATE(I$11,"-",M22),$C$2:$G$49,3,FALSE) ->  | Q22: =VLOOKUP(CONCATENATE(I$11,"-",M22),$C$2:$G$49,4,FALSE) ->  | R22: =VLOOKUP(CONCATENATE(I$11,"-",M22),$C$2:$G$49,5,FALSE) -> 
A23: =A22 -> Construção e Manutenção de Estações e Redes de Distribuição de Energia Elétrica | B23: R | C23: Construção e Manutenção de Estações e Redes de Distribuição de Energia Elétrica-R | E23: 0.01 | F23: 0.0148 | G23: 0.0197 | I23: Tributos (impostos COFINS 3%, e PIS 0,65%) | M23: CP | O23: - | P23: 0.0365 | Q23: 0.0365 | R23: 0.0365
A24: =A23 -> Construção e Manutenção de Estações e Redes de Distribuição de Energia Elétrica | B24: DF | C24: Construção e Manutenção de Estações e Redes de Distribuição de Energia Elétrica-DF | E24: 0.0101 | F24: 0.0107 | G24: 0.0111 | I24: Tributos (ISS, variável de acordo com o município) | M24: ISS | N24: =IF($I$11<>$A$58,Q14*Q13,0) -> 0 | O24: - | P24: 0 | Q24: 0.025 | R24: 0.05
A25: =A24 -> Construção e Manutenção de Estações e Redes de Distribuição de Energia Elétrica | B25: L | C25: Construção e Manutenção de Estações e Redes de Distribuição de Energia Elétrica-L | E25: 0.08 | F25: 0.0831 | G25: 0.0951 | I25: Tributos (Contribuição Previdenciária sobre a Receita Bruta - 0% ou 4,5% - Desoneração) | M25: CPRB | N25: =IF(AND($I$11<>$A$58,Q11="Sim"),4.5%,0%) -> 0 | O25: =IF(AND(N25>=P25, N25<=R25), "OK", "Não OK") -> OK | P25: 0 | Q25: 0.045 | R25: 0.045
A26: =A25 -> Construção e Manutenção de Estações e Redes de Distribuição de Energia Elétrica | B26: BDI PAD | C26: Construção e Manutenção de Estações e Redes de Distribuição de Energia Elétrica-BDI PAD | E26: 0.24 | F26: 0.2584 | G26: 0.2786 | I26: BDI SEM desoneração (Fórmula Acórdão TCU) | M26: BDI PAD | N26: =IF($I$11=$A$58,0,ROUND((((1+N18+N19+N20)*(1+N21)*(1+N22)/(1-(N23+N24)))-1),4)) -> 0 | O26: =IF(OR($I$11=$A$59,$I$11=$A$58,AND(N26>=P26, N26<=R26)), "OK", "FORA DO INTERVALO") -> OK | P26: =IF($I$11=$A$58,0,VLOOKUP(CONCATENATE($I$11,"-",$M26),$C$2:$G$49,3,FALSE)) -> 0 | Q26: =IF($I$11=$A$58,0,VLOOKUP(CONCATENATE($I$11,"-",$M26),$C$2:$G$49,4,FALSE)) -> 0 | R26: =IF($I$11=$A$58,0,VLOOKUP(CONCATENATE($I$11,"-",$M26),$C$2:$G$49,5,FALSE)) -> 0
A27: Obras Portuárias, Marítimas e Fluviais | B27: AC | C27: Obras Portuárias, Marítimas e Fluviais-AC | E27: 0.04 | F27: 0.0552 | G27: 0.0785 | I27: BDI COM desoneração | M27: BDI DES | N27: =IF($I$11=$A$58,0,ROUND((((1+N18+N19+N20)*(1+N21)*(1+N22)/(1-(N23+N24+N25)))-1),4)) -> 0 | O27: =IF(Q11<>"Sim","",O26) -> OK | V27: =AND(COUNTA(N18:N23)=6,O26<>"ok",NOT(V29)) -> FALSE | W27: pedir anexo
A28: =A27 -> Obras Portuárias, Marítimas e Fluviais | B28: SG | C28: Obras Portuárias, Marítimas e Fluviais-SG | E28: 0.0081 | F28: 0.0122 | G28: 0.0199
A29: =A28 -> Obras Portuárias, Marítimas e Fluviais | B29: R | C29: Obras Portuárias, Marítimas e Fluviais-R | E29: 0.0146 | F29: 0.0232 | G29: 0.0316 | I29: =IF(V29,"X","") ->  | J29: Anexo: Relatório Técnico Circunstanciado justificando a adoção do percentual de cada parcela do BDI. | V29: FALSE | W29: anexo apresentado
I31: Os valores de BDI foram calculados com o emprego da fórmula:
A32: =A29 -> Obras Portuárias, Marítimas e Fluviais | B32: DF | C32: Obras Portuárias, Marítimas e Fluviais-DF | E32: 0.0094 | F32: 0.0102 | G32: 0.0133 | L32: =IF(Q11="Sim","BDI.DES =","BDI.PAD =") -> BDI.DES = | M32: =IF($I$11=$A$59,"(1+K1+K2)*(1+K3)","(1+AC + S + R + G)*(1 + DF)*(1+L)") -> (1+AC + S + R + G)*(1 + DF)*(1+L) | P32: - 1
A33: =A32 -> Obras Portuárias, Marítimas e Fluviais | B33: L | C33: Obras Portuárias, Marítimas e Fluviais-L | E33: 0.0714 | F33: 0.084 | G33: 0.1043 | M33: =IF(Q11="Sim","(1-CP-ISS-CRPB)","(1-CP-ISS)") -> (1-CP-ISS-CRPB)
A34: =A33 -> Obras Portuárias, Marítimas e Fluviais | B34: BDI PAD | C34: Obras Portuárias, Marítimas e Fluviais-BDI PAD | E34: 0.228 | F34: 0.2748 | G34: 0.3095
I35: =CONCATENATE("Declaro para os devidos fins que, conforme legislação tributária municipal, a base de cálculo para ",I11,", é de ",Q13*100,"%, com a respectiva alíquota de ",Q14*100,"%.") -> Declaro para os devidos fins que, conforme legislação tributária municipal, a base de cálculo para Fornecimento de Materiais e Equipamentos (aquisição direta), é de 100%, com a respectiva alíquota de 2%.
I37: =CONCATENATE("Declaro para os devidos fins que o regime de Contribuição Previdenciária sobre a Receita Bruta adotado para elaboração do orçamento foi ",IF(Q11="Sim","COM","SEM")," Desoneração, e que esta é a alternativa mais adequada para a Administração Pública.") -> Declaro para os devidos fins que o regime de Contribuição Previdenciária sobre a Receita Bruta adotado para elaboração do orçamento foi COM Desoneração, e que esta é a alternativa mais adequada para a Administração Pública.
A38: Fornecimento de Materiais e Equipamentos (aquisição indireta - em conjunto com licitação de obras) | B38: AC | C38: Fornecimento de Materiais e Equipamentos (aquisição indireta - em conjunto com licitação de obras)-AC | E38: 0.015 | F38: 0.0345 | G38: 0.0449
A39: =A38 -> Fornecimento de Materiais e Equipamentos (aquisição indireta - em conjunto com licitação de obras) | B39: SG | C39: Fornecimento de Materiais e Equipamentos (aquisição indireta - em conjunto com licitação de obras)-SG | E39: 0.003 | F39: 0.0048 | G39: 0.0082 | I39: Observações:
A40: =A39 -> Fornecimento de Materiais e Equipamentos (aquisição indireta - em conjunto com licitação de obras) | B40: R | C40: Fornecimento de Materiais e Equipamentos (aquisição indireta - em conjunto com licitação de obras)-R | E40: 0.0056 | F40: 0.0085 | G40: 0.0089
A41: =A40 -> Fornecimento de Materiais e Equipamentos (aquisição indireta - em conjunto com licitação de obras) | B41: DF | C41: Fornecimento de Materiais e Equipamentos (aquisição indireta - em conjunto com licitação de obras)-DF | E41: 0.0085 | F41: 0.0085 | G41: 0.0111
A42: =A41 -> Fornecimento de Materiais e Equipamentos (aquisição indireta - em conjunto com licitação de obras) | B42: L | C42: Fornecimento de Materiais e Equipamentos (aquisição indireta - em conjunto com licitação de obras)-L | E42: 0.035 | F42: 0.0511 | G42: 0.0622 | I42: =PO!K156 -> SÃO JOSÉ DO OURO / RS | O42: =PO!K159 -> 2025-11-02
A43: =A42 -> Fornecimento de Materiais e Equipamentos (aquisição indireta - em conjunto com licitação de obras) | B43: BDI PAD | C43: Fornecimento de Materiais e Equipamentos (aquisição indireta - em conjunto com licitação de obras)-BDI PAD | E43: 0.111 | F43: 0.1402 | G43: 0.168 | I43: Local | O43: Data
A44: Estudos e Projetos, Planos e Gerenciamento e outros correlatos | B44: K1 | C44: Estudos e Projetos, Planos e Gerenciamento e outros correlatos-K1 | E44: - | F44: - | G44: -
A45: =A44 -> Estudos e Projetos, Planos e Gerenciamento e outros correlatos | B45: K2 | C45: Estudos e Projetos, Planos e Gerenciamento e outros correlatos-K2 | E45: - | F45: 0.2 | G45: -
A46: =A45 -> Estudos e Projetos, Planos e Gerenciamento e outros correlatos | C46: Estudos e Projetos, Planos e Gerenciamento e outros correlatos- | E46: - | F46: - | G46: - | I46: Responsável Técnico | O46: Responsável Tomador
A47: =A46 -> Estudos e Projetos, Planos e Gerenciamento e outros correlatos | C47: Estudos e Projetos, Planos e Gerenciamento e outros correlatos- | E47: - | F47: - | G47: - | I47: Nome: | J47: =DADOS!B54 -> LEONARDO CONSORTE | O47: Nome:
A48: =A47 -> Estudos e Projetos, Planos e Gerenciamento e outros correlatos | B48: K3 | C48: Estudos e Projetos, Planos e Gerenciamento e outros correlatos-K3 | E48: - | F48: 0.12 | G48: - | I48: Título: | J48: =DADOS!B55 -> ENG. CIVIL | O48: Cargo:
A49: =A48 -> Estudos e Projetos, Planos e Gerenciamento e outros correlatos | B49: BDI PAD | C49: Estudos e Projetos, Planos e Gerenciamento e outros correlatos-BDI PAD | E49: - | F49: - | G49: - | I49: =DADOS!A56 -> CREA/CAU: | J49: =DADOS!B56 -> 1331921
I50: =DADOS!A57 -> ART/RRT: | J50: =DADOS!B57 -> 13901876
A52: Construção e Reforma de Edifícios
A53: Construção de Praças Urbanas, Rodovias, Ferrovias e recapeamento e pavimentação de vias urbanas
A54: Construção de Redes de Abastecimento de Água, Coleta de Esgoto
A55: Construção e Manutenção de Estações e Redes de Distribuição de Energia Elétrica
A56: Obras Portuárias, Marítimas e Fluviais
A57: Fornecimento de Materiais e Equipamentos (aquisição indireta - em conjunto com licitação de obras)
A58: Fornecimento de Materiais e Equipamentos (aquisição direta)
A59: Estudos e Projetos, Planos e Gerenciamento e outros correlatos

Sheet PO
N1: PO - PLANILHA ORÇAMENTÁRIA | T1: Grau de Sigilo
B2: LOTE | C2: Meta | D2: Nível 2 | E2: Nível 3 | F2: Nível 4 | G2: Serviço | N2: =CHOOSE(1+LOG(1+2*(TipoOrçamento="BASE")+4*(TipoOrçamento="LICITADO")+8*(TipoOrçamento="REPROGRAMADOAC")+16*(TipoOrçamento="REPROGRAMADONPL"),2),"nada","Orçamento Base para Licitação","Orçamento Licitado","Orçamento Licitado Reprogramado","Orçamento Base para Licitação - Reprogramado") -> Orçamento Base para Licitação | T2: #PUBLICO | W2: Arredondamento
W3: Quantidade | X3: TRUE
A4: Nmax | U4: ERRO GERAL | W4: Custo Unitáro | X4: TRUE
A5: =MAX($A$12:$A$145) -> 4 | U5: =IF(COUNTIF($U$12:OFFSET($U$145,-1,0),"DESCRIÇÃO")+COUNTIF($U$12:OFFSET($U$145,-1,0),"UNIDADE")+COUNTIF($U$12:OFFSET($U$145,-1,0),"SEM VALOR")>0,"NÃO OK","OK") -> NÃO OK | W5: BDI | X5: TRUE
W6: Preço Unitário | X6: TRUE
W7: Preço Total | X7: TRUE
P9: =OFFSET(PLQ!$E$12,ROW($P9)-ROW(P$12),0) -> -
A10: Nível | B10: Altura | C10: n1 | D10: n2 | E10: n3 | F10: n4 | G10: n5 | H10: Czero | I10: Cnível | J10: Nível | K10: Item | L10: Fonte | M10: Código | N10: Descrição | O10: Unidade | P10: Quantidade | Q10: =IF(OR(TipoOrçamento="LICITADO",TipoOrçamento="REPROGRAMADOAC"),"Preço Unitário (R$)","Custo Unitário (R$)") -> Custo Unitário (R$) | R10: BDI (%) | S10: Preço Unitário (R$) | T10: Preço Total (R$) | U10: Erro de Dados | V10: Lista Crono | W10: Concatenação Fonte-Código | X10: BancoRef | Y10: =IF(TipoOrçamento="LICITADO","Preço Unitário Edital (R$)","Custo Unitário Referência (R$)") -> Custo Unitário Referência (R$) | Z10: =IF(TipoOrçamento="LICITADO","Valor BDI Edital","Valor BDI") -> Valor BDI
A11: =CHOOSE(1+LOG(1+2*(J11="Meta")+4*(J11="Nível 2")+8*(J11="Nível 3")+16*(J11="Nível 4")+32*(J11="Serviço"),2),0,1,2,3,4,"S") -> S | B11: =IF(OR(A11="S",A11=0),0,IF(ISERROR(I11),H11,SMALL(H11:I11,1))) -> 0 | C11: =IF($A11=1,OFFSET(C11,-1,0)+1,OFFSET(C11,-1,0)) -> n1 | D11: =IF($A11=1,0,IF($A11=2,OFFSET(D11,-1,0)+1,OFFSET(D11,-1,0))) -> n2 | E11: =IF(AND($A11<=2,$A11<>0),0,IF($A11=3,OFFSET(E11,-1,0)+1,OFFSET(E11,-1,0))) -> n3 | F11: =IF(AND($A11<=3,$A11<>0),0,IF($A11=4,OFFSET(F11,-1,0)+1,OFFSET(F11,-1,0))) -> n4 | G11: =IF(AND($A11<=4,$A11<>0),0,IF($A11="S",OFFSET(G11,-1,0)+1,OFFSET(G11,-1,0))) ->  | H11: =IF(OR($A11="S",$A11=0),0,MATCH(0,OFFSET($B11,1,$A11,ROW($A$145)-ROW($A11)),0)) -> 0 | I11: =IF(OR($A11="S",$A11=0),0,MATCH(OFFSET($B11,0,$A11)+1,OFFSET($B11,1,$A11,ROW($A$145)-ROW($A11)),0)) -> 0 | J11: Serviço | K11: =IF($A11=0,"-",CONCATENATE(C11&".",IF(AND($A$5>=2,$A11>=2),D11&".",""),IF(AND($A$5>=3,$A11>=3),E11&".",""),IF(AND($A$5>=4,$A11>=4),F11&".",""),IF($A11="S",G11&".",""))) ->  | N11: =IF($A11="S",Referencia.Descricao,"(digite a descrição aqui)") ->  | O11: =Referencia.Unidade ->  | P11: =OFFSET(PLQ!$E$12,ROW($P11)-ROW(P$12),0) -> 0 | R11: BDI 1 | S11: =IF($A11="S",IF($Q$10="Preço Unitário (R$)",PO.CustoUnitario,ROUND(PO.CustoUnitario*(1+$Z11),15-13*$X$6)),0) -> 0 | T11: =IF($A11="S",VTOTAL1,IF($A11=0,0,ROUND(SomaAgrup,15-13*$X$7))) -> 0 | U11: =IF($J11="","",IF($N11="","DESCRIÇÃO",IF(AND($J11="Serviço",$O11=""),"UNIDADE",IF($T11<=0,"SEM VALOR",IF(AND($Y11<>"",$Q11>$Y11),"ACIMA REF.",""))))) -> DESCRIÇÃO | V11: =IF(OR($A11=0,$A11="S",$A11>CFF!$A$9),"",MAX(V$12:OFFSET(V11,-1,0))+1) ->  | W11: =IF(AND($J11="Serviço",$M11<>""),IF($L11="",$M11,CONCATENATE($L11,"-",$M11))) -> FALSE | X11: =IF(AND(Fonte<>"",Código<>""),MATCH(Fonte&" "&IF(Fonte="sinapi",SUBSTITUTE(SUBSTITUTE(Código,"/00","/"),"/0","/"),Código),INDIRECT("'[Referência "&_xlnm.Database&".xls]Banco'!$a:$a"),0),"X") -> X | Y11: =IF(Import.Desoneracao="sim",Referencia.Desonerado,Referencia.NaoDesonerado) -> 0 | Z11: =ROUND(IF(ISNUMBER(R11),R11,IF(LEFT(R11,3)="BDI",HLOOKUP(R11,DADOS!$T$37:$X$38,2,FALSE),0)),15-11*$X$5) -> 0.3021
A12: 0 | B12: =COUNTA(OFFSET(B12,1,0):B$145) -> 132 | J12: =IF(OR(TipoOrçamento="LICITADO",TipoOrçamento="REPROGRAMADOAC"),"CTEF","LOTE") -> LOTE | K12: 0 | N12: =IF(TipoOrçamento="LICITADO",DADOS!O43,DADOS!G38) -> REFORMA DA CÂMARA DE VEREADORES DE SÃO JOSÉ DO OURO | T12: =SUMIF(OFFSET($J12,1,0,ROW(T145)-ROW(T12)-1),"Serviço",OFFSET(T12,1,0,ROW(T145)-ROW(T12)-1)) -> 551458.1 | U12: =IF($N12=0,"DESCRIÇÃO","") ->  | V12: 0
A13: =CHOOSE(1+LOG(1+2*(J13="Meta")+4*(J13="Nível 2")+8*(J13="Nível 3")+16*(J13="Nível 4")+32*(J13="Serviço"),2),0,1,2,3,4,"S") -> 1 | B13: =IF(OR(A13="S",A13=0),0,IF(ISERROR(I13),H13,SMALL(H13:I13,1))) -> 73 | C13: =IF($A13=1,OFFSET(C13,-1,0)+1,OFFSET(C13,-1,0)) -> 1 | D13: =IF($A13=1,0,IF($A13=2,OFFSET(D13,-1,0)+1,OFFSET(D13,-1,0))) -> 0 | E13: =IF(AND($A13<=2,$A13<>0),0,IF($A13=3,OFFSET(E13,-1,0)+1,OFFSET(E13,-1,0))) -> 0 | F13: =IF(AND($A13<=3,$A13<>0),0,IF($A13=4,OFFSET(F13,-1,0)+1,OFFSET(F13,-1,0))) -> 0 | G13: =IF(AND($A13<=4,$A13<>0),0,IF($A13="S",OFFSET(G13,-1,0)+1,OFFSET(G13,-1,0))) -> 0 | H13: =IF(OR($A13="S",$A13=0),0,MATCH(0,OFFSET($B13,1,$A13,ROW($A$145)-ROW($A13)),0)) -> 132 | I13: =IF(OR($A13="S",$A13=0),0,MATCH(OFFSET($B13,0,$A13)+1,OFFSET($B13,1,$A13,ROW($A$145)-ROW($A13)),0)) -> 73 | J13: Meta | K13: =IF($A13=0,"-",CONCATENATE(C13&".",IF(AND($A$5>=2,$A13>=2),D13&".",""),IF(AND($A$5>=3,$A13>=3),E13&".",""),IF(AND($A$5>=4,$A13>=4),F13&".",""),IF($A13="S",G13&".",""))) -> 1. | N13: LOTE 1 - 1ª ETAPA DA REFORMA | P13: =OFFSET(PLQ!$E$12,ROW($P13)-ROW(P$12),0) -> 0 | R13: BDI 1 | S13: =IF($A13="S",IF($Q$10="Preço Unitário (R$)",PO.CustoUnitario,ROUND(PO.CustoUnitario*(1+$Z13),15-13*$X$6)),0) -> 0 | T13: =IF($A13="S",VTOTAL1,IF($A13=0,0,ROUND(SomaAgrup,15-13*$X$7))) -> 240414.59 | U13: =IF($J13="","",IF($N13="","DESCRIÇÃO",IF(AND($J13="Serviço",$O13=""),"UNIDADE",IF($T13<=0,"SEM VALOR",IF(AND($Y13<>"",$Q13>$Y13),"ACIMA REF.",""))))) ->  | V13: =IF(OR($A13=0,$A13="S",$A13>CFF!$A$9),"",MAX(V$12:OFFSET(V13,-1,0))+1) -> 1 | W13: =IF(AND($J13="Serviço",$M13<>""),IF($L13="",$M13,CONCATENATE($L13,"-",$M13))) -> FALSE | X13: =IF(AND(Fonte<>"",Código<>""),MATCH(Fonte&" "&IF(Fonte="sinapi",SUBSTITUTE(SUBSTITUTE(Código,"/00","/"),"/0","/"),Código),INDIRECT("'[Referência "&_xlnm.Database&".xls]Banco'!$a:$a"),0),"X") -> X | Y13: =IF(Import.Desoneracao="sim",Referencia.Desonerado,Referencia.NaoDesonerado) -> 0 | Z13: =ROUND(IF(ISNUMBER(R13),R13,IF(LEFT(R13,3)="BDI",HLOOKUP(R13,DADOS!$T$37:$X$38,2,FALSE),0)),15-11*$X$5) -> 0.3021
A14: =CHOOSE(1+LOG(1+2*(J14="Meta")+4*(J14="Nível 2")+8*(J14="Nível 3")+16*(J14="Nível 4")+32*(J14="Serviço"),2),0,1,2,3,4,"S") -> 2 | B14: =IF(OR(A14="S",A14=0),0,IF(ISERROR(I14),H14,SMALL(H14:I14,1))) -> 4 | C14: =IF($A14=1,OFFSET(C14,-1,0)+1,OFFSET(C14,-1,0)) -> 1 | D14: =IF($A14=1,0,IF($A14=2,OFFSET(D14,-1,0)+1,OFFSET(D14,-1,0))) -> 1 | E14: =IF(AND($A14<=2,$A14<>0),0,IF($A14=3,OFFSET(E14,-1,0)+1,OFFSET(E14,-1,0))) -> 0 | F14: =IF(AND($A14<=3,$A14<>0),0,IF($A14=4,OFFSET(F14,-1,0)+1,OFFSET(F14,-1,0))) -> 0 | G14: =IF(AND($A14<=4,$A14<>0),0,IF($A14="S",OFFSET(G14,-1,0)+1,OFFSET(G14,-1,0))) -> 0 | H14: 72 | I14: 4 | J14: Nível 2 | K14: =IF($A14=0,"-",CONCATENATE(C14&".",IF(AND($A$5>=2,$A14>=2),D14&".",""),IF(AND($A$5>=3,$A14>=3),E14&".",""),IF(AND($A$5>=4,$A14>=4),F14&".",""),IF($A14="S",G14&".",""))) -> 1.1. | N14: SERVIÇOS INICIAIS | O14: =Referencia.Unidade ->  | P14: =OFFSET(PLQ!$E$12,ROW($P14)-ROW(P$12),0) -> 0 | R14: BDI 1 | S14: =IF($A14="S",IF($Q$10="Preço Unitário (R$)",PO.CustoUnitario,ROUND(PO.CustoUnitario*(1+$Z14),15-13*$X$6)),0) -> 0 | T14: =IF($A14="S",VTOTAL1,IF($A14=0,0,ROUND(SomaAgrup,15-13*$X$7))) -> 8429.14 | U14: =IF($J14="","",IF($N14="","DESCRIÇÃO",IF(AND($J14="Serviço",$O14=""),"UNIDADE",IF($T14<=0,"SEM VALOR",IF(AND($Y14<>"",$Q14>$Y14),"ACIMA REF.",""))))) ->  | V14: =IF(OR($A14=0,$A14="S",$A14>CFF!$A$9),"",MAX(V$12:OFFSET(V14,-1,0))+1) -> 2 | W14: =IF(AND($J14="Serviço",$M14<>""),IF($L14="",$M14,CONCATENATE($L14,"-",$M14))) -> FALSE | X14: =IF(AND(Fonte<>"",Código<>""),MATCH(Fonte&" "&IF(Fonte="sinapi",SUBSTITUTE(SUBSTITUTE(Código,"/00","/"),"/0","/"),Código),INDIRECT("'[Referência "&_xlnm.Database&".xls]Banco'!$a:$a"),0),"X") -> X | Y14: =IF(Import.Desoneracao="sim",Referencia.Desonerado,Referencia.NaoDesonerado) -> 0 | Z14: =ROUND(IF(ISNUMBER(R14),R14,IF(LEFT(R14,3)="BDI",HLOOKUP(R14,DADOS!$T$37:$X$38,2,FALSE),0)),15-11*$X$5) -> 0.3021
A15: =CHOOSE(1+LOG(1+2*(J15="Meta")+4*(J15="Nível 2")+8*(J15="Nível 3")+16*(J15="Nível 4")+32*(J15="Serviço"),2),0,1,2,3,4,"S") -> S | B15: =IF(OR(A15="S",A15=0),0,IF(ISERROR(I15),H15,SMALL(H15:I15,1))) -> 0 | C15: =IF($A15=1,OFFSET(C15,-1,0)+1,OFFSET(C15,-1,0)) -> 1 | D15: =IF($A15=1,0,IF($A15=2,OFFSET(D15,-1,0)+1,OFFSET(D15,-1,0))) -> 1 | E15: =IF(AND($A15<=2,$A15<>0),0,IF($A15=3,OFFSET(E15,-1,0)+1,OFFSET(E15,-1,0))) -> 0 | F15: =IF(AND($A15<=3,$A15<>0),0,IF($A15=4,OFFSET(F15,-1,0)+1,OFFSET(F15,-1,0))) -> 0 | G15: =IF(AND($A15<=4,$A15<>0),0,IF($A15="S",OFFSET(G15,-1,0)+1,OFFSET(G15,-1,0))) -> 1 | H15: 0 | I15: 0 | J15: Serviço | K15: =IF($A15=0,"-",CONCATENATE(C15&".",IF(AND($A$5>=2,$A15>=2),D15&".",""),IF(AND($A$5>=3,$A15>=3),E15&".",""),IF(AND($A$5>=4,$A15>=4),F15&".",""),IF($A15="S",G15&".",""))) -> 1.1.0.0.1. | L15: COMPOSIÇÃO | M15: CONSORTE02 | N15: ADMINSTRAÇÃO LOCAL | O15: MÊS | P15: =OFFSET(PLQ!$E$12,ROW($P15)-ROW(P$12),0) -> 2 | Q15: 2596.27 | R15: BDI 1 | S15: =IF($A15="S",IF($Q$10="Preço Unitário (R$)",PO.CustoUnitario,ROUND(PO.CustoUnitario*(1+$Z15),15-13*$X$6)),0) -> 3380.6 | T15: =IF($A15="S",VTOTAL1,IF($A15=0,0,ROUND(SomaAgrup,15-13*$X$7))) -> 6761.2 | U15: =IF($J15="","",IF($N15="","DESCRIÇÃO",IF(AND($J15="Serviço",$O15=""),"UNIDADE",IF($T15<=0,"SEM VALOR",IF(AND($Y15<>"",$Q15>$Y15),"ACIMA REF.",""))))) ->  | V15: =IF(OR($A15=0,$A15="S",$A15>CFF!$A$9),"",MAX(V$12:OFFSET(V15,-1,0))+1) ->  | W15: =IF(AND($J15="Serviço",$M15<>""),IF($L15="",$M15,CONCATENATE($L15,"-",$M15))) -> COMPOSIÇÃO-CONSORTE02 | X15: =IF(AND(Fonte<>"",Código<>""),MATCH(Fonte&" "&IF(Fonte="sinapi",SUBSTITUTE(SUBSTITUTE(Código,"/00","/"),"/0","/"),Código),INDIRECT("'[Referência "&_xlnm.Database&".xls]Banco'!$a:$a"),0),"X") -> 13 | Y15: =IF(Import.Desoneracao="sim",Referencia.Desonerado,Referencia.NaoDesonerado) -> 2596.27 | Z15: =ROUND(IF(ISNUMBER(R15),R15,IF(LEFT(R15,3)="BDI",HLOOKUP(R15,DADOS!$T$37:$X$38,2,FALSE),0)),15-11*$X$5) -> 0.3021
A16: S | B16: 0 | C16: 1 | D16: 1 | E16: 0 | F16: 0 | G16: 2 | H16: 0 | I16: 0 | J16: Serviço | K16: 1.1.0.0.2. | L16: SINAPI | M16: 103689 | N16: FORNECIMENTO E INSTALAÇÃO DE PLACA DE OBRA COM CHAPA GALVANIZADA E ESTRUTURA DE MADEIRA. AF_03/2022_PS | O16: M2 | P16: =OFFSET(PLQ!$E$12,ROW($P16)-ROW(P$12),0) -> 2.4 | Q16: 458.73 | R16: BDI 1 | S16: 597.31 | T16: 1433.54 | V16: =IF(OR($A16=0,$A16="S",$A16>CFF!$A$9),"",MAX(V$12:OFFSET(V16,-1,0))+1) ->  | W16: SINAPI-103689 | X16: 14889 | Y16: 458.73 | Z16: =ROUND(IF(ISNUMBER(R16),R16,IF(LEFT(R16,3)="BDI",HLOOKUP(R16,DADOS!$T$37:$X$38,2,FALSE),0)),15-11*$X$5) -> 0.3021
A17: =CHOOSE(1+LOG(1+2*(J17="Meta")+4*(J17="Nível 2")+8*(J17="Nível 3")+16*(J17="Nível 4")+32*(J17="Serviço"),2),0,1,2,3,4,"S") -> S | B17: =IF(OR(A17="S",A17=0),0,IF(ISERROR(I17),H17,SMALL(H17:I17,1))) -> 0 | C17: =IF($A17=1,OFFSET(C17,-1,0)+1,OFFSET(C17,-1,0)) -> 1 | D17: =IF($A17=1,0,IF($A17=2,OFFSET(D17,-1,0)+1,OFFSET(D17,-1,0))) -> 1 | E17: =IF(AND($A17<=2,$A17<>0),0,IF($A17=3,OFFSET(E17,-1,0)+1,OFFSET(E17,-1,0))) -> 0 | F17: =IF(AND($A17<=3,$A17<>0),0,IF($A17=4,OFFSET(F17,-1,0)+1,OFFSET(F17,-1,0))) -> 0 | G17: =IF(AND($A17<=4,$A17<>0),0,IF($A17="S",OFFSET(G17,-1,0)+1,OFFSET(G17,-1,0))) -> 3 | H17: 0 | I17: 0 | J17: Serviço | K17: =IF($A17=0,"-",CONCATENATE(C17&".",IF(AND($A$5>=2,$A17>=2),D17&".",""),IF(AND($A$5>=3,$A17>=3),E17&".",""),IF(AND($A$5>=4,$A17>=4),F17&".",""),IF($A17="S",G17&".",""))) -> 1.1.0.0.3. | L17: SINAPI-I | M17: 20193 | N17: LOCACAO DE ANDAIME METALICO TIPO FACHADEIRO, PECAS COM APROXIMADAMENTE 1,20 M DE LARGURA E 2,0 M DE ALTURA, INCLUINDO DIAGONAIS EM X, BARRAS DE LIGACAO, SAPATAS E DEMAIS ITENS NECESSARIOS A MONTAGEM (NAO INCLUI INSTALACAO) | O17: M2XMES | P17: =OFFSET(PLQ!$E$12,ROW($P17)-ROW(P$12),0) -> 8 | Q17: 22.5 | R17: BDI 1 | S17: =IF($A17="S",IF($Q$10="Preço Unitário (R$)",PO.CustoUnitario,ROUND(PO.CustoUnitario*(1+$Z17),15-13*$X$6)),0) -> 29.3 | T17: =IF($A17="S",VTOTAL1,IF($A17=0,0,ROUND(SomaAgrup,15-13*$X$7))) -> 234.4 | U17: =IF($J17="","",IF($N17="","DESCRIÇÃO",IF(AND($J17="Serviço",$O17=""),"UNIDADE",IF($T17<=0,"SEM VALOR",IF(AND($Y17<>"",$Q17>$Y17),"ACIMA REF.",""))))) ->  | V17: =IF(OR($A17=0,$A17="S",$A17>CFF!$A$9),"",MAX(V$12:OFFSET(V17,-1,0))+1) ->  | W17: =IF(AND($J17="Serviço",$M17<>""),IF($L17="",$M17,CONCATENATE($L17,"-",$M17))) -> SINAPI-I-20193 | X17: =IF(AND(Fonte<>"",Código<>""),MATCH(Fonte&" "&IF(Fonte="sinapi",SUBSTITUTE(SUBSTITUTE(Código,"/00","/"),"/0","/"),Código),INDIRECT("'[Referência "&_xlnm.Database&".xls]Banco'!$a:$a"),0),"X") -> 2667 | Y17: =IF(Import.Desoneracao="sim",Referencia.Desonerado,Referencia.NaoDesonerado) -> 22.5 | Z17: =ROUND(IF(ISNUMBER(R17),R17,IF(LEFT(R17,3)="BDI",HLOOKUP(R17,DADOS!$T$37:$X$38,2,FALSE),0)),15-11*$X$5) -> 0.3021
A18: 2 | B18: 16 | C18: 1 | D18: 2 | E18: 0 | F18: 0 | G18: 0 | H18: 68 | I18: 16 | J18: Nível 2 | K18: 1.2. | N18: COBERTURA E PLATATIBANDA | O18: =Referencia.Unidade ->  | P18: =OFFSET(PLQ!$E$12,ROW($P18)-ROW(P$12),0) -> 0 | R18: BDI 1 | S18: 0 | T18: 111989.52 | V18: =IF(OR($A18=0,$A18="S",$A18>CFF!$A$9),"",MAX(V$12:OFFSET(V18,-1,0))+1) -> 3 | W18: FALSE | X18: X | Y18: 0 | Z18: =ROUND(IF(ISNUMBER(R18),R18,IF(LEFT(R18,3)="BDI",HLOOKUP(R18,DADOS!$T$37:$X$38,2,FALSE),0)),15-11*$X$5) -> 0.3021
A19: =CHOOSE(1+LOG(1+2*(J19="Meta")+4*(J19="Nível 2")+8*(J19="Nível 3")+16*(J19="Nível 4")+32*(J19="Serviço"),2),0,1,2,3,4,"S") -> 3 | B19: =IF(OR(A19="S",A19=0),0,IF(ISERROR(I19),H19,SMALL(H19:I19,1))) -> 7 | C19: =IF($A19=1,OFFSET(C19,-1,0)+1,OFFSET(C19,-1,0)) -> 1 | D19: =IF($A19=1,0,IF($A19=2,OFFSET(D19,-1,0)+1,OFFSET(D19,-1,0))) -> 2 | E19: =IF(AND($A19<=2,$A19<>0),0,IF($A19=3,OFFSET(E19,-1,0)+1,OFFSET(E19,-1,0))) -> 1 | F19: =IF(AND($A19<=3,$A19<>0),0,IF($A19=4,OFFSET(F19,-1,0)+1,OFFSET(F19,-1,0))) -> 0 | G19: =IF(AND($A19<=4,$A19<>0),0,IF($A19="S",OFFSET(G19,-1,0)+1,OFFSET(G19,-1,0))) -> 0 | H19: 15 | I19: 7 | J19: Nível 3 | K19: =IF($A19=0,"-",CONCATENATE(C19&".",IF(AND($A$5>=2,$A19>=2),D19&".",""),IF(AND($A$5>=3,$A19>=3),E19&".",""),IF(AND($A$5>=4,$A19>=4),F19&".",""),IF($A19="S",G19&".",""))) -> 1.2.1. | N19: DEMOLIÇÕES E REMOÇÕES | O19: =Referencia.Unidade ->  | P19: =OFFSET(PLQ!$E$12,ROW($P19)-ROW(P$12),0) -> 0 | R19: BDI 1 | S19: =IF($A19="S",IF($Q$10="Preço Unitário (R$)",PO.CustoUnitario,ROUND(PO.CustoUnitario*(1+$Z19),15-13*$X$6)),0) -> 0 | T19: =IF($A19="S",VTOTAL1,IF($A19=0,0,ROUND(SomaAgrup,15-13*$X$7))) -> 6283.6 | U19: =IF($J19="","",IF($N19="","DESCRIÇÃO",IF(AND($J19="Serviço",$O19=""),"UNIDADE",IF($T19<=0,"SEM VALOR",IF(AND($Y19<>"",$Q19>$Y19),"ACIMA REF.",""))))) ->  | V19: =IF(OR($A19=0,$A19="S",$A19>CFF!$A$9),"",MAX(V$12:OFFSET(V19,-1,0))+1) ->  | W19: =IF(AND($J19="Serviço",$M19<>""),IF($L19="",$M19,CONCATENATE($L19,"-",$M19))) -> FALSE | X19: =IF(AND(Fonte<>"",Código<>""),MATCH(Fonte&" "&IF(Fonte="sinapi",SUBSTITUTE(SUBSTITUTE(Código,"/00","/"),"/0","/"),Código),INDIRECT("'[Referência "&_xlnm.Database&".xls]Banco'!$a:$a"),0),"X") -> X | Y19: =IF(Import.Desoneracao="sim",Referencia.Desonerado,Referencia.NaoDesonerado) -> 0 | Z19: =ROUND(IF(ISNUMBER(R19),R19,IF(LEFT(R19,3)="BDI",HLOOKUP(R19,DADOS!$T$37:$X$38,2,FALSE),0)),15-11*$X$5) -> 0.3021
A20: =CHOOSE(1+LOG(1+2*(J20="Meta")+4*(J20="Nível 2")+8*(J20="Nível 3")+16*(J20="Nível 4")+32*(J20="Serviço"),2),0,1,2,3,4,"S") -> S | B20: =IF(OR(A20="S",A20=0),0,IF(ISERROR(I20),H20,SMALL(H20:I20,1))) -> 0 | C20: =IF($A20=1,OFFSET(C20,-1,0)+1,OFFSET(C20,-1,0)) -> 1 | D20: =IF($A20=1,0,IF($A20=2,OFFSET(D20,-1,0)+1,OFFSET(D20,-1,0))) -> 2 | E20: =IF(AND($A20<=2,$A20<>0),0,IF($A20=3,OFFSET(E20,-1,0)+1,OFFSET(E20,-1,0))) -> 1 | F20: =IF(AND($A20<=3,$A20<>0),0,IF($A20=4,OFFSET(F20,-1,0)+1,OFFSET(F20,-1,0))) -> 0 | G20: =IF(AND($A20<=4,$A20<>0),0,IF($A20="S",OFFSET(G20,-1,0)+1,OFFSET(G20,-1,0))) -> 1 | H20: 0 | I20: 0 | J20: Serviço | K20: =IF($A20=0,"-",CONCATENATE(C20&".",IF(AND($A$5>=2,$A20>=2),D20&".",""),IF(AND($A$5>=3,$A20>=3),E20&".",""),IF(AND($A$5>=4,$A20>=4),F20&".",""),IF($A20="S",G20&".",""))) -> 1.2.1.0.1. | L20: SINAPI | M20: 104803 | N20: REMOÇÃO CALHAS E RUFOS, DE FORMA MANUAL, SEM REAPROVEITAMENTO. AF_09/2023 | O20: M | P20: =OFFSET(PLQ!$E$12,ROW($P20)-ROW(P$12),0) -> 120.4 | Q20: 4.65 | R20: BDI 1 | S20: =IF($A20="S",IF($Q$10="Preço Unitário (R$)",PO.CustoUnitario,ROUND(PO.CustoUnitario*(1+$Z20),15-13*$X$6)),0) -> 6.05 | T20: =IF($A20="S",VTOTAL1,IF($A20=0,0,ROUND(SomaAgrup,15-13*$X$7))) -> 728.42 | U20: =IF($J20="","",IF($N20="","DESCRIÇÃO",IF(AND($J20="Serviço",$O20=""),"UNIDADE",IF($T20<=0,"SEM VALOR",IF(AND($Y20<>"",$Q20>$Y20),"ACIMA REF.",""))))) ->  | V20: =IF(OR($A20=0,$A20="S",$A20>CFF!$A$9),"",MAX(V$12:OFFSET(V20,-1,0))+1) ->  | W20: =IF(AND($J20="Serviço",$M20<>""),IF($L20="",$M20,CONCATENATE($L20,"-",$M20))) -> SINAPI-104803 | X20: 7877 | Y20: 4.65 | Z20: =ROUND(IF(ISNUMBER(R20),R20,IF(LEFT(R20,3)="BDI",HLOOKUP(R20,DADOS!$T$37:$X$38,2,FALSE),0)),15-11*$X$5) -> 0.3021
A21: =CHOOSE(1+LOG(1+2*(J21="Meta")+4*(J21="Nível 2")+8*(J21="Nível 3")+16*(J21="Nível 4")+32*(J21="Serviço"),2),0,1,2,3,4,"S") -> S | B21: =IF(OR(A21="S",A21=0),0,IF(ISERROR(I21),H21,SMALL(H21:I21,1))) -> 0 | C21: =IF($A21=1,OFFSET(C21,-1,0)+1,OFFSET(C21,-1,0)) -> 1 | D21: =IF($A21=1,0,IF($A21=2,OFFSET(D21,-1,0)+1,OFFSET(D21,-1,0))) -> 2 | E21: =IF(AND($A21<=2,$A21<>0),0,IF($A21=3,OFFSET(E21,-1,0)+1,OFFSET(E21,-1,0))) -> 1 | F21: =IF(AND($A21<=3,$A21<>0),0,IF($A21=4,OFFSET(F21,-1,0)+1,OFFSET(F21,-1,0))) -> 0 | G21: =IF(AND($A21<=4,$A21<>0),0,IF($A21="S",OFFSET(G21,-1,0)+1,OFFSET(G21,-1,0))) -> 2 | H21: 0 | I21: 0 | J21: Serviço | K21: =IF($A21=0,"-",CONCATENATE(C21&".",IF(AND($A$5>=2,$A21>=2),D21&".",""),IF(AND($A$5>=3,$A21>=3),E21&".",""),IF(AND($A$5>=4,$A21>=4),F21&".",""),IF($A21="S",G21&".",""))) -> 1.2.1.0.2. | L21: SINAPI | M21: 93402 | N21: GUINDAUTO HIDRÁULICO, CAPACIDADE MÁXIMA DE CARGA 3300 KG, MOMENTO MÁXIMO DE CARGA 5,8 TM, ALCANCE MÁXIMO HORIZONTAL 7,60 M, INCLUSIVE CAMINHÃO TOCO PBT 16.000 KG, POTÊNCIA DE 189 CV - CHP DIURNO. AF_03/2016 | O21: CHP | P21: =OFFSET(PLQ!$E$12,ROW($P21)-ROW(P$12),0) -> 3 | Q21: 283.72 | R21: BDI 1 | S21: =IF($A21="S",IF($Q$10="Preço Unitário (R$)",PO.CustoUnitario,ROUND(PO.CustoUnitario*(1+$Z21),15-13*$X$6)),0) -> 369.43 | T21: =IF($A21="S",VTOTAL1,IF($A21=0,0,ROUND(SomaAgrup,15-13*$X$7))) -> 1108.29 | U21: =IF($J21="","",IF($N21="","DESCRIÇÃO",IF(AND($J21="Serviço",$O21=""),"UNIDADE",IF($T21<=0,"SEM VALOR",IF(AND($Y21<>"",$Q21>$Y21),"ACIMA REF.",""))))) ->  | V21: =IF(OR($A21=0,$A21="S",$A21>CFF!$A$9),"",MAX(V$12:OFFSET(V21,-1,0))+1) ->  | W21: =IF(AND($J21="Serviço",$M21<>""),IF($L21="",$M21,CONCATENATE($L21,"-",$M21))) -> SINAPI-93402 | X21: =IF(AND(Fonte<>"",Código<>""),MATCH(Fonte&" "&IF(Fonte="sinapi",SUBSTITUTE(SUBSTITUTE(Código,"/00","/"),"/0","/"),Código),INDIRECT("'[Referência "&_xlnm.Database&".xls]Banco'!$a:$a"),0),"X") -> 7634 | Y21: =IF(Import.Desoneracao="sim",Referencia.Desonerado,Referencia.NaoDesonerado) -> 283.72 | Z21: =ROUND(IF(ISNUMBER(R21),R21,IF(LEFT(R21,3)="BDI",HLOOKUP(R21,DADOS!$T$37:$X$38,2,FALSE),0)),15-11*$X$5) -> 0.3021
A22: =CHOOSE(1+LOG(1+2*(J22="Meta")+4*(J22="Nível 2")+8*(J22="Nível 3")+16*(J22="Nível 4")+32*(J22="Serviço"),2),0,1,2,3,4,"S") -> S | B22: =IF(OR(A22="S",A22=0),0,IF(ISERROR(I22),H22,SMALL(H22:I22,1))) -> 0 | C22: =IF($A22=1,OFFSET(C22,-1,0)+1,OFFSET(C22,-1,0)) -> 1 | D22: =IF($A22=1,0,IF($A22=2,OFFSET(D22,-1,0)+1,OFFSET(D22,-1,0))) -> 2 | E22: =IF(AND($A22<=2,$A22<>0),0,IF($A22=3,OFFSET(E22,-1,0)+1,OFFSET(E22,-1,0))) -> 1 | F22: =IF(AND($A22<=3,$A22<>0),0,IF($A22=4,OFFSET(F22,-1,0)+1,OFFSET(F22,-1,0))) -> 0 | G22: =IF(AND($A22<=4,$A22<>0),0,IF($A22="S",OFFSET(G22,-1,0)+1,OFFSET(G22,-1,0))) -> 3 | H22: 0 | I22: 0 | J22: Serviço | K22: =IF($A22=0,"-",CONCATENATE(C22&".",IF(AND($A$5>=2,$A22>=2),D22&".",""),IF(AND($A$5>=3,$A22>=3),E22&".",""),IF(AND($A$5>=4,$A22>=4),F22&".",""),IF($A22="S",G22&".",""))) -> 1.2.1.0.3. | L22: SINAPI | M22: 97647 | N22: REMOÇÃO DE TELHAS DE FIBROCIMENTO METÁLICA E CERÂMICA, DE FORMA MANUAL, SEM REAPROVEITAMENTO. AF_09/2023 | O22: M2 | P22: =OFFSET(PLQ!$E$12,ROW($P22)-ROW(P$12),0) -> 278.14 | Q22: 3.64 | R22: BDI 1 | S22: =IF($A22="S",IF($Q$10="Preço Unitário (R$)",PO.CustoUnitario,ROUND(PO.CustoUnitario*(1+$Z22),15-13*$X$6)),0) -> 4.74 | T22: =IF($A22="S",VTOTAL1,IF($A22=0,0,ROUND(SomaAgrup,15-13*$X$7))) -> 1318.38 | U22: =IF($J22="","",IF($N22="","DESCRIÇÃO",IF(AND($J22="Serviço",$O22=""),"UNIDADE",IF($T22<=0,"SEM VALOR",IF(AND($Y22<>"",$Q22>$Y22),"ACIMA REF.",""))))) ->  | V22: =IF(OR($A22=0,$A22="S",$A22>CFF!$A$9),"",MAX(V$12:OFFSET(V22,-1,0))+1) ->  | W22: =IF(AND($J22="Serviço",$M22<>""),IF($L22="",$M22,CONCATENATE($L22,"-",$M22))) -> SINAPI-97647 | X22: 7903 | Y22: 3.64 | Z22: =ROUND(IF(ISNUMBER(R22),R22,IF(LEFT(R22,3)="BDI",HLOOKUP(R22,DADOS!$T$37:$X$38,2,FALSE),0)),15-11*$X$5) -> 0.3021
A23: =CHOOSE(1+LOG(1+2*(J23="Meta")+4*(J23="Nível 2")+8*(J23="Nível 3")+16*(J23="Nível 4")+32*(J23="Serviço"),2),0,1,2,3,4,"S") -> S | B23: =IF(OR(A23="S",A23=0),0,IF(ISERROR(I23),H23,SMALL(H23:I23,1))) -> 0 | C23: =IF($A23=1,OFFSET(C23,-1,0)+1,OFFSET(C23,-1,0)) -> 1 | D23: =IF($A23=1,0,IF($A23=2,OFFSET(D23,-1,0)+1,OFFSET(D23,-1,0))) -> 2 | E23: =IF(AND($A23<=2,$A23<>0),0,IF($A23=3,OFFSET(E23,-1,0)+1,OFFSET(E23,-1,0))) -> 1 | F23: =IF(AND($A23<=3,$A23<>0),0,IF($A23=4,OFFSET(F23,-1,0)+1,OFFSET(F23,-1,0))) -> 0 | G23: =IF(AND($A23<=4,$A23<>0),0,IF($A23="S",OFFSET(G23,-1,0)+1,OFFSET(G23,-1,0))) -> 4 | H23: 0 | I23: 0 | J23: Serviço | K23: =IF($A23=0,"-",CONCATENATE(C23&".",IF(AND($A$5>=2,$A23>=2),D23&".",""),IF(AND($A$5>=3,$A23>=3),E23&".",""),IF(AND($A$5>=4,$A23>=4),F23&".",""),IF($A23="S",G23&".",""))) -> 1.2.1.0.4. | L23: SINAPI | M23: 97622 | N23: DEMOLIÇÃO DE ALVENARIA DE BLOCO FURADO, DE FORMA MANUAL, SEM REAPROVEITAMENTO. AF_09/2023 | O23: M3 | P23: =OFFSET(PLQ!$E$12,ROW($P23)-ROW(P$12),0) -> 15.3 | Q23: 58.61 | R23: BDI 1 | S23: =IF($A23="S",IF($Q$10="Preço Unitário (R$)",PO.CustoUnitario,ROUND(PO.CustoUnitario*(1+$Z23),15-13*$X$6)),0) -> 76.32 | T23: =IF($A23="S",VTOTAL1,IF($A23=0,0,ROUND(SomaAgrup,15-13*$X$7))) -> 1167.7 | U23: =IF($J23="","",IF($N23="","DESCRIÇÃO",IF(AND($J23="Serviço",$O23=""),"UNIDADE",IF($T23<=0,"SEM VALOR",IF(AND($Y23<>"",$Q23>$Y23),"ACIMA REF.",""))))) ->  | V23: =IF(OR($A23=0,$A23="S",$A23>CFF!$A$9),"",MAX(V$12:OFFSET(V23,-1,0))+1) ->  | W23: =IF(AND($J23="Serviço",$M23<>""),IF($L23="",$M23,CONCATENATE($L23,"-",$M23))) -> SINAPI-97622 | X23: 7858 | Y23: 58.61 | Z23: =ROUND(IF(ISNUMBER(R23),R23,IF(LEFT(R23,3)="BDI",HLOOKUP(R23,DADOS!$T$37:$X$38,2,FALSE),0)),15-11*$X$5) -> 0.3021
A24: S | B24: 0 | C24: 1 | D24: 2 | E24: 1 | F24: 0 | G24: 5 | H24: 0 | I24: 0 | J24: Serviço | K24: 1.2.1.0.5. | L24: SINAPI | M24: 100209 | N24: TRANSPORTE HORIZONTAL MANUAL, DE BLOCOS CERÂMICOS FURADOS NA HORIZONTAL DE 9X19X19CM (UNIDADE: BLOCOXKM). AF_07/2019 | O24: UNXKM | P24: =OFFSET(PLQ!$E$12,ROW($P24)-ROW(P$12),0) -> 84.7 | Q24: 10.1 | R24: BDI 1 | S24: 13.15 | T24: 1113.81 | V24: =IF(OR($A24=0,$A24="S",$A24>CFF!$A$9),"",MAX(V$12:OFFSET(V24,-1,0))+1) ->  | W24: SINAPI-100209 | X24: =IF(AND(Fonte<>"",Código<>""),MATCH(Fonte&" "&IF(Fonte="sinapi",SUBSTITUTE(SUBSTITUTE(Código,"/00","/"),"/0","/"),Código),INDIRECT("'[Referência "&_xlnm.Database&".xls]Banco'!$a:$a"),0),"X") -> 15244 | Y24: =IF(Import.Desoneracao="sim",Referencia.Desonerado,Referencia.NaoDesonerado) -> 10.1 | Z24: =ROUND(IF(ISNUMBER(R24),R24,IF(LEFT(R24,3)="BDI",HLOOKUP(R24,DADOS!$T$37:$X$38,2,FALSE),0)),15-11*$X$5) -> 0.3021
A25: S | B25: 0 | C25: 1 | D25: 2 | E25: 1 | F25: 0 | G25: 6 | H25: 0 | I25: 0 | J25: Serviço | K25: 1.2.1.0.6. | L25: SINAPI | M25: 100233 | N25: TRANSPORTE VERTICAL MANUAL, 1 PAVIMENTO, DE BLOCOS CERÂMICOS FURADOS NA HORIZONTAL DE 9X19X19CM (UNIDADE: BLOCO). AF_07/2019 | O25: UN | P25: =OFFSET(PLQ!$E$12,ROW($P25)-ROW(P$12),0) -> 3388 | Q25: 0.19 | R25: BDI 1 | S25: 0.25 | T25: 847 | V25: =IF(OR($A25=0,$A25="S",$A25>CFF!$A$9),"",MAX(V$12:OFFSET(V25,-1,0))+1) ->  | W25: SINAPI-100233 | X25: =IF(AND(Fonte<>"",Código<>""),MATCH(Fonte&" "&IF(Fonte="sinapi",SUBSTITUTE(SUBSTITUTE(Código,"/00","/"),"/0","/"),Código),INDIRECT("'[Referência "&_xlnm.Database&".xls]Banco'!$a:$a"),0),"X") -> 15289 | Y25: =IF(Import.Desoneracao="sim",Referencia.Desonerado,Referencia.NaoDesonerado) -> 0.19 | Z25: =ROUND(IF(ISNUMBER(R25),R25,IF(LEFT(R25,3)="BDI",HLOOKUP(R25,DADOS!$T$37:$X$38,2,FALSE),0)),15-11*$X$5) -> 0.3021
A26: =CHOOSE(1+LOG(1+2*(J26="Meta")+4*(J26="Nível 2")+8*(J26="Nível 3")+16*(J26="Nível 4")+32*(J26="Serviço"),2),0,1,2,3,4,"S") -> 3 | B26: =IF(OR(A26="S",A26=0),0,IF(ISERROR(I26),H26,SMALL(H26:I26,1))) -> 8 | C26: =IF($A26=1,OFFSET(C26,-1,0)+1,OFFSET(C26,-1,0)) -> 1 | D26: =IF($A26=1,0,IF($A26=2,OFFSET(D26,-1,0)+1,OFFSET(D26,-1,0))) -> 2 | E26: =IF(AND($A26<=2,$A26<>0),0,IF($A26=3,OFFSET(E26,-1,0)+1,OFFSET(E26,-1,0))) -> 2 | F26: =IF(AND($A26<=3,$A26<>0),0,IF($A26=4,OFFSET(F26,-1,0)+1,OFFSET(F26,-1,0))) -> 0 | G26: =IF(AND($A26<=4,$A26<>0),0,IF($A26="S",OFFSET(G26,-1,0)+1,OFFSET(G26,-1,0))) -> 0 | H26: 8 | I26: 117 | J26: Nível 3 | K26: =IF($A26=0,"-",CONCATENATE(C26&".",IF(AND($A$5>=2,$A26>=2),D26&".",""),IF(AND($A$5>=3,$A26>=3),E26&".",""),IF(AND($A$5>=4,$A26>=4),F26&".",""),IF($A26="S",G26&".",""))) -> 1.2.2. | N26: EXECUÇÃO DA COBERTURA | O26: =Referencia.Unidade ->  | P26: =OFFSET(PLQ!$E$12,ROW($P26)-ROW(P$12),0) -> 0 | R26: BDI 1 | S26: =IF($A26="S",IF($Q$10="Preço Unitário (R$)",PO.CustoUnitario,ROUND(PO.CustoUnitario*(1+$Z26),15-13*$X$6)),0) -> 0 | T26: =IF($A26="S",VTOTAL1,IF($A26=0,0,ROUND(SomaAgrup,15-13*$X$7))) -> 105705.92 | U26: =IF($J26="","",IF($N26="","DESCRIÇÃO",IF(AND($J26="Serviço",$O26=""),"UNIDADE",IF($T26<=0,"SEM VALOR",IF(AND($Y26<>"",$Q26>$Y26),"ACIMA REF.",""))))) ->  | V26: =IF(OR($A26=0,$A26="S",$A26>CFF!$A$9),"",MAX(V$12:OFFSET(V26,-1,0))+1) ->  | W26: =IF(AND($J26="Serviço",$M26<>""),IF($L26="",$M26,CONCATENATE($L26,"-",$M26))) -> FALSE | X26: =IF(AND(Fonte<>"",Código<>""),MATCH(Fonte&" "&IF(Fonte="sinapi",SUBSTITUTE(SUBSTITUTE(Código,"/00","/"),"/0","/"),Código),INDIRECT("'[Referência "&_xlnm.Database&".xls]Banco'!$a:$a"),0),"X") -> X | Y26: =IF(Import.Desoneracao="sim",Referencia.Desonerado,Referencia.NaoDesonerado) -> 0 | Z26: =ROUND(IF(ISNUMBER(R26),R26,IF(LEFT(R26,3)="BDI",HLOOKUP(R26,DADOS!$T$37:$X$38,2,FALSE),0)),15-11*$X$5) -> 0.3021
A27: S | B27: 0 | C27: 1 | D27: 2 | E27: 2 | F27: 0 | G27: 1 | H27: 0 | I27: 0 | J27: Serviço | K27: 1.2.2.0.1. | L27: COTAÇÃO | M27: RCV03 | N27: PROLONGAMENTO DE 0,50M DE TRELIÇA METÁLICA (PERFIL U 75X38 #3,00MM) - FORNECIMENTO E INSTALAÇÃO | O27: UN | P27: =OFFSET(PLQ!$E$12,ROW($P27)-ROW(P$12),0) -> 18 | Q27: 195 | R27: BDI 1 | S27: 253.91 | T27: 4570.38 | V27: =IF(OR($A27=0,$A27="S",$A27>CFF!$A$9),"",MAX(V$12:OFFSET(V27,-1,0))+1) ->  | W27: COTAÇÃO-RCV03 | X27: 19 | Y27: 195 | Z27: =ROUND(IF(ISNUMBER(R27),R27,IF(LEFT(R27,3)="BDI",HLOOKUP(R27,DADOS!$T$37:$X$38,2,FALSE),0)),15-11*$X$5) -> 0.3021
A28: =CHOOSE(1+LOG(1+2*(J28="Meta")+4*(J28="Nível 2")+8*(J28="Nível 3")+16*(J28="Nível 4")+32*(J28="Serviço"),2),0,1,2,3,4,"S") -> S | B28: =IF(OR(A28="S",A28=0),0,IF(ISERROR(I28),H28,SMALL(H28:I28,1))) -> 0 | C28: =IF($A28=1,OFFSET(C28,-1,0)+1,OFFSET(C28,-1,0)) -> 1 | D28: =IF($A28=1,0,IF($A28=2,OFFSET(D28,-1,0)+1,OFFSET(D28,-1,0))) -> 2 | E28: =IF(AND($A28<=2,$A28<>0),0,IF($A28=3,OFFSET(E28,-1,0)+1,OFFSET(E28,-1,0))) -> 2 | F28: =IF(AND($A28<=3,$A28<>0),0,IF($A28=4,OFFSET(F28,-1,0)+1,OFFSET(F28,-1,0))) -> 0 | G28: =IF(AND($A28<=4,$A28<>0),0,IF($A28="S",OFFSET(G28,-1,0)+1,OFFSET(G28,-1,0))) -> 2 | H28: 0 | I28: 0 | J28: Serviço | K28: =IF($A28=0,"-",CONCATENATE(C28&".",IF(AND($A$5>=2,$A28>=2),D28&".",""),IF(AND($A$5>=3,$A28>=3),E28&".",""),IF(AND($A$5>=4,$A28>=4),F28&".",""),IF($A28="S",G28&".",""))) -> 1.2.2.0.2. | L28: SINAPI | M28: 92580 | N28: TRAMA DE AÇO COMPOSTA POR TERÇAS PARA TELHADOS DE ATÉ 2 ÁGUAS PARA TELHA ONDULADA DE FIBROCIMENTO, METÁLICA, PLÁSTICA OU TERMOACÚSTICA, INCLUSO TRANSPORTE VERTICAL. AF_07/2019 | O28: M2 | P28: =OFFSET(PLQ!$E$12,ROW($P28)-ROW(P$12),0) -> 67.46 | Q28: 56.43 | R28: BDI 1 | S28: =IF($A28="S",IF($Q$10="Preço Unitário (R$)",PO.CustoUnitario,ROUND(PO.CustoUnitario*(1+$Z28),15-13*$X$6)),0) -> 73.48 | T28: =IF($A28="S",VTOTAL1,IF($A28=0,0,ROUND(SomaAgrup,15-13*$X$7))) -> 4956.96 | U28: =IF($J28="","",IF($N28="","DESCRIÇÃO",IF(AND($J28="Serviço",$O28=""),"UNIDADE",IF($T28<=0,"SEM VALOR",IF(AND($Y28<>"",$Q28>$Y28),"ACIMA REF.",""))))) ->  | V28: =IF(OR($A28=0,$A28="S",$A28>CFF!$A$9),"",MAX(V$12:OFFSET(V28,-1,0))+1) ->  | W28: =IF(AND($J28="Serviço",$M28<>""),IF($L28="",$M28,CONCATENATE($L28,"-",$M28))) -> SINAPI-92580 | X28: =IF(AND(Fonte<>"",Código<>""),MATCH(Fonte&" "&IF(Fonte="sinapi",SUBSTITUTE(SUBSTITUTE(Código,"/00","/"),"/0","/"),Código),INDIRECT("'[Referência "&_xlnm.Database&".xls]Banco'!$a:$a"),0),"X") -> 9732 | Y28: =IF(Import.Desoneracao="sim",Referencia.Desonerado,Referencia.NaoDesonerado) -> 56.43 | Z28: =ROUND(IF(ISNUMBER(R28),R28,IF(LEFT(R28,3)="BDI",HLOOKUP(R28,DADOS!$T$37:$X$38,2,FALSE),0)),15-11*$X$5) -> 0.3021
A29: =CHOOSE(1+LOG(1+2*(J29="Meta")+4*(J29="Nível 2")+8*(J29="Nível 3")+16*(J29="Nível 4")+32*(J29="Serviço"),2),0,1,2,3,4,"S") -> S | B29: =IF(OR(A29="S",A29=0),0,IF(ISERROR(I29),H29,SMALL(H29:I29,1))) -> 0 | C29: =IF($A29=1,OFFSET(C29,-1,0)+1,OFFSET(C29,-1,0)) -> 1 | D29: =IF($A29=1,0,IF($A29=2,OFFSET(D29,-1,0)+1,OFFSET(D29,-1,0))) -> 2 | E29: =IF(AND($A29<=2,$A29<>0),0,IF($A29=3,OFFSET(E29,-1,0)+1,OFFSET(E29,-1,0))) -> 2 | F29: =IF(AND($A29<=3,$A29<>0),0,IF($A29=4,OFFSET(F29,-1,0)+1,OFFSET(F29,-1,0))) -> 0 | G29: =IF(AND($A29<=4,$A29<>0),0,IF($A29="S",OFFSET(G29,-1,0)+1,OFFSET(G29,-1,0))) -> 3 | H29: 0 | I29: 0 | J29: Serviço | K29: =IF($A29=0,"-",CONCATENATE(C29&".",IF(AND($A$5>=2,$A29>=2),D29&".",""),IF(AND($A$5>=3,$A29>=3),E29&".",""),IF(AND($A$5>=4,$A29>=4),F29&".",""),IF($A29="S",G29&".",""))) -> 1.2.2.0.3. | L29: COMPOSIÇÃO | M29: SINAPI94216ADAPTADA | N29: TELHAMENTO COM TELHA TERMOISOLANTE EM AÇO GALVALUME 0,50MM, FACE SUPERIOR TRAPEZOIDAL E FACE INFERIOR PLANA, NÚCLEO EM POLIISOCIANUTO (PIR) 50MM, COM ATÉ 2 ÁGUAS, INCLUSO IÇAMENTO. AF_07/2019 | O29: M2 | P29: =OFFSET(PLQ!$E$12,ROW($P29)-ROW(P$12),0) -> 326.1 | Q29: 187.25 | R29: BDI 1 | S29: =IF($A29="S",IF($Q$10="Preço Unitário (R$)",PO.CustoUnitario,ROUND(PO.CustoUnitario*(1+$Z29),15-13*$X$6)),0) -> 243.82 | T29: =IF($A29="S",VTOTAL1,IF($A29=0,0,ROUND(SomaAgrup,15-13*$X$7))) -> 79509.7 | U29: =IF($J29="","",IF($N29="","DESCRIÇÃO",IF(AND($J29="Serviço",$O29=""),"UNIDADE",IF($T29<=0,"SEM VALOR",IF(AND($Y29<>"",$Q29>$Y29),"ACIMA REF.",""))))) ->  | V29: =IF(OR($A29=0,$A29="S",$A29>CFF!$A$9),"",MAX(V$12:OFFSET(V29,-1,0))+1) ->  | W29: =IF(AND($J29="Serviço",$M29<>""),IF($L29="",$M29,CONCATENATE($L29,"-",$M29))) -> COMPOSIÇÃO-SINAPI94216ADAPTADA | X29: 7 | Y29: 187.25 | Z29: =ROUND(IF(ISNUMBER(R29),R29,IF(LEFT(R29,3)="BDI",HLOOKUP(R29,DADOS!$T$37:$X$38,2,FALSE),0)),15-11*$X$5) -> 0.3021
A30: S | B30: 0 | C30: 1 | D30: 2 | E30: 2 | F30: 0 | G30: 4 | H30: 0 | I30: 0 | J30: Serviço | K30: 1.2.2.0.4. | L30: SINAPI | M30: 100326 | N30: CUMEEIRA NORMAL PARA TELHA TRAPEZOIDAL DE AÇO, E = 0,5 MM, INCLUSO ACESSÓRIOS DE FIXAÇÃO E IÇAMENTO. AF_07/2019 | O30: M | P30: =OFFSET(PLQ!$E$12,ROW($P30)-ROW(P$12),0) -> 24.42 | Q30: 93.19 | R30: BDI 1 | S30: 121.34 | T30: 2963.12 | U30: ACIMA REF. | V30: =IF(OR($A30=0,$A30="S",$A30>CFF!$A$9),"",MAX(V$12:OFFSET(V30,-1,0))+1) ->  | W30: SINAPI-100326 | X30: 15050 | Y30: 0 | Z30: =ROUND(IF(ISNUMBER(R30),R30,IF(LEFT(R30,3)="BDI",HLOOKUP(R30,DADOS!$T$37:$X$38,2,FALSE),0)),15-11*$X$5) -> 0.3021
A31: S | B31: 0 | C31: 1 | D31: 2 | E31: 2 | F31: 0 | G31: 5 | H31: 0 | I31: 0 | J31: Serviço | K31: 1.2.2.0.5. | L31: SINAPI | M31: 94229 | N31: CALHA EM CHAPA DE AÇO GALVANIZADO NÚMERO 24, DESENVOLVIMENTO DE 100 CM, INCLUSO TRANSPORTE VERTICAL. AF_07/2019 | O31: M | P31: =OFFSET(PLQ!$E$12,ROW($P31)-ROW(P$12),0) -> 48.84 | Q31: 193.68 | R31: BDI 1 | S31: 252.19 | T31: 12316.96 | V31: =IF(OR($A31=0,$A31="S",$A31>CFF!$A$9),"",MAX(V$12:OFFSET(V31,-1,0))+1) ->  | W31: SINAPI-94229 | X31: 15045 | Y31: 193.68 | Z31: =ROUND(IF(ISNUMBER(R31),R31,IF(LEFT(R31,3)="BDI",HLOOKUP(R31,DADOS!$T$37:$X$38,2,FALSE),0)),15-11*$X$5) -> 0.3021
A32: S | B32: 0 | C32: 1 | D32: 2 | E32: 2 | F32: 0 | G32: 6 | H32: 0 | I32: 0 | J32: Serviço | K32: 1.2.2.0.6. | L32: SINAPI | M32: 89585 | N32: JOELHO 45 GRAUS, PVC, SERIE R, ÁGUA PLUVIAL, DN 100 MM, JUNTA ELÁSTICA, FORNECIDO E INSTALADO EM CONDUTORES VERTICAIS DE ÁGUAS PLUVIAIS. AF_06/2022 | O32: UN | P32: =OFFSET(PLQ!$E$12,ROW($P32)-ROW(P$12),0) -> 16 | Q32: 48.41 | R32: BDI 1 | S32: 63.03 | T32: 1008.48 | V32: =IF(OR($A32=0,$A32="S",$A32>CFF!$A$9),"",MAX(V$12:OFFSET(V32,-1,0))+1) ->  | W32: SINAPI-89585 | X32: 11842 | Y32: 48.41 | Z32: =ROUND(IF(ISNUMBER(R32),R32,IF(LEFT(R32,3)="BDI",HLOOKUP(R32,DADOS!$T$37:$X$38,2,FALSE),0)),15-11*$X$5) -> 0.3021
A33: S | B33: 0 | C33: 1 | D33: 2 | E33: 2 | F33: 0 | G33: 7 | H33: 0 | I33: 0 | J33: Serviço | K33: 1.2.2.0.7. | L33: SINAPI | M33: 89669 | N33: LUVA SIMPLES, PVC, SERIE R, ÁGUA PLUVIAL, DN 100 MM, JUNTA ELÁSTICA, FORNECIDO E INSTALADO EM CONDUTORES VERTICAIS DE ÁGUAS PLUVIAIS. AF_06/2022 | O33: UN | P33: =OFFSET(PLQ!$E$12,ROW($P33)-ROW(P$12),0) -> 8 | Q33: 36.51 | R33: BDI 1 | S33: 47.54 | T33: 380.32 | V33: =IF(OR($A33=0,$A33="S",$A33>CFF!$A$9),"",MAX(V$12:OFFSET(V33,-1,0))+1) ->  | W33: SINAPI-89669 | X33: 11877 | Y33: 36.51 | Z33: =ROUND(IF(ISNUMBER(R33),R33,IF(LEFT(R33,3)="BDI",HLOOKUP(R33,DADOS!$T$37:$X$38,2,FALSE),0)),15-11*$X$5) -> 0.3021
A34: =CHOOSE(1+LOG(1+2*(J34="Meta")+4*(J34="Nível 2")+8*(J34="Nível 3")+16*(J34="Nível 4")+32*(J34="Serviço"),2),0,1,2,3,4,"S") -> 2 | B34: =IF(OR(A34="S",A34=0),0,IF(ISERROR(I34),H34,SMALL(H34:I34,1))) -> 15 | C34: =IF($A34=1,OFFSET(C34,-1,0)+1,OFFSET(C34,-1,0)) -> 1 | D34: =IF($A34=1,0,IF($A34=2,OFFSET(D34,-1,0)+1,OFFSET(D34,-1,0))) -> 3 | E34: =IF(AND($A34<=2,$A34<>0),0,IF($A34=3,OFFSET(E34,-1,0)+1,OFFSET(E34,-1,0))) -> 0 | F34: =IF(AND($A34<=3,$A34<>0),0,IF($A34=4,OFFSET(F34,-1,0)+1,OFFSET(F34,-1,0))) -> 0 | G34: =IF(AND($A34<=4,$A34<>0),0,IF($A34="S",OFFSET(G34,-1,0)+1,OFFSET(G34,-1,0))) -> 0 | H34: 52 | I34: 15 | J34: Nível 2 | K34: =IF($A34=0,"-",CONCATENATE(C34&".",IF(AND($A$5>=2,$A34>=2),D34&".",""),IF(AND($A$5>=3,$A34>=3),E34&".",""),IF(AND($A$5>=4,$A34>=4),F34&".",""),IF($A34="S",G34&".",""))) -> 1.3. | N34: REMOÇÃO DOS REVESTIMENTOS | O34: =Referencia.Unidade ->  | P34: =OFFSET(PLQ!$E$12,ROW($P34)-ROW(P$12),0) -> 0 | R34: BDI 1 | S34: =IF($A34="S",IF($Q$10="Preço Unitário (R$)",PO.CustoUnitario,ROUND(PO.CustoUnitario*(1+$Z34),15-13*$X$6)),0) -> 0 | T34: =IF($A34="S",VTOTAL1,IF($A34=0,0,ROUND(SomaAgrup,15-13*$X$7))) -> 5977.33 | U34: =IF($J34="","",IF($N34="","DESCRIÇÃO",IF(AND($J34="Serviço",$O34=""),"UNIDADE",IF($T34<=0,"SEM VALOR",IF(AND($Y34<>"",$Q34>$Y34),"ACIMA REF.",""))))) ->  | V34: =IF(OR($A34=0,$A34="S",$A34>CFF!$A$9),"",MAX(V$12:OFFSET(V34,-1,0))+1) -> 4 | W34: =IF(AND($J34="Serviço",$M34<>""),IF($L34="",$M34,CONCATENATE($L34,"-",$M34))) -> FALSE | X34: =IF(AND(Fonte<>"",Código<>""),MATCH(Fonte&" "&IF(Fonte="sinapi",SUBSTITUTE(SUBSTITUTE(Código,"/00","/"),"/0","/"),Código),INDIRECT("'[Referência "&_xlnm.Database&".xls]Banco'!$a:$a"),0),"X") -> X | Y34: =IF(Import.Desoneracao="sim",Referencia.Desonerado,Referencia.NaoDesonerado) -> 0 | Z34: =ROUND(IF(ISNUMBER(R34),R34,IF(LEFT(R34,3)="BDI",HLOOKUP(R34,DADOS!$T$37:$X$38,2,FALSE),0)),15-11*$X$5) -> 0.3021
A35: 3 | B35: 9 | C35: 1 | D35: 3 | E35: 1 | F35: 0 | G35: 0 | H35: 14 | I35: 9 | J35: Nível 3 | K35: 1.3.1. | N35: PAREDE | O35: =Referencia.Unidade ->  | P35: =OFFSET(PLQ!$E$12,ROW($P35)-ROW(P$12),0) -> 0 | R35: BDI 1 | S35: 0 | T35: 4282.43 | V35: =IF(OR($A35=0,$A35="S",$A35>CFF!$A$9),"",MAX(V$12:OFFSET(V35,-1,0))+1) ->  | W35: FALSE | X35: X | Y35: =IF(Import.Desoneracao="sim",Referencia.Desonerado,Referencia.NaoDesonerado) -> 0 | Z35: =ROUND(IF(ISNUMBER(R35),R35,IF(LEFT(R35,3)="BDI",HLOOKUP(R35,DADOS!$T$37:$X$38,2,FALSE),0)),15-11*$X$5) -> 0.3021
A36: 4 | B36: 5 | C36: 1 | D36: 3 | E36: 1 | F36: 1 | G36: 0 | H36: 8 | I36: 5 | J36: Nível 4 | K36: 1.3.1.1. | N36: INTERNO | O36: =Referencia.Unidade ->  | P36: =OFFSET(PLQ!$E$12,ROW($P36)-ROW(P$12),0) -> 0 | R36: BDI 1 | S36: 0 | T36: 2162.65 | V36: =IF(OR($A36=0,$A36="S",$A36>CFF!$A$9),"",MAX(V$12:OFFSET(V36,-1,0))+1) ->  | W36: FALSE | X36: X | Y36: =IF(Import.Desoneracao="sim",Referencia.Desonerado,Referencia.NaoDesonerado) -> 0 | Z36: =ROUND(IF(ISNUMBER(R36),R36,IF(LEFT(R36,3)="BDI",HLOOKUP(R36,DADOS!$T$37:$X$38,2,FALSE),0)),15-11*$X$5) -> 0.3021
A37: S | B37: 0 | C37: 1 | D37: 3 | E37: 1 | F37: 1 | G37: 1 | H37: 0 | I37: 0 | J37: Serviço | K37: 1.3.1.1.1. | L37: SINAPI | M37: 97631 | N37: DEMOLIÇÃO DE ARGAMASSAS, DE FORMA MANUAL, SEM REAPROVEITAMENTO. AF_09/2023 | O37: M2 | P37: =OFFSET(PLQ!$E$12,ROW($P37)-ROW(P$12),0) -> 105.68 | Q37: 11.74 | R37: BDI 1 | S37: 15.29 | T37: 1615.85 | V37: =IF(OR($A37=0,$A37="S",$A37>CFF!$A$9),"",MAX(V$12:OFFSET(V37,-1,0))+1) ->  | W37: SINAPI-97631 | X37: 7863 | Y37: 11.74 | Z37: =ROUND(IF(ISNUMBER(R37),R37,IF(LEFT(R37,3)="BDI",HLOOKUP(R37,DADOS!$T$37:$X$38,2,FALSE),0)),15-11*$X$5) -> 0.3021
A38: S | B38: 0 | C38: 1 | D38: 3 | E38: 1 | F38: 1 | G38: 2 | H38: 0 | I38: 0 | J38: Serviço | K38: 1.3.1.1.2. | L38: SINAPI | M38: 97634 | N38: DEMOLIÇÃO DE REVESTIMENTO CERÂMICO, DE FORMA MECANIZADA COM MARTELETE, SEM REAPROVEITAMENTO. AF_09/2023 | O38: M2 | P38: =OFFSET(PLQ!$E$12,ROW($P38)-ROW(P$12),0) -> 22.33 | Q38: 8.21 | R38: BDI 1 | S38: 10.69 | T38: 238.71 | V38: =IF(OR($A38=0,$A38="S",$A38>CFF!$A$9),"",MAX(V$12:OFFSET(V38,-1,0))+1) ->  | W38: =IF(AND($J38="Serviço",#REF!<>""),IF(#REF!="",#REF!,CONCATENATE(#REF!,"-",#REF!))) ->  | X38: =IF(AND(Fonte<>"",Código<>""),MATCH(Fonte&" "&IF(Fonte="sinapi",SUBSTITUTE(SUBSTITUTE(Código,"/00","/"),"/0","/"),Código),INDIRECT("'[Referência "&_xlnm.Database&".xls]Banco'!$a:$a"),0),"X") -> 7873 | Y38: =IF(Import.Desoneracao="sim",Referencia.Desonerado,Referencia.NaoDesonerado) -> 8.21 | Z38: =ROUND(IF(ISNUMBER(R38),R38,IF(LEFT(R38,3)="BDI",HLOOKUP(R38,DADOS!$T$37:$X$38,2,FALSE),0)),15-11*$X$5) -> 0.3021
A39: =CHOOSE(1+LOG(1+2*(J39="Meta")+4*(J39="Nível 2")+8*(J39="Nível 3")+16*(J39="Nível 4")+32*(J39="Serviço"),2),0,1,2,3,4,"S") -> S | B39: =IF(OR(A39="S",A39=0),0,IF(ISERROR(I39),H39,SMALL(H39:I39,1))) -> 0 | C39: =IF($A39=1,OFFSET(C39,-1,0)+1,OFFSET(C39,-1,0)) -> 1 | D39: =IF($A39=1,0,IF($A39=2,OFFSET(D39,-1,0)+1,OFFSET(D39,-1,0))) -> 3 | E39: =IF(AND($A39<=2,$A39<>0),0,IF($A39=3,OFFSET(E39,-1,0)+1,OFFSET(E39,-1,0))) -> 1 | F39: =IF(AND($A39<=3,$A39<>0),0,IF($A39=4,OFFSET(F39,-1,0)+1,OFFSET(F39,-1,0))) -> 1 | G39: =IF(AND($A39<=4,$A39<>0),0,IF($A39="S",OFFSET(G39,-1,0)+1,OFFSET(G39,-1,0))) -> 3 | H39: 0 | I39: 0 | J39: Serviço | K39: =IF($A39=0,"-",CONCATENATE(C39&".",IF(AND($A$5>=2,$A39>=2),D39&".",""),IF(AND($A$5>=3,$A39>=3),E39&".",""),IF(AND($A$5>=4,$A39>=4),F39&".",""),IF($A39="S",G39&".",""))) -> 1.3.1.1.3. | L39: COMPOSIÇÃO | M39: CONSORTE04 | N39: REMOÇÃO DE PAINEL EM GRANITO COM REAPROVEITAMENTO | O39: M2 | P39: =OFFSET(PLQ!$E$12,ROW($P39)-ROW(P$12),0) -> 9 | Q39: 25 | R39: BDI 1 | S39: =IF($A39="S",IF($Q$10="Preço Unitário (R$)",PO.CustoUnitario,ROUND(PO.CustoUnitario*(1+$Z39),15-13*$X$6)),0) -> 32.55 | T39: =IF($A39="S",VTOTAL1,IF($A39=0,0,ROUND(SomaAgrup,15-13*$X$7))) -> 292.95 | U39: =IF($J39="","",IF($N39="","DESCRIÇÃO",IF(AND($J39="Serviço",$O39=""),"UNIDADE",IF($T39<=0,"SEM VALOR",IF(AND($Y39<>"",$Q39>$Y39),"ACIMA REF.",""))))) -> ACIMA REF. | V39: =IF(OR($A39=0,$A39="S",$A39>CFF!$A$9),"",MAX(V$12:OFFSET(V39,-1,0))+1) ->  | W39: =IF(AND($J39="Serviço",$M39<>""),IF($L39="",$M39,CONCATENATE($L39,"-",$M39))) -> COMPOSIÇÃO-CONSORTE04 | X39: =IF(AND(Fonte<>"",Código<>""),MATCH(Fonte&" "&IF(Fonte="sinapi",SUBSTITUTE(SUBSTITUTE(Código,"/00","/"),"/0","/"),Código),INDIRECT("'[Referência "&_xlnm.Database&".xls]Banco'!$a:$a"),0),"X") ->  | Y39: =IF(Import.Desoneracao="sim",Referencia.Desonerado,Referencia.NaoDesonerado) -> 0 | Z39: =ROUND(IF(ISNUMBER(R39),R39,IF(LEFT(R39,3)="BDI",HLOOKUP(R39,DADOS!$T$37:$X$38,2,FALSE),0)),15-11*$X$5) -> 0.3021
A40: S | B40: 0 | C40: 1 | D40: 3 | E40: 1 | F40: 1 | G40: 4 | H40: 0 | I40: 0 | J40: Serviço | K40: 1.3.1.1.4. | L40: COMPOSIÇÃO | M40: SINAPI100209ADAPTADA | N40: TRANSPORTE MANUAL DE REVESTIMENTOS ARGAMASSADOS REMOVIDOS COM CARRINHO DE MÃO 45L - INCLUSO CARGA E DESCARGA | O40: M3XKM | P40: =OFFSET(PLQ!$E$12,ROW($P40)-ROW(P$12),0) -> 0.08 | Q40: 145.34 | R40: BDI 1 | S40: =IF($A40="S",IF($Q$10="Preço Unitário (R$)",PO.CustoUnitario,ROUND(PO.CustoUnitario*(1+$Z40),15-13*$X$6)),0) -> 189.25 | T40: =IF($A40="S",VTOTAL1,IF($A40=0,0,ROUND(SomaAgrup,15-13*$X$7))) -> 15.14 | V40: =IF(OR($A40=0,$A40="S",$A40>CFF!$A$9),"",MAX(V$12:OFFSET(V40,-1,0))+1) ->  | W40: =IF(AND($J40="Serviço",$M40<>""),IF($L40="",$M40,CONCATENATE($L40,"-",$M40))) -> COMPOSIÇÃO-SINAPI100209ADAPTADA | X40: =IF(AND(Fonte<>"",Código<>""),MATCH(Fonte&" "&IF(Fonte="sinapi",SUBSTITUTE(SUBSTITUTE(Código,"/00","/"),"/0","/"),Código),INDIRECT("'[Referência "&_xlnm.Database&".xls]Banco'!$a:$a"),0),"X") -> 12 | Y40: =IF(Import.Desoneracao="sim",Referencia.Desonerado,Referencia.NaoDesonerado) -> 145.34 | Z40: =ROUND(IF(ISNUMBER(R40),R40,IF(LEFT(R40,3)="BDI",HLOOKUP(R40,DADOS!$T$37:$X$38,2,FALSE),0)),15-11*$X$5) -> 0.3021
A41: =CHOOSE(1+LOG(1+2*(J41="Meta")+4*(J41="Nível 2")+8*(J41="Nível 3")+16*(J41="Nível 4")+32*(J41="Serviço"),2),0,1,2,3,4,"S") -> 4 | B41: =IF(OR(A41="S",A41=0),0,IF(ISERROR(I41),H41,SMALL(H41:I41,1))) -> 3 | C41: =IF($A41=1,OFFSET(C41,-1,0)+1,OFFSET(C41,-1,0)) -> 1 | D41: =IF($A41=1,0,IF($A41=2,OFFSET(D41,-1,0)+1,OFFSET(D41,-1,0))) -> 3 | E41: =IF(AND($A41<=2,$A41<>0),0,IF($A41=3,OFFSET(E41,-1,0)+1,OFFSET(E41,-1,0))) -> 1 | F41: =IF(AND($A41<=3,$A41<>0),0,IF($A41=4,OFFSET(F41,-1,0)+1,OFFSET(F41,-1,0))) -> 2 | G41: =IF(AND($A41<=4,$A41<>0),0,IF($A41="S",OFFSET(G41,-1,0)+1,OFFSET(G41,-1,0))) -> 0 | H41: 3 | J41: Nível 4 | K41: =IF($A41=0,"-",CONCATENATE(C41&".",IF(AND($A$5>=2,$A41>=2),D41&".",""),IF(AND($A$5>=3,$A41>=3),E41&".",""),IF(AND($A$5>=4,$A41>=4),F41&".",""),IF($A41="S",G41&".",""))) -> 1.3.1.2. | N41: EXTERNO | O41: =Referencia.Unidade ->  | P41: =OFFSET(PLQ!$E$12,ROW($P41)-ROW(P$12),0) -> 0 | R41: BDI 1 | S41: 0 | T41: 2119.78 | U41: =IF($J41="","",IF($N41="","DESCRIÇÃO",IF(AND($J41="Serviço",$O41=""),"UNIDADE",IF($T41<=0,"SEM VALOR",IF(AND($Y41<>"",$Q41>$Y41),"ACIMA REF.",""))))) ->  | V41: =IF(OR($A41=0,$A41="S",$A41>CFF!$A$9),"",MAX(V$12:OFFSET(V41,-1,0))+1) ->  | W41: =IF(AND($J41="Serviço",$M41<>""),IF($L41="",$M41,CONCATENATE($L41,"-",$M41))) -> FALSE | X41: X | Y41: =IF(Import.Desoneracao="sim",Referencia.Desonerado,Referencia.NaoDesonerado) -> 0 | Z41: =ROUND(IF(ISNUMBER(R41),R41,IF(LEFT(R41,3)="BDI",HLOOKUP(R41,DADOS!$T$37:$X$38,2,FALSE),0)),15-11*$X$5) -> 0.3021
A42: S | B42: 0 | C42: 1 | D42: 3 | E42: 1 | F42: 2 | G42: 1 | H42: 0 | I42: 0 | J42: Serviço | K42: 1.3.1.2.1. | L42: SINAPI | M42: 97631 | N42: DEMOLIÇÃO DE ARGAMASSAS, DE FORMA MANUAL, SEM REAPROVEITAMENTO. AF_09/2023 | O42: M2 | P42: =OFFSET(PLQ!$E$12,ROW($P42)-ROW(P$12),0) -> 137.4 | Q42: 11.74 | R42: BDI 1 | S42: 15.29 | T42: 2100.85 | V42: =IF(OR($A42=0,$A42="S",$A42>CFF!$A$9),"",MAX(V$12:OFFSET(V42,-1,0))+1) ->  | W42: SINAPI-97631 | X42: 7863 | Y42: =IF(Import.Desoneracao="sim",Referencia.Desonerado,Referencia.NaoDesonerado) -> 11.74 | Z42: =ROUND(IF(ISNUMBER(R42),R42,IF(LEFT(R42,3)="BDI",HLOOKUP(R42,DADOS!$T$37:$X$38,2,FALSE),0)),15-11*$X$5) -> 0.3021
A43: =CHOOSE(1+LOG(1+2*(J43="Meta")+4*(J43="Nível 2")+8*(J43="Nível 3")+16*(J43="Nível 4")+32*(J43="Serviço"),2),0,1,2,3,4,"S") -> S | B43: =IF(OR(A43="S",A43=0),0,IF(ISERROR(I43),H43,SMALL(H43:I43,1))) -> 0 | C43: =IF($A43=1,OFFSET(C43,-1,0)+1,OFFSET(C43,-1,0)) -> 1 | D43: =IF($A43=1,0,IF($A43=2,OFFSET(D43,-1,0)+1,OFFSET(D43,-1,0))) -> 3 | E43: =IF(AND($A43<=2,$A43<>0),0,IF($A43=3,OFFSET(E43,-1,0)+1,OFFSET(E43,-1,0))) -> 1 | F43: =IF(AND($A43<=3,$A43<>0),0,IF($A43=4,OFFSET(F43,-1,0)+1,OFFSET(F43,-1,0))) -> 2 | G43: =IF(AND($A43<=4,$A43<>0),0,IF($A43="S",OFFSET(G43,-1,0)+1,OFFSET(G43,-1,0))) -> 2 | H43: 0 | I43: 0 | J43: Serviço | K43: =IF($A43=0,"-",CONCATENATE(C43&".",IF(AND($A$5>=2,$A43>=2),D43&".",""),IF(AND($A$5>=3,$A43>=3),E43&".",""),IF(AND($A$5>=4,$A43>=4),F43&".",""),IF($A43="S",G43&".",""))) -> 1.3.1.2.2. | L43: COMPOSIÇÃO | M43: SINAPI100209ADAPTADA | N43: TRANSPORTE MANUAL DE REVESTIMENTOS ARGAMASSADOS REMOVIDOS COM CARRINHO DE MÃO 45L - INCLUSO CARGA E DESCARGA | O43: M3XKM | P43: =OFFSET(PLQ!$E$12,ROW($P43)-ROW(P$12),0) -> 0.1 | Q43: 145.34 | R43: BDI 1 | S43: =IF($A43="S",IF($Q$10="Preço Unitário (R$)",PO.CustoUnitario,ROUND(PO.CustoUnitario*(1+$Z43),15-13*$X$6)),0) -> 189.25 | T43: =IF($A43="S",VTOTAL1,IF($A43=0,0,ROUND(SomaAgrup,15-13*$X$7))) -> 18.93 | U43: =IF($J43="","",IF($N43="","DESCRIÇÃO",IF(AND($J43="Serviço",$O43=""),"UNIDADE",IF($T43<=0,"SEM VALOR",IF(AND($Y43<>"",$Q43>$Y43),"ACIMA REF.",""))))) ->  | V43: =IF(OR($A43=0,$A43="S",$A43>CFF!$A$9),"",MAX(V$12:OFFSET(V43,-1,0))+1) ->  | W43: =IF(AND($J43="Serviço",$M43<>""),IF($L43="",$M43,CONCATENATE($L43,"-",$M43))) -> COMPOSIÇÃO-SINAPI100209ADAPTADA | X43: =IF(AND(Fonte<>"",Código<>""),MATCH(Fonte&" "&IF(Fonte="sinapi",SUBSTITUTE(SUBSTITUTE(Código,"/00","/"),"/0","/"),Código),INDIRECT("'[Referência "&_xlnm.Database&".xls]Banco'!$a:$a"),0),"X") -> 12 | Y43: =IF(Import.Desoneracao="sim",Referencia.Desonerado,Referencia.NaoDesonerado) -> 145.34 | Z43: =ROUND(IF(ISNUMBER(R43),R43,IF(LEFT(R43,3)="BDI",HLOOKUP(R43,DADOS!$T$37:$X$38,2,FALSE),0)),15-11*$X$5) -> 0.3021
A44: 3 | B44: 5 | C44: 1 | D44: 3 | E44: 2 | F44: 0 | G44: 0 | H44: 5 | I44: 99 | J44: Nível 3 | K44: 1.3.2. | N44: TETO | O44: =Referencia.Unidade ->  | P44: =OFFSET(PLQ!$E$12,ROW($P44)-ROW(P$12),0) -> 0 | R44: BDI 1 | S44: 0 | T44: 1694.9 | V44: =IF(OR($A44=0,$A44="S",$A44>CFF!$A$9),"",MAX(V$12:OFFSET(V44,-1,0))+1) ->  | W44: FALSE | X44: X | Y44: =IF(Import.Desoneracao="sim",Referencia.Desonerado,Referencia.NaoDesonerado) -> 0 | Z44: =ROUND(IF(ISNUMBER(R44),R44,IF(LEFT(R44,3)="BDI",HLOOKUP(R44,DADOS!$T$37:$X$38,2,FALSE),0)),15-11*$X$5) -> 0.3021
A45: 4 | B45: 2 | C45: 1 | D45: 3 | E45: 2 | F45: 1 | G45: 0 | H45: =IF(OR($A45="S",$A45=0),0,MATCH(0,OFFSET($B45,1,$A45,ROW($A$145)-ROW($A45)),0)) -> 4 | I45: =IF(OR($A45="S",$A45=0),0,MATCH(OFFSET($B45,0,$A45)+1,OFFSET($B45,1,$A45,ROW($A$145)-ROW($A45)),0)) -> 2 | J45: Nível 4 | K45: 1.3.2.1. | N45: INTERNO | O45: =Referencia.Unidade ->  | P45: =OFFSET(PLQ!$E$12,ROW($P45)-ROW(P$12),0) -> 0 | R45: BDI 1 | S45: 0 | T45: 1137.58 | V45: =IF(OR($A45=0,$A45="S",$A45>CFF!$A$9),"",MAX(V$12:OFFSET(V45,-1,0))+1) ->  | W45: FALSE | X45: X | Y45: =IF(Import.Desoneracao="sim",Referencia.Desonerado,Referencia.NaoDesonerado) -> 0 | Z45: =ROUND(IF(ISNUMBER(R45),R45,IF(LEFT(R45,3)="BDI",HLOOKUP(R45,DADOS!$T$37:$X$38,2,FALSE),0)),15-11*$X$5) -> 0.3021
A46: S | B46: 0 | C46: 1 | D46: 3 | E46: 2 | F46: 1 | G46: 1 | H46: 0 | I46: 0 | J46: Serviço | K46: 1.3.2.1.1. | L46: SINAPI | M46: 97631 | N46: DEMOLIÇÃO DE ARGAMASSAS, DE FORMA MANUAL, SEM REAPROVEITAMENTO. AF_09/2023 | O46: M2 | P46: =OFFSET(PLQ!$E$12,ROW($P46)-ROW(P$12),0) -> 74.4 | Q46: 11.74 | R46: BDI 1 | S46: 15.29 | T46: 1137.58 | V46: =IF(OR($A46=0,$A46="S",$A46>CFF!$A$9),"",MAX(V$12:OFFSET(V46,-1,0))+1) ->  | W46: SINAPI-97631 | X46: 7863 | Y46: =IF(Import.Desoneracao="sim",Referencia.Desonerado,Referencia.NaoDesonerado) -> 11.74 | Z46: =ROUND(IF(ISNUMBER(R46),R46,IF(LEFT(R46,3)="BDI",HLOOKUP(R46,DADOS!$T$37:$X$38,2,FALSE),0)),15-11*$X$5) -> 0.3021
A47: 4 | B47: 2 | C47: 1 | D47: 3 | E47: 2 | F47: 2 | G47: 0 | H47: 2 | J47: Nível 4 | K47: 1.3.2.2. | N47: EXTERNO | O47: =Referencia.Unidade ->  | P47: =OFFSET(PLQ!$E$12,ROW($P47)-ROW(P$12),0) -> 0 | R47: BDI 1 | S47: 0 | T47: 557.32 | V47: =IF(OR($A47=0,$A47="S",$A47>CFF!$A$9),"",MAX(V$12:OFFSET(V47,-1,0))+1) ->  | W47: FALSE | X47: X | Y47: =IF(Import.Desoneracao="sim",Referencia.Desonerado,Referencia.NaoDesonerado) -> 0 | Z47: =ROUND(IF(ISNUMBER(R47),R47,IF(LEFT(R47,3)="BDI",HLOOKUP(R47,DADOS!$T$37:$X$38,2,FALSE),0)),15-11*$X$5) -> 0.3021
A48: S | B48: 0 | C48: 1 | D48: 3 | E48: 2 | F48: 2 | G48: 1 | H48: 0 | I48: 0 | J48: Serviço | K48: 1.3.2.2.1. | L48: SINAPI | M48: 97631 | N48: DEMOLIÇÃO DE ARGAMASSAS, DE FORMA MANUAL, SEM REAPROVEITAMENTO. AF_09/2023 | O48: M2 | P48: =OFFSET(PLQ!$E$12,ROW($P48)-ROW(P$12),0) -> 36.45 | Q48: 11.74 | R48: BDI 1 | S48: 15.29 | T48: 557.32 | V48: =IF(OR($A48=0,$A48="S",$A48>CFF!$A$9),"",MAX(V$12:OFFSET(V48,-1,0))+1) ->  | W48: SINAPI-97631 | X48: 7863 | Y48: =IF(Import.Desoneracao="sim",Referencia.Desonerado,Referencia.NaoDesonerado) -> 11.74 | Z48: =ROUND(IF(ISNUMBER(R48),R48,IF(LEFT(R48,3)="BDI",HLOOKUP(R48,DADOS!$T$37:$X$38,2,FALSE),0)),15-11*$X$5) -> 0.3021
A49: 2 | B49: 16 | C49: 1 | D49: 4 | E49: 0 | F49: 0 | G49: 0 | H49: 37 | I49: 16 | J49: Nível 2 | K49: 1.4. | N49: SACADA | O49: =Referencia.Unidade ->  | P49: =OFFSET(PLQ!$E$12,ROW($P49)-ROW(P$12),0) -> 0 | R49: BDI 1 | S49: 0 | T49: 17329.76 | V49: =IF(OR($A49=0,$A49="S",$A49>CFF!$A$9),"",MAX(V$12:OFFSET(V49,-1,0))+1) -> 5 | W49: FALSE | X49: X | Y49: =IF(Import.Desoneracao="sim",Referencia.Desonerado,Referencia.NaoDesonerado) -> 0 | Z49: =ROUND(IF(ISNUMBER(R49),R49,IF(LEFT(R49,3)="BDI",HLOOKUP(R49,DADOS!$T$37:$X$38,2,FALSE),0)),15-11*$X$5) -> 0.3021
A50: =CHOOSE(1+LOG(1+2*(J50="Meta")+4*(J50="Nível 2")+8*(J50="Nível 3")+16*(J50="Nível 4")+32*(J50="Serviço"),2),0,1,2,3,4,"S") -> S | B50: =IF(OR(A50="S",A50=0),0,IF(ISERROR(I50),H50,SMALL(H50:I50,1))) -> 0 | C50: =IF($A50=1,OFFSET(C50,-1,0)+1,OFFSET(C50,-1,0)) -> 1 | D50: =IF($A50=1,0,IF($A50=2,OFFSET(D50,-1,0)+1,OFFSET(D50,-1,0))) -> 4 | E50: =IF(AND($A50<=2,$A50<>0),0,IF($A50=3,OFFSET(E50,-1,0)+1,OFFSET(E50,-1,0))) -> 0 | F50: =IF(AND($A50<=3,$A50<>0),0,IF($A50=4,OFFSET(F50,-1,0)+1,OFFSET(F50,-1,0))) -> 0 | G50: =IF(AND($A50<=4,$A50<>0),0,IF($A50="S",OFFSET(G50,-1,0)+1,OFFSET(G50,-1,0))) -> 1 | H50: 0 | I50: 0 | J50: Serviço | K50: =IF($A50=0,"-",CONCATENATE(C50&".",IF(AND($A$5>=2,$A50>=2),D50&".",""),IF(AND($A$5>=3,$A50>=3),E50&".",""),IF(AND($A$5>=4,$A50>=4),F50&".",""),IF($A50="S",G50&".",""))) -> 1.4.0.0.1. | L50: SINAPI | M50: 97640 | N50: REMOÇÃO DE FORROS DE DRYWALL, PVC E FIBROMINERAL, DE FORMA MANUAL, SEM REAPROVEITAMENTO. AF_09/2023 | O50: M2 | P50: =OFFSET(PLQ!$E$12,ROW($P50)-ROW(P$12),0) -> 23 | Q50: 2.16 | R50: BDI 1 | S50: =IF($A50="S",IF($Q$10="Preço Unitário (R$)",PO.CustoUnitario,ROUND(PO.CustoUnitario*(1+$Z50),15-13*$X$6)),0) -> 2.81 | T50: =IF($A50="S",VTOTAL1,IF($A50=0,0,ROUND(SomaAgrup,15-13*$X$7))) -> 64.63 | U50: =IF($J50="","",IF($N50="","DESCRIÇÃO",IF(AND($J50="Serviço",$O50=""),"UNIDADE",IF($T50<=0,"SEM VALOR",IF(AND($Y50<>"",$Q50>$Y50),"ACIMA REF.",""))))) ->  | V50: =IF(OR($A50=0,$A50="S",$A50>CFF!$A$9),"",MAX(V$12:OFFSET(V50,-1,0))+1) ->  | W50: =IF(AND($J50="Serviço",$M50<>""),IF($L50="",$M50,CONCATENATE($L50,"-",$M50))) -> SINAPI-97640 | X50: =IF(AND(Fonte<>"",Código<>""),MATCH(Fonte&" "&IF(Fonte="sinapi",SUBSTITUTE(SUBSTITUTE(Código,"/00","/"),"/0","/"),Código),INDIRECT("'[Referência "&_xlnm.Database&".xls]Banco'!$a:$a"),0),"X") -> 7888 | Y50: =IF(Import.Desoneracao="sim",Referencia.Desonerado,Referencia.NaoDesonerado) -> 2.16 | Z50: =ROUND(IF(ISNUMBER(R50),R50,IF(LEFT(R50,3)="BDI",HLOOKUP(R50,DADOS!$T$37:$X$38,2,FALSE),0)),15-11*$X$5) -> 0.3021
A51: S | B51: 0 | C51: 1 | D51: 4 | E51: 0 | F51: 0 | G51: 2 | H51: 0 | I51: 0 | J51: Serviço | K51: 1.4.0.0.2. | L51: SINAPI | M51: 97634 | N51: DEMOLIÇÃO DE REVESTIMENTO CERÂMICO, DE FORMA MECANIZADA COM MARTELETE, SEM REAPROVEITAMENTO. AF_09/2023 | O51: M2 | P51: =OFFSET(PLQ!$E$12,ROW($P51)-ROW(P$12),0) -> 23 | Q51: 8.21 | R51: BDI 1 | S51: 10.69 | T51: 245.87 | V51: =IF(OR($A51=0,$A51="S",$A51>CFF!$A$9),"",MAX(V$12:OFFSET(V51,-1,0))+1) ->  | W51: SINAPI-97634 | X51: 7873 | Y51: =IF(Import.Desoneracao="sim",Referencia.Desonerado,Referencia.NaoDesonerado) -> 8.21 | Z51: =ROUND(IF(ISNUMBER(R51),R51,IF(LEFT(R51,3)="BDI",HLOOKUP(R51,DADOS!$T$37:$X$38,2,FALSE),0)),15-11*$X$5) -> 0.3021
A52: S | B52: 0 | C52: 1 | D52: 4 | E52: 0 | F52: 0 | G52: 3 | H52: 0 | I52: 0 | J52: Serviço | K52: 1.4.0.0.3. | L52: SINAPI | M52: 97632 | N52: DEMOLIÇÃO DE RODAPÉ CERÂMICO, DE FORMA MANUAL, SEM REAPROVEITAMENTO. AF_09/2023 | O52: M | P52: =OFFSET(PLQ!$E$12,ROW($P52)-ROW(P$12),0) -> 24.74 | Q52: 2.68 | R52: BDI 1 | S52: 3.49 | T52: 86.34 | V52: =IF(OR($A52=0,$A52="S",$A52>CFF!$A$9),"",MAX(V$12:OFFSET(V52,-1,0))+1) ->  | W52: SINAPI-97632 | X52: 7874 | Y52: =IF(Import.Desoneracao="sim",Referencia.Desonerado,Referencia.NaoDesonerado) -> 2.68 | Z52: =ROUND(IF(ISNUMBER(R52),R52,IF(LEFT(R52,3)="BDI",HLOOKUP(R52,DADOS!$T$37:$X$38,2,FALSE),0)),15-11*$X$5) -> 0.3021
A53: S | B53: 0 | C53: 1 | D53: 4 | E53: 0 | F53: 0 | G53: 4 | H53: 0 | I53: 0 | J53: Serviço | K53: 1.4.0.0.4. | L53: SINAPI | M53: 97631 | N53: DEMOLIÇÃO DE ARGAMASSAS, DE FORMA MANUAL, SEM REAPROVEITAMENTO. AF_09/2023 | O53: M2 | P53: =OFFSET(PLQ!$E$12,ROW($P53)-ROW(P$12),0) -> 23 | Q53: 11.74 | R53: BDI 1 | S53: 15.29 | T53: 351.67 | V53: =IF(OR($A53=0,$A53="S",$A53>CFF!$A$9),"",MAX(V$12:OFFSET(V53,-1,0))+1) ->  | W53: SINAPI-97631 | X53: 7863 | Y53: =IF(Import.Desoneracao="sim",Referencia.Desonerado,Referencia.NaoDesonerado) -> 11.74 | Z53: =ROUND(IF(ISNUMBER(R53),R53,IF(LEFT(R53,3)="BDI",HLOOKUP(R53,DADOS!$T$37:$X$38,2,FALSE),0)),15-11*$X$5) -> 0.3021
A54: =CHOOSE(1+LOG(1+2*(J54="Meta")+4*(J54="Nível 2")+8*(J54="Nível 3")+16*(J54="Nível 4")+32*(J54="Serviço"),2),0,1,2,3,4,"S") -> S | B54: =IF(OR(A54="S",A54=0),0,IF(ISERROR(I54),H54,SMALL(H54:I54,1))) -> 0 | C54: =IF($A54=1,OFFSET(C54,-1,0)+1,OFFSET(C54,-1,0)) -> 1 | D54: =IF($A54=1,0,IF($A54=2,OFFSET(D54,-1,0)+1,OFFSET(D54,-1,0))) -> 4 | E54: =IF(AND($A54<=2,$A54<>0),0,IF($A54=3,OFFSET(E54,-1,0)+1,OFFSET(E54,-1,0))) -> 0 | F54: =IF(AND($A54<=3,$A54<>0),0,IF($A54=4,OFFSET(F54,-1,0)+1,OFFSET(F54,-1,0))) -> 0 | G54: =IF(AND($A54<=4,$A54<>0),0,IF($A54="S",OFFSET(G54,-1,0)+1,OFFSET(G54,-1,0))) -> 5 | H54: 0 | I54: 0 | J54: Serviço | K54: =IF($A54=0,"-",CONCATENATE(C54&".",IF(AND($A$5>=2,$A54>=2),D54&".",""),IF(AND($A$5>=3,$A54>=3),E54&".",""),IF(AND($A$5>=4,$A54>=4),F54&".",""),IF($A54="S",G54&".",""))) -> 1.4.0.0.5. | L54: COMPOSIÇÃO | M54: SINAPI100209ADAPTADA | N54: TRANSPORTE MANUAL DE REVESTIMENTOS ARGAMASSADOS REMOVIDOS COM CARRINHO DE MÃO 45L - INCLUSO CARGA E DESCARGA | O54: M3XKM | P54: =OFFSET(PLQ!$E$12,ROW($P54)-ROW(P$12),0) -> 0.02 | Q54: 145.34 | R54: BDI 1 | S54: =IF($A54="S",IF($Q$10="Preço Unitário (R$)",PO.CustoUnitario,ROUND(PO.CustoUnitario*(1+$Z54),15-13*$X$6)),0) -> 189.25 | T54: =IF($A54="S",VTOTAL1,IF($A54=0,0,ROUND(SomaAgrup,15-13*$X$7))) -> 3.79 | U54: =IF($J54="","",IF($N54="","DESCRIÇÃO",IF(AND($J54="Serviço",$O54=""),"UNIDADE",IF($T54<=0,"SEM VALOR",IF(AND($Y54<>"",$Q54>$Y54),"ACIMA REF.",""))))) ->  | V54: =IF(OR($A54=0,$A54="S",$A54>CFF!$A$9),"",MAX(V$12:OFFSET(V54,-1,0))+1) ->  | W54: =IF(AND($J54="Serviço",$M54<>""),IF($L54="",$M54,CONCATENATE($L54,"-",$M54))) -> COMPOSIÇÃO-SINAPI100209ADAPTADA | X54: =IF(AND(Fonte<>"",Código<>""),MATCH(Fonte&" "&IF(Fonte="sinapi",SUBSTITUTE(SUBSTITUTE(Código,"/00","/"),"/0","/"),Código),INDIRECT("'[Referência "&_xlnm.Database&".xls]Banco'!$a:$a"),0),"X") -> 12 | Y54: =IF(Import.Desoneracao="sim",Referencia.Desonerado,Referencia.NaoDesonerado) -> 145.34 | Z54: =ROUND(IF(ISNUMBER(R54),R54,IF(LEFT(R54,3)="BDI",HLOOKUP(R54,DADOS!$T$37:$X$38,2,FALSE),0)),15-11*$X$5) -> 0.3021
A55: =CHOOSE(1+LOG(1+2*(J55="Meta")+4*(J55="Nível 2")+8*(J55="Nível 3")+16*(J55="Nível 4")+32*(J55="Serviço"),2),0,1,2,3,4,"S") -> S | B55: =IF(OR(A55="S",A55=0),0,IF(ISERROR(I55),H55,SMALL(H55:I55,1))) -> 0 | C55: =IF($A55=1,OFFSET(C55,-1,0)+1,OFFSET(C55,-1,0)) -> 1 | D55: =IF($A55=1,0,IF($A55=2,OFFSET(D55,-1,0)+1,OFFSET(D55,-1,0))) -> 4 | E55: =IF(AND($A55<=2,$A55<>0),0,IF($A55=3,OFFSET(E55,-1,0)+1,OFFSET(E55,-1,0))) -> 0 | F55: =IF(AND($A55<=3,$A55<>0),0,IF($A55=4,OFFSET(F55,-1,0)+1,OFFSET(F55,-1,0))) -> 0 | G55: =IF(AND($A55<=4,$A55<>0),0,IF($A55="S",OFFSET(G55,-1,0)+1,OFFSET(G55,-1,0))) -> 6 | H55: 0 | I55: 0 | J55: Serviço | K55: =IF($A55=0,"-",CONCATENATE(C55&".",IF(AND($A$5>=2,$A55>=2),D55&".",""),IF(AND($A$5>=3,$A55>=3),E55&".",""),IF(AND($A$5>=4,$A55>=4),F55&".",""),IF($A55="S",G55&".",""))) -> 1.4.0.0.6. | L55: SINAPI | M55: 89710 | N55: RALO SECO, PVC, DN 100 X 40 MM, JUNTA SOLDÁVEL, FORNECIDO E INSTALADO EM RAMAL DE DESCARGA OU EM RAMAL DE ESGOTO SANITÁRIO. AF_08/2022 | O55: UN | P55: =OFFSET(PLQ!$E$12,ROW($P55)-ROW(P$12),0) -> 2 | Q55: 18.71 | R55: BDI 1 | S55: =IF($A55="S",IF($Q$10="Preço Unitário (R$)",PO.CustoUnitario,ROUND(PO.CustoUnitario*(1+$Z55),15-13*$X$6)),0) -> 24.36 | T55: =IF($A55="S",VTOTAL1,IF($A55=0,0,ROUND(SomaAgrup,15-13*$X$7))) -> 48.72 | U55: =IF($J55="","",IF($N55="","DESCRIÇÃO",IF(AND($J55="Serviço",$O55=""),"UNIDADE",IF($T55<=0,"SEM VALOR",IF(AND($Y55<>"",$Q55>$Y55),"ACIMA REF.",""))))) ->  | V55: =IF(OR($A55=0,$A55="S",$A55>CFF!$A$9),"",MAX(V$12:OFFSET(V55,-1,0))+1) ->  | W55: =IF(AND($J55="Serviço",$M55<>""),IF($L55="",$M55,CONCATENATE($L55,"-",$M55))) -> SINAPI-89710 | X55: =IF(AND(Fonte<>"",Código<>""),MATCH(Fonte&" "&IF(Fonte="sinapi",SUBSTITUTE(SUBSTITUTE(Código,"/00","/"),"/0","/"),Código),INDIRECT("'[Referência "&_xlnm.Database&".xls]Banco'!$a:$a"),0),"X") -> 11364 | Y55: =IF(Import.Desoneracao="sim",Referencia.Desonerado,Referencia.NaoDesonerado) -> 18.71 | Z55: =ROUND(IF(ISNUMBER(R55),R55,IF(LEFT(R55,3)="BDI",HLOOKUP(R55,DADOS!$T$37:$X$38,2,FALSE),0)),15-11*$X$5) -> 0.3021
A56: =CHOOSE(1+LOG(1+2*(J56="Meta")+4*(J56="Nível 2")+8*(J56="Nível 3")+16*(J56="Nível 4")+32*(J56="Serviço"),2),0,1,2,3,4,"S") -> S | B56: =IF(OR(A56="S",A56=0),0,IF(ISERROR(I56),H56,SMALL(H56:I56,1))) -> 0 | C56: =IF($A56=1,OFFSET(C56,-1,0)+1,OFFSET(C56,-1,0)) -> 1 | D56: =IF($A56=1,0,IF($A56=2,OFFSET(D56,-1,0)+1,OFFSET(D56,-1,0))) -> 4 | E56: =IF(AND($A56<=2,$A56<>0),0,IF($A56=3,OFFSET(E56,-1,0)+1,OFFSET(E56,-1,0))) -> 0 | F56: =IF(AND($A56<=3,$A56<>0),0,IF($A56=4,OFFSET(F56,-1,0)+1,OFFSET(F56,-1,0))) -> 0 | G56: =IF(AND($A56<=4,$A56<>0),0,IF($A56="S",OFFSET(G56,-1,0)+1,OFFSET(G56,-1,0))) -> 7 | H56: 0 | I56: 0 | J56: Serviço | K56: =IF($A56=0,"-",CONCATENATE(C56&".",IF(AND($A$5>=2,$A56>=2),D56&".",""),IF(AND($A$5>=3,$A56>=3),E56&".",""),IF(AND($A$5>=4,$A56>=4),F56&".",""),IF($A56="S",G56&".",""))) -> 1.4.0.0.7. | L56: SINAPI | M56: 89578 | N56: TUBO PVC, SÉRIE R, ÁGUA PLUVIAL, DN 100 MM, FORNECIDO E INSTALADO EM CONDUTORES VERTICAIS DE ÁGUAS PLUVIAIS. AF_06/2022 | O56: M | P56: =OFFSET(PLQ!$E$12,ROW($P56)-ROW(P$12),0) -> 7.2 | Q56: 36.95 | R56: BDI 1 | S56: =IF($A56="S",IF($Q$10="Preço Unitário (R$)",PO.CustoUnitario,ROUND(PO.CustoUnitario*(1+$Z56),15-13*$X$6)),0) -> 48.11 | T56: =IF($A56="S",VTOTAL1,IF($A56=0,0,ROUND(SomaAgrup,15-13*$X$7))) -> 346.39 | U56: =IF($J56="","",IF($N56="","DESCRIÇÃO",IF(AND($J56="Serviço",$O56=""),"UNIDADE",IF($T56<=0,"SEM VALOR",IF(AND($Y56<>"",$Q56>$Y56),"ACIMA REF.",""))))) ->  | V56: =IF(OR($A56=0,$A56="S",$A56>CFF!$A$9),"",MAX(V$12:OFFSET(V56,-1,0))+1) ->  | W56: =IF(AND($J56="Serviço",$M56<>""),IF($L56="",$M56,CONCATENATE($L56,"-",$M56))) -> SINAPI-89578 | X56: =IF(AND(Fonte<>"",Código<>""),MATCH(Fonte&" "&IF(Fonte="sinapi",SUBSTITUTE(SUBSTITUTE(Código,"/00","/"),"/0","/"),Código),INDIRECT("'[Referência "&_xlnm.Database&".xls]Banco'!$a:$a"),0),"X") -> 11891 | Y56: =IF(Import.Desoneracao="sim",Referencia.Desonerado,Referencia.NaoDesonerado) -> 36.95 | Z56: =ROUND(IF(ISNUMBER(R56),R56,IF(LEFT(R56,3)="BDI",HLOOKUP(R56,DADOS!$T$37:$X$38,2,FALSE),0)),15-11*$X$5) -> 0.3021
A57: S | B57: 0 | C57: 1 | D57: 4 | E57: 0 | F57: 0 | G57: 8 | H57: 0 | I57: 0 | J57: Serviço | K57: 1.4.0.0.8. | L57: SINAPI | M57: 89529 | N57: JOELHO 90 GRAUS, PVC, SERIE R, ÁGUA PLUVIAL, DN 100 MM, JUNTA ELÁSTICA, FORNECIDO E INSTALADO EM RAMAL DE ENCAMINHAMENTO. AF_06/2022 | O57: UN | P57: =OFFSET(PLQ!$E$12,ROW($P57)-ROW(P$12),0) -> 2 | Q57: 40.14 | R57: BDI 1 | S57: =IF($A57="S",IF($Q$10="Preço Unitário (R$)",PO.CustoUnitario,ROUND(PO.CustoUnitario*(1+$Z57),15-13*$X$6)),0) -> 52.27 | T57: =IF($A57="S",VTOTAL1,IF($A57=0,0,ROUND(SomaAgrup,15-13*$X$7))) -> 104.54 | V57: =IF(OR($A57=0,$A57="S",$A57>CFF!$A$9),"",MAX(V$12:OFFSET(V57,-1,0))+1) ->  | W57: SINAPI-89529 | X57: =IF(AND(Fonte<>"",Código<>""),MATCH(Fonte&" "&IF(Fonte="sinapi",SUBSTITUTE(SUBSTITUTE(Código,"/00","/"),"/0","/"),Código),INDIRECT("'[Referência "&_xlnm.Database&".xls]Banco'!$a:$a"),0),"X") -> 11851 | Y57: =IF(Import.Desoneracao="sim",Referencia.Desonerado,Referencia.NaoDesonerado) -> 40.14 | Z57: =ROUND(IF(ISNUMBER(R57),R57,IF(LEFT(R57,3)="BDI",HLOOKUP(R57,DADOS!$T$37:$X$38,2,FALSE),0)),15-11*$X$5) -> 0.3021
A58: =CHOOSE(1+LOG(1+2*(J58="Meta")+4*(J58="Nível 2")+8*(J58="Nível 3")+16*(J58="Nível 4")+32*(J58="Serviço"),2),0,1,2,3,4,"S") -> S | B58: =IF(OR(A58="S",A58=0),0,IF(ISERROR(I58),H58,SMALL(H58:I58,1))) -> 0 | C58: =IF($A58=1,OFFSET(C58,-1,0)+1,OFFSET(C58,-1,0)) -> 1 | D58: =IF($A58=1,0,IF($A58=2,OFFSET(D58,-1,0)+1,OFFSET(D58,-1,0))) -> 4 | E58: =IF(AND($A58<=2,$A58<>0),0,IF($A58=3,OFFSET(E58,-1,0)+1,OFFSET(E58,-1,0))) -> 0 | F58: =IF(AND($A58<=3,$A58<>0),0,IF($A58=4,OFFSET(F58,-1,0)+1,OFFSET(F58,-1,0))) -> 0 | G58: =IF(AND($A58<=4,$A58<>0),0,IF($A58="S",OFFSET(G58,-1,0)+1,OFFSET(G58,-1,0))) -> 9 | H58: 0 | I58: 0 | J58: Serviço | K58: =IF($A58=0,"-",CONCATENATE(C58&".",IF(AND($A$5>=2,$A58>=2),D58&".",""),IF(AND($A$5>=3,$A58>=3),E58&".",""),IF(AND($A$5>=4,$A58>=4),F58&".",""),IF($A58="S",G58&".",""))) -> 1.4.0.0.9. | L58: SINAPI | M58: 87745 | N58: CONTRAPISO EM ARGAMASSA TRAÇO 1:4 (CIMENTO E AREIA), PREPARO MECÂNICO COM BETONEIRA 400 L, APLICADO EM ÁREAS MOLHADAS SOBRE LAJE, ADERIDO, ACABAMENTO NÃO REFORÇADO, ESPESSURA 3CM. AF_07/2021 | O58: M2 | P58: =OFFSET(PLQ!$E$12,ROW($P58)-ROW(P$12),0) -> 23 | Q58: 56.5 | R58: BDI 1 | S58: =IF($A58="S",IF($Q$10="Preço Unitário (R$)",PO.CustoUnitario,ROUND(PO.CustoUnitario*(1+$Z58),15-13*$X$6)),0) -> 73.57 | T58: =IF($A58="S",VTOTAL1,IF($A58=0,0,ROUND(SomaAgrup,15-13*$X$7))) -> 1692.11 | U58: =IF($J58="","",IF($N58="","DESCRIÇÃO",IF(AND($J58="Serviço",$O58=""),"UNIDADE",IF($T58<=0,"SEM VALOR",IF(AND($Y58<>"",$Q58>$Y58),"ACIMA REF.",""))))) ->  | V58: =IF(OR($A58=0,$A58="S",$A58>CFF!$A$9),"",MAX(V$12:OFFSET(V58,-1,0))+1) ->  | W58: =IF(AND($J58="Serviço",$M58<>""),IF($L58="",$M58,CONCATENATE($L58,"-",$M58))) -> SINAPI-87745 | X58: 7453 | Y58: 56.5 | Z58: =ROUND(IF(ISNUMBER(R58),R58,IF(LEFT(R58,3)="BDI",HLOOKUP(R58,DADOS!$T$37:$X$38,2,FALSE),0)),15-11*$X$5) -> 0.3021
A59: =CHOOSE(1+LOG(1+2*(J59="Meta")+4*(J59="Nível 2")+8*(J59="Nível 3")+16*(J59="Nível 4")+32*(J59="Serviço"),2),0,1,2,3,4,"S") -> S | B59: =IF(OR(A59="S",A59=0),0,IF(ISERROR(I59),H59,SMALL(H59:I59,1))) -> 0 | C59: =IF($A59=1,OFFSET(C59,-1,0)+1,OFFSET(C59,-1,0)) -> 1 | D59: =IF($A59=1,0,IF($A59=2,OFFSET(D59,-1,0)+1,OFFSET(D59,-1,0))) -> 4 | E59: =IF(AND($A59<=2,$A59<>0),0,IF($A59=3,OFFSET(E59,-1,0)+1,OFFSET(E59,-1,0))) -> 0 | F59: =IF(AND($A59<=3,$A59<>0),0,IF($A59=4,OFFSET(F59,-1,0)+1,OFFSET(F59,-1,0))) -> 0 | G59: =IF(AND($A59<=4,$A59<>0),0,IF($A59="S",OFFSET(G59,-1,0)+1,OFFSET(G59,-1,0))) -> 10 | H59: 0 | I59: 0 | J59: Serviço | K59: =IF($A59=0,"-",CONCATENATE(C59&".",IF(AND($A$5>=2,$A59>=2),D59&".",""),IF(AND($A$5>=3,$A59>=3),E59&".",""),IF(AND($A$5>=4,$A59>=4),F59&".",""),IF($A59="S",G59&".",""))) -> 1.4.0.0.10. | L59: SINAPI | M59: 98553 | N59: IMPERMEABILIZAÇÃO DE SUPERFÍCIE COM MEMBRANA À BASE DE POLIURETANO, 2 DEMÃOS. AF_09/2023 | O59: M2 | P59: =OFFSET(PLQ!$E$12,ROW($P59)-ROW(P$12),0) -> 28.97 | Q59: 171.3 | R59: BDI 1 | S59: 223.05 | T59: 6461.76 | U59: =IF($J59="","",IF($N59="","DESCRIÇÃO",IF(AND($J59="Serviço",$O59=""),"UNIDADE",IF($T59<=0,"SEM VALOR",IF(AND($Y59<>"",$Q59>$Y59),"ACIMA REF.",""))))) ->  | V59: =IF(OR($A59=0,$A59="S",$A59>CFF!$A$9),"",MAX(V$12:OFFSET(V59,-1,0))+1) ->  | W59: =IF(AND($J59="Serviço",$M59<>""),IF($L59="",$M59,CONCATENATE($L59,"-",$M59))) -> SINAPI-98553 | X59: 10344 | Y59: 171.3 | Z59: =ROUND(IF(ISNUMBER(R59),R59,IF(LEFT(R59,3)="BDI",HLOOKUP(R59,DADOS!$T$37:$X$38,2,FALSE),0)),15-11*$X$5) -> 0.3021
A60: =CHOOSE(1+LOG(1+2*(J60="Meta")+4*(J60="Nível 2")+8*(J60="Nível 3")+16*(J60="Nível 4")+32*(J60="Serviço"),2),0,1,2,3,4,"S") -> S | B60: =IF(OR(A60="S",A60=0),0,IF(ISERROR(I60),H60,SMALL(H60:I60,1))) -> 0 | C60: =IF($A60=1,OFFSET(C60,-1,0)+1,OFFSET(C60,-1,0)) -> 1 | D60: =IF($A60=1,0,IF($A60=2,OFFSET(D60,-1,0)+1,OFFSET(D60,-1,0))) -> 4 | E60: =IF(AND($A60<=2,$A60<>0),0,IF($A60=3,OFFSET(E60,-1,0)+1,OFFSET(E60,-1,0))) -> 0 | F60: =IF(AND($A60<=3,$A60<>0),0,IF($A60=4,OFFSET(F60,-1,0)+1,OFFSET(F60,-1,0))) -> 0 | G60: =IF(AND($A60<=4,$A60<>0),0,IF($A60="S",OFFSET(G60,-1,0)+1,OFFSET(G60,-1,0))) -> 11 | H60: 0 | I60: 0 | J60: Serviço | K60: =IF($A60=0,"-",CONCATENATE(C60&".",IF(AND($A$5>=2,$A60>=2),D60&".",""),IF(AND($A$5>=3,$A60>=3),E60&".",""),IF(AND($A$5>=4,$A60>=4),F60&".",""),IF($A60="S",G60&".",""))) -> 1.4.0.0.11. | L60: SINAPI-I | M60: 4030 | N60: VEU DE POLIESTER PARA IMPERMEABILIZACAO | O60: M2 | P60: =OFFSET(PLQ!$E$12,ROW($P60)-ROW(P$12),0) -> 28.97 | Q60: 6.8 | R60: BDI 1 | S60: 8.85 | T60: 256.38 | U60: =IF($J60="","",IF($N60="","DESCRIÇÃO",IF(AND($J60="Serviço",$O60=""),"UNIDADE",IF($T60<=0,"SEM VALOR",IF(AND($Y60<>"",$Q60>$Y60),"ACIMA REF.",""))))) ->  | V60: =IF(OR($A60=0,$A60="S",$A60>CFF!$A$9),"",MAX(V$12:OFFSET(V60,-1,0))+1) ->  | W60: =IF(AND($J60="Serviço",$M60<>""),IF($L60="",$M60,CONCATENATE($L60,"-",$M60))) -> SINAPI-I-4030 | X60: =IF(AND(Fonte<>"",Código<>""),MATCH(Fonte&" "&IF(Fonte="sinapi",SUBSTITUTE(SUBSTITUTE(Código,"/00","/"),"/0","/"),Código),INDIRECT("'[Referência "&_xlnm.Database&".xls]Banco'!$a:$a"),0),"X") -> 4958 | Y60: =IF(Import.Desoneracao="sim",Referencia.Desonerado,Referencia.NaoDesonerado) -> 6.8 | Z60: =ROUND(IF(ISNUMBER(R60),R60,IF(LEFT(R60,3)="BDI",HLOOKUP(R60,DADOS!$T$37:$X$38,2,FALSE),0)),15-11*$X$5) -> 0.3021
A61: S | B61: 0 | C61: 1 | D61: 4 | E61: 0 | F61: 0 | G61: 12 | H61: 0 | I61: 0 | J61: Serviço | K61: 1.4.0.0.12. | L61: SINAPI | M61: 104596 | N61: REVESTIMENTO CERÂMICO PARA PISO COM PLACAS TIPO PORCELANATO DE DIMENSÕES 80X80 CM APLICADA EM AMBIENTES DE ÁREA MENOR QUE 5 M². AF_02/2023_PE | O61: M2 | P61: =OFFSET(PLQ!$E$12,ROW($P61)-ROW(P$12),0) -> 23 | Q61: 143.37 | R61: BDI 1 | S61: 186.68 | T61: 4293.64 | V61: =IF(OR($A61=0,$A61="S",$A61>CFF!$A$9),"",MAX(V$12:OFFSET(V61,-1,0))+1) ->  | W61: SINAPI-104596 | X61: 14859 | Y61: =IF(Import.Desoneracao="sim",Referencia.Desonerado,Referencia.NaoDesonerado) -> 143.37 | Z61: =ROUND(IF(ISNUMBER(R61),R61,IF(LEFT(R61,3)="BDI",HLOOKUP(R61,DADOS!$T$37:$X$38,2,FALSE),0)),15-11*$X$5) -> 0.3021
A62: S | B62: 0 | C62: 1 | D62: 4 | E62: 0 | F62: 0 | G62: 13 | H62: 0 | I62: 0 | J62: Serviço | K62: 1.4.0.0.13. | L62: SINAPI | M62: 104619 | N62: RODAPÉ CERÂMICO DE 7CM DE ALTURA COM PLACAS TIPO ESMALTADA DE DIMENSÕES 80X80CM. AF_02/2023 | O62: M | P62: =OFFSET(PLQ!$E$12,ROW($P62)-ROW(P$12),0) -> 24.74 | Q62: 14.45 | R62: BDI 1 | S62: 18.82 | T62: 465.61 | V62: =IF(OR($A62=0,$A62="S",$A62>CFF!$A$9),"",MAX(V$12:OFFSET(V62,-1,0))+1) ->  | W62: SINAPI-104619 | X62: 14863 | Y62: =IF(Import.Desoneracao="sim",Referencia.Desonerado,Referencia.NaoDesonerado) -> 14.45 | Z62: =ROUND(IF(ISNUMBER(R62),R62,IF(LEFT(R62,3)="BDI",HLOOKUP(R62,DADOS!$T$37:$X$38,2,FALSE),0)),15-11*$X$5) -> 0.3021
A63: =CHOOSE(1+LOG(1+2*(J63="Meta")+4*(J63="Nível 2")+8*(J63="Nível 3")+16*(J63="Nível 4")+32*(J63="Serviço"),2),0,1,2,3,4,"S") -> S | B63: =IF(OR(A63="S",A63=0),0,IF(ISERROR(I63),H63,SMALL(H63:I63,1))) -> 0 | C63: =IF($A63=1,OFFSET(C63,-1,0)+1,OFFSET(C63,-1,0)) -> 1 | D63: =IF($A63=1,0,IF($A63=2,OFFSET(D63,-1,0)+1,OFFSET(D63,-1,0))) -> 4 | E63: =IF(AND($A63<=2,$A63<>0),0,IF($A63=3,OFFSET(E63,-1,0)+1,OFFSET(E63,-1,0))) -> 0 | F63: =IF(AND($A63<=3,$A63<>0),0,IF($A63=4,OFFSET(F63,-1,0)+1,OFFSET(F63,-1,0))) -> 0 | G63: =IF(AND($A63<=4,$A63<>0),0,IF($A63="S",OFFSET(G63,-1,0)+1,OFFSET(G63,-1,0))) -> 14 | H63: 0 | I63: 0 | J63: Serviço | K63: =IF($A63=0,"-",CONCATENATE(C63&".",IF(AND($A$5>=2,$A63>=2),D63&".",""),IF(AND($A$5>=3,$A63>=3),E63&".",""),IF(AND($A$5>=4,$A63>=4),F63&".",""),IF($A63="S",G63&".",""))) -> 1.4.0.0.14. | L63: SINAPI | M63: 96485 | N63: FORRO EM RÉGUAS DE PVC, LISO, PARA AMBIENTES RESIDENCIAIS, INCLUSIVE ESTRUTURA UNIDIRECIONAL DE FIXAÇÃO. AF_08/2023_PS | O63: M2 | P63: =OFFSET(PLQ!$E$12,ROW($P63)-ROW(P$12),0) -> 23 | Q63: 90.14 | R63: BDI 1 | S63: =IF($A63="S",IF($Q$10="Preço Unitário (R$)",PO.CustoUnitario,ROUND(PO.CustoUnitario*(1+$Z63),15-13*$X$6)),0) -> 117.37 | T63: =IF($A63="S",VTOTAL1,IF($A63=0,0,ROUND(SomaAgrup,15-13*$X$7))) -> 2699.51 | U63: =IF($J63="","",IF($N63="","DESCRIÇÃO",IF(AND($J63="Serviço",$O63=""),"UNIDADE",IF($T63<=0,"SEM VALOR",IF(AND($Y63<>"",$Q63>$Y63),"ACIMA REF.",""))))) ->  | V63: =IF(OR($A63=0,$A63="S",$A63>CFF!$A$9),"",MAX(V$12:OFFSET(V63,-1,0))+1) ->  | W63: =IF(AND($J63="Serviço",$M63<>""),IF($L63="",$M63,CONCATENATE($L63,"-",$M63))) -> SINAPI-96485 | X63: 9931 | Y63: =IF(Import.Desoneracao="sim",Referencia.Desonerado,Referencia.NaoDesonerado) -> 90.14 | Z63: =ROUND(IF(ISNUMBER(R63),R63,IF(LEFT(R63,3)="BDI",HLOOKUP(R63,DADOS!$T$37:$X$38,2,FALSE),0)),15-11*$X$5) -> 0.3021
A64: =CHOOSE(1+LOG(1+2*(J64="Meta")+4*(J64="Nível 2")+8*(J64="Nível 3")+16*(J64="Nível 4")+32*(J64="Serviço"),2),0,1,2,3,4,"S") -> S | B64: =IF(OR(A64="S",A64=0),0,IF(ISERROR(I64),H64,SMALL(H64:I64,1))) -> 0 | C64: =IF($A64=1,OFFSET(C64,-1,0)+1,OFFSET(C64,-1,0)) -> 1 | D64: =IF($A64=1,0,IF($A64=2,OFFSET(D64,-1,0)+1,OFFSET(D64,-1,0))) -> 4 | E64: =IF(AND($A64<=2,$A64<>0),0,IF($A64=3,OFFSET(E64,-1,0)+1,OFFSET(E64,-1,0))) -> 0 | F64: =IF(AND($A64<=3,$A64<>0),0,IF($A64=4,OFFSET(F64,-1,0)+1,OFFSET(F64,-1,0))) -> 0 | G64: =IF(AND($A64<=4,$A64<>0),0,IF($A64="S",OFFSET(G64,-1,0)+1,OFFSET(G64,-1,0))) -> 15 | H64: 0 | I64: 0 | J64: Serviço | K64: =IF($A64=0,"-",CONCATENATE(C64&".",IF(AND($A$5>=2,$A64>=2),D64&".",""),IF(AND($A$5>=3,$A64>=3),E64&".",""),IF(AND($A$5>=4,$A64>=4),F64&".",""),IF($A64="S",G64&".",""))) -> 1.4.0.0.15. | L64: SINAPI-I | M64: 36246 | N64: ACABAMENTO SIMPLES/CONVENCIONAL PARA FORRO PVC, TIPO "U" OU "C", COR BRANCA, COMPRIMENTO 6 M | O64: M | P64: =OFFSET(PLQ!$E$12,ROW($P64)-ROW(P$12),0) -> 28.14 | Q64: 5.7 | R64: BDI 1 | S64: =IF($A64="S",IF($Q$10="Preço Unitário (R$)",PO.CustoUnitario,ROUND(PO.CustoUnitario*(1+$Z64),15-13*$X$6)),0) -> 7.42 | T64: =IF($A64="S",VTOTAL1,IF($A64=0,0,ROUND(SomaAgrup,15-13*$X$7))) -> 208.8 | U64: =IF($J64="","",IF($N64="","DESCRIÇÃO",IF(AND($J64="Serviço",$O64=""),"UNIDADE",IF($T64<=0,"SEM VALOR",IF(AND($Y64<>"",$Q64>$Y64),"ACIMA REF.",""))))) ->  | V64: =IF(OR($A64=0,$A64="S",$A64>CFF!$A$9),"",MAX(V$12:OFFSET(V64,-1,0))+1) ->  | W64: =IF(AND($J64="Serviço",$M64<>""),IF($L64="",$M64,CONCATENATE($L64,"-",$M64))) -> SINAPI-I-36246 | X64: 70 | Y64: =IF(Import.Desoneracao="sim",Referencia.Desonerado,Referencia.NaoDesonerado) -> 5.7 | Z64: =ROUND(IF(ISNUMBER(R64),R64,IF(LEFT(R64,3)="BDI",HLOOKUP(R64,DADOS!$T$37:$X$38,2,FALSE),0)),15-11*$X$5) -> 0.3021
A65: =CHOOSE(1+LOG(1+2*(J65="Meta")+4*(J65="Nível 2")+8*(J65="Nível 3")+16*(J65="Nível 4")+32*(J65="Serviço"),2),0,1,2,3,4,"S") -> 2 | B65: =IF(OR(A65="S",A65=0),0,IF(ISERROR(I65),H65,SMALL(H65:I65,1))) -> 2 | C65: =IF($A65=1,OFFSET(C65,-1,0)+1,OFFSET(C65,-1,0)) -> 1 | D65: =IF($A65=1,0,IF($A65=2,OFFSET(D65,-1,0)+1,OFFSET(D65,-1,0))) -> 5 | E65: =IF(AND($A65<=2,$A65<>0),0,IF($A65=3,OFFSET(E65,-1,0)+1,OFFSET(E65,-1,0))) -> 0 | F65: =IF(AND($A65<=3,$A65<>0),0,IF($A65=4,OFFSET(F65,-1,0)+1,OFFSET(F65,-1,0))) -> 0 | G65: =IF(AND($A65<=4,$A65<>0),0,IF($A65="S",OFFSET(G65,-1,0)+1,OFFSET(G65,-1,0))) -> 0 | H65: 21 | I65: 2 | J65: Nível 2 | K65: =IF($A65=0,"-",CONCATENATE(C65&".",IF(AND($A$5>=2,$A65>=2),D65&".",""),IF(AND($A$5>=3,$A65>=3),E65&".",""),IF(AND($A$5>=4,$A65>=4),F65&".",""),IF($A65="S",G65&".",""))) -> 1.5. | N65: TRATAMENTO DE TRINCAS E FISSURAS | O65: =Referencia.Unidade ->  | P65: =OFFSET(PLQ!$E$12,ROW($P65)-ROW(P$12),0) -> 0 | R65: BDI 1 | S65: =IF($A65="S",IF($Q$10="Preço Unitário (R$)",PO.CustoUnitario,ROUND(PO.CustoUnitario*(1+$Z65),15-13*$X$6)),0) -> 0 | T65: =IF($A65="S",VTOTAL1,IF($A65=0,0,ROUND(SomaAgrup,15-13*$X$7))) -> 1115.7 | U65: =IF($J65="","",IF($N65="","DESCRIÇÃO",IF(AND($J65="Serviço",$O65=""),"UNIDADE",IF($T65<=0,"SEM VALOR",IF(AND($Y65<>"",$Q65>$Y65),"ACIMA REF.",""))))) ->  | V65: =IF(OR($A65=0,$A65="S",$A65>CFF!$A$9),"",MAX(V$12:OFFSET(V65,-1,0))+1) -> 6 | W65: =IF(AND($J65="Serviço",$M65<>""),IF($L65="",$M65,CONCATENATE($L65,"-",$M65))) -> FALSE | X65: X | Y65: =IF(Import.Desoneracao="sim",Referencia.Desonerado,Referencia.NaoDesonerado) -> 0 | Z65: =ROUND(IF(ISNUMBER(R65),R65,IF(LEFT(R65,3)="BDI",HLOOKUP(R65,DADOS!$T$37:$X$38,2,FALSE),0)),15-11*$X$5) -> 0.3021
A66: S | B66: 0 | C66: 1 | D66: 5 | E66: 0 | F66: 0 | G66: 1 | H66: 0 | I66: 0 | J66: Serviço | K66: 1.5.0.0.1. | L66: SINAPI | M66: 98556 | N66: IMPERMEABILIZAÇÃO DE SUPERFÍCIE COM ARGAMASSA POLIMÉRICA / MEMBRANA ACRÍLICA, 4 DEMÃOS, REFORÇADA COM VÉU DE POLIÉSTER (MAV). AF_09/2023 | O66: M2 | P66: =OFFSET(PLQ!$E$12,ROW($P66)-ROW(P$12),0) -> 15 | Q66: 57.12 | R66: BDI 1 | S66: =IF($A66="S",IF($Q$10="Preço Unitário (R$)",PO.CustoUnitario,ROUND(PO.CustoUnitario*(1+$Z66),15-13*$X$6)),0) -> 74.38 | T66: =IF($A66="S",VTOTAL1,IF($A66=0,0,ROUND(SomaAgrup,15-13*$X$7))) -> 1115.7 | V66: =IF(OR($A66=0,$A66="S",$A66>CFF!$A$9),"",MAX(V$12:OFFSET(V66,-1,0))+1) ->  | W66: SINAPI-98556 | X66: 10338 | Y66: =IF(Import.Desoneracao="sim",Referencia.Desonerado,Referencia.NaoDesonerado) -> 57.12 | Z66: =ROUND(IF(ISNUMBER(R66),R66,IF(LEFT(R66,3)="BDI",HLOOKUP(R66,DADOS!$T$37:$X$38,2,FALSE),0)),15-11*$X$5) -> 0.3021
A67: =CHOOSE(1+LOG(1+2*(J67="Meta")+4*(J67="Nível 2")+8*(J67="Nível 3")+16*(J67="Nível 4")+32*(J67="Serviço"),2),0,1,2,3,4,"S") -> 2 | B67: =IF(OR(A67="S",A67=0),0,IF(ISERROR(I67),H67,SMALL(H67:I67,1))) -> 12 | C67: =IF($A67=1,OFFSET(C67,-1,0)+1,OFFSET(C67,-1,0)) -> 1 | D67: =IF($A67=1,0,IF($A67=2,OFFSET(D67,-1,0)+1,OFFSET(D67,-1,0))) -> 6 | E67: =IF(AND($A67<=2,$A67<>0),0,IF($A67=3,OFFSET(E67,-1,0)+1,OFFSET(E67,-1,0))) -> 0 | F67: =IF(AND($A67<=3,$A67<>0),0,IF($A67=4,OFFSET(F67,-1,0)+1,OFFSET(F67,-1,0))) -> 0 | G67: =IF(AND($A67<=4,$A67<>0),0,IF($A67="S",OFFSET(G67,-1,0)+1,OFFSET(G67,-1,0))) -> 0 | H67: 19 | I67: 12 | J67: Nível 2 | K67: =IF($A67=0,"-",CONCATENATE(C67&".",IF(AND($A$5>=2,$A67>=2),D67&".",""),IF(AND($A$5>=3,$A67>=3),E67&".",""),IF(AND($A$5>=4,$A67>=4),F67&".",""),IF($A67="S",G67&".",""))) -> 1.6. | N67: ESQUADRIAS | O67: es | P67: =OFFSET(PLQ!$E$12,ROW($P67)-ROW(P$12),0) -> 0 | R67: BDI 1 | S67: =IF($A67="S",IF($Q$10="Preço Unitário (R$)",PO.CustoUnitario,ROUND(PO.CustoUnitario*(1+$Z67),15-13*$X$6)),0) -> 0 | T67: =IF($A67="S",VTOTAL1,IF($A67=0,0,ROUND(SomaAgrup,15-13*$X$7))) -> 93147.89 | U67: =IF($J67="","",IF($N67="","DESCRIÇÃO",IF(AND($J67="Serviço",$O67=""),"UNIDADE",IF($T67<=0,"SEM VALOR",IF(AND($Y67<>"",$Q67>$Y67),"ACIMA REF.",""))))) ->  | V67: =IF(OR($A67=0,$A67="S",$A67>CFF!$A$9),"",MAX(V$12:OFFSET(V67,-1,0))+1) -> 7 | W67: =IF(AND($J67="Serviço",$M67<>""),IF($L67="",$M67,CONCATENATE($L67,"-",$M67))) -> FALSE | X67: =IF(AND(Fonte<>"",Código<>""),MATCH(Fonte&" "&IF(Fonte="sinapi",SUBSTITUTE(SUBSTITUTE(Código,"/00","/"),"/0","/"),Código),INDIRECT("'[Referência "&_xlnm.Database&".xls]Banco'!$a:$a"),0),"X") -> X | Y67: =IF(Import.Desoneracao="sim",Referencia.Desonerado,Referencia.NaoDesonerado) -> 0 | Z67: =ROUND(IF(ISNUMBER(R67),R67,IF(LEFT(R67,3)="BDI",HLOOKUP(R67,DADOS!$T$37:$X$38,2,FALSE),0)),15-11*$X$5) -> 0.3021
A68: S | B68: 0 | C68: 1 | D68: 6 | E68: 0 | F68: 0 | G68: 1 | H68: 0 | I68: 0 | J68: Serviço | K68: 1.6.0.0.1. | L68: SINAPI | M68: 97644 | N68: REMOÇÃO DE PORTAS, DE FORMA MANUAL, SEM REAPROVEITAMENTO. AF_09/2023 | O68: M2 | P68: =OFFSET(PLQ!$E$12,ROW($P68)-ROW(P$12),0) -> 10 | Q68: 9.79 | R68: BDI 1 | S68: 12.75 | T68: 127.5 | V68: =IF(OR($A68=0,$A68="S",$A68>CFF!$A$9),"",MAX(V$12:OFFSET(V68,-1,0))+1) ->  | W68: SINAPI-97644 | X68: 7898 | Y68: =IF(Import.Desoneracao="sim",Referencia.Desonerado,Referencia.NaoDesonerado) -> 9.79 | Z68: =ROUND(IF(ISNUMBER(R68),R68,IF(LEFT(R68,3)="BDI",HLOOKUP(R68,DADOS!$T$37:$X$38,2,FALSE),0)),15-11*$X$5) -> 0.3021
A69: S | B69: 0 | C69: 1 | D69: 6 | E69: 0 | F69: 0 | G69: 2 | H69: 0 | I69: 0 | J69: Serviço | K69: 1.6.0.0.2. | L69: SINAPI | M69: 102191 | N69: REMOÇÃO DE VIDRO LISO COMUM DE ESQUADRIA COM BAGUETE DE ALUMÍNIO OU PVC. AF_01/2021 | O69: M2 | P69: =OFFSET(PLQ!$E$12,ROW($P69)-ROW(P$12),0) -> 29.4 | Q69: 22.39 | R69: BDI 1 | S69: 29.15 | T69: 857.01 | V69: =IF(OR($A69=0,$A69="S",$A69>CFF!$A$9),"",MAX(V$12:OFFSET(V69,-1,0))+1) ->  | W69: SINAPI-102191 | X69: 15637 | Y69: =IF(Import.Desoneracao="sim",Referencia.Desonerado,Referencia.NaoDesonerado) -> 22.39 | Z69: =ROUND(IF(ISNUMBER(R69),R69,IF(LEFT(R69,3)="BDI",HLOOKUP(R69,DADOS!$T$37:$X$38,2,FALSE),0)),15-11*$X$5) -> 0.3021
A70: S | B70: 0 | C70: 1 | D70: 6 | E70: 0 | F70: 0 | G70: 3 | H70: 0 | I70: 0 | J70: Serviço | K70: 1.6.0.0.3. | L70: COTAÇÃO | M70: RCV01 | N70: REMOÇÃO DE JANELAS DE ALUMÍNIO E VIDRO, COM REAPROVEITAMENTO, E REINSTALAÇÃO - INCLUSO MATERIAL PARA TODAS AS VEDAÇÕES NECESSÁRIAS | O70: M2 | P70: =OFFSET(PLQ!$E$12,ROW($P70)-ROW(P$12),0) -> 19.45 | Q70: 177.38 | R70: BDI 1 | S70: 230.97 | T70: 4492.37 | U70: ACIMA REF. | V70: =IF(OR($A70=0,$A70="S",$A70>CFF!$A$9),"",MAX(V$12:OFFSET(V70,-1,0))+1) ->  | W70: COTAÇÃO-RCV01 | X70: 17 | Y70: =IF(Import.Desoneracao="sim",Referencia.Desonerado,Referencia.NaoDesonerado) -> 0 | Z70: =ROUND(IF(ISNUMBER(R70),R70,IF(LEFT(R70,3)="BDI",HLOOKUP(R70,DADOS!$T$37:$X$38,2,FALSE),0)),15-11*$X$5) -> 0.3021
A71: S | B71: 0 | C71: 1 | D71: 6 | E71: 0 | F71: 0 | G71: 4 | H71: 0 | I71: 0 | J71: Serviço | K71: 1.6.0.0.4. | L71: COMPOSIÇÃO | M71: SINAPI97644ADAPTADO | N71: REMOÇÃO (COM REAPROVEITAMENTO) E REINSTALAÇÃO DE PORTA DE MADEIRA 3,40X210M - INCLUSO MATERIAIS NECESSÁRIOS PARA VEDAÇÃO | O71: M2 | P71: =OFFSET(PLQ!$E$12,ROW($P71)-ROW(P$12),0) -> 7.14 | Q71: 36.45 | R71: BDI 1 | S71: 47.46 | T71: 338.86 | V71: =IF(OR($A71=0,$A71="S",$A71>CFF!$A$9),"",MAX(V$12:OFFSET(V71,-1,0))+1) ->  | W71: COMPOSIÇÃO-SINAPI97644ADAPTADO | X71: 10 | Y71: =IF(Import.Desoneracao="sim",Referencia.Desonerado,Referencia.NaoDesonerado) -> 36.45 | Z71: =ROUND(IF(ISNUMBER(R71),R71,IF(LEFT(R71,3)="BDI",HLOOKUP(R71,DADOS!$T$37:$X$38,2,FALSE),0)),15-11*$X$5) -> 0.3021
A72: =CHOOSE(1+LOG(1+2*(J72="Meta")+4*(J72="Nível 2")+8*(J72="Nível 3")+16*(J72="Nível 4")+32*(J72="Serviço"),2),0,1,2,3,4,"S") -> S | B72: =IF(OR(A72="S",A72=0),0,IF(ISERROR(I72),H72,SMALL(H72:I72,1))) -> 0 | C72: =IF($A72=1,OFFSET(C72,-1,0)+1,OFFSET(C72,-1,0)) -> 1 | D72: =IF($A72=1,0,IF($A72=2,OFFSET(D72,-1,0)+1,OFFSET(D72,-1,0))) -> 6 | E72: =IF(AND($A72<=2,$A72<>0),0,IF($A72=3,OFFSET(E72,-1,0)+1,OFFSET(E72,-1,0))) -> 0 | F72: =IF(AND($A72<=3,$A72<>0),0,IF($A72=4,OFFSET(F72,-1,0)+1,OFFSET(F72,-1,0))) -> 0 | G72: =IF(AND($A72<=4,$A72<>0),0,IF($A72="S",OFFSET(G72,-1,0)+1,OFFSET(G72,-1,0))) -> 5 | H72: 0 | I72: 0 | J72: Serviço | K72: =IF($A72=0,"-",CONCATENATE(C72&".",IF(AND($A$5>=2,$A72>=2),D72&".",""),IF(AND($A$5>=3,$A72>=3),E72&".",""),IF(AND($A$5>=4,$A72>=4),F72&".",""),IF($A72="S",G72&".",""))) -> 1.6.0.0.5. | L72: SINAPI | M72: 98556 | N72: IMPERMEABILIZAÇÃO DE SUPERFÍCIE COM ARGAMASSA POLIMÉRICA / MEMBRANA ACRÍLICA, 4 DEMÃOS, REFORÇADA COM VÉU DE POLIÉSTER (MAV). AF_09/2023 | O72: M2 | P72: =OFFSET(PLQ!$E$12,ROW($P72)-ROW(P$12),0) -> 1.5 | Q72: 57.12 | R72: BDI 1 | S72: =IF($A72="S",IF($Q$10="Preço Unitário (R$)",PO.CustoUnitario,ROUND(PO.CustoUnitario*(1+$Z72),15-13*$X$6)),0) -> 74.38 | T72: =IF($A72="S",VTOTAL1,IF($A72=0,0,ROUND(SomaAgrup,15-13*$X$7))) -> 111.57 | U72: =IF($J72="","",IF($N72="","DESCRIÇÃO",IF(AND($J72="Serviço",$O72=""),"UNIDADE",IF($T72<=0,"SEM VALOR",IF(AND($Y72<>"",$Q72>$Y72),"ACIMA REF.",""))))) ->  | V72: =IF(OR($A72=0,$A72="S",$A72>CFF!$A$9),"",MAX(V$12:OFFSET(V72,-1,0))+1) ->  | W72: =IF(AND($J72="Serviço",$M72<>""),IF($L72="",$M72,CONCATENATE($L72,"-",$M72))) -> SINAPI-98556 | X72: =IF(AND(Fonte<>"",Código<>""),MATCH(Fonte&" "&IF(Fonte="sinapi",SUBSTITUTE(SUBSTITUTE(Código,"/00","/"),"/0","/"),Código),INDIRECT("'[Referência "&_xlnm.Database&".xls]Banco'!$a:$a"),0),"X") -> 10338 | Y72: =IF(Import.Desoneracao="sim",Referencia.Desonerado,Referencia.NaoDesonerado) -> 57.12 | Z72: =ROUND(IF(ISNUMBER(R72),R72,IF(LEFT(R72,3)="BDI",HLOOKUP(R72,DADOS!$T$37:$X$38,2,FALSE),0)),15-11*$X$5) -> 0.3021
A73: S | B73: 0 | C73: 1 | D73: 6 | E73: 0 | F73: 0 | G73: 6 | H73: 0 | I73: 0 | J73: Serviço | K73: 1.6.0.0.6. | L73: COTAÇÃO | M73: RCV02 | N73: PELE DE VIDRO LAMINADO REFLETIVO PRATA, ESPESSURA 4 MM + 4 MM - FORNECIMENTO E INSTALAÇÃO | O73: M2 | P73: =OFFSET(PLQ!$E$12,ROW($P73)-ROW(P$12),0) -> 28.67 | Q73: =Y73/P73 -> 1203.348448 | R73: BDI 1 | S73: 1566.88 | T73: 44922.45 | V73: =IF(OR($A73=0,$A73="S",$A73>CFF!$A$9),"",MAX(V$12:OFFSET(V73,-1,0))+1) ->  | W73: COTAÇÃO-RCV02 | X73: 18 | Y73: =IF(Import.Desoneracao="sim",Referencia.Desonerado,Referencia.NaoDesonerado) -> 34500 | Z73: =ROUND(IF(ISNUMBER(R73),R73,IF(LEFT(R73,3)="BDI",HLOOKUP(R73,DADOS!$T$37:$X$38,2,FALSE),0)),15-11*$X$5) -> 0.3021
A74: S | B74: 0 | C74: 1 | D74: 6 | E74: 0 | F74: 0 | G74: 7 | H74: 0 | I74: 0 | J74: Serviço | K74: 1.6.0.0.7. | L74: SINAPI | M74: 91338 | N74: PORTA DE ALUMÍNIO DE ABRIR COM LAMBRI, COM GUARNIÇÃO, FIXAÇÃO COM PARAFUSOS - FORNECIMENTO E INSTALAÇÃO. AF_12/2019 | O74: M2 | P74: =OFFSET(PLQ!$E$12,ROW($P74)-ROW(P$12),0) -> 17.22 | Q74: 1072.16 | R74: BDI 1 | S74: 1396.06 | T74: 24040.15 | V74: =IF(OR($A74=0,$A74="S",$A74>CFF!$A$9),"",MAX(V$12:OFFSET(V74,-1,0))+1) ->  | W74: SINAPI-91338 | X74: 9559 | Y74: =IF(Import.Desoneracao="sim",Referencia.Desonerado,Referencia.NaoDesonerado) -> 1072.16 | Z74: =ROUND(IF(ISNUMBER(R74),R74,IF(LEFT(R74,3)="BDI",HLOOKUP(R74,DADOS!$T$37:$X$38,2,FALSE),0)),15-11*$X$5) -> 0.3021
A75: S | B75: 0 | C75: 1 | D75: 6 | E75: 0 | F75: 0 | G75: 8 | H75: 0 | I75: 0 | J75: Serviço | K75: 1.6.0.0.8. | L75: COMPOSIÇÃO | M75: SINAPI98695ADAPTADA | N75: PEITORIL/SOLEIRA EM MÁRMORE, COM FRISO PINGADEIRA, LARGURA 20CM, ESPESSURA 2,0CM, COM SELAMENTO EM PU - FORNECIMENTO E INSTALAÇÃO | O75: M | P75: =OFFSET(PLQ!$E$12,ROW($P75)-ROW(P$12),0) -> 45.85 | Q75: 119.13 | R75: BDI 1 | S75: 155.12 | T75: 7112.25 | V75: =IF(OR($A75=0,$A75="S",$A75>CFF!$A$9),"",MAX(V$12:OFFSET(V75,-1,0))+1) ->  | W75: COMPOSIÇÃO-SINAPI98695ADAPTADA | X75: 9 | Y75: 119.13 | Z75: =ROUND(IF(ISNUMBER(R75),R75,IF(LEFT(R75,3)="BDI",HLOOKUP(R75,DADOS!$T$37:$X$38,2,FALSE),0)),15-11*$X$5) -> 0.3021
A76: S | B76: 0 | C76: 1 | D76: 6 | E76: 0 | F76: 0 | G76: 9 | H76: 0 | I76: 0 | J76: Serviço | K76: 1.6.0.0.9. | L76: SINAPI | M76: 105030 | N76: CONTRAVERGA MOLDADA IN LOCO EM CONCRETO, ESPESSURA DE *10* CM. AF_03/2024 | O76: M | P76: =OFFSET(PLQ!$E$12,ROW($P76)-ROW(P$12),0) -> 19.45 | Q76: 41 | R76: BDI 1 | S76: 53.39 | T76: 1038.44 | V76: =IF(OR($A76=0,$A76="S",$A76>CFF!$A$9),"",MAX(V$12:OFFSET(V76,-1,0))+1) ->  | W76: SINAPI-105030 | X76: =IF(AND(Fonte<>"",Código<>""),MATCH(Fonte&" "&IF(Fonte="sinapi",SUBSTITUTE(SUBSTITUTE(Código,"/00","/"),"/0","/"),Código),INDIRECT("'[Referência "&_xlnm.Database&".xls]Banco'!$a:$a"),0),"X") -> 15565 | Y76: =IF(Import.Desoneracao="sim",Referencia.Desonerado,Referencia.NaoDesonerado) -> 41 | Z76: =ROUND(IF(ISNUMBER(R76),R76,IF(LEFT(R76,3)="BDI",HLOOKUP(R76,DADOS!$T$37:$X$38,2,FALSE),0)),15-11*$X$5) -> 0.3021
A77: =CHOOSE(1+LOG(1+2*(J77="Meta")+4*(J77="Nível 2")+8*(J77="Nível 3")+16*(J77="Nível 4")+32*(J77="Serviço"),2),0,1,2,3,4,"S") -> S | B77: =IF(OR(A77="S",A77=0),0,IF(ISERROR(I77),H77,SMALL(H77:I77,1))) -> 0 | C77: =IF($A77=1,OFFSET(C77,-1,0)+1,OFFSET(C77,-1,0)) -> 1 | D77: =IF($A77=1,0,IF($A77=2,OFFSET(D77,-1,0)+1,OFFSET(D77,-1,0))) -> 6 | E77: =IF(AND($A77<=2,$A77<>0),0,IF($A77=3,OFFSET(E77,-1,0)+1,OFFSET(E77,-1,0))) -> 0 | F77: =IF(AND($A77<=3,$A77<>0),0,IF($A77=4,OFFSET(F77,-1,0)+1,OFFSET(F77,-1,0))) -> 0 | G77: =IF(AND($A77<=4,$A77<>0),0,IF($A77="S",OFFSET(G77,-1,0)+1,OFFSET(G77,-1,0))) -> 10 | H77: =IF(OR($A77="S",$A77=0),0,MATCH(0,OFFSET($B77,1,$A77,ROW($A$145)-ROW($A77)),0)) -> 0 | I77: =IF(OR($A77="S",$A77=0),0,MATCH(OFFSET($B77,0,$A77)+1,OFFSET($B77,1,$A77,ROW($A$145)-ROW($A77)),0)) -> 0 | J77: Serviço | K77: =IF($A77=0,"-",CONCATENATE(C77&".",IF(AND($A$5>=2,$A77>=2),D77&".",""),IF(AND($A$5>=3,$A77>=3),E77&".",""),IF(AND($A$5>=4,$A77>=4),F77&".",""),IF($A77="S",G77&".",""))) -> 1.6.0.0.10. | L77: COMPOSIÇÃO | M77: CONSORTE01 | N77: REQUADRO DE ESQUADRIA COM DEMOLIÇÃO E RECOMPOSIÇÃO DO REVESTIMENTO (BORDAS 30CM) | O77: M | P77: =OFFSET(PLQ!$E$12,ROW($P77)-ROW(P$12),0) -> 90.1 | Q77: 78.92 | R77: BDI 1 | S77: =IF($A77="S",IF($Q$10="Preço Unitário (R$)",PO.CustoUnitario,ROUND(PO.CustoUnitario*(1+$Z77),15-13*$X$6)),0) -> 102.76 | T77: =IF($A77="S",VTOTAL1,IF($A77=0,0,ROUND(SomaAgrup,15-13*$X$7))) -> 9258.68 | U77: =IF($J77="","",IF($N77="","DESCRIÇÃO",IF(AND($J77="Serviço",$O77=""),"UNIDADE",IF($T77<=0,"SEM VALOR",IF(AND($Y77<>"",$Q77>$Y77),"ACIMA REF.",""))))) ->  | V77: =IF(OR($A77=0,$A77="S",$A77>CFF!$A$9),"",MAX(V$12:OFFSET(V77,-1,0))+1) ->  | W77: =IF(AND($J77="Serviço",$M77<>""),IF($L77="",$M77,CONCATENATE($L77,"-",$M77))) -> COMPOSIÇÃO-CONSORTE01 | X77: =IF(AND(Fonte<>"",Código<>""),MATCH(Fonte&" "&IF(Fonte="sinapi",SUBSTITUTE(SUBSTITUTE(Código,"/00","/"),"/0","/"),Código),INDIRECT("'[Referência "&_xlnm.Database&".xls]Banco'!$a:$a"),0),"X") -> 11 | Y77: =IF(Import.Desoneracao="sim",Referencia.Desonerado,Referencia.NaoDesonerado) -> 78.92 | Z77: =ROUND(IF(ISNUMBER(R77),R77,IF(LEFT(R77,3)="BDI",HLOOKUP(R77,DADOS!$T$37:$X$38,2,FALSE),0)),15-11*$X$5) -> 0.3021
A78: =CHOOSE(1+LOG(1+2*(J78="Meta")+4*(J78="Nível 2")+8*(J78="Nível 3")+16*(J78="Nível 4")+32*(J78="Serviço"),2),0,1,2,3,4,"S") -> S | B78: =IF(OR(A78="S",A78=0),0,IF(ISERROR(I78),H78,SMALL(H78:I78,1))) -> 0 | C78: =IF($A78=1,OFFSET(C78,-1,0)+1,OFFSET(C78,-1,0)) -> 1 | D78: =IF($A78=1,0,IF($A78=2,OFFSET(D78,-1,0)+1,OFFSET(D78,-1,0))) -> 6 | E78: =IF(AND($A78<=2,$A78<>0),0,IF($A78=3,OFFSET(E78,-1,0)+1,OFFSET(E78,-1,0))) -> 0 | F78: =IF(AND($A78<=3,$A78<>0),0,IF($A78=4,OFFSET(F78,-1,0)+1,OFFSET(F78,-1,0))) -> 0 | G78: =IF(AND($A78<=4,$A78<>0),0,IF($A78="S",OFFSET(G78,-1,0)+1,OFFSET(G78,-1,0))) -> 11 | H78: 0 | I78: 0 | J78: Serviço | K78: =IF($A78=0,"-",CONCATENATE(C78&".",IF(AND($A$5>=2,$A78>=2),D78&".",""),IF(AND($A$5>=3,$A78>=3),E78&".",""),IF(AND($A$5>=4,$A78>=4),F78&".",""),IF($A78="S",G78&".",""))) -> 1.6.0.0.11. | L78: COMPOSIÇÃO | M78: CONSORTE03 | N78: REQUADRO DE ABERTURA PARA PELE DE VIDRO | O78: M | P78: =OFFSET(PLQ!$E$12,ROW($P78)-ROW(P$12),0) -> 21.5 | Q78: 30.31 | R78: BDI 1 | S78: 39.47 | T78: 848.61 | U78: =IF($J78="","",IF($N78="","DESCRIÇÃO",IF(AND($J78="Serviço",$O78=""),"UNIDADE",IF($T78<=0,"SEM VALOR",IF(AND($Y78<>"",$Q78>$Y78),"ACIMA REF.",""))))) ->  | V78: =IF(OR($A78=0,$A78="S",$A78>CFF!$A$9),"",MAX(V$12:OFFSET(V78,-1,0))+1) ->  | W78: =IF(AND($J78="Serviço",$M78<>""),IF($L78="",$M78,CONCATENATE($L78,"-",$M78))) -> COMPOSIÇÃO-CONSORTE03 | X78: 14 | Y78: =IF(Import.Desoneracao="sim",Referencia.Desonerado,Referencia.NaoDesonerado) -> 30.31 | Z78: =ROUND(IF(ISNUMBER(R78),R78,IF(LEFT(R78,3)="BDI",HLOOKUP(R78,DADOS!$T$37:$X$38,2,FALSE),0)),15-11*$X$5) -> 0.3021
A79: =CHOOSE(1+LOG(1+2*(J79="Meta")+4*(J79="Nível 2")+8*(J79="Nível 3")+16*(J79="Nível 4")+32*(J79="Serviço"),2),0,1,2,3,4,"S") -> 2 | B79: =IF(OR(A79="S",A79=0),0,IF(ISERROR(I79),H79,SMALL(H79:I79,1))) -> 4 | C79: =IF($A79=1,OFFSET(C79,-1,0)+1,OFFSET(C79,-1,0)) -> 1 | D79: =IF($A79=1,0,IF($A79=2,OFFSET(D79,-1,0)+1,OFFSET(D79,-1,0))) -> 7 | E79: =IF(AND($A79<=2,$A79<>0),0,IF($A79=3,OFFSET(E79,-1,0)+1,OFFSET(E79,-1,0))) -> 0 | F79: =IF(AND($A79<=3,$A79<>0),0,IF($A79=4,OFFSET(F79,-1,0)+1,OFFSET(F79,-1,0))) -> 0 | G79: =IF(AND($A79<=4,$A79<>0),0,IF($A79="S",OFFSET(G79,-1,0)+1,OFFSET(G79,-1,0))) -> 0 | H79: 7 | I79: 4 | J79: Nível 2 | K79: =IF($A79=0,"-",CONCATENATE(C79&".",IF(AND($A$5>=2,$A79>=2),D79&".",""),IF(AND($A$5>=3,$A79>=3),E79&".",""),IF(AND($A$5>=4,$A79>=4),F79&".",""),IF($A79="S",G79&".",""))) -> 1.7. | N79: CALÇADA EXTERNA DA FACHADA LESTE | O79: =Referencia.Unidade ->  | P79: =OFFSET(PLQ!$E$12,ROW($P79)-ROW(P$12),0) -> 0 | R79: BDI 1 | S79: 0 | T79: 2222.03 | U79: =IF($J79="","",IF($N79="","DESCRIÇÃO",IF(AND($J79="Serviço",$O79=""),"UNIDADE",IF($T79<=0,"SEM VALOR",IF(AND($Y79<>"",$Q79>$Y79),"ACIMA REF.",""))))) ->  | V79: =IF(OR($A79=0,$A79="S",$A79>CFF!$A$9),"",MAX(V$12:OFFSET(V79,-1,0))+1) -> 8 | W79: =IF(AND($J79="Serviço",$M79<>""),IF($L79="",$M79,CONCATENATE($L79,"-",$M79))) -> FALSE | X79: X | Y79: =IF(Import.Desoneracao="sim",Referencia.Desonerado,Referencia.NaoDesonerado) -> 0 | Z79: =ROUND(IF(ISNUMBER(R79),R79,IF(LEFT(R79,3)="BDI",HLOOKUP(R79,DADOS!$T$37:$X$38,2,FALSE),0)),15-11*$X$5) -> 0.3021
A80: =CHOOSE(1+LOG(1+2*(J80="Meta")+4*(J80="Nível 2")+8*(J80="Nível 3")+16*(J80="Nível 4")+32*(J80="Serviço"),2),0,1,2,3,4,"S") -> S | B80: =IF(OR(A80="S",A80=0),0,IF(ISERROR(I80),H80,SMALL(H80:I80,1))) -> 0 | C80: =IF($A80=1,OFFSET(C80,-1,0)+1,OFFSET(C80,-1,0)) -> 1 | D80: =IF($A80=1,0,IF($A80=2,OFFSET(D80,-1,0)+1,OFFSET(D80,-1,0))) -> 7 | E80: =IF(AND($A80<=2,$A80<>0),0,IF($A80=3,OFFSET(E80,-1,0)+1,OFFSET(E80,-1,0))) -> 0 | F80: =IF(AND($A80<=3,$A80<>0),0,IF($A80=4,OFFSET(F80,-1,0)+1,OFFSET(F80,-1,0))) -> 0 | G80: =IF(AND($A80<=4,$A80<>0),0,IF($A80="S",OFFSET(G80,-1,0)+1,OFFSET(G80,-1,0))) -> 1 | H80: 0 | I80: 0 | J80: Serviço | K80: =IF($A80=0,"-",CONCATENATE(C80&".",IF(AND($A$5>=2,$A80>=2),D80&".",""),IF(AND($A$5>=3,$A80>=3),E80&".",""),IF(AND($A$5>=4,$A80>=4),F80&".",""),IF($A80="S",G80&".",""))) -> 1.7.0.0.1. | L80: SINAPI | M80: 99814 | N80: LIMPEZA DE SUPERFÍCIE COM JATO DE ALTA PRESSÃO. AF_04/2019 | O80: M2 | P80: =OFFSET(PLQ!$E$12,ROW($P80)-ROW(P$12),0) -> 15.53 | Q80: 2.06 | R80: BDI 1 | S80: 2.68 | T80: 41.62 | U80: =IF($J80="","",IF($N80="","DESCRIÇÃO",IF(AND($J80="Serviço",$O80=""),"UNIDADE",IF($T80<=0,"SEM VALOR",IF(AND($Y80<>"",$Q80>$Y80),"ACIMA REF.",""))))) ->  | V80: =IF(OR($A80=0,$A80="S",$A80>CFF!$A$9),"",MAX(V$12:OFFSET(V80,-1,0))+1) ->  | W80: =IF(AND($J80="Serviço",$M80<>""),IF($L80="",$M80,CONCATENATE($L80,"-",$M80))) -> SINAPI-99814 | X80: 12794 | Y80: =IF(Import.Desoneracao="sim",Referencia.Desonerado,Referencia.NaoDesonerado) -> 2.06 | Z80: =ROUND(IF(ISNUMBER(R80),R80,IF(LEFT(R80,3)="BDI",HLOOKUP(R80,DADOS!$T$37:$X$38,2,FALSE),0)),15-11*$X$5) -> 0.3021
A81: S | B81: 0 | C81: 1 | D81: 7 | E81: 0 | F81: 0 | G81: 2 | H81: 0 | I81: 0 | J81: Serviço | K81: 1.7.0.0.2. | L81: SINAPI | M81: 98562 | N81: IMPERMEABILIZAÇÃO DE SUPERFÍCIE COM ARGAMASSA DE CIMENTO E AREIA, COM ADITIVO IMPERMEABILIZANTE, E = 1,5CM. AF_09/2023 | O81: M2 | P81: =OFFSET(PLQ!$E$12,ROW($P81)-ROW(P$12),0) -> 15.53 | Q81: 50.7 | R81: BDI 1 | S81: 66.02 | T81: 1025.29 | V81: =IF(OR($A81=0,$A81="S",$A81>CFF!$A$9),"",MAX(V$12:OFFSET(V81,-1,0))+1) ->  | W81: SINAPI-98562 | X81: 10336 | Y81: =IF(Import.Desoneracao="sim",Referencia.Desonerado,Referencia.NaoDesonerado) -> 50.7 | Z81: =ROUND(IF(ISNUMBER(R81),R81,IF(LEFT(R81,3)="BDI",HLOOKUP(R81,DADOS!$T$37:$X$38,2,FALSE),0)),15-11*$X$5) -> 0.3021
A82: S | B82: 0 | C82: 1 | D82: 7 | E82: 0 | F82: 0 | G82: 3 | H82: 0 | I82: 0 | J82: Serviço | K82: 1.7.0.0.3. | L82: SINAPI | M82: 98556 | N82: IMPERMEABILIZAÇÃO DE SUPERFÍCIE COM ARGAMASSA POLIMÉRICA / MEMBRANA ACRÍLICA, 4 DEMÃOS, REFORÇADA COM VÉU DE POLIÉSTER (MAV). AF_09/2023 | O82: M2 | P82: =OFFSET(PLQ!$E$12,ROW($P82)-ROW(P$12),0) -> 15.53 | Q82: 57.12 | R82: BDI 1 | S82: 74.38 | T82: 1155.12 | V82: =IF(OR($A82=0,$A82="S",$A82>CFF!$A$9),"",MAX(V$12:OFFSET(V82,-1,0))+1) ->  | W82: SINAPI-98556 | X82: 10338 | Y82: =IF(Import.Desoneracao="sim",Referencia.Desonerado,Referencia.NaoDesonerado) -> 57.12 | Z82: =ROUND(IF(ISNUMBER(R82),R82,IF(LEFT(R82,3)="BDI",HLOOKUP(R82,DADOS!$T$37:$X$38,2,FALSE),0)),15-11*$X$5) -> 0.3021
A83: 2 | B83: 3 | C83: 1 | D83: 8 | E83: 0 | F83: 0 | G83: 0 | H83: 3 | J83: Nível 2 | K83: 1.8. | N83: SERVIÇOS FINAIS | O83: =Referencia.Unidade ->  | P83: =OFFSET(PLQ!$E$12,ROW($P83)-ROW(P$12),0) -> 0 | R83: BDI 1 | S83: 0 | T83: 203.22 | V83: =IF(OR($A83=0,$A83="S",$A83>CFF!$A$9),"",MAX(V$12:OFFSET(V83,-1,0))+1) -> 9 | W83: FALSE | X83: X | Y83: =IF(Import.Desoneracao="sim",Referencia.Desonerado,Referencia.NaoDesonerado) -> 0 | Z83: =ROUND(IF(ISNUMBER(R83),R83,IF(LEFT(R83,3)="BDI",HLOOKUP(R83,DADOS!$T$37:$X$38,2,FALSE),0)),15-11*$X$5) -> 0.3021
A84: S | B84: 0 | C84: 1 | D84: 8 | E84: 0 | F84: 0 | G84: 1 | H84: 0 | I84: 0 | J84: Serviço | K84: 1.8.0.0.1. | L84: SINAPI | M84: 99820 | N84: LIMPEZA DE JANELA INTEIRAMENTE DE VIDRO. AF_04/2019 | O84: M2 | P84: =OFFSET(PLQ!$E$12,ROW($P84)-ROW(P$12),0) -> 48.12 | Q84: 2.21 | R84: BDI 1 | S84: 2.88 | T84: 138.59 | V84: =IF(OR($A84=0,$A84="S",$A84>CFF!$A$9),"",MAX(V$12:OFFSET(V84,-1,0))+1) ->  | W84: SINAPI-99820 | X84: 12775 | Y84: =IF(Import.Desoneracao="sim",Referencia.Desonerado,Referencia.NaoDesonerado) -> 2.21 | Z84: =ROUND(IF(ISNUMBER(R84),R84,IF(LEFT(R84,3)="BDI",HLOOKUP(R84,DADOS!$T$37:$X$38,2,FALSE),0)),15-11*$X$5) -> 0.3021
A85: =CHOOSE(1+LOG(1+2*(J85="Meta")+4*(J85="Nível 2")+8*(J85="Nível 3")+16*(J85="Nível 4")+32*(J85="Serviço"),2),0,1,2,3,4,"S") -> S | B85: =IF(OR(A85="S",A85=0),0,IF(ISERROR(I85),H85,SMALL(H85:I85,1))) -> 0 | C85: =IF($A85=1,OFFSET(C85,-1,0)+1,OFFSET(C85,-1,0)) -> 1 | D85: =IF($A85=1,0,IF($A85=2,OFFSET(D85,-1,0)+1,OFFSET(D85,-1,0))) -> 8 | E85: =IF(AND($A85<=2,$A85<>0),0,IF($A85=3,OFFSET(E85,-1,0)+1,OFFSET(E85,-1,0))) -> 0 | F85: =IF(AND($A85<=3,$A85<>0),0,IF($A85=4,OFFSET(F85,-1,0)+1,OFFSET(F85,-1,0))) -> 0 | G85: =IF(AND($A85<=4,$A85<>0),0,IF($A85="S",OFFSET(G85,-1,0)+1,OFFSET(G85,-1,0))) -> 2 | H85: 0 | I85: 0 | J85: Serviço | K85: =IF($A85=0,"-",CONCATENATE(C85&".",IF(AND($A$5>=2,$A85>=2),D85&".",""),IF(AND($A$5>=3,$A85>=3),E85&".",""),IF(AND($A$5>=4,$A85>=4),F85&".",""),IF($A85="S",G85&".",""))) -> 1.8.0.0.2. | L85: SINAPI | M85: 99803 | N85: LIMPEZA DE PISO CERÂMICO OU PORCELANATO COM PANO ÚMIDO. AF_04/2019 | O85: M2 | P85: =OFFSET(PLQ!$E$12,ROW($P85)-ROW(P$12),0) -> 23 | Q85: 2.16 | R85: BDI 1 | S85: =IF($A85="S",IF($Q$10="Preço Unitário (R$)",PO.CustoUnitario,ROUND(PO.CustoUnitario*(1+$Z85),15-13*$X$6)),0) -> 2.81 | T85: =IF($A85="S",VTOTAL1,IF($A85=0,0,ROUND(SomaAgrup,15-13*$X$7))) -> 64.63 | U85: =IF($J85="","",IF($N85="","DESCRIÇÃO",IF(AND($J85="Serviço",$O85=""),"UNIDADE",IF($T85<=0,"SEM VALOR",IF(AND($Y85<>"",$Q85>$Y85),"ACIMA REF.",""))))) ->  | V85: =IF(OR($A85=0,$A85="S",$A85>CFF!$A$9),"",MAX(V$12:OFFSET(V85,-1,0))+1) ->  | W85: =IF(AND($J85="Serviço",$M85<>""),IF($L85="",$M85,CONCATENATE($L85,"-",$M85))) -> SINAPI-99803 | X85: =IF(AND(Fonte<>"",Código<>""),MATCH(Fonte&" "&IF(Fonte="sinapi",SUBSTITUTE(SUBSTITUTE(Código,"/00","/"),"/0","/"),Código),INDIRECT("'[Referência "&_xlnm.Database&".xls]Banco'!$a:$a"),0),"X") -> 12781 | Y85: =IF(Import.Desoneracao="sim",Referencia.Desonerado,Referencia.NaoDesonerado) -> 2.16 | Z85: =ROUND(IF(ISNUMBER(R85),R85,IF(LEFT(R85,3)="BDI",HLOOKUP(R85,DADOS!$T$37:$X$38,2,FALSE),0)),15-11*$X$5) -> 0.3021
A86: 1 | B86: 51 | C86: 2 | D86: 0 | E86: 0 | F86: 0 | G86: 0 | H86: 59 | I86: 51 | J86: Meta | K86: 2. | N86: LOTE 1 - 2ª ETAPA DA REFORMA | O86: =Referencia.Unidade ->  | P86: =OFFSET(PLQ!$E$12,ROW($P86)-ROW(P$12),0) -> 0 | R86: BDI 1 | S86: 0 | T86: 207612.74 | V86: =IF(OR($A86=0,$A86="S",$A86>CFF!$A$9),"",MAX(V$12:OFFSET(V86,-1,0))+1) -> 10 | W86: FALSE | X86: =IF(AND(Fonte<>"",Código<>""),MATCH(Fonte&" "&IF(Fonte="sinapi",SUBSTITUTE(SUBSTITUTE(Código,"/00","/"),"/0","/"),Código),INDIRECT("'[Referência "&_xlnm.Database&".xls]Banco'!$a:$a"),0),"X") -> X | Y86: =IF(Import.Desoneracao="sim",Referencia.Desonerado,Referencia.NaoDesonerado) -> 0 | Z86: =ROUND(IF(ISNUMBER(R86),R86,IF(LEFT(R86,3)="BDI",HLOOKUP(R86,DADOS!$T$37:$X$38,2,FALSE),0)),15-11*$X$5) -> 0.3021
A87: 2 | B87: 2 | C87: 2 | D87: 1 | E87: 0 | F87: 0 | G87: 0 | H87: 50 | I87: 2 | J87: Nível 2 | K87: 2.1. | N87: SERVIÇOS INICIAIS | O87: =Referencia.Unidade ->  | P87: =OFFSET(PLQ!$E$12,ROW($P87)-ROW(P$12),0) -> 0 | R87: BDI 1 | S87: 0 | T87: 6761.2 | V87: =IF(OR($A87=0,$A87="S",$A87>CFF!$A$9),"",MAX(V$12:OFFSET(V87,-1,0))+1) -> 11 | W87: FALSE | X87: X | Y87: =IF(Import.Desoneracao="sim",Referencia.Desonerado,Referencia.NaoDesonerado) -> 0 | Z87: =ROUND(IF(ISNUMBER(R87),R87,IF(LEFT(R87,3)="BDI",HLOOKUP(R87,DADOS!$T$37:$X$38,2,FALSE),0)),15-11*$X$5) -> 0.3021
A88: S | B88: 0 | C88: 2 | D88: 1 | E88: 0 | F88: 0 | G88: 1 | H88: 0 | I88: 0 | J88: Serviço | K88: 2.1.0.0.1. | L88: COMPOSIÇÃO | M88: CONSORTE02 | N88: ADMINSTRAÇÃO LOCAL | O88: MÊS | P88: =OFFSET(PLQ!$E$12,ROW($P88)-ROW(P$12),0) -> 2 | Q88: 2596.27 | R88: BDI 1 | S88: 3380.6 | T88: 6761.2 | V88: =IF(OR($A88=0,$A88="S",$A88>CFF!$A$9),"",MAX(V$12:OFFSET(V88,-1,0))+1) ->  | W88: COMPOSIÇÃO-CONSORTE02 | X88: 13 | Y88: =IF(Import.Desoneracao="sim",Referencia.Desonerado,Referencia.NaoDesonerado) -> 2596.27 | Z88: =ROUND(IF(ISNUMBER(R88),R88,IF(LEFT(R88,3)="BDI",HLOOKUP(R88,DADOS!$T$37:$X$38,2,FALSE),0)),15-11*$X$5) -> 0.3021
A89: =CHOOSE(1+LOG(1+2*(J89="Meta")+4*(J89="Nível 2")+8*(J89="Nível 3")+16*(J89="Nível 4")+32*(J89="Serviço"),2),0,1,2,3,4,"S") -> 2 | B89: =IF(OR(A89="S",A89=0),0,IF(ISERROR(I89),H89,SMALL(H89:I89,1))) -> 5 | C89: =IF($A89=1,OFFSET(C89,-1,0)+1,OFFSET(C89,-1,0)) -> 2 | D89: =IF($A89=1,0,IF($A89=2,OFFSET(D89,-1,0)+1,OFFSET(D89,-1,0))) -> 2 | E89: =IF(AND($A89<=2,$A89<>0),0,IF($A89=3,OFFSET(E89,-1,0)+1,OFFSET(E89,-1,0))) -> 0 | F89: =IF(AND($A89<=3,$A89<>0),0,IF($A89=4,OFFSET(F89,-1,0)+1,OFFSET(F89,-1,0))) -> 0 | G89: =IF(AND($A89<=4,$A89<>0),0,IF($A89="S",OFFSET(G89,-1,0)+1,OFFSET(G89,-1,0))) -> 0 | H89: 48 | I89: 5 | J89: Nível 2 | K89: =IF($A89=0,"-",CONCATENATE(C89&".",IF(AND($A$5>=2,$A89>=2),D89&".",""),IF(AND($A$5>=3,$A89>=3),E89&".",""),IF(AND($A$5>=4,$A89>=4),F89&".",""),IF($A89="S",G89&".",""))) -> 2.2. | N89: ESCADA | O89: =Referencia.Unidade ->  | P89: =OFFSET(PLQ!$E$12,ROW($P89)-ROW(P$12),0) -> 0 | R89: BDI 1 | S89: 0 | T89: 16481.86 | U89: =IF($J89="","",IF($N89="","DESCRIÇÃO",IF(AND($J89="Serviço",$O89=""),"UNIDADE",IF($T89<=0,"SEM VALOR",IF(AND($Y89<>"",$Q89>$Y89),"ACIMA REF.",""))))) ->  | V89: =IF(OR($A89=0,$A89="S",$A89>CFF!$A$9),"",MAX(V$12:OFFSET(V89,-1,0))+1) -> 12 | W89: =IF(AND($J89="Serviço",$M89<>""),IF($L89="",$M89,CONCATENATE($L89,"-",$M89))) -> FALSE | X89: X | Y89: =IF(Import.Desoneracao="sim",Referencia.Desonerado,Referencia.NaoDesonerado) -> 0 | Z89: =ROUND(IF(ISNUMBER(R89),R89,IF(LEFT(R89,3)="BDI",HLOOKUP(R89,DADOS!$T$37:$X$38,2,FALSE),0)),15-11*$X$5) -> 0.3021
A90: S | B90: 0 | C90: 2 | D90: 2 | E90: 0 | F90: 0 | G90: 1 | H90: 0 | I90: 0 | J90: Serviço | K90: 2.2.0.0.1. | L90: SINAPI | M90: 97629 | N90: DEMOLIÇÃO DE LAJES, EM CONCRETO ARMADO, DE FORMA MECANIZADA COM MARTELETE, SEM REAPROVEITAMENTO. AF_09/2023 | O90: M3 | P90: =OFFSET(PLQ!$E$12,ROW($P90)-ROW(P$12),0) -> 2.81 | Q90: 110.73 | R90: BDI 1 | S90: 144.18 | T90: 405.15 | V90: =IF(OR($A90=0,$A90="S",$A90>CFF!$A$9),"",MAX(V$12:OFFSET(V90,-1,0))+1) ->  | W90: SINAPI-97629 | X90: 7867 | Y90: =IF(Import.Desoneracao="sim",Referencia.Desonerado,Referencia.NaoDesonerado) -> 110.73 | Z90: =ROUND(IF(ISNUMBER(R90),R90,IF(LEFT(R90,3)="BDI",HLOOKUP(R90,DADOS!$T$37:$X$38,2,FALSE),0)),15-11*$X$5) -> 0.3021
A91: =CHOOSE(1+LOG(1+2*(J91="Meta")+4*(J91="Nível 2")+8*(J91="Nível 3")+16*(J91="Nível 4")+32*(J91="Serviço"),2),0,1,2,3,4,"S") -> S | B91: =IF(OR(A91="S",A91=0),0,IF(ISERROR(I91),H91,SMALL(H91:I91,1))) -> 0 | C91: =IF($A91=1,OFFSET(C91,-1,0)+1,OFFSET(C91,-1,0)) -> 2 | D91: =IF($A91=1,0,IF($A91=2,OFFSET(D91,-1,0)+1,OFFSET(D91,-1,0))) -> 2 | E91: =IF(AND($A91<=2,$A91<>0),0,IF($A91=3,OFFSET(E91,-1,0)+1,OFFSET(E91,-1,0))) -> 0 | F91: =IF(AND($A91<=3,$A91<>0),0,IF($A91=4,OFFSET(F91,-1,0)+1,OFFSET(F91,-1,0))) -> 0 | G91: =IF(AND($A91<=4,$A91<>0),0,IF($A91="S",OFFSET(G91,-1,0)+1,OFFSET(G91,-1,0))) -> 2 | H91: 0 | I91: 0 | J91: Serviço | K91: =IF($A91=0,"-",CONCATENATE(C91&".",IF(AND($A$5>=2,$A91>=2),D91&".",""),IF(AND($A$5>=3,$A91>=3),E91&".",""),IF(AND($A$5>=4,$A91>=4),F91&".",""),IF($A91="S",G91&".",""))) -> 2.2.0.0.2. | L91: COMPOSIÇÃO | M91: SINAPI100209ADAPTADA | N91: TRANSPORTE MANUAL DE REVESTIMENTOS ARGAMASSADOS REMOVIDOS COM CARRINHO DE MÃO 45L - INCLUSO CARGA E DESCARGA | O91: M3XKM | P91: =OFFSET(PLQ!$E$12,ROW($P91)-ROW(P$12),0) -> 2.81 | Q91: 145.34 | R91: BDI 1 | S91: =IF($A91="S",IF($Q$10="Preço Unitário (R$)",PO.CustoUnitario,ROUND(PO.CustoUnitario*(1+$Z91),15-13*$X$6)),0) -> 189.25 | T91: =IF($A91="S",VTOTAL1,IF($A91=0,0,ROUND(SomaAgrup,15-13*$X$7))) -> 531.79 | U91: =IF($J91="","",IF($N91="","DESCRIÇÃO",IF(AND($J91="Serviço",$O91=""),"UNIDADE",IF($T91<=0,"SEM VALOR",IF(AND($Y91<>"",$Q91>$Y91),"ACIMA REF.",""))))) ->  | V91: =IF(OR($A91=0,$A91="S",$A91>CFF!$A$9),"",MAX(V$12:OFFSET(V91,-1,0))+1) ->  | W91: =IF(AND($J91="Serviço",$M91<>""),IF($L91="",$M91,CONCATENATE($L91,"-",$M91))) -> COMPOSIÇÃO-SINAPI100209ADAPTADA | X91: =IF(AND(Fonte<>"",Código<>""),MATCH(Fonte&" "&IF(Fonte="sinapi",SUBSTITUTE(SUBSTITUTE(Código,"/00","/"),"/0","/"),Código),INDIRECT("'[Referência "&_xlnm.Database&".xls]Banco'!$a:$a"),0),"X") -> 12 | Y91: =IF(Import.Desoneracao="sim",Referencia.Desonerado,Referencia.NaoDesonerado) -> 145.34 | Z91: =ROUND(IF(ISNUMBER(R91),R91,IF(LEFT(R91,3)="BDI",HLOOKUP(R91,DADOS!$T$37:$X$38,2,FALSE),0)),15-11*$X$5) -> 0.3021
A92: =CHOOSE(1+LOG(1+2*(J92="Meta")+4*(J92="Nível 2")+8*(J92="Nível 3")+16*(J92="Nível 4")+32*(J92="Serviço"),2),0,1,2,3,4,"S") -> S | B92: =IF(OR(A92="S",A92=0),0,IF(ISERROR(I92),H92,SMALL(H92:I92,1))) -> 0 | C92: =IF($A92=1,OFFSET(C92,-1,0)+1,OFFSET(C92,-1,0)) -> 2 | D92: =IF($A92=1,0,IF($A92=2,OFFSET(D92,-1,0)+1,OFFSET(D92,-1,0))) -> 2 | E92: =IF(AND($A92<=2,$A92<>0),0,IF($A92=3,OFFSET(E92,-1,0)+1,OFFSET(E92,-1,0))) -> 0 | F92: =IF(AND($A92<=3,$A92<>0),0,IF($A92=4,OFFSET(F92,-1,0)+1,OFFSET(F92,-1,0))) -> 0 | G92: =IF(AND($A92<=4,$A92<>0),0,IF($A92="S",OFFSET(G92,-1,0)+1,OFFSET(G92,-1,0))) -> 3 | H92: 0 | I92: 0 | J92: Serviço | K92: =IF($A92=0,"-",CONCATENATE(C92&".",IF(AND($A$5>=2,$A92>=2),D92&".",""),IF(AND($A$5>=3,$A92>=3),E92&".",""),IF(AND($A$5>=4,$A92>=4),F92&".",""),IF($A92="S",G92&".",""))) -> 2.2.0.0.3. | L92: COMPOSIÇÃO | M92: SINAPI102074ADAPTADA | N92: ESCADA EM CONCRETO ARMADO MOLDADO IN LOCO, FCK 25 MPA, APENAS PISANTES, SEM ARMADURA, FÔRMA EM CHAPA DE MADEIRA COMPENSADA RESINADA. | O92: M³ | P92: =OFFSET(PLQ!$E$12,ROW($P92)-ROW(P$12),0) -> 1.83 | Q92: 3185.06 | R92: BDI 1 | S92: =IF($A92="S",IF($Q$10="Preço Unitário (R$)",PO.CustoUnitario,ROUND(PO.CustoUnitario*(1+$Z92),15-13*$X$6)),0) -> 4147.27 | T92: =IF($A92="S",VTOTAL1,IF($A92=0,0,ROUND(SomaAgrup,15-13*$X$7))) -> 7589.5 | U92: =IF($J92="","",IF($N92="","DESCRIÇÃO",IF(AND($J92="Serviço",$O92=""),"UNIDADE",IF($T92<=0,"SEM VALOR",IF(AND($Y92<>"",$Q92>$Y92),"ACIMA REF.",""))))) ->  | V92: =IF(OR($A92=0,$A92="S",$A92>CFF!$A$9),"",MAX(V$12:OFFSET(V92,-1,0))+1) ->  | W92: =IF(AND($J92="Serviço",$M92<>""),IF($L92="",$M92,CONCATENATE($L92,"-",$M92))) -> COMPOSIÇÃO-SINAPI102074ADAPTADA | X92: =IF(AND(Fonte<>"",Código<>""),MATCH(Fonte&" "&IF(Fonte="sinapi",SUBSTITUTE(SUBSTITUTE(Código,"/00","/"),"/0","/"),Código),INDIRECT("'[Referência "&_xlnm.Database&".xls]Banco'!$a:$a"),0),"X") -> 15 | Y92: =IF(Import.Desoneracao="sim",Referencia.Desonerado,Referencia.NaoDesonerado) -> 3185.06 | Z92: =ROUND(IF(ISNUMBER(R92),R92,IF(LEFT(R92,3)="BDI",HLOOKUP(R92,DADOS!$T$37:$X$38,2,FALSE),0)),15-11*$X$5) -> 0.3021
A93: S | B93: 0 | C93: 2 | D93: 2 | E93: 0 | F93: 0 | G93: 4 | H93: 0 | I93: 0 | J93: Serviço | K93: 2.2.0.0.4. | L93: SINAPI | M93: 98671 | N93: PISO EM GRANITO APLICADO EM AMBIENTES INTERNOS. AF_09/2020 | O93: M2 | P93: =OFFSET(PLQ!$E$12,ROW($P93)-ROW(P$12),0) -> 13.8 | Q93: 442.73 | R93: BDI 1 | S93: 576.48 | T93: 7955.42 | V93: =IF(OR($A93=0,$A93="S",$A93>CFF!$A$9),"",MAX(V$12:OFFSET(V93,-1,0))+1) ->  | W93: SINAPI-98671 | X93: 14036 | Y93: =IF(Import.Desoneracao="sim",Referencia.Desonerado,Referencia.NaoDesonerado) -> 442.73 | Z93: =ROUND(IF(ISNUMBER(R93),R93,IF(LEFT(R93,3)="BDI",HLOOKUP(R93,DADOS!$T$37:$X$38,2,FALSE),0)),15-11*$X$5) -> 0.3021
A94: =CHOOSE(1+LOG(1+2*(J94="Meta")+4*(J94="Nível 2")+8*(J94="Nível 3")+16*(J94="Nível 4")+32*(J94="Serviço"),2),0,1,2,3,4,"S") -> 2 | B94: =IF(OR(A94="S",A94=0),0,IF(ISERROR(I94),H94,SMALL(H94:I94,1))) -> 13 | C94: =IF($A94=1,OFFSET(C94,-1,0)+1,OFFSET(C94,-1,0)) -> 2 | D94: =IF($A94=1,0,IF($A94=2,OFFSET(D94,-1,0)+1,OFFSET(D94,-1,0))) -> 3 | E94: =IF(AND($A94<=2,$A94<>0),0,IF($A94=3,OFFSET(E94,-1,0)+1,OFFSET(E94,-1,0))) -> 0 | F94: =IF(AND($A94<=3,$A94<>0),0,IF($A94=4,OFFSET(F94,-1,0)+1,OFFSET(F94,-1,0))) -> 0 | G94: =IF(AND($A94<=4,$A94<>0),0,IF($A94="S",OFFSET(G94,-1,0)+1,OFFSET(G94,-1,0))) -> 0 | H94: 43 | I94: 13 | J94: Nível 2 | K94: =IF($A94=0,"-",CONCATENATE(C94&".",IF(AND($A$5>=2,$A94>=2),D94&".",""),IF(AND($A$5>=3,$A94>=3),E94&".",""),IF(AND($A$5>=4,$A94>=4),F94&".",""),IF($A94="S",G94&".",""))) -> 2.3. | N94: INSTALAÇÕES ELÉTRICAS | O94: =Referencia.Unidade ->  | P94: =OFFSET(PLQ!$E$12,ROW($P94)-ROW(P$12),0) -> 0 | R94: BDI 1 | S94: 0 | T94: 5694.26 | U94: =IF($J94="","",IF($N94="","DESCRIÇÃO",IF(AND($J94="Serviço",$O94=""),"UNIDADE",IF($T94<=0,"SEM VALOR",IF(AND($Y94<>"",$Q94>$Y94),"ACIMA REF.",""))))) ->  | V94: =IF(OR($A94=0,$A94="S",$A94>CFF!$A$9),"",MAX(V$12:OFFSET(V94,-1,0))+1) -> 13 | W94: =IF(AND($J94="Serviço",$M94<>""),IF($L94="",$M94,CONCATENATE($L94,"-",$M94))) -> FALSE | X94: X | Y94: =IF(Import.Desoneracao="sim",Referencia.Desonerado,Referencia.NaoDesonerado) -> 0 | Z94: =ROUND(IF(ISNUMBER(R94),R94,IF(LEFT(R94,3)="BDI",HLOOKUP(R94,DADOS!$T$37:$X$38,2,FALSE),0)),15-11*$X$5) -> 0.3021
A95: =CHOOSE(1+LOG(1+2*(J95="Meta")+4*(J95="Nível 2")+8*(J95="Nível 3")+16*(J95="Nível 4")+32*(J95="Serviço"),2),0,1,2,3,4,"S") -> S | B95: =IF(OR(A95="S",A95=0),0,IF(ISERROR(I95),H95,SMALL(H95:I95,1))) -> 0 | C95: =IF($A95=1,OFFSET(C95,-1,0)+1,OFFSET(C95,-1,0)) -> 2 | D95: =IF($A95=1,0,IF($A95=2,OFFSET(D95,-1,0)+1,OFFSET(D95,-1,0))) -> 3 | E95: =IF(AND($A95<=2,$A95<>0),0,IF($A95=3,OFFSET(E95,-1,0)+1,OFFSET(E95,-1,0))) -> 0 | F95: =IF(AND($A95<=3,$A95<>0),0,IF($A95=4,OFFSET(F95,-1,0)+1,OFFSET(F95,-1,0))) -> 0 | G95: =IF(AND($A95<=4,$A95<>0),0,IF($A95="S",OFFSET(G95,-1,0)+1,OFFSET(G95,-1,0))) -> 1 | H95: 0 | I95: 0 | J95: Serviço | K95: =IF($A95=0,"-",CONCATENATE(C95&".",IF(AND($A$5>=2,$A95>=2),D95&".",""),IF(AND($A$5>=3,$A95>=3),E95&".",""),IF(AND($A$5>=4,$A95>=4),F95&".",""),IF($A95="S",G95&".",""))) -> 2.3.0.0.1. | L95: COTAÇÃO | M95: RCV05 | N95: LUMINÁRIA LED PLAFON EMBUTIR 24W - FORNECIMENTO E INSTALAÇÃO | O95: UN | P95: =OFFSET(PLQ!$E$12,ROW($P95)-ROW(P$12),0) -> 44 | Q95: =Y95/1.3021 -> 0 | R95: BDI 1 | S95: 0 | T95: 0 | U95: =IF($J95="","",IF($N95="","DESCRIÇÃO",IF(AND($J95="Serviço",$O95=""),"UNIDADE",IF($T95<=0,"SEM VALOR",IF(AND($Y95<>"",$Q95>$Y95),"ACIMA REF.",""))))) -> SEM VALOR | V95: =IF(OR($A95=0,$A95="S",$A95>CFF!$A$9),"",MAX(V$12:OFFSET(V95,-1,0))+1) ->  | W95: =IF(AND($J95="Serviço",$M95<>""),IF($L95="",$M95,CONCATENATE($L95,"-",$M95))) -> COTAÇÃO-RCV05 | X95: 21 | Y95: =IF(Import.Desoneracao="sim",Referencia.Desonerado,Referencia.NaoDesonerado) -> 0 | Z95: =ROUND(IF(ISNUMBER(R95),R95,IF(LEFT(R95,3)="BDI",HLOOKUP(R95,DADOS!$T$37:$X$38,2,FALSE),0)),15-11*$X$5) -> 0.3021
A96: S | B96: 0 | C96: 2 | D96: 3 | E96: 0 | F96: 0 | G96: 2 | H96: 0 | I96: 0 | J96: Serviço | K96: 2.3.0.0.2. | L96: SINAPI | M96: 91845 | N96: ELETRODUTO FLEXÍVEL CORRUGADO REFORÇADO, PVC, DN 25 MM (3/4"), PARA CIRCUITOS TERMINAIS, INSTALADO EM LAJE - FORNECIMENTO E INSTALAÇÃO. AF_03/2023 | O96: M | P96: =OFFSET(PLQ!$E$12,ROW($P96)-ROW(P$12),0) -> 70 | Q96: 9.65 | R96: BDI 1 | S96: 12.57 | T96: 879.9 | V96: =IF(OR($A96=0,$A96="S",$A96>CFF!$A$9),"",MAX(V$12:OFFSET(V96,-1,0))+1) ->  | W96: SINAPI-91845 | X96: 10433 | Y96: =IF(Import.Desoneracao="sim",Referencia.Desonerado,Referencia.NaoDesonerado) -> 9.65 | Z96: =ROUND(IF(ISNUMBER(R96),R96,IF(LEFT(R96,3)="BDI",HLOOKUP(R96,DADOS!$T$37:$X$38,2,FALSE),0)),15-11*$X$5) -> 0.3021
A97: =CHOOSE(1+LOG(1+2*(J97="Meta")+4*(J97="Nível 2")+8*(J97="Nível 3")+16*(J97="Nível 4")+32*(J97="Serviço"),2),0,1,2,3,4,"S") -> S | B97: =IF(OR(A97="S",A97=0),0,IF(ISERROR(I97),H97,SMALL(H97:I97,1))) -> 0 | C97: =IF($A97=1,OFFSET(C97,-1,0)+1,OFFSET(C97,-1,0)) -> 2 | D97: =IF($A97=1,0,IF($A97=2,OFFSET(D97,-1,0)+1,OFFSET(D97,-1,0))) -> 3 | E97: =IF(AND($A97<=2,$A97<>0),0,IF($A97=3,OFFSET(E97,-1,0)+1,OFFSET(E97,-1,0))) -> 0 | F97: =IF(AND($A97<=3,$A97<>0),0,IF($A97=4,OFFSET(F97,-1,0)+1,OFFSET(F97,-1,0))) -> 0 | G97: =IF(AND($A97<=4,$A97<>0),0,IF($A97="S",OFFSET(G97,-1,0)+1,OFFSET(G97,-1,0))) -> 3 | H97: 0 | I97: 0 | J97: Serviço | K97: =IF($A97=0,"-",CONCATENATE(C97&".",IF(AND($A$5>=2,$A97>=2),D97&".",""),IF(AND($A$5>=3,$A97>=3),E97&".",""),IF(AND($A$5>=4,$A97>=4),F97&".",""),IF($A97="S",G97&".",""))) -> 2.3.0.0.3. | L97: SINAPI | M97: 95728 | N97: ELETRODUTO RÍGIDO SOLDÁVEL, PVC, DN 32 MM (1"), APARENTE - FORNECIMENTO E INSTALAÇÃO. AF_10/2022 | O97: M | P97: =OFFSET(PLQ!$E$12,ROW($P97)-ROW(P$12),0) -> 7 | Q97: 27.97 | R97: BDI 1 | S97: =IF($A97="S",IF($Q$10="Preço Unitário (R$)",PO.CustoUnitario,ROUND(PO.CustoUnitario*(1+$Z97),15-13*$X$6)),0) -> 36.42 | T97: =IF($A97="S",VTOTAL1,IF($A97=0,0,ROUND(SomaAgrup,15-13*$X$7))) -> 254.94 | U97: =IF($J97="","",IF($N97="","DESCRIÇÃO",IF(AND($J97="Serviço",$O97=""),"UNIDADE",IF($T97<=0,"SEM VALOR",IF(AND($Y97<>"",$Q97>$Y97),"ACIMA REF.",""))))) ->  | V97: =IF(OR($A97=0,$A97="S",$A97>CFF!$A$9),"",MAX(V$12:OFFSET(V97,-1,0))+1) ->  | W97: =IF(AND($J97="Serviço",$M97<>""),IF($L97="",$M97,CONCATENATE($L97,"-",$M97))) -> SINAPI-95728 | X97: =IF(AND(Fonte<>"",Código<>""),MATCH(Fonte&" "&IF(Fonte="sinapi",SUBSTITUTE(SUBSTITUTE(Código,"/00","/"),"/0","/"),Código),INDIRECT("'[Referência "&_xlnm.Database&".xls]Banco'!$a:$a"),0),"X") -> 10640 | Y97: =IF(Import.Desoneracao="sim",Referencia.Desonerado,Referencia.NaoDesonerado) -> 27.97 | Z97: =ROUND(IF(ISNUMBER(R97),R97,IF(LEFT(R97,3)="BDI",HLOOKUP(R97,DADOS!$T$37:$X$38,2,FALSE),0)),15-11*$X$5) -> 0.3021
A98: S | B98: 0 | C98: 2 | D98: 3 | E98: 0 | F98: 0 | G98: 4 | H98: 0 | I98: 0 | J98: Serviço | K98: 2.3.0.0.4. | L98: SINAPI | M98: 91927 | N98: CABO DE COBRE FLEXÍVEL ISOLADO, 2,5 MM², ANTI-CHAMA 0,6/1,0 KV, PARA CIRCUITOS TERMINAIS - FORNECIMENTO E INSTALAÇÃO. AF_03/2023 | O98: M | P98: =OFFSET(PLQ!$E$12,ROW($P98)-ROW(P$12),0) -> 140 | Q98: 5 | R98: BDI 1 | S98: 6.51 | T98: 911.4 | V98: =IF(OR($A98=0,$A98="S",$A98>CFF!$A$9),"",MAX(V$12:OFFSET(V98,-1,0))+1) ->  | W98: SINAPI-91927 | X98: 10370 | Y98: =IF(Import.Desoneracao="sim",Referencia.Desonerado,Referencia.NaoDesonerado) -> 5 | Z98: =ROUND(IF(ISNUMBER(R98),R98,IF(LEFT(R98,3)="BDI",HLOOKUP(R98,DADOS!$T$37:$X$38,2,FALSE),0)),15-11*$X$5) -> 0.3021
A99: S | B99: 0 | C99: 2 | D99: 3 | E99: 0 | F99: 0 | G99: 5 | H99: 0 | I99: 0 | J99: Serviço | K99: 2.3.0.0.5. | L99: SINAPI | M99: 92000 | N99: TOMADA BAIXA DE EMBUTIR (1 MÓDULO), 2P+T 10 A, INCLUINDO SUPORTE E PLACA - FORNECIMENTO E INSTALAÇÃO. AF_03/2023 | O99: UN | P99: =OFFSET(PLQ!$E$12,ROW($P99)-ROW(P$12),0) -> 30 | Q99: 34.34 | R99: BDI 1 | S99: 44.71 | T99: 1341.3 | V99: =IF(OR($A99=0,$A99="S",$A99>CFF!$A$9),"",MAX(V$12:OFFSET(V99,-1,0))+1) ->  | W99: SINAPI-92000 | X99: 10538 | Y99: =IF(Import.Desoneracao="sim",Referencia.Desonerado,Referencia.NaoDesonerado) -> 34.34 | Z99: =ROUND(IF(ISNUMBER(R99),R99,IF(LEFT(R99,3)="BDI",HLOOKUP(R99,DADOS!$T$37:$X$38,2,FALSE),0)),15-11*$X$5) -> 0.3021
A100: =CHOOSE(1+LOG(1+2*(J100="Meta")+4*(J100="Nível 2")+8*(J100="Nível 3")+16*(J100="Nível 4")+32*(J100="Serviço"),2),0,1,2,3,4,"S") -> S | B100: =IF(OR(A100="S",A100=0),0,IF(ISERROR(I100),H100,SMALL(H100:I100,1))) -> 0 | C100: =IF($A100=1,OFFSET(C100,-1,0)+1,OFFSET(C100,-1,0)) -> 2 | D100: =IF($A100=1,0,IF($A100=2,OFFSET(D100,-1,0)+1,OFFSET(D100,-1,0))) -> 3 | E100: =IF(AND($A100<=2,$A100<>0),0,IF($A100=3,OFFSET(E100,-1,0)+1,OFFSET(E100,-1,0))) -> 0 | F100: =IF(AND($A100<=3,$A100<>0),0,IF($A100=4,OFFSET(F100,-1,0)+1,OFFSET(F100,-1,0))) -> 0 | G100: =IF(AND($A100<=4,$A100<>0),0,IF($A100="S",OFFSET(G100,-1,0)+1,OFFSET(G100,-1,0))) -> 6 | H100: 0 | I100: 0 | J100: Serviço | K100: =IF($A100=0,"-",CONCATENATE(C100&".",IF(AND($A$5>=2,$A100>=2),D100&".",""),IF(AND($A$5>=3,$A100>=3),E100&".",""),IF(AND($A$5>=4,$A100>=4),F100&".",""),IF($A100="S",G100&".",""))) -> 2.3.0.0.6. | L100: SINAPI | M100: 91993 | N100: TOMADA ALTA DE EMBUTIR (1 MÓDULO), 2P+T 20 A, INCLUINDO SUPORTE E PLACA - FORNECIMENTO E INSTALAÇÃO. AF_03/2023 | O100: UN | P100: =OFFSET(PLQ!$E$12,ROW($P100)-ROW(P$12),0) -> 5 | Q100: 51.19 | R100: BDI 1 | S100: =IF($A100="S",IF($Q$10="Preço Unitário (R$)",PO.CustoUnitario,ROUND(PO.CustoUnitario*(1+$Z100),15-13*$X$6)),0) -> 66.65 | T100: =IF($A100="S",VTOTAL1,IF($A100=0,0,ROUND(SomaAgrup,15-13*$X$7))) -> 333.25 | U100: =IF($J100="","",IF($N100="","DESCRIÇÃO",IF(AND($J100="Serviço",$O100=""),"UNIDADE",IF($T100<=0,"SEM VALOR",IF(AND($Y100<>"",$Q100>$Y100),"ACIMA REF.",""))))) ->  | V100: =IF(OR($A100=0,$A100="S",$A100>CFF!$A$9),"",MAX(V$12:OFFSET(V100,-1,0))+1) ->  | W100: =IF(AND($J100="Serviço",$M100<>""),IF($L100="",$M100,CONCATENATE($L100,"-",$M100))) -> SINAPI-91993 | X100: =IF(AND(Fonte<>"",Código<>""),MATCH(Fonte&" "&IF(Fonte="sinapi",SUBSTITUTE(SUBSTITUTE(Código,"/00","/"),"/0","/"),Código),INDIRECT("'[Referência "&_xlnm.Database&".xls]Banco'!$a:$a"),0),"X") -> 10536 | Y100: =IF(Import.Desoneracao="sim",Referencia.Desonerado,Referencia.NaoDesonerado) -> 51.19 | Z100: =ROUND(IF(ISNUMBER(R100),R100,IF(LEFT(R100,3)="BDI",HLOOKUP(R100,DADOS!$T$37:$X$38,2,FALSE),0)),15-11*$X$5) -> 0.3021
A101: S | B101: 0 | C101: 2 | D101: 3 | E101: 0 | F101: 0 | G101: 7 | H101: =IF(OR($A101="S",$A101=0),0,MATCH(0,OFFSET($B101,1,$A101,ROW($A$145)-ROW($A101)),0)) -> 0 | I101: =IF(OR($A101="S",$A101=0),0,MATCH(OFFSET($B101,0,$A101)+1,OFFSET($B101,1,$A101,ROW($A$145)-ROW($A101)),0)) -> 0 | J101: Serviço | K101: 2.3.0.0.7. | L101: SINAPI | M101: 91953 | N101: INTERRUPTOR SIMPLES (1 MÓDULO), 10A/250V, INCLUINDO SUPORTE E PLACA - FORNECIMENTO E INSTALAÇÃO. AF_03/2023 | O101: UN | P101: =OFFSET(PLQ!$E$12,ROW($P101)-ROW(P$12),0) -> 10 | Q101: 32.67 | R101: BDI 1 | S101: 42.54 | T101: 425.4 | V101: =IF(OR($A101=0,$A101="S",$A101>CFF!$A$9),"",MAX(V$12:OFFSET(V101,-1,0))+1) ->  | W101: SINAPI-91953 | X101: 10496 | Y101: =IF(Import.Desoneracao="sim",Referencia.Desonerado,Referencia.NaoDesonerado) -> 32.67 | Z101: =ROUND(IF(ISNUMBER(R101),R101,IF(LEFT(R101,3)="BDI",HLOOKUP(R101,DADOS!$T$37:$X$38,2,FALSE),0)),15-11*$X$5) -> 0.3021
A102: S | B102: 0 | C102: 2 | D102: 3 | E102: 0 | F102: 0 | G102: 8 | H102: 0 | I102: 0 | J102: Serviço | K102: 2.3.0.0.8. | L102: SINAPI | M102: 91967 | N102: INTERRUPTOR SIMPLES (3 MÓDULOS), 10A/250V, INCLUINDO SUPORTE E PLACA - FORNECIMENTO E INSTALAÇÃO. AF_03/2023 | O102: UN | P102: =OFFSET(PLQ!$E$12,ROW($P102)-ROW(P$12),0) -> 5 | Q102: 67.26 | R102: BDI 1 | S102: 87.58 | T102: 437.9 | V102: =IF(OR($A102=0,$A102="S",$A102>CFF!$A$9),"",MAX(V$12:OFFSET(V102,-1,0))+1) ->  | W102: SINAPI-91967 | X102: 10510 | Y102: =IF(Import.Desoneracao="sim",Referencia.Desonerado,Referencia.NaoDesonerado) -> 67.26 | Z102: =ROUND(IF(ISNUMBER(R102),R102,IF(LEFT(R102,3)="BDI",HLOOKUP(R102,DADOS!$T$37:$X$38,2,FALSE),0)),15-11*$X$5) -> 0.3021
A103: S | B103: 0 | C103: 2 | D103: 3 | E103: 0 | F103: 0 | G103: 9 | H103: 0 | I103: 0 | J103: Serviço | K103: 2.3.0.0.9. | L103: SINAPI | M103: 91947 | N103: SUPORTE PARAFUSADO COM PLACA DE ENCAIXE 4" X 2" BAIXO (0,30 M DO PISO) PARA PONTO ELÉTRICO - FORNECIMENTO E INSTALAÇÃO. AF_03/2023 | O103: UN | P103: =OFFSET(PLQ!$E$12,ROW($P103)-ROW(P$12),0) -> 5 | Q103: 10.15 | R103: BDI 1 | S103: 13.22 | T103: 66.1 | V103: =IF(OR($A103=0,$A103="S",$A103>CFF!$A$9),"",MAX(V$12:OFFSET(V103,-1,0))+1) ->  | W103: SINAPI-91947 | X103: 10529 | Y103: =IF(Import.Desoneracao="sim",Referencia.Desonerado,Referencia.NaoDesonerado) -> 10.15 | Z103: =ROUND(IF(ISNUMBER(R103),R103,IF(LEFT(R103,3)="BDI",HLOOKUP(R103,DADOS!$T$37:$X$38,2,FALSE),0)),15-11*$X$5) -> 0.3021
A104: S | B104: 0 | C104: 2 | D104: 3 | E104: 0 | F104: 0 | G104: 10 | H104: 0 | I104: 0 | J104: Serviço | K104: 2.3.0.0.10. | L104: SINAPI | M104: 98111 | N104: CAIXA DE INSPEÇÃO PARA ATERRAMENTO, CIRCULAR, EM POLIETILENO, DIÂMETRO INTERNO = 0,3 M. AF_12/2020 | O104: UN | P104: =OFFSET(PLQ!$E$12,ROW($P104)-ROW(P$12),0) -> 1 | Q104: 52.52 | R104: BDI 1 | S104: 68.39 | T104: 68.39 | V104: =IF(OR($A104=0,$A104="S",$A104>CFF!$A$9),"",MAX(V$12:OFFSET(V104,-1,0))+1) ->  | W104: SINAPI-98111 | X104: 7116 | Y104: =IF(Import.Desoneracao="sim",Referencia.Desonerado,Referencia.NaoDesonerado) -> 52.52 | Z104: =ROUND(IF(ISNUMBER(R104),R104,IF(LEFT(R104,3)="BDI",HLOOKUP(R104,DADOS!$T$37:$X$38,2,FALSE),0)),15-11*$X$5) -> 0.3021
A105: S | B105: 0 | C105: 2 | D105: 3 | E105: 0 | F105: 0 | G105: 11 | H105: 0 | I105: 0 | J105: Serviço | K105: 2.3.0.0.11. | L105: SINAPI-I | M105: 39456 | N105: DISPOSITIVO DR, 4 POLOS, SENSIBILIDADE DE 30 MA, CORRENTE DE 40 A, TIPO AC | O105: UN | P105: =OFFSET(PLQ!$E$12,ROW($P105)-ROW(P$12),0) -> 2 | Q105: 144.63 | R105: BDI 1 | S105: 188.32 | T105: 376.64 | V105: =IF(OR($A105=0,$A105="S",$A105>CFF!$A$9),"",MAX(V$12:OFFSET(V105,-1,0))+1) ->  | W105: SINAPI-I-39456 | X105: 1828 | Y105: =IF(Import.Desoneracao="sim",Referencia.Desonerado,Referencia.NaoDesonerado) -> 144.63 | Z105: =ROUND(IF(ISNUMBER(R105),R105,IF(LEFT(R105,3)="BDI",HLOOKUP(R105,DADOS!$T$37:$X$38,2,FALSE),0)),15-11*$X$5) -> 0.3021
A106: S | B106: 0 | C106: 2 | D106: 3 | E106: 0 | F106: 0 | G106: 12 | H106: 0 | I106: 0 | J106: Serviço | K106: 2.3.0.0.12. | L106: SINAPI | M106: 88264 | N106: ELETRICISTA COM ENCARGOS COMPLEMENTARES | O106: H | P106: =OFFSET(PLQ!$E$12,ROW($P106)-ROW(P$12),0) -> 16 | Q106: 28.75 | R106: BDI 1 | S106: 37.44 | T106: 599.04 | V106: =IF(OR($A106=0,$A106="S",$A106>CFF!$A$9),"",MAX(V$12:OFFSET(V106,-1,0))+1) ->  | W106: SINAPI-88264 | X106: 13046 | Y106: =IF(Import.Desoneracao="sim",Referencia.Desonerado,Referencia.NaoDesonerado) -> 28.75 | Z106: =ROUND(IF(ISNUMBER(R106),R106,IF(LEFT(R106,3)="BDI",HLOOKUP(R106,DADOS!$T$37:$X$38,2,FALSE),0)),15-11*$X$5) -> 0.3021
A107: 2 | B107: 8 | C107: 2 | D107: 4 | E107: 0 | F107: 0 | G107: 0 | H107: 30 | I107: 8 | J107: Nível 2 | K107: 2.4. | N107: FORRO | O107: =Referencia.Unidade ->  | P107: =OFFSET(PLQ!$E$12,ROW($P107)-ROW(P$12),0) -> 0 | R107: BDI 1 | S107: 0 | T107: 44715.96 | V107: =IF(OR($A107=0,$A107="S",$A107>CFF!$A$9),"",MAX(V$12:OFFSET(V107,-1,0))+1) -> 14 | W107: FALSE | X107: X | Y107: 0 | Z107: =ROUND(IF(ISNUMBER(R107),R107,IF(LEFT(R107,3)="BDI",HLOOKUP(R107,DADOS!$T$37:$X$38,2,FALSE),0)),15-11*$X$5) -> 0.3021
A108: =CHOOSE(1+LOG(1+2*(J108="Meta")+4*(J108="Nível 2")+8*(J108="Nível 3")+16*(J108="Nível 4")+32*(J108="Serviço"),2),0,1,2,3,4,"S") -> S | B108: =IF(OR(A108="S",A108=0),0,IF(ISERROR(I108),H108,SMALL(H108:I108,1))) -> 0 | C108: =IF($A108=1,OFFSET(C108,-1,0)+1,OFFSET(C108,-1,0)) -> 2 | D108: =IF($A108=1,0,IF($A108=2,OFFSET(D108,-1,0)+1,OFFSET(D108,-1,0))) -> 4 | E108: =IF(AND($A108<=2,$A108<>0),0,IF($A108=3,OFFSET(E108,-1,0)+1,OFFSET(E108,-1,0))) -> 0 | F108: =IF(AND($A108<=3,$A108<>0),0,IF($A108=4,OFFSET(F108,-1,0)+1,OFFSET(F108,-1,0))) -> 0 | G108: =IF(AND($A108<=4,$A108<>0),0,IF($A108="S",OFFSET(G108,-1,0)+1,OFFSET(G108,-1,0))) -> 1 | H108: 0 | I108: 0 | J108: Serviço | K108: =IF($A108=0,"-",CONCATENATE(C108&".",IF(AND($A$5>=2,$A108>=2),D108&".",""),IF(AND($A$5>=3,$A108>=3),E108&".",""),IF(AND($A$5>=4,$A108>=4),F108&".",""),IF($A108="S",G108&".",""))) -> 2.4.0.0.1. | L108: SINAPI | M108: 97665 | N108: REMOÇÃO DE LUMINÁRIAS, DE FORMA MANUAL, SEM REAPROVEITAMENTO. AF_09/2023 | O108: UN | P108: =OFFSET(PLQ!$E$12,ROW($P108)-ROW(P$12),0) -> 28 | Q108: 1.87 | R108: BDI 1 | S108: =IF($A108="S",IF($Q$10="Preço Unitário (R$)",PO.CustoUnitario,ROUND(PO.CustoUnitario*(1+$Z108),15-13*$X$6)),0) -> 2.43 | T108: =IF($A108="S",VTOTAL1,IF($A108=0,0,ROUND(SomaAgrup,15-13*$X$7))) -> 68.04 | U108: =IF($J108="","",IF($N108="","DESCRIÇÃO",IF(AND($J108="Serviço",$O108=""),"UNIDADE",IF($T108<=0,"SEM VALOR",IF(AND($Y108<>"",$Q108>$Y108),"ACIMA REF.",""))))) ->  | V108: =IF(OR($A108=0,$A108="S",$A108>CFF!$A$9),"",MAX(V$12:OFFSET(V108,-1,0))+1) ->  | W108: =IF(AND($J108="Serviço",$M108<>""),IF($L108="",$M108,CONCATENATE($L108,"-",$M108))) -> SINAPI-97665 | X108: =IF(AND(Fonte<>"",Código<>""),MATCH(Fonte&" "&IF(Fonte="sinapi",SUBSTITUTE(SUBSTITUTE(Código,"/00","/"),"/0","/"),Código),INDIRECT("'[Referência "&_xlnm.Database&".xls]Banco'!$a:$a"),0),"X") -> 7892 | Y108: =IF(Import.Desoneracao="sim",Referencia.Desonerado,Referencia.NaoDesonerado) -> 1.87 | Z108: =ROUND(IF(ISNUMBER(R108),R108,IF(LEFT(R108,3)="BDI",HLOOKUP(R108,DADOS!$T$37:$X$38,2,FALSE),0)),15-11*$X$5) -> 0.3021
A109: =CHOOSE(1+LOG(1+2*(J109="Meta")+4*(J109="Nível 2")+8*(J109="Nível 3")+16*(J109="Nível 4")+32*(J109="Serviço"),2),0,1,2,3,4,"S") -> S | B109: =IF(OR(A109="S",A109=0),0,IF(ISERROR(I109),H109,SMALL(H109:I109,1))) -> 0 | C109: =IF($A109=1,OFFSET(C109,-1,0)+1,OFFSET(C109,-1,0)) -> 2 | D109: =IF($A109=1,0,IF($A109=2,OFFSET(D109,-1,0)+1,OFFSET(D109,-1,0))) -> 4 | E109: =IF(AND($A109<=2,$A109<>0),0,IF($A109=3,OFFSET(E109,-1,0)+1,OFFSET(E109,-1,0))) -> 0 | F109: =IF(AND($A109<=3,$A109<>0),0,IF($A109=4,OFFSET(F109,-1,0)+1,OFFSET(F109,-1,0))) -> 0 | G109: =IF(AND($A109<=4,$A109<>0),0,IF($A109="S",OFFSET(G109,-1,0)+1,OFFSET(G109,-1,0))) -> 2 | H109: 0 | I109: 0 | J109: Serviço | K109: =IF($A109=0,"-",CONCATENATE(C109&".",IF(AND($A$5>=2,$A109>=2),D109&".",""),IF(AND($A$5>=3,$A109>=3),E109&".",""),IF(AND($A$5>=4,$A109>=4),F109&".",""),IF($A109="S",G109&".",""))) -> 2.4.0.0.2. | L109: SINAPI | M109: 97641 | N109: REMOÇÃO DE FORRO DE GESSO, DE FORMA MANUAL, SEM REAPROVEITAMENTO. AF_09/2023 | O109: M2 | P109: =OFFSET(PLQ!$E$12,ROW($P109)-ROW(P$12),0) -> 244.8 | Q109: 3.01 | R109: BDI 1 | S109: =IF($A109="S",IF($Q$10="Preço Unitário (R$)",PO.CustoUnitario,ROUND(PO.CustoUnitario*(1+$Z109),15-13*$X$6)),0) -> 3.92 | T109: =IF($A109="S",VTOTAL1,IF($A109=0,0,ROUND(SomaAgrup,15-13*$X$7))) -> 959.62 | U109: =IF($J109="","",IF($N109="","DESCRIÇÃO",IF(AND($J109="Serviço",$O109=""),"UNIDADE",IF($T109<=0,"SEM VALOR",IF(AND($Y109<>"",$Q109>$Y109),"ACIMA REF.",""))))) ->  | V109: =IF(OR($A109=0,$A109="S",$A109>CFF!$A$9),"",MAX(V$12:OFFSET(V109,-1,0))+1) ->  | W109: =IF(AND($J109="Serviço",$M109<>""),IF($L109="",$M109,CONCATENATE($L109,"-",$M109))) -> SINAPI-97641 | X109: 7887 | Y109: 3.01 | Z109: =ROUND(IF(ISNUMBER(R109),R109,IF(LEFT(R109,3)="BDI",HLOOKUP(R109,DADOS!$T$37:$X$38,2,FALSE),0)),15-11*$X$5) -> 0.3021
A110: =CHOOSE(1+LOG(1+2*(J110="Meta")+4*(J110="Nível 2")+8*(J110="Nível 3")+16*(J110="Nível 4")+32*(J110="Serviço"),2),0,1,2,3,4,"S") -> S | B110: =IF(OR(A110="S",A110=0),0,IF(ISERROR(I110),H110,SMALL(H110:I110,1))) -> 0 | C110: =IF($A110=1,OFFSET(C110,-1,0)+1,OFFSET(C110,-1,0)) -> 2 | D110: =IF($A110=1,0,IF($A110=2,OFFSET(D110,-1,0)+1,OFFSET(D110,-1,0))) -> 4 | E110: =IF(AND($A110<=2,$A110<>0),0,IF($A110=3,OFFSET(E110,-1,0)+1,OFFSET(E110,-1,0))) -> 0 | F110: =IF(AND($A110<=3,$A110<>0),0,IF($A110=4,OFFSET(F110,-1,0)+1,OFFSET(F110,-1,0))) -> 0 | G110: =IF(AND($A110<=4,$A110<>0),0,IF($A110="S",OFFSET(G110,-1,0)+1,OFFSET(G110,-1,0))) -> 3 | H110: 0 | I110: 0 | J110: Serviço | K110: =IF($A110=0,"-",CONCATENATE(C110&".",IF(AND($A$5>=2,$A110>=2),D110&".",""),IF(AND($A$5>=3,$A110>=3),E110&".",""),IF(AND($A$5>=4,$A110>=4),F110&".",""),IF($A110="S",G110&".",""))) -> 2.4.0.0.3. | L110: SINAPI | M110: 100274 | N110: TRANSPORTE HORIZONTAL MANUAL, DE COMPENSADO DE MADEIRA (UNIDADE: M2XKM). AF_07/2019 | O110: M2XKM | P110: =OFFSET(PLQ!$E$12,ROW($P110)-ROW(P$12),0) -> 6.12 | Q110: 29.04 | R110: BDI 1 | S110: =IF($A110="S",IF($Q$10="Preço Unitário (R$)",PO.CustoUnitario,ROUND(PO.CustoUnitario*(1+$Z110),15-13*$X$6)),0) -> 37.81 | T110: =IF($A110="S",VTOTAL1,IF($A110=0,0,ROUND(SomaAgrup,15-13*$X$7))) -> 231.4 | U110: =IF($J110="","",IF($N110="","DESCRIÇÃO",IF(AND($J110="Serviço",$O110=""),"UNIDADE",IF($T110<=0,"SEM VALOR",IF(AND($Y110<>"",$Q110>$Y110),"ACIMA REF.",""))))) ->  | V110: =IF(OR($A110=0,$A110="S",$A110>CFF!$A$9),"",MAX(V$12:OFFSET(V110,-1,0))+1) ->  | W110: =IF(AND($J110="Serviço",$M110<>""),IF($L110="",$M110,CONCATENATE($L110,"-",$M110))) -> SINAPI-100274 | X110: =IF(AND(Fonte<>"",Código<>""),MATCH(Fonte&" "&IF(Fonte="sinapi",SUBSTITUTE(SUBSTITUTE(Código,"/00","/"),"/0","/"),Código),INDIRECT("'[Referência "&_xlnm.Database&".xls]Banco'!$a:$a"),0),"X") -> 15249 | Y110: =IF(Import.Desoneracao="sim",Referencia.Desonerado,Referencia.NaoDesonerado) -> 29.04 | Z110: =ROUND(IF(ISNUMBER(R110),R110,IF(LEFT(R110,3)="BDI",HLOOKUP(R110,DADOS!$T$37:$X$38,2,FALSE),0)),15-11*$X$5) -> 0.3021
A111: S | B111: 0 | C111: 2 | D111: 4 | E111: 0 | F111: 0 | G111: 4 | H111: 0 | I111: 0 | J111: Serviço | K111: 2.4.0.0.4. | L111: SINAPI | M111: 96114 | N111: FORRO EM DRYWALL, PARA AMBIENTES COMERCIAIS, INCLUSIVE ESTRUTURA BIRECIONAL DE FIXAÇÃO. AF_08/2023_PS | O111: M2 | P111: =OFFSET(PLQ!$E$12,ROW($P111)-ROW(P$12),0) -> 244.8 | Q111: 83.49 | R111: BDI 1 | S111: 108.71 | T111: 26612.21 | V111: =IF(OR($A111=0,$A111="S",$A111>CFF!$A$9),"",MAX(V$12:OFFSET(V111,-1,0))+1) ->  | W111: SINAPI-96114 | X111: 9922 | Y111: 83.49 | Z111: =ROUND(IF(ISNUMBER(R111),R111,IF(LEFT(R111,3)="BDI",HLOOKUP(R111,DADOS!$T$37:$X$38,2,FALSE),0)),15-11*$X$5) -> 0.3021
A112: S | B112: 0 | C112: 2 | D112: 4 | E112: 0 | F112: 0 | G112: 5 | H112: 0 | I112: 0 | J112: Serviço | K112: 2.4.0.0.5. | L112: SINAPI | M112: 88496 | N112: EMASSAMENTO COM MASSA LÁTEX, APLICAÇÃO EM TETO, DUAS DEMÃOS, LIXAMENTO MANUAL. AF_04/2023 | O112: M2 | P112: =OFFSET(PLQ!$E$12,ROW($P112)-ROW(P$12),0) -> 244.8 | Q112: 32.73 | R112: BDI 1 | S112: 42.62 | T112: 10433.38 | V112: =IF(OR($A112=0,$A112="S",$A112>CFF!$A$9),"",MAX(V$12:OFFSET(V112,-1,0))+1) ->  | W112: SINAPI-88496 | X112: 13877 | Y112: 32.73 | Z112: =ROUND(IF(ISNUMBER(R112),R112,IF(LEFT(R112,3)="BDI",HLOOKUP(R112,DADOS!$T$37:$X$38,2,FALSE),0)),15-11*$X$5) -> 0.3021
A113: S | B113: 0 | C113: 2 | D113: 4 | E113: 0 | F113: 0 | G113: 6 | H113: 0 | I113: 0 | J113: Serviço | K113: 2.4.0.0.6. | L113: SINAPI | M113: 88485 | N113: FUNDO SELADOR ACRÍLICO, APLICAÇÃO MANUAL EM PAREDE, UMA DEMÃO. AF_04/2023 | O113: M2 | P113: =OFFSET(PLQ!$E$12,ROW($P113)-ROW(P$12),0) -> 244.8 | Q113: 3.77 | R113: BDI 1 | S113: 4.91 | T113: 1201.97 | V113: =IF(OR($A113=0,$A113="S",$A113>CFF!$A$9),"",MAX(V$12:OFFSET(V113,-1,0))+1) ->  | W113: SINAPI-88485 | X113: 13881 | Y113: 3.77 | Z113: =ROUND(IF(ISNUMBER(R113),R113,IF(LEFT(R113,3)="BDI",HLOOKUP(R113,DADOS!$T$37:$X$38,2,FALSE),0)),15-11*$X$5) -> 0.3021
A114: S | B114: 0 | C114: 2 | D114: 4 | E114: 0 | F114: 0 | G114: 7 | H114: 0 | I114: 0 | J114: Serviço | K114: 2.4.0.0.7. | L114: SINAPI | M114: 88488 | N114: PINTURA LÁTEX ACRÍLICA PREMIUM, APLICAÇÃO MANUAL EM TETO, DUAS DEMÃOS. AF_04/2023 | O114: M2 | P114: =OFFSET(PLQ!$E$12,ROW($P114)-ROW(P$12),0) -> 244.8 | Q114: 16.34 | R114: BDI 1 | S114: 21.28 | T114: 5209.34 | V114: =IF(OR($A114=0,$A114="S",$A114>CFF!$A$9),"",MAX(V$12:OFFSET(V114,-1,0))+1) ->  | W114: SINAPI-88488 | X114: 13890 | Y114: 16.34 | Z114: =ROUND(IF(ISNUMBER(R114),R114,IF(LEFT(R114,3)="BDI",HLOOKUP(R114,DADOS!$T$37:$X$38,2,FALSE),0)),15-11*$X$5) -> 0.3021
A115: 2 | B115: 14 | C115: 2 | D115: 5 | E115: 0 | F115: 0 | G115: 0 | H115: 22 | I115: 14 | J115: Nível 2 | K115: 2.5. | N115: REVESTIMENTOS | O115: =Referencia.Unidade ->  | P115: =OFFSET(PLQ!$E$12,ROW($P115)-ROW(P$12),0) -> 0 | R115: BDI 1 | S115: 0 | T115: 49812.08 | V115: =IF(OR($A115=0,$A115="S",$A115>CFF!$A$9),"",MAX(V$12:OFFSET(V115,-1,0))+1) -> 15 | W115: FALSE | X115: X | Y115: 0 | Z115: =ROUND(IF(ISNUMBER(R115),R115,IF(LEFT(R115,3)="BDI",HLOOKUP(R115,DADOS!$T$37:$X$38,2,FALSE),0)),15-11*$X$5) -> 0.3021
A116: 3 | B116: 7 | C116: 2 | D116: 5 | E116: 1 | F116: 0 | G116: 0 | H116: 13 | I116: 7 | J116: Nível 3 | K116: 2.5.1. | N116: INTERNOS | O116: =Referencia.Unidade ->  | P116: =OFFSET(PLQ!$E$12,ROW($P116)-ROW(P$12),0) -> 0 | R116: BDI 1 | S116: 0 | T116: 26164.84 | V116: =IF(OR($A116=0,$A116="S",$A116>CFF!$A$9),"",MAX(V$12:OFFSET(V116,-1,0))+1) ->  | W116: FALSE | X116: X | Y116: 0 | Z116: =ROUND(IF(ISNUMBER(R116),R116,IF(LEFT(R116,3)="BDI",HLOOKUP(R116,DADOS!$T$37:$X$38,2,FALSE),0)),15-11*$X$5) -> 0.3021
A117: S | B117: 0 | C117: 2 | D117: 5 | E117: 1 | F117: 0 | G117: 1 | H117: 0 | I117: 0 | J117: Serviço | K117: 2.5.1.0.1. | L117: SINAPI | M117: 87879 | N117: CHAPISCO APLICADO EM ALVENARIAS E ESTRUTURAS DE CONCRETO INTERNAS, COM COLHER DE PEDREIRO. ARGAMASSA TRAÇO 1:3 COM PREPARO EM BETONEIRA 400L. AF_10/2022 | O117: M2 | P117: =OFFSET(PLQ!$E$12,ROW($P117)-ROW(P$12),0) -> 105.68 | Q117: 4.74 | R117: BDI 1 | S117: 6.17 | T117: 652.05 | V117: =IF(OR($A117=0,$A117="S",$A117>CFF!$A$9),"",MAX(V$12:OFFSET(V117,-1,0))+1) ->  | W117: SINAPI-87879 | X117: 7292 | Y117: 4.74 | Z117: =ROUND(IF(ISNUMBER(R117),R117,IF(LEFT(R117,3)="BDI",HLOOKUP(R117,DADOS!$T$37:$X$38,2,FALSE),0)),15-11*$X$5) -> 0.3021
A118: S | B118: 0 | C118: 2 | D118: 5 | E118: 1 | F118: 0 | G118: 2 | H118: 0 | I118: 0 | J118: Serviço | K118: 2.5.1.0.2. | L118: SINAPI | M118: 87775 | N118: EMBOÇO OU MASSA ÚNICA EM ARGAMASSA TRAÇO 1:2:8, PREPARO MECÂNICO COM BETONEIRA 400 L, APLICADA MANUALMENTE EM PANOS DE FACHADA COM PRESENÇA DE VÃOS, ESPESSURA DE 25 MM. AF_08/2022 | O118: M2 | P118: =OFFSET(PLQ!$E$12,ROW($P118)-ROW(P$12),0) -> 105.68 | Q118: 55.76 | R118: BDI 1 | S118: 72.61 | T118: 7673.42 | V118: =IF(OR($A118=0,$A118="S",$A118>CFF!$A$9),"",MAX(V$12:OFFSET(V118,-1,0))+1) ->  | W118: SINAPI-87775 | X118: 13405 | Y118: 55.76 | Z118: =ROUND(IF(ISNUMBER(R118),R118,IF(LEFT(R118,3)="BDI",HLOOKUP(R118,DADOS!$T$37:$X$38,2,FALSE),0)),15-11*$X$5) -> 0.3021
A119: =CHOOSE(1+LOG(1+2*(J119="Meta")+4*(J119="Nível 2")+8*(J119="Nível 3")+16*(J119="Nível 4")+32*(J119="Serviço"),2),0,1,2,3,4,"S") -> S | B119: =IF(OR(A119="S",A119=0),0,IF(ISERROR(I119),H119,SMALL(H119:I119,1))) -> 0 | C119: =IF($A119=1,OFFSET(C119,-1,0)+1,OFFSET(C119,-1,0)) -> 2 | D119: =IF($A119=1,0,IF($A119=2,OFFSET(D119,-1,0)+1,OFFSET(D119,-1,0))) -> 5 | E119: =IF(AND($A119<=2,$A119<>0),0,IF($A119=3,OFFSET(E119,-1,0)+1,OFFSET(E119,-1,0))) -> 1 | F119: =IF(AND($A119<=3,$A119<>0),0,IF($A119=4,OFFSET(F119,-1,0)+1,OFFSET(F119,-1,0))) -> 0 | G119: =IF(AND($A119<=4,$A119<>0),0,IF($A119="S",OFFSET(G119,-1,0)+1,OFFSET(G119,-1,0))) -> 3 | H119: 0 | I119: 0 | J119: Serviço | K119: =IF($A119=0,"-",CONCATENATE(C119&".",IF(AND($A$5>=2,$A119>=2),D119&".",""),IF(AND($A$5>=3,$A119>=3),E119&".",""),IF(AND($A$5>=4,$A119>=4),F119&".",""),IF($A119="S",G119&".",""))) -> 2.5.1.0.3. | L119: SINAPI | M119: 87269 | N119: REVESTIMENTO CERÂMICO PARA PAREDES INTERNAS COM PLACAS TIPO ESMALTADA DE DIMENSÕES 25X35 CM APLICADAS NA ALTURA INTEIRA DAS PAREDES. AF_02/2023_PE | O119: M2 | P119: =OFFSET(PLQ!$E$12,ROW($P119)-ROW(P$12),0) -> 22.33 | Q119: 64.03 | R119: BDI 1 | S119: =IF($A119="S",IF($Q$10="Preço Unitário (R$)",PO.CustoUnitario,ROUND(PO.CustoUnitario*(1+$Z119),15-13*$X$6)),0) -> 83.37 | T119: =IF($A119="S",VTOTAL1,IF($A119=0,0,ROUND(SomaAgrup,15-13*$X$7))) -> 1861.65 | U119: =IF($J119="","",IF($N119="","DESCRIÇÃO",IF(AND($J119="Serviço",$O119=""),"UNIDADE",IF($T119<=0,"SEM VALOR",IF(AND($Y119<>"",$Q119>$Y119),"ACIMA REF.",""))))) ->  | V119: =IF(OR($A119=0,$A119="S",$A119>CFF!$A$9),"",MAX(V$12:OFFSET(V119,-1,0))+1) ->  | W119: =IF(AND($J119="Serviço",$M119<>""),IF($L119="",$M119,CONCATENATE($L119,"-",$M119))) -> SINAPI-87269 | X119: =IF(AND(Fonte<>"",Código<>""),MATCH(Fonte&" "&IF(Fonte="sinapi",SUBSTITUTE(SUBSTITUTE(Código,"/00","/"),"/0","/"),Código),INDIRECT("'[Referência "&_xlnm.Database&".xls]Banco'!$a:$a"),0),"X") -> 14827 | Y119: =IF(Import.Desoneracao="sim",Referencia.Desonerado,Referencia.NaoDesonerado) -> 64.03 | Z119: =ROUND(IF(ISNUMBER(R119),R119,IF(LEFT(R119,3)="BDI",HLOOKUP(R119,DADOS!$T$37:$X$38,2,FALSE),0)),15-11*$X$5) -> 0.3021
A120: S | B120: 0 | C120: 2 | D120: 5 | E120: 1 | F120: 0 | G120: 4 | H120: 0 | I120: 0 | J120: Serviço | K120: 2.5.1.0.4. | L120: COMPOSIÇÃO | M120: SINAPI88497ADPTADA | N120: EMASSAMENTO COM MASSA LÁTEX, APLICAÇÃO EM PAREDE, TRÊS DEMÂOS, LIXAMENTO MANUAL | O120: M2 | P120: =OFFSET(PLQ!$E$12,ROW($P120)-ROW(P$12),0) -> 105.68 | Q120: 28.53 | R120: BDI 1 | S120: 37.15 | T120: 3926.01 | V120: =IF(OR($A120=0,$A120="S",$A120>CFF!$A$9),"",MAX(V$12:OFFSET(V120,-1,0))+1) ->  | W120: COMPOSIÇÃO-SINAPI88497ADPTADA | X120: 8 | Y120: 28.53 | Z120: =ROUND(IF(ISNUMBER(R120),R120,IF(LEFT(R120,3)="BDI",HLOOKUP(R120,DADOS!$T$37:$X$38,2,FALSE),0)),15-11*$X$5) -> 0.3021
A121: S | B121: 0 | C121: 2 | D121: 5 | E121: 1 | F121: 0 | G121: 5 | H121: 0 | I121: 0 | J121: Serviço | K121: 2.5.1.0.5. | L121: SINAPI | M121: 88485 | N121: FUNDO SELADOR ACRÍLICO, APLICAÇÃO MANUAL EM PAREDE, UMA DEMÃO. AF_04/2023 | O121: M2 | P121: =OFFSET(PLQ!$E$12,ROW($P121)-ROW(P$12),0) -> 105.68 | Q121: 3.77 | R121: BDI 1 | S121: 4.91 | T121: 518.89 | V121: =IF(OR($A121=0,$A121="S",$A121>CFF!$A$9),"",MAX(V$12:OFFSET(V121,-1,0))+1) ->  | W121: SINAPI-88485 | X121: 13881 | Y121: 3.77 | Z121: =ROUND(IF(ISNUMBER(R121),R121,IF(LEFT(R121,3)="BDI",HLOOKUP(R121,DADOS!$T$37:$X$38,2,FALSE),0)),15-11*$X$5) -> 0.3021
A122: S | B122: 0 | C122: 2 | D122: 5 | E122: 1 | F122: 0 | G122: 6 | H122: 0 | I122: 0 | J122: Serviço | K122: 2.5.1.0.6. | L122: SINAPI | M122: 95626 | N122: APLICAÇÃO MANUAL DE TINTA LÁTEX ACRÍLICA EM PAREDE EXTERNAS DE CASAS, DUAS DEMÃOS. AF_03/2024 | O122: M2 | P122: =OFFSET(PLQ!$E$12,ROW($P122)-ROW(P$12),0) -> 533.68 | Q122: 16.6 | R122: BDI 1 | S122: 21.61 | T122: 11532.82 | V122: =IF(OR($A122=0,$A122="S",$A122>CFF!$A$9),"",MAX(V$12:OFFSET(V122,-1,0))+1) ->  | W122: SINAPI-95626 | X122: 13870 | Y122: 16.6 | Z122: =ROUND(IF(ISNUMBER(R122),R122,IF(LEFT(R122,3)="BDI",HLOOKUP(R122,DADOS!$T$37:$X$38,2,FALSE),0)),15-11*$X$5) -> 0.3021
A123: 3 | B123: 6 | C123: 2 | D123: 5 | E123: 2 | F123: 0 | G123: 0 | H123: 6 | I123: 20 | J123: Nível 3 | K123: 2.5.2. | N123: EXTERNO | O123: =Referencia.Unidade ->  | P123: =OFFSET(PLQ!$E$12,ROW($P123)-ROW(P$12),0) -> 0 | R123: BDI 1 | S123: 0 | T123: 23647.24 | V123: =IF(OR($A123=0,$A123="S",$A123>CFF!$A$9),"",MAX(V$12:OFFSET(V123,-1,0))+1) ->  | W123: FALSE | X123: X | Y123: 0 | Z123: =ROUND(IF(ISNUMBER(R123),R123,IF(LEFT(R123,3)="BDI",HLOOKUP(R123,DADOS!$T$37:$X$38,2,FALSE),0)),15-11*$X$5) -> 0.3021
A124: S | B124: 0 | C124: 2 | D124: 5 | E124: 2 | F124: 0 | G124: 1 | H124: 0 | I124: 0 | J124: Serviço | K124: 2.5.2.0.1. | L124: SINAPI | M124: 87905 | N124: CHAPISCO APLICADO EM ALVENARIA (COM PRESENÇA DE VÃOS) E ESTRUTURAS DE CONCRETO DE FACHADA, COM COLHER DE PEDREIRO. ARGAMASSA TRAÇO 1:3 COM PREPARO EM BETONEIRA 400L. AF_10/2022 | O124: M2 | P124: =OFFSET(PLQ!$E$12,ROW($P124)-ROW(P$12),0) -> 137.4 | Q124: 8.25 | R124: BDI 1 | S124: 10.74 | T124: 1475.68 | V124: =IF(OR($A124=0,$A124="S",$A124>CFF!$A$9),"",MAX(V$12:OFFSET(V124,-1,0))+1) ->  | W124: SINAPI-87905 | X124: 7274 | Y124: 8.25 | Z124: =ROUND(IF(ISNUMBER(R124),R124,IF(LEFT(R124,3)="BDI",HLOOKUP(R124,DADOS!$T$37:$X$38,2,FALSE),0)),15-11*$X$5) -> 0.3021
A125: S | B125: 0 | C125: 2 | D125: 5 | E125: 2 | F125: 0 | G125: 2 | H125: 0 | I125: 0 | J125: Serviço | K125: 2.5.2.0.2. | L125: SINAPI | M125: 87775 | N125: EMBOÇO OU MASSA ÚNICA EM ARGAMASSA TRAÇO 1:2:8, PREPARO MECÂNICO COM BETONEIRA 400 L, APLICADA MANUALMENTE EM PANOS DE FACHADA COM PRESENÇA DE VÃOS, ESPESSURA DE 25 MM. AF_08/2022 | O125: M2 | P125: =OFFSET(PLQ!$E$12,ROW($P125)-ROW(P$12),0) -> 137.4 | Q125: 55.76 | R125: BDI 1 | S125: 72.61 | T125: 9976.61 | V125: =IF(OR($A125=0,$A125="S",$A125>CFF!$A$9),"",MAX(V$12:OFFSET(V125,-1,0))+1) ->  | W125: SINAPI-87775 | X125: 13405 | Y125: 55.76 | Z125: =ROUND(IF(ISNUMBER(R125),R125,IF(LEFT(R125,3)="BDI",HLOOKUP(R125,DADOS!$T$37:$X$38,2,FALSE),0)),15-11*$X$5) -> 0.3021
A126: S | B126: 0 | C126: 2 | D126: 5 | E126: 2 | F126: 0 | G126: 3 | H126: 0 | I126: 0 | J126: Serviço | K126: 2.5.2.0.3. | L126: SINAPI | M126: 95305 | N126: TEXTURA ACRÍLICA, APLICAÇÃO MANUAL EM PAREDE, UMA DEMÃO. AF_04/2023 | O126: M2 | P126: =OFFSET(PLQ!$E$12,ROW($P126)-ROW(P$12),0) -> 137.4 | Q126: 14.99 | R126: BDI 1 | S126: 19.52 | T126: 2682.05 | V126: =IF(OR($A126=0,$A126="S",$A126>CFF!$A$9),"",MAX(V$12:OFFSET(V126,-1,0))+1) ->  | W126: SINAPI-95305 | X126: 13893 | Y126: 14.99 | Z126: =ROUND(IF(ISNUMBER(R126),R126,IF(LEFT(R126,3)="BDI",HLOOKUP(R126,DADOS!$T$37:$X$38,2,FALSE),0)),15-11*$X$5) -> 0.3021
A127: S | B127: 0 | C127: 2 | D127: 5 | E127: 2 | F127: 0 | G127: 4 | H127: 0 | I127: 0 | J127: Serviço | K127: 2.5.2.0.4. | L127: SINAPI | M127: 88485 | N127: FUNDO SELADOR ACRÍLICO, APLICAÇÃO MANUAL EM PAREDE, UMA DEMÃO. AF_04/2023 | O127: M2 | P127: =OFFSET(PLQ!$E$12,ROW($P127)-ROW(P$12),0) -> 137.4 | Q127: 3.77 | R127: BDI 1 | S127: 4.91 | T127: 674.63 | V127: =IF(OR($A127=0,$A127="S",$A127>CFF!$A$9),"",MAX(V$12:OFFSET(V127,-1,0))+1) ->  | W127: SINAPI-88485 | X127: 13881 | Y127: 3.77 | Z127: =ROUND(IF(ISNUMBER(R127),R127,IF(LEFT(R127,3)="BDI",HLOOKUP(R127,DADOS!$T$37:$X$38,2,FALSE),0)),15-11*$X$5) -> 0.3021
A128: S | B128: 0 | C128: 2 | D128: 5 | E128: 2 | F128: 0 | G128: 5 | H128: 0 | I128: 0 | J128: Serviço | K128: 2.5.2.0.5. | L128: SINAPI | M128: 95626 | N128: APLICAÇÃO MANUAL DE TINTA LÁTEX ACRÍLICA EM PAREDE EXTERNAS DE CASAS, DUAS DEMÃOS. AF_03/2024 | O128: M2 | P128: =OFFSET(PLQ!$E$12,ROW($P128)-ROW(P$12),0) -> 408.99 | Q128: 16.6 | R128: BDI 1 | S128: 21.61 | T128: 8838.27 | V128: =IF(OR($A128=0,$A128="S",$A128>CFF!$A$9),"",MAX(V$12:OFFSET(V128,-1,0))+1) ->  | W128: SINAPI-95626 | X128: 13870 | Y128: 16.6 | Z128: =ROUND(IF(ISNUMBER(R128),R128,IF(LEFT(R128,3)="BDI",HLOOKUP(R128,DADOS!$T$37:$X$38,2,FALSE),0)),15-11*$X$5) -> 0.3021
A129: 2 | B129: 8 | C129: 2 | D129: 6 | E129: 0 | F129: 0 | G129: 0 | H129: 8 | J129: Nível 2 | K129: 2.6. | N129: PAVIMENTAÇÃO | O129: =Referencia.Unidade ->  | P129: =OFFSET(PLQ!$E$12,ROW($P129)-ROW(P$12),0) -> 0 | R129: BDI 1 | S129: 0 | T129: 84147.38 | V129: =IF(OR($A129=0,$A129="S",$A129>CFF!$A$9),"",MAX(V$12:OFFSET(V129,-1,0))+1) -> 16 | W129: FALSE | X129: X | Y129: 0 | Z129: =ROUND(IF(ISNUMBER(R129),R129,IF(LEFT(R129,3)="BDI",HLOOKUP(R129,DADOS!$T$37:$X$38,2,FALSE),0)),15-11*$X$5) -> 0.3021
A130: =CHOOSE(1+LOG(1+2*(J130="Meta")+4*(J130="Nível 2")+8*(J130="Nível 3")+16*(J130="Nível 4")+32*(J130="Serviço"),2),0,1,2,3,4,"S") -> S | B130: =IF(OR(A130="S",A130=0),0,IF(ISERROR(I130),H130,SMALL(H130:I130,1))) -> 0 | C130: =IF($A130=1,OFFSET(C130,-1,0)+1,OFFSET(C130,-1,0)) -> 2 | D130: =IF($A130=1,0,IF($A130=2,OFFSET(D130,-1,0)+1,OFFSET(D130,-1,0))) -> 6 | E130: =IF(AND($A130<=2,$A130<>0),0,IF($A130=3,OFFSET(E130,-1,0)+1,OFFSET(E130,-1,0))) -> 0 | F130: =IF(AND($A130<=3,$A130<>0),0,IF($A130=4,OFFSET(F130,-1,0)+1,OFFSET(F130,-1,0))) -> 0 | G130: =IF(AND($A130<=4,$A130<>0),0,IF($A130="S",OFFSET(G130,-1,0)+1,OFFSET(G130,-1,0))) -> 1 | H130: 0 | I130: 0 | J130: Serviço | K130: =IF($A130=0,"-",CONCATENATE(C130&".",IF(AND($A$5>=2,$A130>=2),D130&".",""),IF(AND($A$5>=3,$A130>=3),E130&".",""),IF(AND($A$5>=4,$A130>=4),F130&".",""),IF($A130="S",G130&".",""))) -> 2.6.0.0.1. | L130: SINAPI | M130: 97634 | N130: DEMOLIÇÃO DE REVESTIMENTO CERÂMICO, DE FORMA MECANIZADA COM MARTELETE, SEM REAPROVEITAMENTO. AF_09/2023 | O130: M2 | P130: =OFFSET(PLQ!$E$12,ROW($P130)-ROW(P$12),0) -> 475.56 | Q130: 8.21 | R130: BDI 1 | S130: =IF($A130="S",IF($Q$10="Preço Unitário (R$)",PO.CustoUnitario,ROUND(PO.CustoUnitario*(1+$Z130),15-13*$X$6)),0) -> 10.69 | T130: =IF($A130="S",VTOTAL1,IF($A130=0,0,ROUND(SomaAgrup,15-13*$X$7))) -> 5083.74 | U130: =IF($J130="","",IF($N130="","DESCRIÇÃO",IF(AND($J130="Serviço",$O130=""),"UNIDADE",IF($T130<=0,"SEM VALOR",IF(AND($Y130<>"",$Q130>$Y130),"ACIMA REF.",""))))) ->  | V130: =IF(OR($A130=0,$A130="S",$A130>CFF!$A$9),"",MAX(V$12:OFFSET(V130,-1,0))+1) ->  | W130: =IF(AND($J130="Serviço",$M130<>""),IF($L130="",$M130,CONCATENATE($L130,"-",$M130))) -> SINAPI-97634 | X130: 7873 | Y130: 8.21 | Z130: =ROUND(IF(ISNUMBER(R130),R130,IF(LEFT(R130,3)="BDI",HLOOKUP(R130,DADOS!$T$37:$X$38,2,FALSE),0)),15-11*$X$5) -> 0.3021
A131: =CHOOSE(1+LOG(1+2*(J131="Meta")+4*(J131="Nível 2")+8*(J131="Nível 3")+16*(J131="Nível 4")+32*(J131="Serviço"),2),0,1,2,3,4,"S") -> S | B131: =IF(OR(A131="S",A131=0),0,IF(ISERROR(I131),H131,SMALL(H131:I131,1))) -> 0 | C131: =IF($A131=1,OFFSET(C131,-1,0)+1,OFFSET(C131,-1,0)) -> 2 | D131: =IF($A131=1,0,IF($A131=2,OFFSET(D131,-1,0)+1,OFFSET(D131,-1,0))) -> 6 | E131: =IF(AND($A131<=2,$A131<>0),0,IF($A131=3,OFFSET(E131,-1,0)+1,OFFSET(E131,-1,0))) -> 0 | F131: =IF(AND($A131<=3,$A131<>0),0,IF($A131=4,OFFSET(F131,-1,0)+1,OFFSET(F131,-1,0))) -> 0 | G131: =IF(AND($A131<=4,$A131<>0),0,IF($A131="S",OFFSET(G131,-1,0)+1,OFFSET(G131,-1,0))) -> 2 | H131: 0 | I131: 0 | J131: Serviço | K131: =IF($A131=0,"-",CONCATENATE(C131&".",IF(AND($A$5>=2,$A131>=2),D131&".",""),IF(AND($A$5>=3,$A131>=3),E131&".",""),IF(AND($A$5>=4,$A131>=4),F131&".",""),IF($A131="S",G131&".",""))) -> 2.6.0.0.2. | L131: SINAPI | M131: 97632 | N131: DEMOLIÇÃO DE RODAPÉ CERÂMICO, DE FORMA MANUAL, SEM REAPROVEITAMENTO. AF_09/2023 | O131: M | P131: =OFFSET(PLQ!$E$12,ROW($P131)-ROW(P$12),0) -> 193.03 | Q131: 2.68 | R131: BDI 1 | S131: =IF($A131="S",IF($Q$10="Preço Unitário (R$)",PO.CustoUnitario,ROUND(PO.CustoUnitario*(1+$Z131),15-13*$X$6)),0) -> 3.49 | T131: =IF($A131="S",VTOTAL1,IF($A131=0,0,ROUND(SomaAgrup,15-13*$X$7))) -> 673.67 | U131: =IF($J131="","",IF($N131="","DESCRIÇÃO",IF(AND($J131="Serviço",$O131=""),"UNIDADE",IF($T131<=0,"SEM VALOR",IF(AND($Y131<>"",$Q131>$Y131),"ACIMA REF.",""))))) ->  | V131: =IF(OR($A131=0,$A131="S",$A131>CFF!$A$9),"",MAX(V$12:OFFSET(V131,-1,0))+1) ->  | W131: =IF(AND($J131="Serviço",$M131<>""),IF($L131="",$M131,CONCATENATE($L131,"-",$M131))) -> SINAPI-97632 | X131: 7874 | Y131: =IF(Import.Desoneracao="sim",Referencia.Desonerado,Referencia.NaoDesonerado) -> 2.68 | Z131: =ROUND(IF(ISNUMBER(R131),R131,IF(LEFT(R131,3)="BDI",HLOOKUP(R131,DADOS!$T$37:$X$38,2,FALSE),0)),15-11*$X$5) -> 0.3021
A132: S | B132: 0 | C132: =IF($A132=1,OFFSET(C132,-1,0)+1,OFFSET(C132,-1,0)) -> 2 | D132: =IF($A132=1,0,IF($A132=2,OFFSET(D132,-1,0)+1,OFFSET(D132,-1,0))) -> 6 | E132: =IF(AND($A132<=2,$A132<>0),0,IF($A132=3,OFFSET(E132,-1,0)+1,OFFSET(E132,-1,0))) -> 0 | F132: =IF(AND($A132<=3,$A132<>0),0,IF($A132=4,OFFSET(F132,-1,0)+1,OFFSET(F132,-1,0))) -> 0 | G132: =IF(AND($A132<=4,$A132<>0),0,IF($A132="S",OFFSET(G132,-1,0)+1,OFFSET(G132,-1,0))) -> 3 | H132: 0 | I132: 0 | J132: Serviço | K132: =IF($A132=0,"-",CONCATENATE(C132&".",IF(AND($A$5>=2,$A132>=2),D132&".",""),IF(AND($A$5>=3,$A132>=3),E132&".",""),IF(AND($A$5>=4,$A132>=4),F132&".",""),IF($A132="S",G132&".",""))) -> 2.6.0.0.3. | L132: SINAPI | M132: 104790 | N132: DEMOLIÇÃO DE PISO DE CONCRETO SIMPLES, DE FORMA MECANIZADA COM MARTELETE, SEM REAPROVEITAMENTO. AF_09/2023 | O132: M3 | P132: =OFFSET(PLQ!$E$12,ROW($P132)-ROW(P$12),0) -> 0.23 | Q132: 124.95 | R132: BDI 1 | S132: =IF($A132="S",IF($Q$10="Preço Unitário (R$)",PO.CustoUnitario,ROUND(PO.CustoUnitario*(1+$Z132),15-13*$X$6)),0) -> 162.7 | T132: =IF($A132="S",VTOTAL1,IF($A132=0,0,ROUND(SomaAgrup,15-13*$X$7))) -> 37.42 | U132: =IF($J132="","",IF($N132="","DESCRIÇÃO",IF(AND($J132="Serviço",$O132=""),"UNIDADE",IF($T132<=0,"SEM VALOR",IF(AND($Y132<>"",$Q132>$Y132),"ACIMA REF.",""))))) ->  | V132: =IF(OR($A132=0,$A132="S",$A132>CFF!$A$9),"",MAX(V$12:OFFSET(V132,-1,0))+1) ->  | W132: =IF(AND($J132="Serviço",$M132<>""),IF($L132="",$M132,CONCATENATE($L132,"-",$M132))) -> SINAPI-104790 | X132: 7871 | Y132: =IF(Import.Desoneracao="sim",Referencia.Desonerado,Referencia.NaoDesonerado) -> 124.95 | Z132: =ROUND(IF(ISNUMBER(R132),R132,IF(LEFT(R132,3)="BDI",HLOOKUP(R132,DADOS!$T$37:$X$38,2,FALSE),0)),15-11*$X$5) -> 0.3021
A133: =CHOOSE(1+LOG(1+2*(J133="Meta")+4*(J133="Nível 2")+8*(J133="Nível 3")+16*(J133="Nível 4")+32*(J133="Serviço"),2),0,1,2,3,4,"S") -> S | B133: =IF(OR(A133="S",A133=0),0,IF(ISERROR(I133),H133,SMALL(H133:I133,1))) -> 0 | C133: =IF($A133=1,OFFSET(C133,-1,0)+1,OFFSET(C133,-1,0)) -> 2 | D133: =IF($A133=1,0,IF($A133=2,OFFSET(D133,-1,0)+1,OFFSET(D133,-1,0))) -> 6 | E133: =IF(AND($A133<=2,$A133<>0),0,IF($A133=3,OFFSET(E133,-1,0)+1,OFFSET(E133,-1,0))) -> 0 | F133: =IF(AND($A133<=3,$A133<>0),0,IF($A133=4,OFFSET(F133,-1,0)+1,OFFSET(F133,-1,0))) -> 0 | G133: =IF(AND($A133<=4,$A133<>0),0,IF($A133="S",OFFSET(G133,-1,0)+1,OFFSET(G133,-1,0))) -> 4 | H133: 0 | I133: 0 | J133: Serviço | K133: =IF($A133=0,"-",CONCATENATE(C133&".",IF(AND($A$5>=2,$A133>=2),D133&".",""),IF(AND($A$5>=3,$A133>=3),E133&".",""),IF(AND($A$5>=4,$A133>=4),F133&".",""),IF($A133="S",G133&".",""))) -> 2.6.0.0.4. | L133: SINAPI | M133: 104791 | N133: DEMOLIÇÃO DE ARGAMASSAS, DE FORMA DE FORMA MECANIZADA COM MARTELETE, SEM REAPROVEITAMENTO. AF_09/2023 | O133: M2 | P133: =OFFSET(PLQ!$E$12,ROW($P133)-ROW(P$12),0) -> 22.57 | Q133: 7.53 | R133: BDI 1 | S133: =IF($A133="S",IF($Q$10="Preço Unitário (R$)",PO.CustoUnitario,ROUND(PO.CustoUnitario*(1+$Z133),15-13*$X$6)),0) -> 9.8 | T133: =IF($A133="S",VTOTAL1,IF($A133=0,0,ROUND(SomaAgrup,15-13*$X$7))) -> 221.19 | U133: =IF($J133="","",IF($N133="","DESCRIÇÃO",IF(AND($J133="Serviço",$O133=""),"UNIDADE",IF($T133<=0,"SEM VALOR",IF(AND($Y133<>"",$Q133>$Y133),"ACIMA REF.",""))))) ->  | V133: =IF(OR($A133=0,$A133="S",$A133>CFF!$A$9),"",MAX(V$12:OFFSET(V133,-1,0))+1) ->  | W133: =IF(AND($J133="Serviço",$M133<>""),IF($L133="",$M133,CONCATENATE($L133,"-",$M133))) -> SINAPI-104791 | X133: 7862 | Y133: =IF(Import.Desoneracao="sim",Referencia.Desonerado,Referencia.NaoDesonerado) -> 7.53 | Z133: =ROUND(IF(ISNUMBER(R133),R133,IF(LEFT(R133,3)="BDI",HLOOKUP(R133,DADOS!$T$37:$X$38,2,FALSE),0)),15-11*$X$5) -> 0.3021
A134: S | B134: 0 | C134: 2 | D134: 6 | E134: 0 | F134: 0 | G134: 5 | H134: 0 | I134: 0 | J134: Serviço | K134: 2.6.0.0.5. | L134: COMPOSIÇÃO | M134: SINAPI98555ADAPTADA | N134: REBOCO IMPERMEÁVEL E=3CM | O134: M2 | P134: =OFFSET(PLQ!$E$12,ROW($P134)-ROW(P$12),0) -> 30.1 | Q134: 42.28 | R134: BDI 1 | S134: =IF($A134="S",IF($Q$10="Preço Unitário (R$)",PO.CustoUnitario,ROUND(PO.CustoUnitario*(1+$Z134),15-13*$X$6)),0) -> 55.05 | T134: =IF($A134="S",VTOTAL1,IF($A134=0,0,ROUND(SomaAgrup,15-13*$X$7))) -> 1657.01 | V134: =IF(OR($A134=0,$A134="S",$A134>CFF!$A$9),"",MAX(V$12:OFFSET(V134,-1,0))+1) ->  | W134: COMPOSIÇÃO-SINAPI98555ADAPTADA | X134: 16 | Y134: =IF(Import.Desoneracao="sim",Referencia.Desonerado,Referencia.NaoDesonerado) -> 42.28 | Z134: =ROUND(IF(ISNUMBER(R134),R134,IF(LEFT(R134,3)="BDI",HLOOKUP(R134,DADOS!$T$37:$X$38,2,FALSE),0)),15-11*$X$5) -> 0.3021
A135: S | B135: 0 | C135: 2 | D135: 6 | E135: 0 | F135: 0 | G135: 6 | H135: 0 | I135: 0 | J135: Serviço | K135: 2.6.0.0.6. | L135: SINAPI | M135: 104598 | N135: REVESTIMENTO CERÂMICO PARA PISO COM PLACAS TIPO PORCELANATO DE DIMENSÕES 80X80 CM APLICADA EM AMBIENTES DE ÁREA MAIOR QUE 10 M². AF_02/2023_PE | O135: M2 | P135: =OFFSET(PLQ!$E$12,ROW($P135)-ROW(P$12),0) -> 475.56 | Q135: 117.63 | R135: BDI 1 | S135: 153.17 | T135: 72841.53 | V135: =IF(OR($A135=0,$A135="S",$A135>CFF!$A$9),"",MAX(V$12:OFFSET(V135,-1,0))+1) ->  | W135: SINAPI-104598 | X135: 14858 | Y135: 117.63 | Z135: =ROUND(IF(ISNUMBER(R135),R135,IF(LEFT(R135,3)="BDI",HLOOKUP(R135,DADOS!$T$37:$X$38,2,FALSE),0)),15-11*$X$5) -> 0.3021
A136: S | B136: 0 | C136: 2 | D136: 6 | E136: 0 | F136: 0 | G136: 7 | H136: 0 | I136: 0 | J136: Serviço | K136: 2.6.0.0.7. | L136: SINAPI | M136: 104619 | N136: RODAPÉ CERÂMICO DE 7CM DE ALTURA COM PLACAS TIPO ESMALTADA DE DIMENSÕES 80X80CM. AF_02/2023 | O136: M | P136: =OFFSET(PLQ!$E$12,ROW($P136)-ROW(P$12),0) -> 193.03 | Q136: 14.45 | R136: BDI 1 | S136: 18.82 | T136: 3632.82 | V136: =IF(OR($A136=0,$A136="S",$A136>CFF!$A$9),"",MAX(V$12:OFFSET(V136,-1,0))+1) ->  | W136: SINAPI-104619 | X136: 14863 | Y136: 14.45 | Z136: =ROUND(IF(ISNUMBER(R136),R136,IF(LEFT(R136,3)="BDI",HLOOKUP(R136,DADOS!$T$37:$X$38,2,FALSE),0)),15-11*$X$5) -> 0.3021
A137: =CHOOSE(1+LOG(1+2*(J137="Meta")+4*(J137="Nível 2")+8*(J137="Nível 3")+16*(J137="Nível 4")+32*(J137="Serviço"),2),0,1,2,3,4,"S") -> 1 | B137: =IF(OR(A137="S",A137=0),0,IF(ISERROR(I137),H137,SMALL(H137:I137,1))) -> 8 | C137: =IF($A137=1,OFFSET(C137,-1,0)+1,OFFSET(C137,-1,0)) -> 3 | D137: =IF($A137=1,0,IF($A137=2,OFFSET(D137,-1,0)+1,OFFSET(D137,-1,0))) -> 0 | E137: =IF(AND($A137<=2,$A137<>0),0,IF($A137=3,OFFSET(E137,-1,0)+1,OFFSET(E137,-1,0))) -> 0 | F137: =IF(AND($A137<=3,$A137<>0),0,IF($A137=4,OFFSET(F137,-1,0)+1,OFFSET(F137,-1,0))) -> 0 | G137: =IF(AND($A137<=4,$A137<>0),0,IF($A137="S",OFFSET(G137,-1,0)+1,OFFSET(G137,-1,0))) -> 0 | H137: =IF(OR($A137="S",$A137=0),0,MATCH(0,OFFSET($B137,1,$A137,ROW($A$145)-ROW($A137)),0)) -> 8 | I137: =IF(OR($A137="S",$A137=0),0,MATCH(OFFSET($B137,0,$A137)+1,OFFSET($B137,1,$A137,ROW($A$145)-ROW($A137)),0)) ->  | J137: Meta | K137: =IF($A137=0,"-",CONCATENATE(C137&".",IF(AND($A$5>=2,$A137>=2),D137&".",""),IF(AND($A$5>=3,$A137>=3),E137&".",""),IF(AND($A$5>=4,$A137>=4),F137&".",""),IF($A137="S",G137&".",""))) -> 3. | N137: LOTE 2 - FACHADA EM ACM 1ª ETAPA | O137: =Referencia.Unidade ->  | P137: =OFFSET(PLQ!$E$12,ROW($P137)-ROW(P$12),0) -> 0 | R137: BDI 1 | S137: =IF($A137="S",IF($Q$10="Preço Unitário (R$)",PO.CustoUnitario,ROUND(PO.CustoUnitario*(1+$Z137),15-13*$X$6)),0) -> 0 | T137: =IF($A137="S",VTOTAL1,IF($A137=0,0,ROUND(SomaAgrup,15-13*$X$7))) -> 103430.77 | U137: =IF($J137="","",IF($N137="","DESCRIÇÃO",IF(AND($J137="Serviço",$O137=""),"UNIDADE",IF($T137<=0,"SEM VALOR",IF(AND($Y137<>"",$Q137>$Y137),"ACIMA REF.",""))))) ->  | V137: =IF(OR($A137=0,$A137="S",$A137>CFF!$A$9),"",MAX(V$12:OFFSET(V137,-1,0))+1) -> 17 | W137: =IF(AND($J137="Serviço",$M137<>""),IF($L137="",$M137,CONCATENATE($L137,"-",$M137))) -> FALSE | X137: X | Y137: =IF(Import.Desoneracao="sim",Referencia.Desonerado,Referencia.NaoDesonerado) -> 0 | Z137: =ROUND(IF(ISNUMBER(R137),R137,IF(LEFT(R137,3)="BDI",HLOOKUP(R137,DADOS!$T$37:$X$38,2,FALSE),0)),15-11*$X$5) -> 0.3021
A138: =CHOOSE(1+LOG(1+2*(J138="Meta")+4*(J138="Nível 2")+8*(J138="Nível 3")+16*(J138="Nível 4")+32*(J138="Serviço"),2),0,1,2,3,4,"S") -> 3 | B138: =IF(OR(A138="S",A138=0),0,IF(ISERROR(I138),H138,SMALL(H138:I138,1))) -> 3 | C138: 3 | D138: 0 | E138: 1 | F138: 0 | G138: 0 | H138: 7 | I138: 3 | J138: Nível 3 | K138: 3.0.1. | N138: PLATIBANDA | O138: =Referencia.Unidade ->  | P138: =OFFSET(PLQ!$E$12,ROW($P138)-ROW(P$12),0) -> 0 | R138: BDI 1 | S138: 0 | T138: 82649.47 | V138: =IF(OR($A138=0,$A138="S",$A138>CFF!$A$9),"",MAX(V$12:OFFSET(V138,-1,0))+1) ->  | W138: FALSE | X138: =IF(AND(Fonte<>"",Código<>""),MATCH(Fonte&" "&IF(Fonte="sinapi",SUBSTITUTE(SUBSTITUTE(Código,"/00","/"),"/0","/"),Código),INDIRECT("'[Referência "&_xlnm.Database&".xls]Banco'!$a:$a"),0),"X") -> X | Y138: =IF(Import.Desoneracao="sim",Referencia.Desonerado,Referencia.NaoDesonerado) -> 0 | Z138: =ROUND(IF(ISNUMBER(R138),R138,IF(LEFT(R138,3)="BDI",HLOOKUP(R138,DADOS!$T$37:$X$38,2,FALSE),0)),15-11*$X$5) -> 0.3021
A139: S | B139: 0 | C139: 3 | D139: 0 | E139: 1 | F139: 0 | G139: 1 | H139: 0 | I139: 0 | J139: Serviço | K139: 3.0.1.0.1. | L139: COTAÇÃO | M139: RCV04 | N139: FACHADA - ACM 3MM (PLATIBANDA, SACADA E DETALHE LATERAL), INCLUSO TESTEIRAS E ESTRUTURA METÁLICA NECESSÁRIA - FORNECIMENTO E INSTALAÇÃO | O139: M2 | P139: =OFFSET(PLQ!$E$12,ROW($P139)-ROW(P$12),0) -> 178.56 | Q139: =Y139/1.3021 -> 315.5376783 | R139: BDI 1 | S139: 410.86 | T139: 73363.16 | V139: =IF(OR($A139=0,$A139="S",$A139>CFF!$A$9),"",MAX(V$12:OFFSET(V139,-1,0))+1) ->  | W139: COTAÇÃO-RCV04 | X139: 20 | Y139: =IF(Import.Desoneracao="sim",Referencia.Desonerado,Referencia.NaoDesonerado) -> 410.861611 | Z139: =ROUND(IF(ISNUMBER(R139),R139,IF(LEFT(R139,3)="BDI",HLOOKUP(R139,DADOS!$T$37:$X$38,2,FALSE),0)),15-11*$X$5) -> 0.3021
A140: =CHOOSE(1+LOG(1+2*(J140="Meta")+4*(J140="Nível 2")+8*(J140="Nível 3")+16*(J140="Nível 4")+32*(J140="Serviço"),2),0,1,2,3,4,"S") -> S | B140: =IF(OR(A140="S",A140=0),0,IF(ISERROR(I140),H140,SMALL(H140:I140,1))) -> 0 | C140: 3 | D140: 0 | E140: 1 | F140: 0 | G140: 2 | H140: 0 | I140: 0 | J140: Serviço | K140: 3.0.1.0.2. | L140: SINAPI | M140: 94213 | N140: TELHAMENTO COM TELHA DE AÇO/ALUMÍNIO E = 0,5 MM, COM ATÉ 2 ÁGUAS, INCLUSO IÇAMENTO. AF_07/2019 | O140: M2 | P140: =OFFSET(PLQ!$E$12,ROW($P140)-ROW(P$12),0) -> 119.04 | Q140: 59.91 | R140: BDI 1 | S140: 78.01 | T140: 9286.31 | V140: =IF(OR($A140=0,$A140="S",$A140>CFF!$A$9),"",MAX(V$12:OFFSET(V140,-1,0))+1) ->  | W140: SINAPI-94213 | X140: 15078 | Y140: =IF(Import.Desoneracao="sim",Referencia.Desonerado,Referencia.NaoDesonerado) -> 59.91 | Z140: =ROUND(IF(ISNUMBER(R140),R140,IF(LEFT(R140,3)="BDI",HLOOKUP(R140,DADOS!$T$37:$X$38,2,FALSE),0)),15-11*$X$5) -> 0.3021
A141: =CHOOSE(1+LOG(1+2*(J141="Meta")+4*(J141="Nível 2")+8*(J141="Nível 3")+16*(J141="Nível 4")+32*(J141="Serviço"),2),0,1,2,3,4,"S") -> 3 | B141: =IF(OR(A141="S",A141=0),0,IF(ISERROR(I141),H141,SMALL(H141:I141,1))) -> 2 | C141: 3 | D141: 0 | E141: 2 | F141: 0 | G141: 0 | H141: 4 | I141: 2 | J141: Nível 3 | K141: 3.0.2. | N141: SACADA | O141: =Referencia.Unidade ->  | P141: =OFFSET(PLQ!$E$12,ROW($P141)-ROW(P$12),0) -> 0 | R141: BDI 1 | S141: 0 | T141: 9277.22 | V141: =IF(OR($A141=0,$A141="S",$A141>CFF!$A$9),"",MAX(V$12:OFFSET(V141,-1,0))+1) ->  | W141: FALSE | X141: X | Y141: =IF(Import.Desoneracao="sim",Referencia.Desonerado,Referencia.NaoDesonerado) -> 0 | Z141: =ROUND(IF(ISNUMBER(R141),R141,IF(LEFT(R141,3)="BDI",HLOOKUP(R141,DADOS!$T$37:$X$38,2,FALSE),0)),15-11*$X$5) -> 0.3021
A142: S | B142: 0 | C142: 3 | D142: 0 | E142: 2 | F142: 0 | G142: 1 | H142: 0 | I142: 0 | J142: Serviço | K142: 3.0.2.0.1. | L142: COTAÇÃO | M142: RCV04 | N142: FACHADA - ACM 3MM (PLATIBANDA, SACADA E DETALHE LATERAL), INCLUSO TESTEIRAS E ESTRUTURA METÁLICA NECESSÁRIA - FORNECIMENTO E INSTALAÇÃO | O142: M2 | P142: =OFFSET(PLQ!$E$12,ROW($P142)-ROW(P$12),0) -> 22.58 | Q142: =Y142/1.3021 -> 315.5376783 | R142: BDI 1 | S142: 410.86 | T142: 9277.22 | V142: =IF(OR($A142=0,$A142="S",$A142>CFF!$A$9),"",MAX(V$12:OFFSET(V142,-1,0))+1) ->  | W142: COTAÇÃO-RCV04 | X142: 20 | Y142: =IF(Import.Desoneracao="sim",Referencia.Desonerado,Referencia.NaoDesonerado) -> 410.861611 | Z142: =ROUND(IF(ISNUMBER(R142),R142,IF(LEFT(R142,3)="BDI",HLOOKUP(R142,DADOS!$T$37:$X$38,2,FALSE),0)),15-11*$X$5) -> 0.3021
A143: 3 | B143: 2 | C143: 3 | D143: 0 | E143: 3 | F143: 0 | G143: 0 | H143: 2 | J143: Nível 3 | K143: 3.0.3. | N143: DETALHE LATERAL | O143: =Referencia.Unidade ->  | P143: =OFFSET(PLQ!$E$12,ROW($P143)-ROW(P$12),0) -> 0 | R143: BDI 1 | S143: 0 | T143: 11504.08 | V143: =IF(OR($A143=0,$A143="S",$A143>CFF!$A$9),"",MAX(V$12:OFFSET(V143,-1,0))+1) ->  | W143: FALSE | X143: X | Y143: =IF(Import.Desoneracao="sim",Referencia.Desonerado,Referencia.NaoDesonerado) -> 0 | Z143: =ROUND(IF(ISNUMBER(R143),R143,IF(LEFT(R143,3)="BDI",HLOOKUP(R143,DADOS!$T$37:$X$38,2,FALSE),0)),15-11*$X$5) -> 0.3021
A144: S | B144: 0 | C144: 3 | D144: 0 | E144: 3 | F144: 0 | G144: 1 | H144: 0 | I144: 0 | J144: Serviço | K144: 3.0.3.0.1. | L144: COTAÇÃO | M144: RCV04 | N144: FACHADA - ACM 3MM (PLATIBANDA, SACADA E DETALHE LATERAL), INCLUSO TESTEIRAS E ESTRUTURA METÁLICA NECESSÁRIA - FORNECIMENTO E INSTALAÇÃO | O144: M2 | P144: =OFFSET(PLQ!$E$12,ROW($P144)-ROW(P$12),0) -> 28 | Q144: =Y144/1.3021 -> 315.5376783 | R144: BDI 1 | S144: 410.86 | T144: 11504.08 | V144: =IF(OR($A144=0,$A144="S",$A144>CFF!$A$9),"",MAX(V$12:OFFSET(V144,-1,0))+1) ->  | W144: COTAÇÃO-RCV04 | X144: 20 | Y144: =IF(Import.Desoneracao="sim",Referencia.Desonerado,Referencia.NaoDesonerado) -> 410.861611 | Z144: =ROUND(IF(ISNUMBER(R144),R144,IF(LEFT(R144,3)="BDI",HLOOKUP(R144,DADOS!$T$37:$X$38,2,FALSE),0)),15-11*$X$5) -> 0.3021
A145: -1 | C145: 0 | D145: 0 | E145: 0 | F145: 0 | G145: 0
K146: Encargos sociais: | M146: Para elaboração deste orçamento, foram utilizados os encargos sociais do SINAPI para a Unidade da Federação indicada.
K148: Observações:
K153: =IF(AND($X$3=FALSE,$X$4=FALSE,$X$5=FALSE,$X$6=FALSE,$X$7=FALSE),"Não foi considerado arredondamento nos valores da planilha.",CONCATENATE("Foi considerado arredondamento de duas casas decimais para ",IF($X$3=TRUE,"Quantidade; ",""),IF($X$4=TRUE,"Custo Unitário; ",""),IF($X$5=TRUE,"BDI; ",""),IF($X$6=TRUE,"Preço Unitário; ",""),IF($X$7=TRUE,"Preço Total.",""))) -> Foi considerado arredondamento de duas casas decimais para Quantidade; Custo Unitário; BDI; Preço Unitário; Preço Total.
K156: =Import.Município -> SÃO JOSÉ DO OURO / RS
K157: Local
K159: =TODAY() -> 2025-11-02
K160: Data

Sheet PLQ
E1: PLQ - | F1: PLANILHA DE LEVANTAMENTO DE QUANTIDADES
E7: =OFFSET(PO!$P$12,ROW($E7)-ROW(E$12),0) -> 0
E9: - | F9: Única | G9: Térreo | H9: 2º Pav
A10: Nível | B10: Item | C10: Descrição | D10: Unid. | E10: Quantidade | F10: =IF(OFFSET(F10,0,-1)="Quantidade",1,OFFSET(F10,0,-1)+1) -> 1 | G10: 2 | H10: 3 | I10: 4 | J10: 5 | K10: 6 | L10: 7 | M10: 8 | N10: 9 | O10: 10 | U10: =IF(OFFSET(U10,0,-1)="Quantidade",1,OFFSET(U10,0,-1)+1) -> 1
A11: =OFFSET(PO!J$12,ROW(A11)-ROW($A$12),0) -> Serviço | B11: =IF($A11=0,"",OFFSET(PO!K$12,ROW(B11)-ROW(B$12),0)) ->  | C11: =IF(OFFSET(PO!N$12,ROW(C11)-ROW(C$12),0)=0,"",OFFSET(PO!N$12,ROW(C11)-ROW(C$12),0)) ->  | D11: =IF(OFFSET(PO!O$12,ROW(D11)-ROW(D$12),0)=0,"",OFFSET(PO!O$12,ROW(D11)-ROW(D$12),0)) ->  | E11: =IF($A11<>"Serviço",0,ROUND(SUMIF($F$9:$P$9,"<>",$F11:$P11),15-13*PO!$X$3)) -> 0
A12: =PO!J12 -> LOTE | C12: =PO!N12 -> REFORMA DA CÂMARA DE VEREADORES DE SÃO JOSÉ DO OURO
A13: =OFFSET(PO!J$12,ROW(A13)-ROW($A$12),0) -> Meta | B13: =IF($A13=0,"",OFFSET(PO!K$12,ROW(B13)-ROW(B$12),0)) -> 1. | C13: =IF(OFFSET(PO!N$12,ROW(C13)-ROW(C$12),0)=0,"",OFFSET(PO!N$12,ROW(C13)-ROW(C$12),0)) -> LOTE 1 - 1ª ETAPA DA REFORMA | D13: =IF(OFFSET(PO!O$12,ROW(D13)-ROW(D$12),0)=0,"",OFFSET(PO!O$12,ROW(D13)-ROW(D$12),0)) ->  | E13: =IF($A13<>"Serviço",0,ROUND(SUMIF($F$9:$P$9,"<>",$F13:$P13),15-13*PO!$X$3)) -> 0 | F13: 0
A14: =OFFSET(PO!J$12,ROW(A14)-ROW($A$12),0) -> Nível 2 | B14: =IF($A14=0,"",OFFSET(PO!K$12,ROW(B14)-ROW(B$12),0)) -> 1.1. | C14: =IF(OFFSET(PO!N$12,ROW(C14)-ROW(C$12),0)=0,"",OFFSET(PO!N$12,ROW(C14)-ROW(C$12),0)) -> SERVIÇOS INICIAIS | D14: =IF(OFFSET(PO!O$12,ROW(D14)-ROW(D$12),0)=0,"",OFFSET(PO!O$12,ROW(D14)-ROW(D$12),0)) ->  | E14: =IF($A14<>"Serviço",0,ROUND(SUMIF($F$9:$P$9,"<>",$F14:$P14),15-13*PO!$X$3)) -> 0 | F14: 0
A15: =OFFSET(PO!J$12,ROW(A15)-ROW($A$12),0) -> Serviço | B15: =IF($A15=0,"",OFFSET(PO!K$12,ROW(B15)-ROW(B$12),0)) -> 1.1.0.0.1. | C15: =IF(OFFSET(PO!N$12,ROW(C15)-ROW(C$12),0)=0,"",OFFSET(PO!N$12,ROW(C15)-ROW(C$12),0)) -> ADMINSTRAÇÃO LOCAL | D15: =IF(OFFSET(PO!O$12,ROW(D15)-ROW(D$12),0)=0,"",OFFSET(PO!O$12,ROW(D15)-ROW(D$12),0)) -> MÊS | E15: =IF($A15<>"Serviço",0,ROUND(SUMIF($F$9:$P$9,"<>",$F15:$P15),15-13*PO!$X$3)) -> 2 | F15: 2
A16: =OFFSET(PO!J$12,ROW(A16)-ROW($A$12),0) -> Serviço | B16: =IF($A16=0,"",OFFSET(PO!K$12,ROW(B16)-ROW(B$12),0)) -> 1.1.0.0.2. | C16: =IF(OFFSET(PO!N$12,ROW(C16)-ROW(C$12),0)=0,"",OFFSET(PO!N$12,ROW(C16)-ROW(C$12),0)) -> FORNECIMENTO E INSTALAÇÃO DE PLACA DE OBRA COM CHAPA GALVANIZADA E ESTRUTURA DE MADEIRA. AF_03/2022_PS | D16: =IF(OFFSET(PO!O$12,ROW(D16)-ROW(D$12),0)=0,"",OFFSET(PO!O$12,ROW(D16)-ROW(D$12),0)) -> M2 | E16: =IF($A16<>"Serviço",0,ROUND(SUMIF($F$9:$P$9,"<>",$F16:$P16),15-13*PO!$X$3)) -> 2.4 | F16: 2.4
A17: =OFFSET(PO!J$12,ROW(A17)-ROW($A$12),0) -> Serviço | B17: =IF($A17=0,"",OFFSET(PO!K$12,ROW(B17)-ROW(B$12),0)) -> 1.1.0.0.3. | C17: =IF(OFFSET(PO!N$12,ROW(C17)-ROW(C$12),0)=0,"",OFFSET(PO!N$12,ROW(C17)-ROW(C$12),0)) -> LOCACAO DE ANDAIME METALICO TIPO FACHADEIRO, PECAS COM APROXIMADAMENTE 1,20 M DE LARGURA E 2,0 M DE ALTURA, INCLUINDO DIAGONAIS EM X, BARRAS DE LIGACAO, SAPATAS E DEMAIS ITENS NECESSARIOS A MONTAGEM (NAO INCLUI INSTALACAO) | D17: =IF(OFFSET(PO!O$12,ROW(D17)-ROW(D$12),0)=0,"",OFFSET(PO!O$12,ROW(D17)-ROW(D$12),0)) -> M2XMES | E17: =IF($A17<>"Serviço",0,ROUND(SUMIF($F$9:$P$9,"<>",$F17:$P17),15-13*PO!$X$3)) -> 8 | F17: 8
A18: =OFFSET(PO!J$12,ROW(A18)-ROW($A$12),0) -> Nível 2 | B18: =IF($A18=0,"",OFFSET(PO!K$12,ROW(B18)-ROW(B$12),0)) -> 1.2. | C18: =IF(OFFSET(PO!N$12,ROW(C18)-ROW(C$12),0)=0,"",OFFSET(PO!N$12,ROW(C18)-ROW(C$12),0)) -> COBERTURA E PLATATIBANDA | D18: =IF(OFFSET(PO!O$12,ROW(D18)-ROW(D$12),0)=0,"",OFFSET(PO!O$12,ROW(D18)-ROW(D$12),0)) ->  | E18: =IF($A18<>"Serviço",0,ROUND(SUMIF($F$9:$P$9,"<>",$F18:$P18),15-13*PO!$X$3)) -> 0 | F18: 0
A19: =OFFSET(PO!J$12,ROW(A19)-ROW($A$12),0) -> Nível 3 | B19: =IF($A19=0,"",OFFSET(PO!K$12,ROW(B19)-ROW(B$12),0)) -> 1.2.1. | C19: =IF(OFFSET(PO!N$12,ROW(C19)-ROW(C$12),0)=0,"",OFFSET(PO!N$12,ROW(C19)-ROW(C$12),0)) -> DEMOLIÇÕES E REMOÇÕES | D19: =IF(OFFSET(PO!O$12,ROW(D19)-ROW(D$12),0)=0,"",OFFSET(PO!O$12,ROW(D19)-ROW(D$12),0)) ->  | E19: =IF($A19<>"Serviço",0,ROUND(SUMIF($F$9:$P$9,"<>",$F19:$P19),15-13*PO!$X$3)) -> 0
A20: =OFFSET(PO!J$12,ROW(A20)-ROW($A$12),0) -> Serviço | B20: =IF($A20=0,"",OFFSET(PO!K$12,ROW(B20)-ROW(B$12),0)) -> 1.2.1.0.1. | C20: =IF(OFFSET(PO!N$12,ROW(C20)-ROW(C$12),0)=0,"",OFFSET(PO!N$12,ROW(C20)-ROW(C$12),0)) -> REMOÇÃO CALHAS E RUFOS, DE FORMA MANUAL, SEM REAPROVEITAMENTO. AF_09/2023 | D20: =IF(OFFSET(PO!O$12,ROW(D20)-ROW(D$12),0)=0,"",OFFSET(PO!O$12,ROW(D20)-ROW(D$12),0)) -> M | E20: =IF($A20<>"Serviço",0,ROUND(SUMIF($F$9:$P$9,"<>",$F20:$P20),15-13*PO!$X$3)) -> 120.4 | F20: =73.7+46.7 -> 120.4
A21: =OFFSET(PO!J$12,ROW(A21)-ROW($A$12),0) -> Serviço | B21: =IF($A21=0,"",OFFSET(PO!K$12,ROW(B21)-ROW(B$12),0)) -> 1.2.1.0.2. | C21: =IF(OFFSET(PO!N$12,ROW(C21)-ROW(C$12),0)=0,"",OFFSET(PO!N$12,ROW(C21)-ROW(C$12),0)) -> GUINDAUTO HIDRÁULICO, CAPACIDADE MÁXIMA DE CARGA 3300 KG, MOMENTO MÁXIMO DE CARGA 5,8 TM, ALCANCE MÁXIMO HORIZONTAL 7,60 M, INCLUSIVE CAMINHÃO TOCO PBT 16.000 KG, POTÊNCIA DE 189 CV - CHP DIURNO. AF_03/2016 | D21: =IF(OFFSET(PO!O$12,ROW(D21)-ROW(D$12),0)=0,"",OFFSET(PO!O$12,ROW(D21)-ROW(D$12),0)) -> CHP | E21: =IF($A21<>"Serviço",0,ROUND(SUMIF($F$9:$P$9,"<>",$F21:$P21),15-13*PO!$X$3)) -> 3 | F21: 3
A22: =OFFSET(PO!J$12,ROW(A22)-ROW($A$12),0) -> Serviço | B22: =IF($A22=0,"",OFFSET(PO!K$12,ROW(B22)-ROW(B$12),0)) -> 1.2.1.0.3. | C22: =IF(OFFSET(PO!N$12,ROW(C22)-ROW(C$12),0)=0,"",OFFSET(PO!N$12,ROW(C22)-ROW(C$12),0)) -> REMOÇÃO DE TELHAS DE FIBROCIMENTO METÁLICA E CERÂMICA, DE FORMA MANUAL, SEM REAPROVEITAMENTO. AF_09/2023 | D22: =IF(OFFSET(PO!O$12,ROW(D22)-ROW(D$12),0)=0,"",OFFSET(PO!O$12,ROW(D22)-ROW(D$12),0)) -> M2 | E22: =IF($A22<>"Serviço",0,ROUND(SUMIF($F$9:$P$9,"<>",$F22:$P22),15-13*PO!$X$3)) -> 278.14 | F22: 278.14
A23: =OFFSET(PO!J$12,ROW(A23)-ROW($A$12),0) -> Serviço | B23: =IF($A23=0,"",OFFSET(PO!K$12,ROW(B23)-ROW(B$12),0)) -> 1.2.1.0.4. | C23: =IF(OFFSET(PO!N$12,ROW(C23)-ROW(C$12),0)=0,"",OFFSET(PO!N$12,ROW(C23)-ROW(C$12),0)) -> DEMOLIÇÃO DE ALVENARIA DE BLOCO FURADO, DE FORMA MANUAL, SEM REAPROVEITAMENTO. AF_09/2023 | D23: =IF(OFFSET(PO!O$12,ROW(D23)-ROW(D$12),0)=0,"",OFFSET(PO!O$12,ROW(D23)-ROW(D$12),0)) -> M3 | E23: =IF($A23<>"Serviço",0,ROUND(SUMIF($F$9:$P$9,"<>",$F23:$P23),15-13*PO!$X$3)) -> 15.3 | F23: =89.98*0.17 -> 15.2966
A24: =OFFSET(PO!J$12,ROW(A24)-ROW($A$12),0) -> Serviço | B24: =IF($A24=0,"",OFFSET(PO!K$12,ROW(B24)-ROW(B$12),0)) -> 1.2.1.0.5. | C24: =IF(OFFSET(PO!N$12,ROW(C24)-ROW(C$12),0)=0,"",OFFSET(PO!N$12,ROW(C24)-ROW(C$12),0)) -> TRANSPORTE HORIZONTAL MANUAL, DE BLOCOS CERÂMICOS FURADOS NA HORIZONTAL DE 9X19X19CM (UNIDADE: BLOCOXKM). AF_07/2019 | D24: =IF(OFFSET(PO!O$12,ROW(D24)-ROW(D$12),0)=0,"",OFFSET(PO!O$12,ROW(D24)-ROW(D$12),0)) -> UNXKM | E24: =IF($A24<>"Serviço",0,ROUND(SUMIF($F$9:$P$9,"<>",$F24:$P24),15-13*PO!$X$3)) -> 84.7 | F24: =(25/1000)*F25 -> 84.7
A25: =OFFSET(PO!J$12,ROW(A25)-ROW($A$12),0) -> Serviço | B25: =IF($A25=0,"",OFFSET(PO!K$12,ROW(B25)-ROW(B$12),0)) -> 1.2.1.0.6. | C25: =IF(OFFSET(PO!N$12,ROW(C25)-ROW(C$12),0)=0,"",OFFSET(PO!N$12,ROW(C25)-ROW(C$12),0)) -> TRANSPORTE VERTICAL MANUAL, 1 PAVIMENTO, DE BLOCOS CERÂMICOS FURADOS NA HORIZONTAL DE 9X19X19CM (UNIDADE: BLOCO). AF_07/2019 | D25: =IF(OFFSET(PO!O$12,ROW(D25)-ROW(D$12),0)=0,"",OFFSET(PO!O$12,ROW(D25)-ROW(D$12),0)) -> UN | E25: =IF($A25<>"Serviço",0,ROUND(SUMIF($F$9:$P$9,"<>",$F25:$P25),15-13*PO!$X$3)) -> 3388 | F25: =(77*1.1)*40 -> 3388
A26: =OFFSET(PO!J$12,ROW(A26)-ROW($A$12),0) -> Nível 3 | B26: =IF($A26=0,"",OFFSET(PO!K$12,ROW(B26)-ROW(B$12),0)) -> 1.2.2. | C26: =IF(OFFSET(PO!N$12,ROW(C26)-ROW(C$12),0)=0,"",OFFSET(PO!N$12,ROW(C26)-ROW(C$12),0)) -> EXECUÇÃO DA COBERTURA | D26: =IF(OFFSET(PO!O$12,ROW(D26)-ROW(D$12),0)=0,"",OFFSET(PO!O$12,ROW(D26)-ROW(D$12),0)) ->  | E26: =IF($A26<>"Serviço",0,ROUND(SUMIF($F$9:$P$9,"<>",$F26:$P26),15-13*PO!$X$3)) -> 0
A27: =OFFSET(PO!J$12,ROW(A27)-ROW($A$12),0) -> Serviço | B27: =IF($A27=0,"",OFFSET(PO!K$12,ROW(B27)-ROW(B$12),0)) -> 1.2.2.0.1. | C27: =IF(OFFSET(PO!N$12,ROW(C27)-ROW(C$12),0)=0,"",OFFSET(PO!N$12,ROW(C27)-ROW(C$12),0)) -> PROLONGAMENTO DE 0,50M DE TRELIÇA METÁLICA (PERFIL U 75X38 #3,00MM) - FORNECIMENTO E INSTALAÇÃO | D27: =IF(OFFSET(PO!O$12,ROW(D27)-ROW(D$12),0)=0,"",OFFSET(PO!O$12,ROW(D27)-ROW(D$12),0)) -> UN | E27: =IF($A27<>"Serviço",0,ROUND(SUMIF($F$9:$P$9,"<>",$F27:$P27),15-13*PO!$X$3)) -> 18 | F27: 18
A28: =OFFSET(PO!J$12,ROW(A28)-ROW($A$12),0) -> Serviço | B28: =IF($A28=0,"",OFFSET(PO!K$12,ROW(B28)-ROW(B$12),0)) -> 1.2.2.0.2. | C28: =IF(OFFSET(PO!N$12,ROW(C28)-ROW(C$12),0)=0,"",OFFSET(PO!N$12,ROW(C28)-ROW(C$12),0)) -> TRAMA DE AÇO COMPOSTA POR TERÇAS PARA TELHADOS DE ATÉ 2 ÁGUAS PARA TELHA ONDULADA DE FIBROCIMENTO, METÁLICA, PLÁSTICA OU TERMOACÚSTICA, INCLUSO TRANSPORTE VERTICAL. AF_07/2019 | D28: =IF(OFFSET(PO!O$12,ROW(D28)-ROW(D$12),0)=0,"",OFFSET(PO!O$12,ROW(D28)-ROW(D$12),0)) -> M2 | E28: =IF($A28<>"Serviço",0,ROUND(SUMIF($F$9:$P$9,"<>",$F28:$P28),15-13*PO!$X$3)) -> 67.46 | F28: =79.36*0.85 -> 67.456
A29: =OFFSET(PO!J$12,ROW(A29)-ROW($A$12),0) -> Serviço | B29: =IF($A29=0,"",OFFSET(PO!K$12,ROW(B29)-ROW(B$12),0)) -> 1.2.2.0.3. | C29: =IF(OFFSET(PO!N$12,ROW(C29)-ROW(C$12),0)=0,"",OFFSET(PO!N$12,ROW(C29)-ROW(C$12),0)) -> TELHAMENTO COM TELHA TERMOISOLANTE EM AÇO GALVALUME 0,50MM, FACE SUPERIOR TRAPEZOIDAL E FACE INFERIOR PLANA, NÚCLEO EM POLIISOCIANUTO (PIR) 50MM, COM ATÉ 2 ÁGUAS, INCLUSO IÇAMENTO. AF_07/2019 | D29: =IF(OFFSET(PO!O$12,ROW(D29)-ROW(D$12),0)=0,"",OFFSET(PO!O$12,ROW(D29)-ROW(D$12),0)) -> M2 | E29: =IF($A29<>"Serviço",0,ROUND(SUMIF($F$9:$P$9,"<>",$F29:$P29),15-13*PO!$X$3)) -> 326.1 | F29: 326.1
A30: =OFFSET(PO!J$12,ROW(A30)-ROW($A$12),0) -> Serviço | B30: =IF($A30=0,"",OFFSET(PO!K$12,ROW(B30)-ROW(B$12),0)) -> 1.2.2.0.4. | C30: =IF(OFFSET(PO!N$12,ROW(C30)-ROW(C$12),0)=0,"",OFFSET(PO!N$12,ROW(C30)-ROW(C$12),0)) -> CUMEEIRA NORMAL PARA TELHA TRAPEZOIDAL DE AÇO, E = 0,5 MM, INCLUSO ACESSÓRIOS DE FIXAÇÃO E IÇAMENTO. AF_07/2019 | D30: =IF(OFFSET(PO!O$12,ROW(D30)-ROW(D$12),0)=0,"",OFFSET(PO!O$12,ROW(D30)-ROW(D$12),0)) -> M | E30: =IF($A30<>"Serviço",0,ROUND(SUMIF($F$9:$P$9,"<>",$F30:$P30),15-13*PO!$X$3)) -> 24.42 | F30: 24.42
A31: =OFFSET(PO!J$12,ROW(A31)-ROW($A$12),0) -> Serviço | B31: =IF($A31=0,"",OFFSET(PO!K$12,ROW(B31)-ROW(B$12),0)) -> 1.2.2.0.5. | C31: =IF(OFFSET(PO!N$12,ROW(C31)-ROW(C$12),0)=0,"",OFFSET(PO!N$12,ROW(C31)-ROW(C$12),0)) -> CALHA EM CHAPA DE AÇO GALVANIZADO NÚMERO 24, DESENVOLVIMENTO DE 100 CM, INCLUSO TRANSPORTE VERTICAL. AF_07/2019 | D31: =IF(OFFSET(PO!O$12,ROW(D31)-ROW(D$12),0)=0,"",OFFSET(PO!O$12,ROW(D31)-ROW(D$12),0)) -> M | E31: =IF($A31<>"Serviço",0,ROUND(SUMIF($F$9:$P$9,"<>",$F31:$P31),15-13*PO!$X$3)) -> 48.84 | F31: =24.42*2 -> 48.84
A32: =OFFSET(PO!J$12,ROW(A32)-ROW($A$12),0) -> Serviço | B32: =IF($A32=0,"",OFFSET(PO!K$12,ROW(B32)-ROW(B$12),0)) -> 1.2.2.0.6. | C32: =IF(OFFSET(PO!N$12,ROW(C32)-ROW(C$12),0)=0,"",OFFSET(PO!N$12,ROW(C32)-ROW(C$12),0)) -> JOELHO 45 GRAUS, PVC, SERIE R, ÁGUA PLUVIAL, DN 100 MM, JUNTA ELÁSTICA, FORNECIDO E INSTALADO EM CONDUTORES VERTICAIS DE ÁGUAS PLUVIAIS. AF_06/2022 | D32: =IF(OFFSET(PO!O$12,ROW(D32)-ROW(D$12),0)=0,"",OFFSET(PO!O$12,ROW(D32)-ROW(D$12),0)) -> UN | E32: =IF($A32<>"Serviço",0,ROUND(SUMIF($F$9:$P$9,"<>",$F32:$P32),15-13*PO!$X$3)) -> 16 | F32: 16
A33: =OFFSET(PO!J$12,ROW(A33)-ROW($A$12),0) -> Serviço | B33: =IF($A33=0,"",OFFSET(PO!K$12,ROW(B33)-ROW(B$12),0)) -> 1.2.2.0.7. | C33: =IF(OFFSET(PO!N$12,ROW(C33)-ROW(C$12),0)=0,"",OFFSET(PO!N$12,ROW(C33)-ROW(C$12),0)) -> LUVA SIMPLES, PVC, SERIE R, ÁGUA PLUVIAL, DN 100 MM, JUNTA ELÁSTICA, FORNECIDO E INSTALADO EM CONDUTORES VERTICAIS DE ÁGUAS PLUVIAIS. AF_06/2022 | D33: =IF(OFFSET(PO!O$12,ROW(D33)-ROW(D$12),0)=0,"",OFFSET(PO!O$12,ROW(D33)-ROW(D$12),0)) -> UN | E33: =IF($A33<>"Serviço",0,ROUND(SUMIF($F$9:$P$9,"<>",$F33:$P33),15-13*PO!$X$3)) -> 8 | F33: 8
A34: =OFFSET(PO!J$12,ROW(A34)-ROW($A$12),0) -> Nível 2 | B34: =IF($A34=0,"",OFFSET(PO!K$12,ROW(B34)-ROW(B$12),0)) -> 1.3. | C34: =IF(OFFSET(PO!N$12,ROW(C34)-ROW(C$12),0)=0,"",OFFSET(PO!N$12,ROW(C34)-ROW(C$12),0)) -> REMOÇÃO DOS REVESTIMENTOS | D34: =IF(OFFSET(PO!O$12,ROW(D34)-ROW(D$12),0)=0,"",OFFSET(PO!O$12,ROW(D34)-ROW(D$12),0)) ->  | E34: =IF($A34<>"Serviço",0,ROUND(SUMIF($F$9:$P$9,"<>",$F34:$P34),15-13*PO!$X$3)) -> 0
A35: =OFFSET(PO!J$12,ROW(A35)-ROW($A$12),0) -> Nível 3 | B35: =IF($A35=0,"",OFFSET(PO!K$12,ROW(B35)-ROW(B$12),0)) -> 1.3.1. | C35: =IF(OFFSET(PO!N$12,ROW(C35)-ROW(C$12),0)=0,"",OFFSET(PO!N$12,ROW(C35)-ROW(C$12),0)) -> PAREDE | D35: =IF(OFFSET(PO!O$12,ROW(D35)-ROW(D$12),0)=0,"",OFFSET(PO!O$12,ROW(D35)-ROW(D$12),0)) ->  | E35: =IF($A35<>"Serviço",0,ROUND(SUMIF($F$9:$P$9,"<>",$F35:$P35),15-13*PO!$X$3)) -> 0
A36: =OFFSET(PO!J$12,ROW(A36)-ROW($A$12),0) -> Nível 4 | B36: =IF($A36=0,"",OFFSET(PO!K$12,ROW(B36)-ROW(B$12),0)) -> 1.3.1.1. | C36: =IF(OFFSET(PO!N$12,ROW(C36)-ROW(C$12),0)=0,"",OFFSET(PO!N$12,ROW(C36)-ROW(C$12),0)) -> INTERNO | D36: =IF(OFFSET(PO!O$12,ROW(D36)-ROW(D$12),0)=0,"",OFFSET(PO!O$12,ROW(D36)-ROW(D$12),0)) ->  | E36: =IF($A36<>"Serviço",0,ROUND(SUMIF($F$9:$P$9,"<>",$F36:$P36),15-13*PO!$X$3)) -> 0
A37: =OFFSET(PO!J$12,ROW(A37)-ROW($A$12),0) -> Serviço | B37: =IF($A37=0,"",OFFSET(PO!K$12,ROW(B37)-ROW(B$12),0)) -> 1.3.1.1.1. | C37: =IF(OFFSET(PO!N$12,ROW(C37)-ROW(C$12),0)=0,"",OFFSET(PO!N$12,ROW(C37)-ROW(C$12),0)) -> DEMOLIÇÃO DE ARGAMASSAS, DE FORMA MANUAL, SEM REAPROVEITAMENTO. AF_09/2023 | D37: =IF(OFFSET(PO!O$12,ROW(D37)-ROW(D$12),0)=0,"",OFFSET(PO!O$12,ROW(D37)-ROW(D$12),0)) -> M2 | E37: =IF($A37<>"Serviço",0,ROUND(SUMIF($F$9:$P$9,"<>",$F37:$P37),15-13*PO!$X$3)) -> 105.68 | G37: =(1.8*1)+((9.82*3.5)-(1.5*0.63*2)) -> 34.28 | H37: =(((8.32+6.45)*2.35)-(1.5*0.6*3))+(9.82*1.5)+((7.49*3.5)-(1.55*1)) -> 71.4045
A38: =OFFSET(PO!J$12,ROW(A38)-ROW($A$12),0) -> Serviço | B38: =IF($A38=0,"",OFFSET(PO!K$12,ROW(B38)-ROW(B$12),0)) -> 1.3.1.1.2. | C38: =IF(OFFSET(PO!N$12,ROW(C38)-ROW(C$12),0)=0,"",OFFSET(PO!N$12,ROW(C38)-ROW(C$12),0)) -> DEMOLIÇÃO DE REVESTIMENTO CERÂMICO, DE FORMA MECANIZADA COM MARTELETE, SEM REAPROVEITAMENTO. AF_09/2023 | D38: =IF(OFFSET(PO!O$12,ROW(D38)-ROW(D$12),0)=0,"",OFFSET(PO!O$12,ROW(D38)-ROW(D$12),0)) -> M2 | E38: =IF($A38<>"Serviço",0,ROUND(SUMIF($F$9:$P$9,"<>",$F38:$P38),15-13*PO!$X$3)) -> 22.33 | H38: =(6.8*3.5)-(0.7*2.1) -> 22.33
A39: =OFFSET(PO!J$12,ROW(A39)-ROW($A$12),0) -> Serviço | B39: =IF($A39=0,"",OFFSET(PO!K$12,ROW(B39)-ROW(B$12),0)) -> 1.3.1.1.3. | C39: =IF(OFFSET(PO!N$12,ROW(C39)-ROW(C$12),0)=0,"",OFFSET(PO!N$12,ROW(C39)-ROW(C$12),0)) -> REMOÇÃO DE PAINEL EM GRANITO COM REAPROVEITAMENTO | D39: =IF(OFFSET(PO!O$12,ROW(D39)-ROW(D$12),0)=0,"",OFFSET(PO!O$12,ROW(D39)-ROW(D$12),0)) -> M2 | E39: =IF($A39<>"Serviço",0,ROUND(SUMIF($F$9:$P$9,"<>",$F39:$P39),15-13*PO!$X$3)) -> 9 | F39: =3*3 -> 9
A40: =OFFSET(PO!J$12,ROW(A40)-ROW($A$12),0) -> Serviço | B40: =IF($A40=0,"",OFFSET(PO!K$12,ROW(B40)-ROW(B$12),0)) -> 1.3.1.1.4. | C40: =IF(OFFSET(PO!N$12,ROW(C40)-ROW(C$12),0)=0,"",OFFSET(PO!N$12,ROW(C40)-ROW(C$12),0)) -> TRANSPORTE MANUAL DE REVESTIMENTOS ARGAMASSADOS REMOVIDOS COM CARRINHO DE MÃO 45L - INCLUSO CARGA E DESCARGA | D40: =IF(OFFSET(PO!O$12,ROW(D40)-ROW(D$12),0)=0,"",OFFSET(PO!O$12,ROW(D40)-ROW(D$12),0)) -> M3XKM | E40: =IF($A40<>"Serviço",0,ROUND(SUMIF($F$9:$P$9,"<>",$F40:$P40),15-13*PO!$X$3)) -> 0.08 | F40: =(25/1000)*((G37+H37)*0.03) -> 0.079263375
A41: =OFFSET(PO!J$12,ROW(A41)-ROW($A$12),0) -> Nível 4 | B41: =IF($A41=0,"",OFFSET(PO!K$12,ROW(B41)-ROW(B$12),0)) -> 1.3.1.2. | C41: =IF(OFFSET(PO!N$12,ROW(C41)-ROW(C$12),0)=0,"",OFFSET(PO!N$12,ROW(C41)-ROW(C$12),0)) -> EXTERNO | D41: =IF(OFFSET(PO!O$12,ROW(D41)-ROW(D$12),0)=0,"",OFFSET(PO!O$12,ROW(D41)-ROW(D$12),0)) ->  | E41: =IF($A41<>"Serviço",0,ROUND(SUMIF($F$9:$P$9,"<>",$F41:$P41),15-13*PO!$X$3)) -> 0
A42: =OFFSET(PO!J$12,ROW(A42)-ROW($A$12),0) -> Serviço | B42: =IF($A42=0,"",OFFSET(PO!K$12,ROW(B42)-ROW(B$12),0)) -> 1.3.1.2.1. | C42: =IF(OFFSET(PO!N$12,ROW(C42)-ROW(C$12),0)=0,"",OFFSET(PO!N$12,ROW(C42)-ROW(C$12),0)) -> DEMOLIÇÃO DE ARGAMASSAS, DE FORMA MANUAL, SEM REAPROVEITAMENTO. AF_09/2023 | D42: =IF(OFFSET(PO!O$12,ROW(D42)-ROW(D$12),0)=0,"",OFFSET(PO!O$12,ROW(D42)-ROW(D$12),0)) -> M2 | E42: =IF($A42<>"Serviço",0,ROUND(SUMIF($F$9:$P$9,"<>",$F42:$P42),15-13*PO!$X$3)) -> 137.4 | G42: =((19.23*3.6)-(1.5*0.6*4)) -> 65.628 | H42: =(20.95*3.5)-(1.55*1) -> 71.775
A43: =OFFSET(PO!J$12,ROW(A43)-ROW($A$12),0) -> Serviço | B43: =IF($A43=0,"",OFFSET(PO!K$12,ROW(B43)-ROW(B$12),0)) -> 1.3.1.2.2. | C43: =IF(OFFSET(PO!N$12,ROW(C43)-ROW(C$12),0)=0,"",OFFSET(PO!N$12,ROW(C43)-ROW(C$12),0)) -> TRANSPORTE MANUAL DE REVESTIMENTOS ARGAMASSADOS REMOVIDOS COM CARRINHO DE MÃO 45L - INCLUSO CARGA E DESCARGA | D43: =IF(OFFSET(PO!O$12,ROW(D43)-ROW(D$12),0)=0,"",OFFSET(PO!O$12,ROW(D43)-ROW(D$12),0)) -> M3XKM | E43: =IF($A43<>"Serviço",0,ROUND(SUMIF($F$9:$P$9,"<>",$F43:$P43),15-13*PO!$X$3)) -> 0.1 | F43: =(25/1000)*((G42+H42)*0.03) -> 0.10305225
A44: =OFFSET(PO!J$12,ROW(A44)-ROW($A$12),0) -> Nível 3 | B44: =IF($A44=0,"",OFFSET(PO!K$12,ROW(B44)-ROW(B$12),0)) -> 1.3.2. | C44: =IF(OFFSET(PO!N$12,ROW(C44)-ROW(C$12),0)=0,"",OFFSET(PO!N$12,ROW(C44)-ROW(C$12),0)) -> TETO | D44: =IF(OFFSET(PO!O$12,ROW(D44)-ROW(D$12),0)=0,"",OFFSET(PO!O$12,ROW(D44)-ROW(D$12),0)) ->  | E44: =IF($A44<>"Serviço",0,ROUND(SUMIF($F$9:$P$9,"<>",$F44:$P44),15-13*PO!$X$3)) -> 0
A45: =OFFSET(PO!J$12,ROW(A45)-ROW($A$12),0) -> Nível 4 | B45: =IF($A45=0,"",OFFSET(PO!K$12,ROW(B45)-ROW(B$12),0)) -> 1.3.2.1. | C45: =IF(OFFSET(PO!N$12,ROW(C45)-ROW(C$12),0)=0,"",OFFSET(PO!N$12,ROW(C45)-ROW(C$12),0)) -> INTERNO | D45: =IF(OFFSET(PO!O$12,ROW(D45)-ROW(D$12),0)=0,"",OFFSET(PO!O$12,ROW(D45)-ROW(D$12),0)) ->  | E45: =IF($A45<>"Serviço",0,ROUND(SUMIF($F$9:$P$9,"<>",$F45:$P45),15-13*PO!$X$3)) -> 0
A46: =OFFSET(PO!J$12,ROW(A46)-ROW($A$12),0) -> Serviço | B46: =IF($A46=0,"",OFFSET(PO!K$12,ROW(B46)-ROW(B$12),0)) -> 1.3.2.1.1. | C46: =IF(OFFSET(PO!N$12,ROW(C46)-ROW(C$12),0)=0,"",OFFSET(PO!N$12,ROW(C46)-ROW(C$12),0)) -> DEMOLIÇÃO DE ARGAMASSAS, DE FORMA MANUAL, SEM REAPROVEITAMENTO. AF_09/2023 | D46: =IF(OFFSET(PO!O$12,ROW(D46)-ROW(D$12),0)=0,"",OFFSET(PO!O$12,ROW(D46)-ROW(D$12),0)) -> M2 | E46: =IF($A46<>"Serviço",0,ROUND(SUMIF($F$9:$P$9,"<>",$F46:$P46),15-13*PO!$X$3)) -> 74.4 | G46: =48.82+25.58 -> 74.4
A47: =OFFSET(PO!J$12,ROW(A47)-ROW($A$12),0) -> Nível 4 | B47: =IF($A47=0,"",OFFSET(PO!K$12,ROW(B47)-ROW(B$12),0)) -> 1.3.2.2. | C47: =IF(OFFSET(PO!N$12,ROW(C47)-ROW(C$12),0)=0,"",OFFSET(PO!N$12,ROW(C47)-ROW(C$12),0)) -> EXTERNO | D47: =IF(OFFSET(PO!O$12,ROW(D47)-ROW(D$12),0)=0,"",OFFSET(PO!O$12,ROW(D47)-ROW(D$12),0)) ->  | E47: =IF($A47<>"Serviço",0,ROUND(SUMIF($F$9:$P$9,"<>",$F47:$P47),15-13*PO!$X$3)) -> 0
A48: =OFFSET(PO!J$12,ROW(A48)-ROW($A$12),0) -> Serviço | B48: =IF($A48=0,"",OFFSET(PO!K$12,ROW(B48)-ROW(B$12),0)) -> 1.3.2.2.1. | C48: =IF(OFFSET(PO!N$12,ROW(C48)-ROW(C$12),0)=0,"",OFFSET(PO!N$12,ROW(C48)-ROW(C$12),0)) -> DEMOLIÇÃO DE ARGAMASSAS, DE FORMA MANUAL, SEM REAPROVEITAMENTO. AF_09/2023 | D48: =IF(OFFSET(PO!O$12,ROW(D48)-ROW(D$12),0)=0,"",OFFSET(PO!O$12,ROW(D48)-ROW(D$12),0)) -> M2 | E48: =IF($A48<>"Serviço",0,ROUND(SUMIF($F$9:$P$9,"<>",$F48:$P48),15-13*PO!$X$3)) -> 36.45 | G48: 26.89 | H48: 9.56
A49: =OFFSET(PO!J$12,ROW(A49)-ROW($A$12),0) -> Nível 2 | B49: =IF($A49=0,"",OFFSET(PO!K$12,ROW(B49)-ROW(B$12),0)) -> 1.4. | C49: =IF(OFFSET(PO!N$12,ROW(C49)-ROW(C$12),0)=0,"",OFFSET(PO!N$12,ROW(C49)-ROW(C$12),0)) -> SACADA | D49: =IF(OFFSET(PO!O$12,ROW(D49)-ROW(D$12),0)=0,"",OFFSET(PO!O$12,ROW(D49)-ROW(D$12),0)) ->  | E49: =IF($A49<>"Serviço",0,ROUND(SUMIF($F$9:$P$9,"<>",$F49:$P49),15-13*PO!$X$3)) -> 0
A50: =OFFSET(PO!J$12,ROW(A50)-ROW($A$12),0) -> Serviço | B50: =IF($A50=0,"",OFFSET(PO!K$12,ROW(B50)-ROW(B$12),0)) -> 1.4.0.0.1. | C50: =IF(OFFSET(PO!N$12,ROW(C50)-ROW(C$12),0)=0,"",OFFSET(PO!N$12,ROW(C50)-ROW(C$12),0)) -> REMOÇÃO DE FORROS DE DRYWALL, PVC E FIBROMINERAL, DE FORMA MANUAL, SEM REAPROVEITAMENTO. AF_09/2023 | D50: =IF(OFFSET(PO!O$12,ROW(D50)-ROW(D$12),0)=0,"",OFFSET(PO!O$12,ROW(D50)-ROW(D$12),0)) -> M2 | E50: =IF($A50<>"Serviço",0,ROUND(SUMIF($F$9:$P$9,"<>",$F50:$P50),15-13*PO!$X$3)) -> 23 | H50: =H61 -> 23
A51: =OFFSET(PO!J$12,ROW(A51)-ROW($A$12),0) -> Serviço | B51: =IF($A51=0,"",OFFSET(PO!K$12,ROW(B51)-ROW(B$12),0)) -> 1.4.0.0.2. | C51: =IF(OFFSET(PO!N$12,ROW(C51)-ROW(C$12),0)=0,"",OFFSET(PO!N$12,ROW(C51)-ROW(C$12),0)) -> DEMOLIÇÃO DE REVESTIMENTO CERÂMICO, DE FORMA MECANIZADA COM MARTELETE, SEM REAPROVEITAMENTO. AF_09/2023 | D51: =IF(OFFSET(PO!O$12,ROW(D51)-ROW(D$12),0)=0,"",OFFSET(PO!O$12,ROW(D51)-ROW(D$12),0)) -> M2 | E51: =IF($A51<>"Serviço",0,ROUND(SUMIF($F$9:$P$9,"<>",$F51:$P51),15-13*PO!$X$3)) -> 23 | H51: 23
A52: =OFFSET(PO!J$12,ROW(A52)-ROW($A$12),0) -> Serviço | B52: =IF($A52=0,"",OFFSET(PO!K$12,ROW(B52)-ROW(B$12),0)) -> 1.4.0.0.3. | C52: =IF(OFFSET(PO!N$12,ROW(C52)-ROW(C$12),0)=0,"",OFFSET(PO!N$12,ROW(C52)-ROW(C$12),0)) -> DEMOLIÇÃO DE RODAPÉ CERÂMICO, DE FORMA MANUAL, SEM REAPROVEITAMENTO. AF_09/2023 | D52: =IF(OFFSET(PO!O$12,ROW(D52)-ROW(D$12),0)=0,"",OFFSET(PO!O$12,ROW(D52)-ROW(D$12),0)) -> M | E52: =IF($A52<>"Serviço",0,ROUND(SUMIF($F$9:$P$9,"<>",$F52:$P52),15-13*PO!$X$3)) -> 24.74 | H52: 24.74
A53: =OFFSET(PO!J$12,ROW(A53)-ROW($A$12),0) -> Serviço | B53: =IF($A53=0,"",OFFSET(PO!K$12,ROW(B53)-ROW(B$12),0)) -> 1.4.0.0.4. | C53: =IF(OFFSET(PO!N$12,ROW(C53)-ROW(C$12),0)=0,"",OFFSET(PO!N$12,ROW(C53)-ROW(C$12),0)) -> DEMOLIÇÃO DE ARGAMASSAS, DE FORMA MANUAL, SEM REAPROVEITAMENTO. AF_09/2023 | D53: =IF(OFFSET(PO!O$12,ROW(D53)-ROW(D$12),0)=0,"",OFFSET(PO!O$12,ROW(D53)-ROW(D$12),0)) -> M2 | E53: =IF($A53<>"Serviço",0,ROUND(SUMIF($F$9:$P$9,"<>",$F53:$P53),15-13*PO!$X$3)) -> 23 | H53: 23
A54: =OFFSET(PO!J$12,ROW(A54)-ROW($A$12),0) -> Serviço | B54: =IF($A54=0,"",OFFSET(PO!K$12,ROW(B54)-ROW(B$12),0)) -> 1.4.0.0.5. | C54: =IF(OFFSET(PO!N$12,ROW(C54)-ROW(C$12),0)=0,"",OFFSET(PO!N$12,ROW(C54)-ROW(C$12),0)) -> TRANSPORTE MANUAL DE REVESTIMENTOS ARGAMASSADOS REMOVIDOS COM CARRINHO DE MÃO 45L - INCLUSO CARGA E DESCARGA | D54: =IF(OFFSET(PO!O$12,ROW(D54)-ROW(D$12),0)=0,"",OFFSET(PO!O$12,ROW(D54)-ROW(D$12),0)) -> M3XKM | E54: =IF($A54<>"Serviço",0,ROUND(SUMIF($F$9:$P$9,"<>",$F54:$P54),15-13*PO!$X$3)) -> 0.02 | F54: =(25/1000)*((H53)*0.03) -> 0.01725
A55: =OFFSET(PO!J$12,ROW(A55)-ROW($A$12),0) -> Serviço | B55: =IF($A55=0,"",OFFSET(PO!K$12,ROW(B55)-ROW(B$12),0)) -> 1.4.0.0.6. | C55: =IF(OFFSET(PO!N$12,ROW(C55)-ROW(C$12),0)=0,"",OFFSET(PO!N$12,ROW(C55)-ROW(C$12),0)) -> RALO SECO, PVC, DN 100 X 40 MM, JUNTA SOLDÁVEL, FORNECIDO E INSTALADO EM RAMAL DE DESCARGA OU EM RAMAL DE ESGOTO SANITÁRIO. AF_08/2022 | D55: =IF(OFFSET(PO!O$12,ROW(D55)-ROW(D$12),0)=0,"",OFFSET(PO!O$12,ROW(D55)-ROW(D$12),0)) -> UN | E55: =IF($A55<>"Serviço",0,ROUND(SUMIF($F$9:$P$9,"<>",$F55:$P55),15-13*PO!$X$3)) -> 2 | H55: 2
A56: =OFFSET(PO!J$12,ROW(A56)-ROW($A$12),0) -> Serviço | B56: =IF($A56=0,"",OFFSET(PO!K$12,ROW(B56)-ROW(B$12),0)) -> 1.4.0.0.7. | C56: =IF(OFFSET(PO!N$12,ROW(C56)-ROW(C$12),0)=0,"",OFFSET(PO!N$12,ROW(C56)-ROW(C$12),0)) -> TUBO PVC, SÉRIE R, ÁGUA PLUVIAL, DN 100 MM, FORNECIDO E INSTALADO EM CONDUTORES VERTICAIS DE ÁGUAS PLUVIAIS. AF_06/2022 | D56: =IF(OFFSET(PO!O$12,ROW(D56)-ROW(D$12),0)=0,"",OFFSET(PO!O$12,ROW(D56)-ROW(D$12),0)) -> M | E56: =IF($A56<>"Serviço",0,ROUND(SUMIF($F$9:$P$9,"<>",$F56:$P56),15-13*PO!$X$3)) -> 7.2 | F56: =3.6*H55 -> 7.2
A57: =OFFSET(PO!J$12,ROW(A57)-ROW($A$12),0) -> Serviço | B57: =IF($A57=0,"",OFFSET(PO!K$12,ROW(B57)-ROW(B$12),0)) -> 1.4.0.0.8. | C57: =IF(OFFSET(PO!N$12,ROW(C57)-ROW(C$12),0)=0,"",OFFSET(PO!N$12,ROW(C57)-ROW(C$12),0)) -> JOELHO 90 GRAUS, PVC, SERIE R, ÁGUA PLUVIAL, DN 100 MM, JUNTA ELÁSTICA, FORNECIDO E INSTALADO EM RAMAL DE ENCAMINHAMENTO. AF_06/2022 | D57: =IF(OFFSET(PO!O$12,ROW(D57)-ROW(D$12),0)=0,"",OFFSET(PO!O$12,ROW(D57)-ROW(D$12),0)) -> UN | E57: =IF($A57<>"Serviço",0,ROUND(SUMIF($F$9:$P$9,"<>",$F57:$P57),15-13*PO!$X$3)) -> 2 | F57: =H55 -> 2
A58: =OFFSET(PO!J$12,ROW(A58)-ROW($A$12),0) -> Serviço | B58: =IF($A58=0,"",OFFSET(PO!K$12,ROW(B58)-ROW(B$12),0)) -> 1.4.0.0.9. | C58: =IF(OFFSET(PO!N$12,ROW(C58)-ROW(C$12),0)=0,"",OFFSET(PO!N$12,ROW(C58)-ROW(C$12),0)) -> CONTRAPISO EM ARGAMASSA TRAÇO 1:4 (CIMENTO E AREIA), PREPARO MECÂNICO COM BETONEIRA 400 L, APLICADO EM ÁREAS MOLHADAS SOBRE LAJE, ADERIDO, ACABAMENTO NÃO REFORÇADO, ESPESSURA 3CM. AF_07/2021 | D58: =IF(OFFSET(PO!O$12,ROW(D58)-ROW(D$12),0)=0,"",OFFSET(PO!O$12,ROW(D58)-ROW(D$12),0)) -> M2 | E58: =IF($A58<>"Serviço",0,ROUND(SUMIF($F$9:$P$9,"<>",$F58:$P58),15-13*PO!$X$3)) -> 23 | H58: 23
A59: =OFFSET(PO!J$12,ROW(A59)-ROW($A$12),0) -> Serviço | B59: =IF($A59=0,"",OFFSET(PO!K$12,ROW(B59)-ROW(B$12),0)) -> 1.4.0.0.10. | C59: =IF(OFFSET(PO!N$12,ROW(C59)-ROW(C$12),0)=0,"",OFFSET(PO!N$12,ROW(C59)-ROW(C$12),0)) -> IMPERMEABILIZAÇÃO DE SUPERFÍCIE COM MEMBRANA À BASE DE POLIURETANO, 2 DEMÃOS. AF_09/2023 | D59: =IF(OFFSET(PO!O$12,ROW(D59)-ROW(D$12),0)=0,"",OFFSET(PO!O$12,ROW(D59)-ROW(D$12),0)) -> M2 | E59: =IF($A59<>"Serviço",0,ROUND(SUMIF($F$9:$P$9,"<>",$F59:$P59),15-13*PO!$X$3)) -> 28.97 | H59: =23+((27.28-3.4)*0.25) -> 28.97
A60: =OFFSET(PO!J$12,ROW(A60)-ROW($A$12),0) -> Serviço | B60: =IF($A60=0,"",OFFSET(PO!K$12,ROW(B60)-ROW(B$12),0)) -> 1.4.0.0.11. | C60: =IF(OFFSET(PO!N$12,ROW(C60)-ROW(C$12),0)=0,"",OFFSET(PO!N$12,ROW(C60)-ROW(C$12),0)) -> VEU DE POLIESTER PARA IMPERMEABILIZACAO | D60: =IF(OFFSET(PO!O$12,ROW(D60)-ROW(D$12),0)=0,"",OFFSET(PO!O$12,ROW(D60)-ROW(D$12),0)) -> M2 | E60: =IF($A60<>"Serviço",0,ROUND(SUMIF($F$9:$P$9,"<>",$F60:$P60),15-13*PO!$X$3)) -> 28.97 | H60: =H59 -> 28.97
A61: =OFFSET(PO!J$12,ROW(A61)-ROW($A$12),0) -> Serviço | B61: =IF($A61=0,"",OFFSET(PO!K$12,ROW(B61)-ROW(B$12),0)) -> 1.4.0.0.12. | C61: =IF(OFFSET(PO!N$12,ROW(C61)-ROW(C$12),0)=0,"",OFFSET(PO!N$12,ROW(C61)-ROW(C$12),0)) -> REVESTIMENTO CERÂMICO PARA PISO COM PLACAS TIPO PORCELANATO DE DIMENSÕES 80X80 CM APLICADA EM AMBIENTES DE ÁREA MENOR QUE 5 M². AF_02/2023_PE | D61: =IF(OFFSET(PO!O$12,ROW(D61)-ROW(D$12),0)=0,"",OFFSET(PO!O$12,ROW(D61)-ROW(D$12),0)) -> M2 | E61: =IF($A61<>"Serviço",0,ROUND(SUMIF($F$9:$P$9,"<>",$F61:$P61),15-13*PO!$X$3)) -> 23 | H61: 23
A62: =OFFSET(PO!J$12,ROW(A62)-ROW($A$12),0) -> Serviço | B62: =IF($A62=0,"",OFFSET(PO!K$12,ROW(B62)-ROW(B$12),0)) -> 1.4.0.0.13. | C62: =IF(OFFSET(PO!N$12,ROW(C62)-ROW(C$12),0)=0,"",OFFSET(PO!N$12,ROW(C62)-ROW(C$12),0)) -> RODAPÉ CERÂMICO DE 7CM DE ALTURA COM PLACAS TIPO ESMALTADA DE DIMENSÕES 80X80CM. AF_02/2023 | D62: =IF(OFFSET(PO!O$12,ROW(D62)-ROW(D$12),0)=0,"",OFFSET(PO!O$12,ROW(D62)-ROW(D$12),0)) -> M | E62: =IF($A62<>"Serviço",0,ROUND(SUMIF($F$9:$P$9,"<>",$F62:$P62),15-13*PO!$X$3)) -> 24.74 | H62: 24.74
A63: =OFFSET(PO!J$12,ROW(A63)-ROW($A$12),0) -> Serviço | B63: =IF($A63=0,"",OFFSET(PO!K$12,ROW(B63)-ROW(B$12),0)) -> 1.4.0.0.14. | C63: =IF(OFFSET(PO!N$12,ROW(C63)-ROW(C$12),0)=0,"",OFFSET(PO!N$12,ROW(C63)-ROW(C$12),0)) -> FORRO EM RÉGUAS DE PVC, LISO, PARA AMBIENTES RESIDENCIAIS, INCLUSIVE ESTRUTURA UNIDIRECIONAL DE FIXAÇÃO. AF_08/2023_PS | D63: =IF(OFFSET(PO!O$12,ROW(D63)-ROW(D$12),0)=0,"",OFFSET(PO!O$12,ROW(D63)-ROW(D$12),0)) -> M2 | E63: =IF($A63<>"Serviço",0,ROUND(SUMIF($F$9:$P$9,"<>",$F63:$P63),15-13*PO!$X$3)) -> 23 | H63: =H61 -> 23
A64: =OFFSET(PO!J$12,ROW(A64)-ROW($A$12),0) -> Serviço | B64: =IF($A64=0,"",OFFSET(PO!K$12,ROW(B64)-ROW(B$12),0)) -> 1.4.0.0.15. | C64: =IF(OFFSET(PO!N$12,ROW(C64)-ROW(C$12),0)=0,"",OFFSET(PO!N$12,ROW(C64)-ROW(C$12),0)) -> ACABAMENTO SIMPLES/CONVENCIONAL PARA FORRO PVC, TIPO "U" OU "C", COR BRANCA, COMPRIMENTO 6 M | D64: =IF(OFFSET(PO!O$12,ROW(D64)-ROW(D$12),0)=0,"",OFFSET(PO!O$12,ROW(D64)-ROW(D$12),0)) -> M | E64: =IF($A64<>"Serviço",0,ROUND(SUMIF($F$9:$P$9,"<>",$F64:$P64),15-13*PO!$X$3)) -> 28.14 | H64: 28.14
A65: =OFFSET(PO!J$12,ROW(A65)-ROW($A$12),0) -> Nível 2 | B65: =IF($A65=0,"",OFFSET(PO!K$12,ROW(B65)-ROW(B$12),0)) -> 1.5. | C65: =IF(OFFSET(PO!N$12,ROW(C65)-ROW(C$12),0)=0,"",OFFSET(PO!N$12,ROW(C65)-ROW(C$12),0)) -> TRATAMENTO DE TRINCAS E FISSURAS | D65: =IF(OFFSET(PO!O$12,ROW(D65)-ROW(D$12),0)=0,"",OFFSET(PO!O$12,ROW(D65)-ROW(D$12),0)) ->  | E65: =IF($A65<>"Serviço",0,ROUND(SUMIF($F$9:$P$9,"<>",$F65:$P65),15-13*PO!$X$3)) -> 0
A66: =OFFSET(PO!J$12,ROW(A66)-ROW($A$12),0) -> Serviço | B66: =IF($A66=0,"",OFFSET(PO!K$12,ROW(B66)-ROW(B$12),0)) -> 1.5.0.0.1. | C66: =IF(OFFSET(PO!N$12,ROW(C66)-ROW(C$12),0)=0,"",OFFSET(PO!N$12,ROW(C66)-ROW(C$12),0)) -> IMPERMEABILIZAÇÃO DE SUPERFÍCIE COM ARGAMASSA POLIMÉRICA / MEMBRANA ACRÍLICA, 4 DEMÃOS, REFORÇADA COM VÉU DE POLIÉSTER (MAV). AF_09/2023 | D66: =IF(OFFSET(PO!O$12,ROW(D66)-ROW(D$12),0)=0,"",OFFSET(PO!O$12,ROW(D66)-ROW(D$12),0)) -> M2 | E66: =IF($A66<>"Serviço",0,ROUND(SUMIF($F$9:$P$9,"<>",$F66:$P66),15-13*PO!$X$3)) -> 15 | F66: 15
A67: =OFFSET(PO!J$12,ROW(A67)-ROW($A$12),0) -> Nível 2 | B67: =IF($A67=0,"",OFFSET(PO!K$12,ROW(B67)-ROW(B$12),0)) -> 1.6. | C67: =IF(OFFSET(PO!N$12,ROW(C67)-ROW(C$12),0)=0,"",OFFSET(PO!N$12,ROW(C67)-ROW(C$12),0)) -> ESQUADRIAS | D67: =IF(OFFSET(PO!O$12,ROW(D67)-ROW(D$12),0)=0,"",OFFSET(PO!O$12,ROW(D67)-ROW(D$12),0)) -> es | E67: =IF($A67<>"Serviço",0,ROUND(SUMIF($F$9:$P$9,"<>",$F67:$P67),15-13*PO!$X$3)) -> 0
A68: =OFFSET(PO!J$12,ROW(A68)-ROW($A$12),0) -> Serviço | B68: =IF($A68=0,"",OFFSET(PO!K$12,ROW(B68)-ROW(B$12),0)) -> 1.6.0.0.1. | C68: =IF(OFFSET(PO!N$12,ROW(C68)-ROW(C$12),0)=0,"",OFFSET(PO!N$12,ROW(C68)-ROW(C$12),0)) -> REMOÇÃO DE PORTAS, DE FORMA MANUAL, SEM REAPROVEITAMENTO. AF_09/2023 | D68: =IF(OFFSET(PO!O$12,ROW(D68)-ROW(D$12),0)=0,"",OFFSET(PO!O$12,ROW(D68)-ROW(D$12),0)) -> M2 | E68: =IF($A68<>"Serviço",0,ROUND(SUMIF($F$9:$P$9,"<>",$F68:$P68),15-13*PO!$X$3)) -> 10 | G68: 5 | H68: 5
A69: =OFFSET(PO!J$12,ROW(A69)-ROW($A$12),0) -> Serviço | B69: =IF($A69=0,"",OFFSET(PO!K$12,ROW(B69)-ROW(B$12),0)) -> 1.6.0.0.2. | C69: =IF(OFFSET(PO!N$12,ROW(C69)-ROW(C$12),0)=0,"",OFFSET(PO!N$12,ROW(C69)-ROW(C$12),0)) -> REMOÇÃO DE VIDRO LISO COMUM DE ESQUADRIA COM BAGUETE DE ALUMÍNIO OU PVC. AF_01/2021 | D69: =IF(OFFSET(PO!O$12,ROW(D69)-ROW(D$12),0)=0,"",OFFSET(PO!O$12,ROW(D69)-ROW(D$12),0)) -> M2 | E69: =IF($A69<>"Serviço",0,ROUND(SUMIF($F$9:$P$9,"<>",$F69:$P69),15-13*PO!$X$3)) -> 29.4 | G69: =4.9*6 -> 29.4
A70: =OFFSET(PO!J$12,ROW(A70)-ROW($A$12),0) -> Serviço | B70: =IF($A70=0,"",OFFSET(PO!K$12,ROW(B70)-ROW(B$12),0)) -> 1.6.0.0.3. | C70: =IF(OFFSET(PO!N$12,ROW(C70)-ROW(C$12),0)=0,"",OFFSET(PO!N$12,ROW(C70)-ROW(C$12),0)) -> REMOÇÃO DE JANELAS DE ALUMÍNIO E VIDRO, COM REAPROVEITAMENTO, E REINSTALAÇÃO - INCLUSO MATERIAL PARA TODAS AS VEDAÇÕES NECESSÁRIAS | D70: =IF(OFFSET(PO!O$12,ROW(D70)-ROW(D$12),0)=0,"",OFFSET(PO!O$12,ROW(D70)-ROW(D$12),0)) -> M2 | E70: =IF($A70<>"Serviço",0,ROUND(SUMIF($F$9:$P$9,"<>",$F70:$P70),15-13*PO!$X$3)) -> 19.45 | G70: =(1.5*0.6*7)+(1.5*0.5*2)+(1.2*0.6)+(0.5*0.5*4)+(0.7*2.9) -> 11.55 | H70: =(1.55*1)+(1.5*0.6*4)+(0.7*2.9)+(0.6*0.6*2) -> 7.9
A71: =OFFSET(PO!J$12,ROW(A71)-ROW($A$12),0) -> Serviço | B71: =IF($A71=0,"",OFFSET(PO!K$12,ROW(B71)-ROW(B$12),0)) -> 1.6.0.0.4. | C71: =IF(OFFSET(PO!N$12,ROW(C71)-ROW(C$12),0)=0,"",OFFSET(PO!N$12,ROW(C71)-ROW(C$12),0)) -> REMOÇÃO (COM REAPROVEITAMENTO) E REINSTALAÇÃO DE PORTA DE MADEIRA 3,40X210M - INCLUSO MATERIAIS NECESSÁRIOS PARA VEDAÇÃO | D71: =IF(OFFSET(PO!O$12,ROW(D71)-ROW(D$12),0)=0,"",OFFSET(PO!O$12,ROW(D71)-ROW(D$12),0)) -> M2 | E71: =IF($A71<>"Serviço",0,ROUND(SUMIF($F$9:$P$9,"<>",$F71:$P71),15-13*PO!$X$3)) -> 7.14 | H71: =3.4*2.1 -> 7.14
A72: =OFFSET(PO!J$12,ROW(A72)-ROW($A$12),0) -> Serviço | B72: =IF($A72=0,"",OFFSET(PO!K$12,ROW(B72)-ROW(B$12),0)) -> 1.6.0.0.5. | C72: =IF(OFFSET(PO!N$12,ROW(C72)-ROW(C$12),0)=0,"",OFFSET(PO!N$12,ROW(C72)-ROW(C$12),0)) -> IMPERMEABILIZAÇÃO DE SUPERFÍCIE COM ARGAMASSA POLIMÉRICA / MEMBRANA ACRÍLICA, 4 DEMÃOS, REFORÇADA COM VÉU DE POLIÉSTER (MAV). AF_09/2023 | D72: =IF(OFFSET(PO!O$12,ROW(D72)-ROW(D$12),0)=0,"",OFFSET(PO!O$12,ROW(D72)-ROW(D$12),0)) -> M2 | E72: =IF($A72<>"Serviço",0,ROUND(SUMIF($F$9:$P$9,"<>",$F72:$P72),15-13*PO!$X$3)) -> 1.5 | G72: =5*(0.15+0.15) -> 1.5
A73: =OFFSET(PO!J$12,ROW(A73)-ROW($A$12),0) -> Serviço | B73: =IF($A73=0,"",OFFSET(PO!K$12,ROW(B73)-ROW(B$12),0)) -> 1.6.0.0.6. | C73: =IF(OFFSET(PO!N$12,ROW(C73)-ROW(C$12),0)=0,"",OFFSET(PO!N$12,ROW(C73)-ROW(C$12),0)) -> PELE DE VIDRO LAMINADO REFLETIVO PRATA, ESPESSURA 4 MM + 4 MM - FORNECIMENTO E INSTALAÇÃO | D73: =IF(OFFSET(PO!O$12,ROW(D73)-ROW(D$12),0)=0,"",OFFSET(PO!O$12,ROW(D73)-ROW(D$12),0)) -> M2 | E73: =IF($A73<>"Serviço",0,ROUND(SUMIF($F$9:$P$9,"<>",$F73:$P73),15-13*PO!$X$3)) -> 28.67 | G73: =4.9*5.85 -> 28.665
A74: =OFFSET(PO!J$12,ROW(A74)-ROW($A$12),0) -> Serviço | B74: =IF($A74=0,"",OFFSET(PO!K$12,ROW(B74)-ROW(B$12),0)) -> 1.6.0.0.7. | C74: =IF(OFFSET(PO!N$12,ROW(C74)-ROW(C$12),0)=0,"",OFFSET(PO!N$12,ROW(C74)-ROW(C$12),0)) -> PORTA DE ALUMÍNIO DE ABRIR COM LAMBRI, COM GUARNIÇÃO, FIXAÇÃO COM PARAFUSOS - FORNECIMENTO E INSTALAÇÃO. AF_12/2019 | D74: =IF(OFFSET(PO!O$12,ROW(D74)-ROW(D$12),0)=0,"",OFFSET(PO!O$12,ROW(D74)-ROW(D$12),0)) -> M2 | E74: =IF($A74<>"Serviço",0,ROUND(SUMIF($F$9:$P$9,"<>",$F74:$P74),15-13*PO!$X$3)) -> 17.22 | G74: =(1*2.1)+(0.9*2.1*2)+(0.8*2.1*2) -> 9.24 | H74: =(0.8*2.1*3)+(0.7*2.1*2) -> 7.98
A75: =OFFSET(PO!J$12,ROW(A75)-ROW($A$12),0) -> Serviço | B75: =IF($A75=0,"",OFFSET(PO!K$12,ROW(B75)-ROW(B$12),0)) -> 1.6.0.0.8. | C75: =IF(OFFSET(PO!N$12,ROW(C75)-ROW(C$12),0)=0,"",OFFSET(PO!N$12,ROW(C75)-ROW(C$12),0)) -> PEITORIL/SOLEIRA EM MÁRMORE, COM FRISO PINGADEIRA, LARGURA 20CM, ESPESSURA 2,0CM, COM SELAMENTO EM PU - FORNECIMENTO E INSTALAÇÃO | D75: =IF(OFFSET(PO!O$12,ROW(D75)-ROW(D$12),0)=0,"",OFFSET(PO!O$12,ROW(D75)-ROW(D$12),0)) -> M | E75: =IF($A75<>"Serviço",0,ROUND(SUMIF($F$9:$P$9,"<>",$F75:$P75),15-13*PO!$X$3)) -> 45.85 | G75: =(1.5*9)+1.2+(0.6*4)+0.7+(15*0.04*2) -> 19 | H75: =(0.6*2)+(1.5*5)+0.7+(18.41-0.8-0.8)+(8*2*0.04) -> 26.85
A76: =OFFSET(PO!J$12,ROW(A76)-ROW($A$12),0) -> Serviço | B76: =IF($A76=0,"",OFFSET(PO!K$12,ROW(B76)-ROW(B$12),0)) -> 1.6.0.0.9. | C76: =IF(OFFSET(PO!N$12,ROW(C76)-ROW(C$12),0)=0,"",OFFSET(PO!N$12,ROW(C76)-ROW(C$12),0)) -> CONTRAVERGA MOLDADA IN LOCO EM CONCRETO, ESPESSURA DE *10* CM. AF_03/2024 | D76: =IF(OFFSET(PO!O$12,ROW(D76)-ROW(D$12),0)=0,"",OFFSET(PO!O$12,ROW(D76)-ROW(D$12),0)) -> M | E76: =IF($A76<>"Serviço",0,ROUND(SUMIF($F$9:$P$9,"<>",$F76:$P76),15-13*PO!$X$3)) -> 19.45 | G76: =((1.5+0.5)*2)+5.4 -> 9.4 | H76: =((1.5+0.5)*4)+(1.55+0.5) -> 10.05
A77: =OFFSET(PO!J$12,ROW(A77)-ROW($A$12),0) -> Serviço | B77: =IF($A77=0,"",OFFSET(PO!K$12,ROW(B77)-ROW(B$12),0)) -> 1.6.0.0.10. | C77: =IF(OFFSET(PO!N$12,ROW(C77)-ROW(C$12),0)=0,"",OFFSET(PO!N$12,ROW(C77)-ROW(C$12),0)) -> REQUADRO DE ESQUADRIA COM DEMOLIÇÃO E RECOMPOSIÇÃO DO REVESTIMENTO (BORDAS 30CM) | D77: =IF(OFFSET(PO!O$12,ROW(D77)-ROW(D$12),0)=0,"",OFFSET(PO!O$12,ROW(D77)-ROW(D$12),0)) -> M | E77: =IF($A77<>"Serviço",0,ROUND(SUMIF($F$9:$P$9,"<>",$F77:$P77),15-13*PO!$X$3)) -> 90.1 | G77: =((1.5+0.6+1.5+0.6)*7)+((1.5+0.5+0.5+1.5)*2)+(1.2+0.6+1.2+0.6)+((0.5+0.5+0.5+0.5)*4)+(0.7+0.7+2.9+2.9) -> 56.2 | H77: =(1.55+1+1.55+1)+((1.5+0.6+1.5+0.6)*4)+(0.7+0.7+2.9+2.9)+((0.6+0.6+0.6+0.6)*2) -> 33.9
A78: =OFFSET(PO!J$12,ROW(A78)-ROW($A$12),0) -> Serviço | B78: =IF($A78=0,"",OFFSET(PO!K$12,ROW(B78)-ROW(B$12),0)) -> 1.6.0.0.11. | C78: =IF(OFFSET(PO!N$12,ROW(C78)-ROW(C$12),0)=0,"",OFFSET(PO!N$12,ROW(C78)-ROW(C$12),0)) -> REQUADRO DE ABERTURA PARA PELE DE VIDRO | D78: =IF(OFFSET(PO!O$12,ROW(D78)-ROW(D$12),0)=0,"",OFFSET(PO!O$12,ROW(D78)-ROW(D$12),0)) -> M | E78: =IF($A78<>"Serviço",0,ROUND(SUMIF($F$9:$P$9,"<>",$F78:$P78),15-13*PO!$X$3)) -> 21.5 | F78: =4.9+4.9+5.85+5.85 -> 21.5
A79: =OFFSET(PO!J$12,ROW(A79)-ROW($A$12),0) -> Nível 2 | B79: =IF($A79=0,"",OFFSET(PO!K$12,ROW(B79)-ROW(B$12),0)) -> 1.7. | C79: =IF(OFFSET(PO!N$12,ROW(C79)-ROW(C$12),0)=0,"",OFFSET(PO!N$12,ROW(C79)-ROW(C$12),0)) -> CALÇADA EXTERNA DA FACHADA LESTE | D79: =IF(OFFSET(PO!O$12,ROW(D79)-ROW(D$12),0)=0,"",OFFSET(PO!O$12,ROW(D79)-ROW(D$12),0)) ->  | E79: =IF($A79<>"Serviço",0,ROUND(SUMIF($F$9:$P$9,"<>",$F79:$P79),15-13*PO!$X$3)) -> 0
A80: =OFFSET(PO!J$12,ROW(A80)-ROW($A$12),0) -> Serviço | B80: =IF($A80=0,"",OFFSET(PO!K$12,ROW(B80)-ROW(B$12),0)) -> 1.7.0.0.1. | C80: =IF(OFFSET(PO!N$12,ROW(C80)-ROW(C$12),0)=0,"",OFFSET(PO!N$12,ROW(C80)-ROW(C$12),0)) -> LIMPEZA DE SUPERFÍCIE COM JATO DE ALTA PRESSÃO. AF_04/2019 | D80: =IF(OFFSET(PO!O$12,ROW(D80)-ROW(D$12),0)=0,"",OFFSET(PO!O$12,ROW(D80)-ROW(D$12),0)) -> M2 | E80: =IF($A80<>"Serviço",0,ROUND(SUMIF($F$9:$P$9,"<>",$F80:$P80),15-13*PO!$X$3)) -> 15.53 | G80: =G81 -> 15.525
A81: =OFFSET(PO!J$12,ROW(A81)-ROW($A$12),0) -> Serviço | B81: =IF($A81=0,"",OFFSET(PO!K$12,ROW(B81)-ROW(B$12),0)) -> 1.7.0.0.2. | C81: =IF(OFFSET(PO!N$12,ROW(C81)-ROW(C$12),0)=0,"",OFFSET(PO!N$12,ROW(C81)-ROW(C$12),0)) -> IMPERMEABILIZAÇÃO DE SUPERFÍCIE COM ARGAMASSA DE CIMENTO E AREIA, COM ADITIVO IMPERMEABILIZANTE, E = 1,5CM. AF_09/2023 | D81: =IF(OFFSET(PO!O$12,ROW(D81)-ROW(D$12),0)=0,"",OFFSET(PO!O$12,ROW(D81)-ROW(D$12),0)) -> M2 | E81: =IF($A81<>"Serviço",0,ROUND(SUMIF($F$9:$P$9,"<>",$F81:$P81),15-13*PO!$X$3)) -> 15.53 | G81: =10.35*1.5 -> 15.525
A82: =OFFSET(PO!J$12,ROW(A82)-ROW($A$12),0) -> Serviço | B82: =IF($A82=0,"",OFFSET(PO!K$12,ROW(B82)-ROW(B$12),0)) -> 1.7.0.0.3. | C82: =IF(OFFSET(PO!N$12,ROW(C82)-ROW(C$12),0)=0,"",OFFSET(PO!N$12,ROW(C82)-ROW(C$12),0)) -> IMPERMEABILIZAÇÃO DE SUPERFÍCIE COM ARGAMASSA POLIMÉRICA / MEMBRANA ACRÍLICA, 4 DEMÃOS, REFORÇADA COM VÉU DE POLIÉSTER (MAV). AF_09/2023 | D82: =IF(OFFSET(PO!O$12,ROW(D82)-ROW(D$12),0)=0,"",OFFSET(PO!O$12,ROW(D82)-ROW(D$12),0)) -> M2 | E82: =IF($A82<>"Serviço",0,ROUND(SUMIF($F$9:$P$9,"<>",$F82:$P82),15-13*PO!$X$3)) -> 15.53 | G82: =G81 -> 15.525
A83: =OFFSET(PO!J$12,ROW(A83)-ROW($A$12),0) -> Nível 2 | B83: =IF($A83=0,"",OFFSET(PO!K$12,ROW(B83)-ROW(B$12),0)) -> 1.8. | C83: =IF(OFFSET(PO!N$12,ROW(C83)-ROW(C$12),0)=0,"",OFFSET(PO!N$12,ROW(C83)-ROW(C$12),0)) -> SERVIÇOS FINAIS | D83: =IF(OFFSET(PO!O$12,ROW(D83)-ROW(D$12),0)=0,"",OFFSET(PO!O$12,ROW(D83)-ROW(D$12),0)) ->  | E83: =IF($A83<>"Serviço",0,ROUND(SUMIF($F$9:$P$9,"<>",$F83:$P83),15-13*PO!$X$3)) -> 0
A84: =OFFSET(PO!J$12,ROW(A84)-ROW($A$12),0) -> Serviço | B84: =IF($A84=0,"",OFFSET(PO!K$12,ROW(B84)-ROW(B$12),0)) -> 1.8.0.0.1. | C84: =IF(OFFSET(PO!N$12,ROW(C84)-ROW(C$12),0)=0,"",OFFSET(PO!N$12,ROW(C84)-ROW(C$12),0)) -> LIMPEZA DE JANELA INTEIRAMENTE DE VIDRO. AF_04/2019 | D84: =IF(OFFSET(PO!O$12,ROW(D84)-ROW(D$12),0)=0,"",OFFSET(PO!O$12,ROW(D84)-ROW(D$12),0)) -> M2 | E84: =IF($A84<>"Serviço",0,ROUND(SUMIF($F$9:$P$9,"<>",$F84:$P84),15-13*PO!$X$3)) -> 48.12 | G84: =G70+G73 -> 40.215 | H84: =H70 -> 7.9
A85: =OFFSET(PO!J$12,ROW(A85)-ROW($A$12),0) -> Serviço | B85: =IF($A85=0,"",OFFSET(PO!K$12,ROW(B85)-ROW(B$12),0)) -> 1.8.0.0.2. | C85: =IF(OFFSET(PO!N$12,ROW(C85)-ROW(C$12),0)=0,"",OFFSET(PO!N$12,ROW(C85)-ROW(C$12),0)) -> LIMPEZA DE PISO CERÂMICO OU PORCELANATO COM PANO ÚMIDO. AF_04/2019 | D85: =IF(OFFSET(PO!O$12,ROW(D85)-ROW(D$12),0)=0,"",OFFSET(PO!O$12,ROW(D85)-ROW(D$12),0)) -> M2 | E85: =IF($A85<>"Serviço",0,ROUND(SUMIF($F$9:$P$9,"<>",$F85:$P85),15-13*PO!$X$3)) -> 23 | G85: =H61 -> 23
A86: =OFFSET(PO!J$12,ROW(A86)-ROW($A$12),0) -> Meta | B86: =IF($A86=0,"",OFFSET(PO!K$12,ROW(B86)-ROW(B$12),0)) -> 2. | C86: =IF(OFFSET(PO!N$12,ROW(C86)-ROW(C$12),0)=0,"",OFFSET(PO!N$12,ROW(C86)-ROW(C$12),0)) -> LOTE 1 - 2ª ETAPA DA REFORMA | D86: =IF(OFFSET(PO!O$12,ROW(D86)-ROW(D$12),0)=0,"",OFFSET(PO!O$12,ROW(D86)-ROW(D$12),0)) ->  | E86: =IF($A86<>"Serviço",0,ROUND(SUMIF($F$9:$P$9,"<>",$F86:$P86),15-13*PO!$X$3)) -> 0
A87: =OFFSET(PO!J$12,ROW(A87)-ROW($A$12),0) -> Nível 2 | B87: =IF($A87=0,"",OFFSET(PO!K$12,ROW(B87)-ROW(B$12),0)) -> 2.1. | C87: =IF(OFFSET(PO!N$12,ROW(C87)-ROW(C$12),0)=0,"",OFFSET(PO!N$12,ROW(C87)-ROW(C$12),0)) -> SERVIÇOS INICIAIS | D87: =IF(OFFSET(PO!O$12,ROW(D87)-ROW(D$12),0)=0,"",OFFSET(PO!O$12,ROW(D87)-ROW(D$12),0)) ->  | E87: =IF($A87<>"Serviço",0,ROUND(SUMIF($F$9:$P$9,"<>",$F87:$P87),15-13*PO!$X$3)) -> 0
A88: =OFFSET(PO!J$12,ROW(A88)-ROW($A$12),0) -> Serviço | B88: =IF($A88=0,"",OFFSET(PO!K$12,ROW(B88)-ROW(B$12),0)) -> 2.1.0.0.1. | C88: =IF(OFFSET(PO!N$12,ROW(C88)-ROW(C$12),0)=0,"",OFFSET(PO!N$12,ROW(C88)-ROW(C$12),0)) -> ADMINSTRAÇÃO LOCAL | D88: =IF(OFFSET(PO!O$12,ROW(D88)-ROW(D$12),0)=0,"",OFFSET(PO!O$12,ROW(D88)-ROW(D$12),0)) -> MÊS | E88: =IF($A88<>"Serviço",0,ROUND(SUMIF($F$9:$P$9,"<>",$F88:$P88),15-13*PO!$X$3)) -> 2 | F88: 2
A89: =OFFSET(PO!J$12,ROW(A89)-ROW($A$12),0) -> Nível 2 | B89: =IF($A89=0,"",OFFSET(PO!K$12,ROW(B89)-ROW(B$12),0)) -> 2.2. | C89: =IF(OFFSET(PO!N$12,ROW(C89)-ROW(C$12),0)=0,"",OFFSET(PO!N$12,ROW(C89)-ROW(C$12),0)) -> ESCADA | D89: =IF(OFFSET(PO!O$12,ROW(D89)-ROW(D$12),0)=0,"",OFFSET(PO!O$12,ROW(D89)-ROW(D$12),0)) ->  | E89: =IF($A89<>"Serviço",0,ROUND(SUMIF($F$9:$P$9,"<>",$F89:$P89),15-13*PO!$X$3)) -> 0
A90: =OFFSET(PO!J$12,ROW(A90)-ROW($A$12),0) -> Serviço | B90: =IF($A90=0,"",OFFSET(PO!K$12,ROW(B90)-ROW(B$12),0)) -> 2.2.0.0.1. | C90: =IF(OFFSET(PO!N$12,ROW(C90)-ROW(C$12),0)=0,"",OFFSET(PO!N$12,ROW(C90)-ROW(C$12),0)) -> DEMOLIÇÃO DE LAJES, EM CONCRETO ARMADO, DE FORMA MECANIZADA COM MARTELETE, SEM REAPROVEITAMENTO. AF_09/2023 | D90: =IF(OFFSET(PO!O$12,ROW(D90)-ROW(D$12),0)=0,"",OFFSET(PO!O$12,ROW(D90)-ROW(D$12),0)) -> M3 | E90: =IF($A90<>"Serviço",0,ROUND(SUMIF($F$9:$P$9,"<>",$F90:$P90),15-13*PO!$X$3)) -> 2.81 | F90: =13.37*0.21 -> 2.8077
A91: =OFFSET(PO!J$12,ROW(A91)-ROW($A$12),0) -> Serviço | B91: =IF($A91=0,"",OFFSET(PO!K$12,ROW(B91)-ROW(B$12),0)) -> 2.2.0.0.2. | C91: =IF(OFFSET(PO!N$12,ROW(C91)-ROW(C$12),0)=0,"",OFFSET(PO!N$12,ROW(C91)-ROW(C$12),0)) -> TRANSPORTE MANUAL DE REVESTIMENTOS ARGAMASSADOS REMOVIDOS COM CARRINHO DE MÃO 45L - INCLUSO CARGA E DESCARGA | D91: =IF(OFFSET(PO!O$12,ROW(D91)-ROW(D$12),0)=0,"",OFFSET(PO!O$12,ROW(D91)-ROW(D$12),0)) -> M3XKM | E91: =IF($A91<>"Serviço",0,ROUND(SUMIF($F$9:$P$9,"<>",$F91:$P91),15-13*PO!$X$3)) -> 2.81 | F91: =F90 -> 2.8077
A92: =OFFSET(PO!J$12,ROW(A92)-ROW($A$12),0) -> Serviço | B92: =IF($A92=0,"",OFFSET(PO!K$12,ROW(B92)-ROW(B$12),0)) -> 2.2.0.0.3. | C92: =IF(OFFSET(PO!N$12,ROW(C92)-ROW(C$12),0)=0,"",OFFSET(PO!N$12,ROW(C92)-ROW(C$12),0)) -> ESCADA EM CONCRETO ARMADO MOLDADO IN LOCO, FCK 25 MPA, APENAS PISANTES, SEM ARMADURA, FÔRMA EM CHAPA DE MADEIRA COMPENSADA RESINADA. | D92: =IF(OFFSET(PO!O$12,ROW(D92)-ROW(D$12),0)=0,"",OFFSET(PO!O$12,ROW(D92)-ROW(D$12),0)) -> M³ | E92: =IF($A92<>"Serviço",0,ROUND(SUMIF($F$9:$P$9,"<>",$F92:$P92),15-13*PO!$X$3)) -> 1.83 | F92: 1.83
A93: =OFFSET(PO!J$12,ROW(A93)-ROW($A$12),0) -> Serviço | B93: =IF($A93=0,"",OFFSET(PO!K$12,ROW(B93)-ROW(B$12),0)) -> 2.2.0.0.4. | C93: =IF(OFFSET(PO!N$12,ROW(C93)-ROW(C$12),0)=0,"",OFFSET(PO!N$12,ROW(C93)-ROW(C$12),0)) -> PISO EM GRANITO APLICADO EM AMBIENTES INTERNOS. AF_09/2020 | D93: =IF(OFFSET(PO!O$12,ROW(D93)-ROW(D$12),0)=0,"",OFFSET(PO!O$12,ROW(D93)-ROW(D$12),0)) -> M2 | E93: =IF($A93<>"Serviço",0,ROUND(SUMIF($F$9:$P$9,"<>",$F93:$P93),15-13*PO!$X$3)) -> 13.8 | F93: 13.8
A94: =OFFSET(PO!J$12,ROW(A94)-ROW($A$12),0) -> Nível 2 | B94: =IF($A94=0,"",OFFSET(PO!K$12,ROW(B94)-ROW(B$12),0)) -> 2.3. | C94: =IF(OFFSET(PO!N$12,ROW(C94)-ROW(C$12),0)=0,"",OFFSET(PO!N$12,ROW(C94)-ROW(C$12),0)) -> INSTALAÇÕES ELÉTRICAS | D94: =IF(OFFSET(PO!O$12,ROW(D94)-ROW(D$12),0)=0,"",OFFSET(PO!O$12,ROW(D94)-ROW(D$12),0)) ->  | E94: =IF($A94<>"Serviço",0,ROUND(SUMIF($F$9:$P$9,"<>",$F94:$P94),15-13*PO!$X$3)) -> 0
A95: =OFFSET(PO!J$12,ROW(A95)-ROW($A$12),0) -> Serviço | B95: =IF($A95=0,"",OFFSET(PO!K$12,ROW(B95)-ROW(B$12),0)) -> 2.3.0.0.1. | C95: =IF(OFFSET(PO!N$12,ROW(C95)-ROW(C$12),0)=0,"",OFFSET(PO!N$12,ROW(C95)-ROW(C$12),0)) -> LUMINÁRIA LED PLAFON EMBUTIR 24W - FORNECIMENTO E INSTALAÇÃO | D95: =IF(OFFSET(PO!O$12,ROW(D95)-ROW(D$12),0)=0,"",OFFSET(PO!O$12,ROW(D95)-ROW(D$12),0)) -> UN | E95: =IF($A95<>"Serviço",0,ROUND(SUMIF($F$9:$P$9,"<>",$F95:$P95),15-13*PO!$X$3)) -> 44 | H95: 44
A96: =OFFSET(PO!J$12,ROW(A96)-ROW($A$12),0) -> Serviço | B96: =IF($A96=0,"",OFFSET(PO!K$12,ROW(B96)-ROW(B$12),0)) -> 2.3.0.0.2. | C96: =IF(OFFSET(PO!N$12,ROW(C96)-ROW(C$12),0)=0,"",OFFSET(PO!N$12,ROW(C96)-ROW(C$12),0)) -> ELETRODUTO FLEXÍVEL CORRUGADO REFORÇADO, PVC, DN 25 MM (3/4"), PARA CIRCUITOS TERMINAIS, INSTALADO EM LAJE - FORNECIMENTO E INSTALAÇÃO. AF_03/2023 | D96: =IF(OFFSET(PO!O$12,ROW(D96)-ROW(D$12),0)=0,"",OFFSET(PO!O$12,ROW(D96)-ROW(D$12),0)) -> M | E96: =IF($A96<>"Serviço",0,ROUND(SUMIF($F$9:$P$9,"<>",$F96:$P96),15-13*PO!$X$3)) -> 70 | H96: 70
A97: =OFFSET(PO!J$12,ROW(A97)-ROW($A$12),0) -> Serviço | B97: =IF($A97=0,"",OFFSET(PO!K$12,ROW(B97)-ROW(B$12),0)) -> 2.3.0.0.3. | C97: =IF(OFFSET(PO!N$12,ROW(C97)-ROW(C$12),0)=0,"",OFFSET(PO!N$12,ROW(C97)-ROW(C$12),0)) -> ELETRODUTO RÍGIDO SOLDÁVEL, PVC, DN 32 MM (1"), APARENTE - FORNECIMENTO E INSTALAÇÃO. AF_10/2022 | D97: =IF(OFFSET(PO!O$12,ROW(D97)-ROW(D$12),0)=0,"",OFFSET(PO!O$12,ROW(D97)-ROW(D$12),0)) -> M | E97: =IF($A97<>"Serviço",0,ROUND(SUMIF($F$9:$P$9,"<>",$F97:$P97),15-13*PO!$X$3)) -> 7 | F97: 7
A98: =OFFSET(PO!J$12,ROW(A98)-ROW($A$12),0) -> Serviço | B98: =IF($A98=0,"",OFFSET(PO!K$12,ROW(B98)-ROW(B$12),0)) -> 2.3.0.0.4. | C98: =IF(OFFSET(PO!N$12,ROW(C98)-ROW(C$12),0)=0,"",OFFSET(PO!N$12,ROW(C98)-ROW(C$12),0)) -> CABO DE COBRE FLEXÍVEL ISOLADO, 2,5 MM², ANTI-CHAMA 0,6/1,0 KV, PARA CIRCUITOS TERMINAIS - FORNECIMENTO E INSTALAÇÃO. AF_03/2023 | D98: =IF(OFFSET(PO!O$12,ROW(D98)-ROW(D$12),0)=0,"",OFFSET(PO!O$12,ROW(D98)-ROW(D$12),0)) -> M | E98: =IF($A98<>"Serviço",0,ROUND(SUMIF($F$9:$P$9,"<>",$F98:$P98),15-13*PO!$X$3)) -> 140 | H98: 140
A99: =OFFSET(PO!J$12,ROW(A99)-ROW($A$12),0) -> Serviço | B99: =IF($A99=0,"",OFFSET(PO!K$12,ROW(B99)-ROW(B$12),0)) -> 2.3.0.0.5. | C99: =IF(OFFSET(PO!N$12,ROW(C99)-ROW(C$12),0)=0,"",OFFSET(PO!N$12,ROW(C99)-ROW(C$12),0)) -> TOMADA BAIXA DE EMBUTIR (1 MÓDULO), 2P+T 10 A, INCLUINDO SUPORTE E PLACA - FORNECIMENTO E INSTALAÇÃO. AF_03/2023 | D99: =IF(OFFSET(PO!O$12,ROW(D99)-ROW(D$12),0)=0,"",OFFSET(PO!O$12,ROW(D99)-ROW(D$12),0)) -> UN | E99: =IF($A99<>"Serviço",0,ROUND(SUMIF($F$9:$P$9,"<>",$F99:$P99),15-13*PO!$X$3)) -> 30 | F99: 30
A100: =OFFSET(PO!J$12,ROW(A100)-ROW($A$12),0) -> Serviço | B100: =IF($A100=0,"",OFFSET(PO!K$12,ROW(B100)-ROW(B$12),0)) -> 2.3.0.0.6. | C100: =IF(OFFSET(PO!N$12,ROW(C100)-ROW(C$12),0)=0,"",OFFSET(PO!N$12,ROW(C100)-ROW(C$12),0)) -> TOMADA ALTA DE EMBUTIR (1 MÓDULO), 2P+T 20 A, INCLUINDO SUPORTE E PLACA - FORNECIMENTO E INSTALAÇÃO. AF_03/2023 | D100: =IF(OFFSET(PO!O$12,ROW(D100)-ROW(D$12),0)=0,"",OFFSET(PO!O$12,ROW(D100)-ROW(D$12),0)) -> UN | E100: =IF($A100<>"Serviço",0,ROUND(SUMIF($F$9:$P$9,"<>",$F100:$P100),15-13*PO!$X$3)) -> 5 | F100: 5
A101: =OFFSET(PO!J$12,ROW(A101)-ROW($A$12),0) -> Serviço | B101: =IF($A101=0,"",OFFSET(PO!K$12,ROW(B101)-ROW(B$12),0)) -> 2.3.0.0.7. | C101: =IF(OFFSET(PO!N$12,ROW(C101)-ROW(C$12),0)=0,"",OFFSET(PO!N$12,ROW(C101)-ROW(C$12),0)) -> INTERRUPTOR SIMPLES (1 MÓDULO), 10A/250V, INCLUINDO SUPORTE E PLACA - FORNECIMENTO E INSTALAÇÃO. AF_03/2023 | D101: =IF(OFFSET(PO!O$12,ROW(D101)-ROW(D$12),0)=0,"",OFFSET(PO!O$12,ROW(D101)-ROW(D$12),0)) -> UN | E101: =IF($A101<>"Serviço",0,ROUND(SUMIF($F$9:$P$9,"<>",$F101:$P101),15-13*PO!$X$3)) -> 10 | F101: 10
A102: =OFFSET(PO!J$12,ROW(A102)-ROW($A$12),0) -> Serviço | B102: =IF($A102=0,"",OFFSET(PO!K$12,ROW(B102)-ROW(B$12),0)) -> 2.3.0.0.8. | C102: =IF(OFFSET(PO!N$12,ROW(C102)-ROW(C$12),0)=0,"",OFFSET(PO!N$12,ROW(C102)-ROW(C$12),0)) -> INTERRUPTOR SIMPLES (3 MÓDULOS), 10A/250V, INCLUINDO SUPORTE E PLACA - FORNECIMENTO E INSTALAÇÃO. AF_03/2023 | D102: =IF(OFFSET(PO!O$12,ROW(D102)-ROW(D$12),0)=0,"",OFFSET(PO!O$12,ROW(D102)-ROW(D$12),0)) -> UN | E102: =IF($A102<>"Serviço",0,ROUND(SUMIF($F$9:$P$9,"<>",$F102:$P102),15-13*PO!$X$3)) -> 5 | F102: 5
A103: =OFFSET(PO!J$12,ROW(A103)-ROW($A$12),0) -> Serviço | B103: =IF($A103=0,"",OFFSET(PO!K$12,ROW(B103)-ROW(B$12),0)) -> 2.3.0.0.9. | C103: =IF(OFFSET(PO!N$12,ROW(C103)-ROW(C$12),0)=0,"",OFFSET(PO!N$12,ROW(C103)-ROW(C$12),0)) -> SUPORTE PARAFUSADO COM PLACA DE ENCAIXE 4" X 2" BAIXO (0,30 M DO PISO) PARA PONTO ELÉTRICO - FORNECIMENTO E INSTALAÇÃO. AF_03/2023 | D103: =IF(OFFSET(PO!O$12,ROW(D103)-ROW(D$12),0)=0,"",OFFSET(PO!O$12,ROW(D103)-ROW(D$12),0)) -> UN | E103: =IF($A103<>"Serviço",0,ROUND(SUMIF($F$9:$P$9,"<>",$F103:$P103),15-13*PO!$X$3)) -> 5 | F103: 5
A104: =OFFSET(PO!J$12,ROW(A104)-ROW($A$12),0) -> Serviço | B104: =IF($A104=0,"",OFFSET(PO!K$12,ROW(B104)-ROW(B$12),0)) -> 2.3.0.0.10. | C104: =IF(OFFSET(PO!N$12,ROW(C104)-ROW(C$12),0)=0,"",OFFSET(PO!N$12,ROW(C104)-ROW(C$12),0)) -> CAIXA DE INSPEÇÃO PARA ATERRAMENTO, CIRCULAR, EM POLIETILENO, DIÂMETRO INTERNO = 0,3 M. AF_12/2020 | D104: =IF(OFFSET(PO!O$12,ROW(D104)-ROW(D$12),0)=0,"",OFFSET(PO!O$12,ROW(D104)-ROW(D$12),0)) -> UN | E104: =IF($A104<>"Serviço",0,ROUND(SUMIF($F$9:$P$9,"<>",$F104:$P104),15-13*PO!$X$3)) -> 1 | F104: 1
A105: =OFFSET(PO!J$12,ROW(A105)-ROW($A$12),0) -> Serviço | B105: =IF($A105=0,"",OFFSET(PO!K$12,ROW(B105)-ROW(B$12),0)) -> 2.3.0.0.11. | C105: =IF(OFFSET(PO!N$12,ROW(C105)-ROW(C$12),0)=0,"",OFFSET(PO!N$12,ROW(C105)-ROW(C$12),0)) -> DISPOSITIVO DR, 4 POLOS, SENSIBILIDADE DE 30 MA, CORRENTE DE 40 A, TIPO AC | D105: =IF(OFFSET(PO!O$12,ROW(D105)-ROW(D$12),0)=0,"",OFFSET(PO!O$12,ROW(D105)-ROW(D$12),0)) -> UN | E105: =IF($A105<>"Serviço",0,ROUND(SUMIF($F$9:$P$9,"<>",$F105:$P105),15-13*PO!$X$3)) -> 2 | F105: 2
A106: =OFFSET(PO!J$12,ROW(A106)-ROW($A$12),0) -> Serviço | B106: =IF($A106=0,"",OFFSET(PO!K$12,ROW(B106)-ROW(B$12),0)) -> 2.3.0.0.12. | C106: =IF(OFFSET(PO!N$12,ROW(C106)-ROW(C$12),0)=0,"",OFFSET(PO!N$12,ROW(C106)-ROW(C$12),0)) -> ELETRICISTA COM ENCARGOS COMPLEMENTARES | D106: =IF(OFFSET(PO!O$12,ROW(D106)-ROW(D$12),0)=0,"",OFFSET(PO!O$12,ROW(D106)-ROW(D$12),0)) -> H | E106: =IF($A106<>"Serviço",0,ROUND(SUMIF($F$9:$P$9,"<>",$F106:$P106),15-13*PO!$X$3)) -> 16 | F106: 16
A107: =OFFSET(PO!J$12,ROW(A107)-ROW($A$12),0) -> Nível 2 | B107: =IF($A107=0,"",OFFSET(PO!K$12,ROW(B107)-ROW(B$12),0)) -> 2.4. | C107: =IF(OFFSET(PO!N$12,ROW(C107)-ROW(C$12),0)=0,"",OFFSET(PO!N$12,ROW(C107)-ROW(C$12),0)) -> FORRO | D107: =IF(OFFSET(PO!O$12,ROW(D107)-ROW(D$12),0)=0,"",OFFSET(PO!O$12,ROW(D107)-ROW(D$12),0)) ->  | E107: =IF($A107<>"Serviço",0,ROUND(SUMIF($F$9:$P$9,"<>",$F107:$P107),15-13*PO!$X$3)) -> 0
A108: =OFFSET(PO!J$12,ROW(A108)-ROW($A$12),0) -> Serviço | B108: =IF($A108=0,"",OFFSET(PO!K$12,ROW(B108)-ROW(B$12),0)) -> 2.4.0.0.1. | C108: =IF(OFFSET(PO!N$12,ROW(C108)-ROW(C$12),0)=0,"",OFFSET(PO!N$12,ROW(C108)-ROW(C$12),0)) -> REMOÇÃO DE LUMINÁRIAS, DE FORMA MANUAL, SEM REAPROVEITAMENTO. AF_09/2023 | D108: =IF(OFFSET(PO!O$12,ROW(D108)-ROW(D$12),0)=0,"",OFFSET(PO!O$12,ROW(D108)-ROW(D$12),0)) -> UN | E108: =IF($A108<>"Serviço",0,ROUND(SUMIF($F$9:$P$9,"<>",$F108:$P108),15-13*PO!$X$3)) -> 28 | H108: 28
A109: =OFFSET(PO!J$12,ROW(A109)-ROW($A$12),0) -> Serviço | B109: =IF($A109=0,"",OFFSET(PO!K$12,ROW(B109)-ROW(B$12),0)) -> 2.4.0.0.2. | C109: =IF(OFFSET(PO!N$12,ROW(C109)-ROW(C$12),0)=0,"",OFFSET(PO!N$12,ROW(C109)-ROW(C$12),0)) -> REMOÇÃO DE FORRO DE GESSO, DE FORMA MANUAL, SEM REAPROVEITAMENTO. AF_09/2023 | D109: =IF(OFFSET(PO!O$12,ROW(D109)-ROW(D$12),0)=0,"",OFFSET(PO!O$12,ROW(D109)-ROW(D$12),0)) -> M2 | E109: =IF($A109<>"Serviço",0,ROUND(SUMIF($F$9:$P$9,"<>",$F109:$P109),15-13*PO!$X$3)) -> 244.8 | F109: =71.91+11.21+6.3+149.75+2.76+2.87 -> 244.8
A110: =OFFSET(PO!J$12,ROW(A110)-ROW($A$12),0) -> Serviço | B110: =IF($A110=0,"",OFFSET(PO!K$12,ROW(B110)-ROW(B$12),0)) -> 2.4.0.0.3. | C110: =IF(OFFSET(PO!N$12,ROW(C110)-ROW(C$12),0)=0,"",OFFSET(PO!N$12,ROW(C110)-ROW(C$12),0)) -> TRANSPORTE HORIZONTAL MANUAL, DE COMPENSADO DE MADEIRA (UNIDADE: M2XKM). AF_07/2019 | D110: =IF(OFFSET(PO!O$12,ROW(D110)-ROW(D$12),0)=0,"",OFFSET(PO!O$12,ROW(D110)-ROW(D$12),0)) -> M2XKM | E110: =IF($A110<>"Serviço",0,ROUND(SUMIF($F$9:$P$9,"<>",$F110:$P110),15-13*PO!$X$3)) -> 6.12 | F110: =(25/1000)*F109 -> 6.12
A111: =OFFSET(PO!J$12,ROW(A111)-ROW($A$12),0) -> Serviço | B111: =IF($A111=0,"",OFFSET(PO!K$12,ROW(B111)-ROW(B$12),0)) -> 2.4.0.0.4. | C111: =IF(OFFSET(PO!N$12,ROW(C111)-ROW(C$12),0)=0,"",OFFSET(PO!N$12,ROW(C111)-ROW(C$12),0)) -> FORRO EM DRYWALL, PARA AMBIENTES COMERCIAIS, INCLUSIVE ESTRUTURA BIRECIONAL DE FIXAÇÃO. AF_08/2023_PS | D111: =IF(OFFSET(PO!O$12,ROW(D111)-ROW(D$12),0)=0,"",OFFSET(PO!O$12,ROW(D111)-ROW(D$12),0)) -> M2 | E111: =IF($A111<>"Serviço",0,ROUND(SUMIF($F$9:$P$9,"<>",$F111:$P111),15-13*PO!$X$3)) -> 244.8 | F111: =F109 -> 244.8
A112: =OFFSET(PO!J$12,ROW(A112)-ROW($A$12),0) -> Serviço | B112: =IF($A112=0,"",OFFSET(PO!K$12,ROW(B112)-ROW(B$12),0)) -> 2.4.0.0.5. | C112: =IF(OFFSET(PO!N$12,ROW(C112)-ROW(C$12),0)=0,"",OFFSET(PO!N$12,ROW(C112)-ROW(C$12),0)) -> EMASSAMENTO COM MASSA LÁTEX, APLICAÇÃO EM TETO, DUAS DEMÃOS, LIXAMENTO MANUAL. AF_04/2023 | D112: =IF(OFFSET(PO!O$12,ROW(D112)-ROW(D$12),0)=0,"",OFFSET(PO!O$12,ROW(D112)-ROW(D$12),0)) -> M2 | E112: =IF($A112<>"Serviço",0,ROUND(SUMIF($F$9:$P$9,"<>",$F112:$P112),15-13*PO!$X$3)) -> 244.8 | F112: =F109 -> 244.8
A113: =OFFSET(PO!J$12,ROW(A113)-ROW($A$12),0) -> Serviço | B113: =IF($A113=0,"",OFFSET(PO!K$12,ROW(B113)-ROW(B$12),0)) -> 2.4.0.0.6. | C113: =IF(OFFSET(PO!N$12,ROW(C113)-ROW(C$12),0)=0,"",OFFSET(PO!N$12,ROW(C113)-ROW(C$12),0)) -> FUNDO SELADOR ACRÍLICO, APLICAÇÃO MANUAL EM PAREDE, UMA DEMÃO. AF_04/2023 | D113: =IF(OFFSET(PO!O$12,ROW(D113)-ROW(D$12),0)=0,"",OFFSET(PO!O$12,ROW(D113)-ROW(D$12),0)) -> M2 | E113: =IF($A113<>"Serviço",0,ROUND(SUMIF($F$9:$P$9,"<>",$F113:$P113),15-13*PO!$X$3)) -> 244.8 | F113: =F109 -> 244.8
A114: =OFFSET(PO!J$12,ROW(A114)-ROW($A$12),0) -> Serviço | B114: =IF($A114=0,"",OFFSET(PO!K$12,ROW(B114)-ROW(B$12),0)) -> 2.4.0.0.7. | C114: =IF(OFFSET(PO!N$12,ROW(C114)-ROW(C$12),0)=0,"",OFFSET(PO!N$12,ROW(C114)-ROW(C$12),0)) -> PINTURA LÁTEX ACRÍLICA PREMIUM, APLICAÇÃO MANUAL EM TETO, DUAS DEMÃOS. AF_04/2023 | D114: =IF(OFFSET(PO!O$12,ROW(D114)-ROW(D$12),0)=0,"",OFFSET(PO!O$12,ROW(D114)-ROW(D$12),0)) -> M2 | E114: =IF($A114<>"Serviço",0,ROUND(SUMIF($F$9:$P$9,"<>",$F114:$P114),15-13*PO!$X$3)) -> 244.8 | F114: =F109 -> 244.8
A115: =OFFSET(PO!J$12,ROW(A115)-ROW($A$12),0) -> Nível 2 | B115: =IF($A115=0,"",OFFSET(PO!K$12,ROW(B115)-ROW(B$12),0)) -> 2.5. | C115: =IF(OFFSET(PO!N$12,ROW(C115)-ROW(C$12),0)=0,"",OFFSET(PO!N$12,ROW(C115)-ROW(C$12),0)) -> REVESTIMENTOS | D115: =IF(OFFSET(PO!O$12,ROW(D115)-ROW(D$12),0)=0,"",OFFSET(PO!O$12,ROW(D115)-ROW(D$12),0)) ->  | E115: =IF($A115<>"Serviço",0,ROUND(SUMIF($F$9:$P$9,"<>",$F115:$P115),15-13*PO!$X$3)) -> 0 | F115: 0
A116: =OFFSET(PO!J$12,ROW(A116)-ROW($A$12),0) -> Nível 3 | B116: =IF($A116=0,"",OFFSET(PO!K$12,ROW(B116)-ROW(B$12),0)) -> 2.5.1. | C116: =IF(OFFSET(PO!N$12,ROW(C116)-ROW(C$12),0)=0,"",OFFSET(PO!N$12,ROW(C116)-ROW(C$12),0)) -> INTERNOS | D116: =IF(OFFSET(PO!O$12,ROW(D116)-ROW(D$12),0)=0,"",OFFSET(PO!O$12,ROW(D116)-ROW(D$12),0)) ->  | E116: =IF($A116<>"Serviço",0,ROUND(SUMIF($F$9:$P$9,"<>",$F116:$P116),15-13*PO!$X$3)) -> 0
A117: =OFFSET(PO!J$12,ROW(A117)-ROW($A$12),0) -> Serviço | B117: =IF($A117=0,"",OFFSET(PO!K$12,ROW(B117)-ROW(B$12),0)) -> 2.5.1.0.1. | C117: =IF(OFFSET(PO!N$12,ROW(C117)-ROW(C$12),0)=0,"",OFFSET(PO!N$12,ROW(C117)-ROW(C$12),0)) -> CHAPISCO APLICADO EM ALVENARIAS E ESTRUTURAS DE CONCRETO INTERNAS, COM COLHER DE PEDREIRO. ARGAMASSA TRAÇO 1:3 COM PREPARO EM BETONEIRA 400L. AF_10/2022 | D117: =IF(OFFSET(PO!O$12,ROW(D117)-ROW(D$12),0)=0,"",OFFSET(PO!O$12,ROW(D117)-ROW(D$12),0)) -> M2 | E117: =IF($A117<>"Serviço",0,ROUND(SUMIF($F$9:$P$9,"<>",$F117:$P117),15-13*PO!$X$3)) -> 105.68 | G117: =G37 -> 34.28 | H117: =H37 -> 71.4045
A118: =OFFSET(PO!J$12,ROW(A118)-ROW($A$12),0) -> Serviço | B118: =IF($A118=0,"",OFFSET(PO!K$12,ROW(B118)-ROW(B$12),0)) -> 2.5.1.0.2. | C118: =IF(OFFSET(PO!N$12,ROW(C118)-ROW(C$12),0)=0,"",OFFSET(PO!N$12,ROW(C118)-ROW(C$12),0)) -> EMBOÇO OU MASSA ÚNICA EM ARGAMASSA TRAÇO 1:2:8, PREPARO MECÂNICO COM BETONEIRA 400 L, APLICADA MANUALMENTE EM PANOS DE FACHADA COM PRESENÇA DE VÃOS, ESPESSURA DE 25 MM. AF_08/2022 | D118: =IF(OFFSET(PO!O$12,ROW(D118)-ROW(D$12),0)=0,"",OFFSET(PO!O$12,ROW(D118)-ROW(D$12),0)) -> M2 | E118: =IF($A118<>"Serviço",0,ROUND(SUMIF($F$9:$P$9,"<>",$F118:$P118),15-13*PO!$X$3)) -> 105.68 | G118: =G117 -> 34.28 | H118: =H117 -> 71.4045
A119: =OFFSET(PO!J$12,ROW(A119)-ROW($A$12),0) -> Serviço | B119: =IF($A119=0,"",OFFSET(PO!K$12,ROW(B119)-ROW(B$12),0)) -> 2.5.1.0.3. | C119: =IF(OFFSET(PO!N$12,ROW(C119)-ROW(C$12),0)=0,"",OFFSET(PO!N$12,ROW(C119)-ROW(C$12),0)) -> REVESTIMENTO CERÂMICO PARA PAREDES INTERNAS COM PLACAS TIPO ESMALTADA DE DIMENSÕES 25X35 CM APLICADAS NA ALTURA INTEIRA DAS PAREDES. AF_02/2023_PE | D119: =IF(OFFSET(PO!O$12,ROW(D119)-ROW(D$12),0)=0,"",OFFSET(PO!O$12,ROW(D119)-ROW(D$12),0)) -> M2 | E119: =IF($A119<>"Serviço",0,ROUND(SUMIF($F$9:$P$9,"<>",$F119:$P119),15-13*PO!$X$3)) -> 22.33 | H119: =H38 -> 22.33
A120: =OFFSET(PO!J$12,ROW(A120)-ROW($A$12),0) -> Serviço | B120: =IF($A120=0,"",OFFSET(PO!K$12,ROW(B120)-ROW(B$12),0)) -> 2.5.1.0.4. | C120: =IF(OFFSET(PO!N$12,ROW(C120)-ROW(C$12),0)=0,"",OFFSET(PO!N$12,ROW(C120)-ROW(C$12),0)) -> EMASSAMENTO COM MASSA LÁTEX, APLICAÇÃO EM PAREDE, TRÊS DEMÂOS, LIXAMENTO MANUAL | D120: =IF(OFFSET(PO!O$12,ROW(D120)-ROW(D$12),0)=0,"",OFFSET(PO!O$12,ROW(D120)-ROW(D$12),0)) -> M2 | E120: =IF($A120<>"Serviço",0,ROUND(SUMIF($F$9:$P$9,"<>",$F120:$P120),15-13*PO!$X$3)) -> 105.68 | G120: =G117 -> 34.28 | H120: =H117 -> 71.4045
A121: =OFFSET(PO!J$12,ROW(A121)-ROW($A$12),0) -> Serviço | B121: =IF($A121=0,"",OFFSET(PO!K$12,ROW(B121)-ROW(B$12),0)) -> 2.5.1.0.5. | C121: =IF(OFFSET(PO!N$12,ROW(C121)-ROW(C$12),0)=0,"",OFFSET(PO!N$12,ROW(C121)-ROW(C$12),0)) -> FUNDO SELADOR ACRÍLICO, APLICAÇÃO MANUAL EM PAREDE, UMA DEMÃO. AF_04/2023 | D121: =IF(OFFSET(PO!O$12,ROW(D121)-ROW(D$12),0)=0,"",OFFSET(PO!O$12,ROW(D121)-ROW(D$12),0)) -> M2 | E121: =IF($A121<>"Serviço",0,ROUND(SUMIF($F$9:$P$9,"<>",$F121:$P121),15-13*PO!$X$3)) -> 105.68 | G121: =G117 -> 34.28 | H121: =H117 -> 71.4045
A122: =OFFSET(PO!J$12,ROW(A122)-ROW($A$12),0) -> Serviço | B122: =IF($A122=0,"",OFFSET(PO!K$12,ROW(B122)-ROW(B$12),0)) -> 2.5.1.0.6. | C122: =IF(OFFSET(PO!N$12,ROW(C122)-ROW(C$12),0)=0,"",OFFSET(PO!N$12,ROW(C122)-ROW(C$12),0)) -> APLICAÇÃO MANUAL DE TINTA LÁTEX ACRÍLICA EM PAREDE EXTERNAS DE CASAS, DUAS DEMÃOS. AF_03/2024 | D122: =IF(OFFSET(PO!O$12,ROW(D122)-ROW(D$12),0)=0,"",OFFSET(PO!O$12,ROW(D122)-ROW(D$12),0)) -> M2 | E122: =IF($A122<>"Serviço",0,ROUND(SUMIF($F$9:$P$9,"<>",$F122:$P122),15-13*PO!$X$3)) -> 533.68 | G122: 240.58 | H122: 293.1
A123: =OFFSET(PO!J$12,ROW(A123)-ROW($A$12),0) -> Nível 3 | B123: =IF($A123=0,"",OFFSET(PO!K$12,ROW(B123)-ROW(B$12),0)) -> 2.5.2. | C123: =IF(OFFSET(PO!N$12,ROW(C123)-ROW(C$12),0)=0,"",OFFSET(PO!N$12,ROW(C123)-ROW(C$12),0)) -> EXTERNO | D123: =IF(OFFSET(PO!O$12,ROW(D123)-ROW(D$12),0)=0,"",OFFSET(PO!O$12,ROW(D123)-ROW(D$12),0)) ->  | E123: =IF($A123<>"Serviço",0,ROUND(SUMIF($F$9:$P$9,"<>",$F123:$P123),15-13*PO!$X$3)) -> 0
A124: =OFFSET(PO!J$12,ROW(A124)-ROW($A$12),0) -> Serviço | B124: =IF($A124=0,"",OFFSET(PO!K$12,ROW(B124)-ROW(B$12),0)) -> 2.5.2.0.1. | C124: =IF(OFFSET(PO!N$12,ROW(C124)-ROW(C$12),0)=0,"",OFFSET(PO!N$12,ROW(C124)-ROW(C$12),0)) -> CHAPISCO APLICADO EM ALVENARIA (COM PRESENÇA DE VÃOS) E ESTRUTURAS DE CONCRETO DE FACHADA, COM COLHER DE PEDREIRO. ARGAMASSA TRAÇO 1:3 COM PREPARO EM BETONEIRA 400L. AF_10/2022 | D124: =IF(OFFSET(PO!O$12,ROW(D124)-ROW(D$12),0)=0,"",OFFSET(PO!O$12,ROW(D124)-ROW(D$12),0)) -> M2 | E124: =IF($A124<>"Serviço",0,ROUND(SUMIF($F$9:$P$9,"<>",$F124:$P124),15-13*PO!$X$3)) -> 137.4 | G124: =G42 -> 65.628 | H124: =H42 -> 71.775
A125: =OFFSET(PO!J$12,ROW(A125)-ROW($A$12),0) -> Serviço | B125: =IF($A125=0,"",OFFSET(PO!K$12,ROW(B125)-ROW(B$12),0)) -> 2.5.2.0.2. | C125: =IF(OFFSET(PO!N$12,ROW(C125)-ROW(C$12),0)=0,"",OFFSET(PO!N$12,ROW(C125)-ROW(C$12),0)) -> EMBOÇO OU MASSA ÚNICA EM ARGAMASSA TRAÇO 1:2:8, PREPARO MECÂNICO COM BETONEIRA 400 L, APLICADA MANUALMENTE EM PANOS DE FACHADA COM PRESENÇA DE VÃOS, ESPESSURA DE 25 MM. AF_08/2022 | D125: =IF(OFFSET(PO!O$12,ROW(D125)-ROW(D$12),0)=0,"",OFFSET(PO!O$12,ROW(D125)-ROW(D$12),0)) -> M2 | E125: =IF($A125<>"Serviço",0,ROUND(SUMIF($F$9:$P$9,"<>",$F125:$P125),15-13*PO!$X$3)) -> 137.4 | G125: =G124 -> 65.628 | H125: =H124 -> 71.775
A126: =OFFSET(PO!J$12,ROW(A126)-ROW($A$12),0) -> Serviço | B126: =IF($A126=0,"",OFFSET(PO!K$12,ROW(B126)-ROW(B$12),0)) -> 2.5.2.0.3. | C126: =IF(OFFSET(PO!N$12,ROW(C126)-ROW(C$12),0)=0,"",OFFSET(PO!N$12,ROW(C126)-ROW(C$12),0)) -> TEXTURA ACRÍLICA, APLICAÇÃO MANUAL EM PAREDE, UMA DEMÃO. AF_04/2023 | D126: =IF(OFFSET(PO!O$12,ROW(D126)-ROW(D$12),0)=0,"",OFFSET(PO!O$12,ROW(D126)-ROW(D$12),0)) -> M2 | E126: =IF($A126<>"Serviço",0,ROUND(SUMIF($F$9:$P$9,"<>",$F126:$P126),15-13*PO!$X$3)) -> 137.4 | G126: =G124 -> 65.628 | H126: =H124 -> 71.775
A127: =OFFSET(PO!J$12,ROW(A127)-ROW($A$12),0) -> Serviço | B127: =IF($A127=0,"",OFFSET(PO!K$12,ROW(B127)-ROW(B$12),0)) -> 2.5.2.0.4. | C127: =IF(OFFSET(PO!N$12,ROW(C127)-ROW(C$12),0)=0,"",OFFSET(PO!N$12,ROW(C127)-ROW(C$12),0)) -> FUNDO SELADOR ACRÍLICO, APLICAÇÃO MANUAL EM PAREDE, UMA DEMÃO. AF_04/2023 | D127: =IF(OFFSET(PO!O$12,ROW(D127)-ROW(D$12),0)=0,"",OFFSET(PO!O$12,ROW(D127)-ROW(D$12),0)) -> M2 | E127: =IF($A127<>"Serviço",0,ROUND(SUMIF($F$9:$P$9,"<>",$F127:$P127),15-13*PO!$X$3)) -> 137.4 | G127: =G124 -> 65.628 | H127: =H124 -> 71.775
A128: =OFFSET(PO!J$12,ROW(A128)-ROW($A$12),0) -> Serviço | B128: =IF($A128=0,"",OFFSET(PO!K$12,ROW(B128)-ROW(B$12),0)) -> 2.5.2.0.5. | C128: =IF(OFFSET(PO!N$12,ROW(C128)-ROW(C$12),0)=0,"",OFFSET(PO!N$12,ROW(C128)-ROW(C$12),0)) -> APLICAÇÃO MANUAL DE TINTA LÁTEX ACRÍLICA EM PAREDE EXTERNAS DE CASAS, DUAS DEMÃOS. AF_03/2024 | D128: =IF(OFFSET(PO!O$12,ROW(D128)-ROW(D$12),0)=0,"",OFFSET(PO!O$12,ROW(D128)-ROW(D$12),0)) -> M2 | E128: =IF($A128<>"Serviço",0,ROUND(SUMIF($F$9:$P$9,"<>",$F128:$P128),15-13*PO!$X$3)) -> 408.99 | G128: 197.88 | H128: 211.11
A129: =OFFSET(PO!J$12,ROW(A129)-ROW($A$12),0) -> Nível 2 | B129: =IF($A129=0,"",OFFSET(PO!K$12,ROW(B129)-ROW(B$12),0)) -> 2.6. | C129: =IF(OFFSET(PO!N$12,ROW(C129)-ROW(C$12),0)=0,"",OFFSET(PO!N$12,ROW(C129)-ROW(C$12),0)) -> PAVIMENTAÇÃO | D129: =IF(OFFSET(PO!O$12,ROW(D129)-ROW(D$12),0)=0,"",OFFSET(PO!O$12,ROW(D129)-ROW(D$12),0)) ->  | E129: =IF($A129<>"Serviço",0,ROUND(SUMIF($F$9:$P$9,"<>",$F129:$P129),15-13*PO!$X$3)) -> 0
A130: =OFFSET(PO!J$12,ROW(A130)-ROW($A$12),0) -> Serviço | B130: =IF($A130=0,"",OFFSET(PO!K$12,ROW(B130)-ROW(B$12),0)) -> 2.6.0.0.1. | C130: =IF(OFFSET(PO!N$12,ROW(C130)-ROW(C$12),0)=0,"",OFFSET(PO!N$12,ROW(C130)-ROW(C$12),0)) -> DEMOLIÇÃO DE REVESTIMENTO CERÂMICO, DE FORMA MECANIZADA COM MARTELETE, SEM REAPROVEITAMENTO. AF_09/2023 | D130: =IF(OFFSET(PO!O$12,ROW(D130)-ROW(D$12),0)=0,"",OFFSET(PO!O$12,ROW(D130)-ROW(D$12),0)) -> M2 | E130: =IF($A130<>"Serviço",0,ROUND(SUMIF($F$9:$P$9,"<>",$F130:$P130),15-13*PO!$X$3)) -> 475.56 | G130: =26.89+152.23+22.47+11.1+11.04+12.99+9.57 -> 246.29 | H130: =56.38+11.21+6.3+149.75+2.76+2.87 -> 229.27
A131: =OFFSET(PO!J$12,ROW(A131)-ROW($A$12),0) -> Serviço | B131: =IF($A131=0,"",OFFSET(PO!K$12,ROW(B131)-ROW(B$12),0)) -> 2.6.0.0.2. | C131: =IF(OFFSET(PO!N$12,ROW(C131)-ROW(C$12),0)=0,"",OFFSET(PO!N$12,ROW(C131)-ROW(C$12),0)) -> DEMOLIÇÃO DE RODAPÉ CERÂMICO, DE FORMA MANUAL, SEM REAPROVEITAMENTO. AF_09/2023 | D131: =IF(OFFSET(PO!O$12,ROW(D131)-ROW(D$12),0)=0,"",OFFSET(PO!O$12,ROW(D131)-ROW(D$12),0)) -> M | E131: =IF($A131<>"Serviço",0,ROUND(SUMIF($F$9:$P$9,"<>",$F131:$P131),15-13*PO!$X$3)) -> 193.03 | G131: =13.1+12.18+(37.61-18.81)+3+7.16+18.33+2.22+0.84+3.23+5.13+1.86+(1.36*5)+(3*2) -> 98.65 | H131: =37+7.64+43.1+2.44+4.2 -> 94.38
A132: =OFFSET(PO!J$12,ROW(A132)-ROW($A$12),0) -> Serviço | B132: =IF($A132=0,"",OFFSET(PO!K$12,ROW(B132)-ROW(B$12),0)) -> 2.6.0.0.3. | C132: =IF(OFFSET(PO!N$12,ROW(C132)-ROW(C$12),0)=0,"",OFFSET(PO!N$12,ROW(C132)-ROW(C$12),0)) -> DEMOLIÇÃO DE PISO DE CONCRETO SIMPLES, DE FORMA MECANIZADA COM MARTELETE, SEM REAPROVEITAMENTO. AF_09/2023 | D132: =IF(OFFSET(PO!O$12,ROW(D132)-ROW(D$12),0)=0,"",OFFSET(PO!O$12,ROW(D132)-ROW(D$12),0)) -> M3 | E132: =IF($A132<>"Serviço",0,ROUND(SUMIF($F$9:$P$9,"<>",$F132:$P132),15-13*PO!$X$3)) -> 0.23 | G132: =18.81*0.4*0.03 -> 0.22572
A133: =OFFSET(PO!J$12,ROW(A133)-ROW($A$12),0) -> Serviço | B133: =IF($A133=0,"",OFFSET(PO!K$12,ROW(B133)-ROW(B$12),0)) -> 2.6.0.0.4. | C133: =IF(OFFSET(PO!N$12,ROW(C133)-ROW(C$12),0)=0,"",OFFSET(PO!N$12,ROW(C133)-ROW(C$12),0)) -> DEMOLIÇÃO DE ARGAMASSAS, DE FORMA DE FORMA MECANIZADA COM MARTELETE, SEM REAPROVEITAMENTO. AF_09/2023 | D133: =IF(OFFSET(PO!O$12,ROW(D133)-ROW(D$12),0)=0,"",OFFSET(PO!O$12,ROW(D133)-ROW(D$12),0)) -> M2 | E133: =IF($A133<>"Serviço",0,ROUND(SUMIF($F$9:$P$9,"<>",$F133:$P133),15-13*PO!$X$3)) -> 22.57 | G133: =18.81*1.2 -> 22.572
A134: =OFFSET(PO!J$12,ROW(A134)-ROW($A$12),0) -> Serviço | B134: =IF($A134=0,"",OFFSET(PO!K$12,ROW(B134)-ROW(B$12),0)) -> 2.6.0.0.5. | C134: =IF(OFFSET(PO!N$12,ROW(C134)-ROW(C$12),0)=0,"",OFFSET(PO!N$12,ROW(C134)-ROW(C$12),0)) -> REBOCO IMPERMEÁVEL E=3CM | D134: =IF(OFFSET(PO!O$12,ROW(D134)-ROW(D$12),0)=0,"",OFFSET(PO!O$12,ROW(D134)-ROW(D$12),0)) -> M2 | E134: =IF($A134<>"Serviço",0,ROUND(SUMIF($F$9:$P$9,"<>",$F134:$P134),15-13*PO!$X$3)) -> 30.1 | G134: =(18.81*0.4)+(18.81*1.2) -> 30.096
A135: =OFFSET(PO!J$12,ROW(A135)-ROW($A$12),0) -> Serviço | B135: =IF($A135=0,"",OFFSET(PO!K$12,ROW(B135)-ROW(B$12),0)) -> 2.6.0.0.6. | C135: =IF(OFFSET(PO!N$12,ROW(C135)-ROW(C$12),0)=0,"",OFFSET(PO!N$12,ROW(C135)-ROW(C$12),0)) -> REVESTIMENTO CERÂMICO PARA PISO COM PLACAS TIPO PORCELANATO DE DIMENSÕES 80X80 CM APLICADA EM AMBIENTES DE ÁREA MAIOR QUE 10 M². AF_02/2023_PE | D135: =IF(OFFSET(PO!O$12,ROW(D135)-ROW(D$12),0)=0,"",OFFSET(PO!O$12,ROW(D135)-ROW(D$12),0)) -> M2 | E135: =IF($A135<>"Serviço",0,ROUND(SUMIF($F$9:$P$9,"<>",$F135:$P135),15-13*PO!$X$3)) -> 475.56 | G135: =G130 -> 246.29 | H135: =H130 -> 229.27
A136: =OFFSET(PO!J$12,ROW(A136)-ROW($A$12),0) -> Serviço | B136: =IF($A136=0,"",OFFSET(PO!K$12,ROW(B136)-ROW(B$12),0)) -> 2.6.0.0.7. | C136: =IF(OFFSET(PO!N$12,ROW(C136)-ROW(C$12),0)=0,"",OFFSET(PO!N$12,ROW(C136)-ROW(C$12),0)) -> RODAPÉ CERÂMICO DE 7CM DE ALTURA COM PLACAS TIPO ESMALTADA DE DIMENSÕES 80X80CM. AF_02/2023 | D136: =IF(OFFSET(PO!O$12,ROW(D136)-ROW(D$12),0)=0,"",OFFSET(PO!O$12,ROW(D136)-ROW(D$12),0)) -> M | E136: =IF($A136<>"Serviço",0,ROUND(SUMIF($F$9:$P$9,"<>",$F136:$P136),15-13*PO!$X$3)) -> 193.03 | G136: =G131 -> 98.65 | H136: =H131 -> 94.38
A137: =OFFSET(PO!J$12,ROW(A137)-ROW($A$12),0) -> Meta | B137: =IF($A137=0,"",OFFSET(PO!K$12,ROW(B137)-ROW(B$12),0)) -> 3. | C137: =IF(OFFSET(PO!N$12,ROW(C137)-ROW(C$12),0)=0,"",OFFSET(PO!N$12,ROW(C137)-ROW(C$12),0)) -> LOTE 2 - FACHADA EM ACM 1ª ETAPA | D137: =IF(OFFSET(PO!O$12,ROW(D137)-ROW(D$12),0)=0,"",OFFSET(PO!O$12,ROW(D137)-ROW(D$12),0)) ->  | E137: =IF($A137<>"Serviço",0,ROUND(SUMIF($F$9:$P$9,"<>",$F137:$P137),15-13*PO!$X$3)) -> 0
A138: =OFFSET(PO!J$12,ROW(A138)-ROW($A$12),0) -> Nível 3 | B138: =IF($A138=0,"",OFFSET(PO!K$12,ROW(B138)-ROW(B$12),0)) -> 3.0.1. | C138: =IF(OFFSET(PO!N$12,ROW(C138)-ROW(C$12),0)=0,"",OFFSET(PO!N$12,ROW(C138)-ROW(C$12),0)) -> PLATIBANDA | D138: =IF(OFFSET(PO!O$12,ROW(D138)-ROW(D$12),0)=0,"",OFFSET(PO!O$12,ROW(D138)-ROW(D$12),0)) ->  | E138: =IF($A138<>"Serviço",0,ROUND(SUMIF($F$9:$P$9,"<>",$F138:$P138),15-13*PO!$X$3)) -> 0
A139: =OFFSET(PO!J$12,ROW(A139)-ROW($A$12),0) -> Serviço | B139: =IF($A139=0,"",OFFSET(PO!K$12,ROW(B139)-ROW(B$12),0)) -> 3.0.1.0.1. | C139: =IF(OFFSET(PO!N$12,ROW(C139)-ROW(C$12),0)=0,"",OFFSET(PO!N$12,ROW(C139)-ROW(C$12),0)) -> FACHADA - ACM 3MM (PLATIBANDA, SACADA E DETALHE LATERAL), INCLUSO TESTEIRAS E ESTRUTURA METÁLICA NECESSÁRIA - FORNECIMENTO E INSTALAÇÃO | D139: =IF(OFFSET(PO!O$12,ROW(D139)-ROW(D$12),0)=0,"",OFFSET(PO!O$12,ROW(D139)-ROW(D$12),0)) -> M2 | E139: =IF($A139<>"Serviço",0,ROUND(SUMIF($F$9:$P$9,"<>",$F139:$P139),15-13*PO!$X$3)) -> 178.56 | F139: =F140+(F140*0.5) -> 178.56
A140: =OFFSET(PO!J$12,ROW(A140)-ROW($A$12),0) -> Serviço | B140: =IF($A140=0,"",OFFSET(PO!K$12,ROW(B140)-ROW(B$12),0)) -> 3.0.1.0.2. | C140: =IF(OFFSET(PO!N$12,ROW(C140)-ROW(C$12),0)=0,"",OFFSET(PO!N$12,ROW(C140)-ROW(C$12),0)) -> TELHAMENTO COM TELHA DE AÇO/ALUMÍNIO E = 0,5 MM, COM ATÉ 2 ÁGUAS, INCLUSO IÇAMENTO. AF_07/2019 | D140: =IF(OFFSET(PO!O$12,ROW(D140)-ROW(D$12),0)=0,"",OFFSET(PO!O$12,ROW(D140)-ROW(D$12),0)) -> M2 | E140: =IF($A140<>"Serviço",0,ROUND(SUMIF($F$9:$P$9,"<>",$F140:$P140),15-13*PO!$X$3)) -> 119.04 | F140: =(79.36*1.5) -> 119.04
A141: =OFFSET(PO!J$12,ROW(A141)-ROW($A$12),0) -> Nível 3 | B141: =IF($A141=0,"",OFFSET(PO!K$12,ROW(B141)-ROW(B$12),0)) -> 3.0.2. | C141: =IF(OFFSET(PO!N$12,ROW(C141)-ROW(C$12),0)=0,"",OFFSET(PO!N$12,ROW(C141)-ROW(C$12),0)) -> SACADA | D141: =IF(OFFSET(PO!O$12,ROW(D141)-ROW(D$12),0)=0,"",OFFSET(PO!O$12,ROW(D141)-ROW(D$12),0)) ->  | E141: =IF($A141<>"Serviço",0,ROUND(SUMIF($F$9:$P$9,"<>",$F141:$P141),15-13*PO!$X$3)) -> 0
A142: =OFFSET(PO!J$12,ROW(A142)-ROW($A$12),0) -> Serviço | B142: =IF($A142=0,"",OFFSET(PO!K$12,ROW(B142)-ROW(B$12),0)) -> 3.0.2.0.1. | C142: =IF(OFFSET(PO!N$12,ROW(C142)-ROW(C$12),0)=0,"",OFFSET(PO!N$12,ROW(C142)-ROW(C$12),0)) -> FACHADA - ACM 3MM (PLATIBANDA, SACADA E DETALHE LATERAL), INCLUSO TESTEIRAS E ESTRUTURA METÁLICA NECESSÁRIA - FORNECIMENTO E INSTALAÇÃO | D142: =IF(OFFSET(PO!O$12,ROW(D142)-ROW(D$12),0)=0,"",OFFSET(PO!O$12,ROW(D142)-ROW(D$12),0)) -> M2 | E142: =IF($A142<>"Serviço",0,ROUND(SUMIF($F$9:$P$9,"<>",$F142:$P142),15-13*PO!$X$3)) -> 22.58 | F142: =18.82*1.2 -> 22.584
A143: =OFFSET(PO!J$12,ROW(A143)-ROW($A$12),0) -> Nível 3 | B143: =IF($A143=0,"",OFFSET(PO!K$12,ROW(B143)-ROW(B$12),0)) -> 3.0.3. | C143: =IF(OFFSET(PO!N$12,ROW(C143)-ROW(C$12),0)=0,"",OFFSET(PO!N$12,ROW(C143)-ROW(C$12),0)) -> DETALHE LATERAL | D143: =IF(OFFSET(PO!O$12,ROW(D143)-ROW(D$12),0)=0,"",OFFSET(PO!O$12,ROW(D143)-ROW(D$12),0)) ->  | E143: =IF($A143<>"Serviço",0,ROUND(SUMIF($F$9:$P$9,"<>",$F143:$P143),15-13*PO!$X$3)) -> 0
A144: =OFFSET(PO!J$12,ROW(A144)-ROW($A$12),0) -> Serviço | B144: =IF($A144=0,"",OFFSET(PO!K$12,ROW(B144)-ROW(B$12),0)) -> 3.0.3.0.1. | C144: =IF(OFFSET(PO!N$12,ROW(C144)-ROW(C$12),0)=0,"",OFFSET(PO!N$12,ROW(C144)-ROW(C$12),0)) -> FACHADA - ACM 3MM (PLATIBANDA, SACADA E DETALHE LATERAL), INCLUSO TESTEIRAS E ESTRUTURA METÁLICA NECESSÁRIA - FORNECIMENTO E INSTALAÇÃO | D144: =IF(OFFSET(PO!O$12,ROW(D144)-ROW(D$12),0)=0,"",OFFSET(PO!O$12,ROW(D144)-ROW(D$12),0)) -> M2 | E144: =IF($A144<>"Serviço",0,ROUND(SUMIF($F$9:$P$9,"<>",$F144:$P144),15-13*PO!$X$3)) -> 28 | F144: =(1.5+1.5+0.5+0.5)*7 -> 28
B147: =PO!$K$156 -> SÃO JOSÉ DO OURO / RS
B148: Local
B150: =PO!$K$159 -> 2025-11-02
B151: Data

Sheet CFF
O1: CFF - | P1: CRONOGRAMA FÍSICO-FINANCEIRO
P2: =CHOOSE(1+LOG(1+2*(TipoOrçamento="BASE")+4*(TipoOrçamento="LICITADO")+8*(TipoOrçamento="REPROGRAMADOAC")+16*(TipoOrçamento="REPROGRAMADONPL"),2),"nada","Cronograma Base para Licitação","Cronograma Licitado","Cronograma Licitado Reprogramado","Cronograma Base para Licitação - Reprogramado") -> Cronograma Base para Licitação
A8: Nível Máx Crono | L8: =IF(MAX($A$14:$A$70)<>MAX(PO!$V$12:$V$145),"ERRO: CRONOGRAMA DESATUALIZADO",IF(OR(COUNTIF($O$16:$X$16,">1")>0,OFFSET($X$17,0,-1)<>$N$14),"ERRO: CRONOGRAMA NÃO FECHA EM 100%","")) ->  | N8: =IF(TipoOrçamento="REPROGRAMADOAC","Qtde de Medições realizadas","") -> 
A9: 2 | N9: 1 | O9: =IF(AND(TipoOrçamento="REPROGRAMADOAC",$N$9>0),$N$9-1,0) -> 0 | P9: =OFFSET(P9,0,-1)+1 -> 1 | Q9: 2 | R9: 3 | S9: 4 | T9: 5 | U9: 6 | V9: 7 | W9: 8 | AC9: =OFFSET(AC9,0,-1)+1 -> 1
